Workbook

Sheet Přehled_body
E1: =IF(E2>0,1,"") -> 1 | J1: =IF(OR(E1="",J2=""),"",E1+1) -> 2 | O1: =IF(OR(J1="",O2=""),"",J1+1) -> 3 | T1: =IF(OR(O1="",T2=""),"",O1+1) -> 4 | Y1: =IF(OR(T1="",Y2=""),"",T1+1) -> 5 | AD1: =IF(OR(Y1="",AD2=""),"",Y1+1) -> 6 | AI1: =IF(OR(AD1="",AI2=""),"",AD1+1) -> 7 | AN1: =IF(OR(AI1="",AN2=""),"",AI1+1) -> 8 | AS1: =IF(OR(AN1="",AS2=""),"",AN1+1) -> 9 | AX1: =IF(OR(AS1="",AX2=""),"",AS1+1) -> 10 | BC1: =IF(OR(AX1="",BC2=""),"",AX1+1) -> 11 | BH1: =IF(OR(BC1="",BH2=""),"",BC1+1) -> 12 | BM1: =IF(OR(BH1="",BM2=""),"",BH1+1) -> 13 | BR1: =IF(OR(BM1="",BR2=""),"",BM1+1) -> 14 | BW1: =IF(OR(BR1="",BW2=""),"",BR1+1) -> 15 | CB1: 16 | CG1: =IF(OR(CB1="",CG2=""),"",CB1+1) -> 17 | CL1: =IF(OR(CG1="",CL2=""),"",CG1+1) -> 18 | CQ1: =IF(OR(CL1="",CQ2=""),"",CL1+1) -> 19 | CV1: =IF(OR(CQ1="",CV2=""),"",CQ1+1) -> 20 | DA1: =IF(OR(CV1="",DA2=""),"",CV1+1) -> 21 | DF1: =IF(OR(DA1="",DF2=""),"",DA1+1) -> 22 | DK1: =IF(OR(DF1="",DK2=""),"",DF1+1) -> 23 | DP1: =IF(OR(DK1="",DP2=""),"",DK1+1) -> 24 | DU1: =IF(OR(DP1="",DU2=""),"",DP1+1) ->  | DZ1: =IF(OR(DU1="",DZ2=""),"",DU1+1) ->  | EI1: Min počet her | EJ1: 20 | EM1: hrací den | EN1: =E1 -> 1 | EP1: min počet šipek | EQ1: průměrný počet šipek | ER1: počet šipek | ES1: Hrací den | ET1: Hrací den | EU1: Hrací den | EV1: Hrací den | EW1: Hrací den | EX1: Hrací den | EY1: Hrací den | EZ1: Hrací den | FA1: Hrací den | FB1: Hrací den | FC1: Hrací den | FD1: Hrací den | FE1: Hrací den | FF1: Hrací den | FG1: Hrací den | FH1: Hrací den | FI1: Hrací den | FJ1: Hrací den | FK1: Hrací den | FL1: Hrací den | FM1: Hrací den | FN1: Hrací den | FO1: Hrací den | FP1: Hrací den | FQ1: Hrací den | FR1: Hrací den | FW1: 1 | FX1: 2 | FY1: 3 | FZ1: 4 | GA1: 5 | GB1: 6 | GC1: 7 | GD1: 8 | GE1: 9 | GF1: 10 | GG1: 11 | GH1: 12 | GI1: 13 | GJ1: 14 | GK1: 15 | GL1: 16 | GM1: 17 | GN1: 18 | GO1: 19 | GP1: 20 | GQ1: 21 | GR1: 22 | GS1: 23 | GT1: 24 | GU1: 25 | GV1: 26 | GW1: 27 | GX1: 28 | GY1: 29 | GZ1: 30 | HA1: 31 | HB1: 32 | HC1: 33 | HD1: 34 | HE1: 35 | HF1: 36 | HG1: 37 | HH1: 38 | HI1: 39 | HJ1: 40 | HK1: 41 | HL1: 42 | HM1: 43 | HN1: 44 | HO1: 45 | HP1: 46 | HQ1: 47 | HR1: 48 | HS1: 49 | HT1: 50 | HU1: 51 | HV1: 52 | HW1: 53 | HX1: 54 | HY1: 55 | HZ1: 56 | IA1: 57 | IB1: 58 | IC1: 59 | ID1: 60 | IE1: 61 | IF1: 62 | IG1: 63 | IH1: 64 | II1: 65 | IJ1: 66 | IK1: 67 | IL1: 68 | IM1: 69 | IN1: 70 | IO1: 71 | IP1: 72 | IQ1: 73 | IR1: 74 | IS1: 75 | IT1: 76 | IU1: 77 | IV1: 78 | IW1: 79 | IX1: 80 | IY1: 81 | IZ1: 82 | JA1: 83 | JB1: 84 | JC1: 85 | JD1: 86 | JE1: 87 | JF1: 88 | JG1: 89 | JH1: 90 | JI1: 91 | JJ1: 92 | JK1: 93 | JL1: 94 | JM1: 95 | JN1: 96 | JO1: 97 | JP1: 98 | JQ1: 99 | JR1: 100 | JS1: 101 | JT1: 102 | JU1: 103 | JV1: 104 | JW1: 105 | JX1: 106 | JY1: 107 | JZ1: 108 | KA1: 109 | KB1: 110 | KC1: 111 | KD1: 112 | KE1: 113 | KF1: 114 | KG1: 115 | KH1: 116 | KI1: 117 | KJ1: 118 | KK1: 119 | KL1: 120 | KM1: 121 | KN1: 122 | KO1: 123 | KP1: 124 | KQ1: 125 | KR1: 126 | KS1: 127 | KT1: 128 | KU1: 129 | KV1: 130
B2: =E2 -> 2022-01-04 | C2: 2022 | D2: 1. pololetí | E2: 2022-01-04 | J2: 2022-01-11 | O2: 2022-01-18 | T2: 2022-01-25 | Y2: 2022-02-01 | AD2: 2022-02-08 | AI2: 2022-02-15 | AN2: 2022-02-22 | AS2: 2022-03-08 | AX2: 2022-03-15 | BC2: 2022-03-22 | BH2: 2022-03-29 | BM2: 2022-04-05 | BR2: 2022-04-12 | BW2: 2022-04-19 | CB2: 2022-04-26 | CG2: 2022-05-10 | CL2: 2022-05-17 | CQ2: 2022-05-25 | CV2: 2022-05-31 | DA2: 2022-06-07 | DF2: 2022-06-14 | DK2: 2022-06-21 | DP2: 2022-06-28 | EE2: =Tabulka!AE2 -> Součet celkem | EF2: =Tabulka!AF2 -> Body | EI2: Min počet dnů | EJ2: 5 | EL2: 1. pololetí | EM2: datum | EN2: =E2 -> 2022-01-04
D3: Hra | E3: 1 | F3: 2 | G3: 3 | H3: 4 | I3: 5 | J3: 1 | K3: 2 | L3: 3 | M3: 4 | N3: 5 | O3: 1 | P3: 2 | Q3: 3 | R3: 4 | S3: 5 | T3: 1 | U3: 2 | V3: 3 | W3: 4 | X3: 5 | Y3: 1 | Z3: 2 | AA3: 3 | AB3: 4 | AC3: 5 | AD3: 1 | AE3: 2 | AF3: 3 | AG3: 4 | AH3: 5 | AI3: 1 | AJ3: 2 | AK3: 3 | AL3: 4 | AM3: 5 | AN3: 1 | AO3: 2 | AP3: 3 | AQ3: 4 | AR3: 5 | AS3: 1 | AT3: 2 | AU3: 3 | AV3: 4 | AW3: 5 | AX3: 1 | AY3: 2 | AZ3: 3 | BA3: 4 | BB3: 5 | BC3: 1 | BD3: 2 | BE3: 3 | BF3: 4 | BG3: 5 | BH3: 1 | BI3: 2 | BJ3: 3 | BK3: 4 | BL3: 5 | BM3: 1 | BN3: 2 | BO3: 3 | BP3: 4 | BQ3: 5 | BR3: 1 | BS3: 2 | BT3: 3 | BU3: 4 | BV3: 5 | BW3: 1 | BX3: 2 | BY3: 3 | BZ3: 4 | CA3: 5 | CB3: 1 | CC3: 2 | CD3: 3 | CE3: 4 | CF3: 5 | CG3: 1 | CH3: 2 | CI3: 3 | CJ3: 4 | CK3: 5 | CL3: 1 | CM3: 2 | CN3: 3 | CO3: 4 | CP3: 5 | CQ3: 1 | CR3: 2 | CS3: 3 | CT3: 4 | CU3: 5 | CV3: 1 | CW3: 2 | CX3: 3 | CY3: 4 | CZ3: 5 | DA3: 1 | DB3: 2 | DC3: 3 | DD3: 4 | DE3: 5 | DF3: 1 | DG3: 2 | DH3: 3 | DI3: 4 | DJ3: 5 | DK3: 1 | DL3: 2 | DM3: 3 | DN3: 4 | DO3: 5 | DP3: 1 | DQ3: 2 | DR3: 3 | DS3: 4 | DT3: 5 | DU3: 1 | DV3: 2 | DW3: 3 | DX3: 4 | DY3: 5 | DZ3: 1 | EA3: 2 | EB3: 3 | EC3: 4 | ED3: 5 | EE3: =Tabulka!AE3 -> 0 | EF3: =Tabulka!AF3 -> 0 | EJ3: 5000 | EL3: 2. pololetí | EM3: hráčů | EN3: =Tabulka!D3 -> 8 | ES3: 1 | ET3: 2 | EU3: 3 | EV3: 4 | EW3: 5 | EX3: 6 | EY3: 7 | EZ3: 8 | FA3: 9 | FB3: 10 | FC3: 11 | FD3: 12 | FE3: 13 | FF3: 14 | FG3: 15 | FH3: 16 | FI3: 17 | FJ3: 18 | FK3: 19 | FL3: 20 | FM3: 21 | FN3: 22 | FO3: 23 | FP3: 24 | FQ3: 25 | FR3: 26
A4: =CONCATENATE($B$4,D4) -> Libor HruškaVýhry | B4: =CONCATENATE(C5," ",C6) -> Libor Hruška | C4: =Tabulka!A5 -> 1 | D4: =Tabulka!C5 -> Výhry | E4: 1 | J4: 0 | O4: 1 | T4: 1 | Y4: 0 | AD4: 1 | AI4: 0 | AN4: 1 | AS4: 0 | AX4: 0 | BC4: 1 | BH4: 0 | BM4: 1 | BR4: 1 | BW4: 0 | CB4: 0 | CG4: 0 | CL4: 0 | CQ4: 0 | CV4: 1 | DA4: 0 | DF4: 1 | DK4: 0 | DP4: 0 | EE4: =IF(AND(SUM(Tabulka!$AG$5)>0.99,(SUM(Tabulka!$AH$9)<$EJ$1)),-50000+(SUM(E4:ED4)),IF(OR(SUM(Tabulka!$AG$5)<2),-90000,SUM(E4:ED4))) -> 10 | EG4: =SUM(E4:ED4) -> 10 | EL4: =Tabulka!A5 -> 1 | EM4: =D4 -> Výhry | EN4: =Tabulka!D5 -> 1 | ES4: 0 | ET4: 5 | EU4: 10 | EV4: 15 | EW4: 20 | EX4: 25 | EY4: 30 | EZ4: 35 | FA4: 40 | FB4: 45 | FC4: 50 | FD4: 55 | FE4: 60 | FF4: 65 | FG4: 70 | FH4: 75 | FI4: 80 | FJ4: 85 | FK4: 90 | FL4: 95 | FM4: 100 | FN4: 105 | FO4: 110 | FP4: 115 | FQ4: 120 | FR4: 125 | FT4: 0 | FV4: =A$11 -> Libor HruškaPočet šipek (průměr den) | FW4: =INDEX($E$11:$ED$150,MATCH($FV4,$A$11:$A$150,0),FW$1) -> 0 | FX4: =INDEX($E$11:$ED$150,MATCH($FV4,$A$11:$A$150,0),FX$1) -> 0 | FY4: =INDEX($E$11:$ED$150,MATCH($FV4,$A$11:$A$150,0),FY$1) -> 0 | FZ4: =INDEX($E$11:$ED$150,MATCH($FV4,$A$11:$A$150,0),FZ$1) -> 0 | GA4: =INDEX($E$11:$ED$150,MATCH($FV4,$A$11:$A$150,0),GA$1) -> 0 | GB4: =INDEX($E$11:$ED$150,MATCH($FV4,$A$11:$A$150,0),GB$1) -> 0 | GC4: =INDEX($E$11:$ED$150,MATCH($FV4,$A$11:$A$150,0),GC$1) -> 0 | GD4: =INDEX($E$11:$ED$150,MATCH($FV4,$A$11:$A$150,0),GD$1) -> 0 | GE4: =INDEX($E$11:$ED$150,MATCH($FV4,$A$11:$A$150,0),GE$1) -> 0 | GF4: =INDEX($E$11:$ED$150,MATCH($FV4,$A$11:$A$150,0),GF$1) -> 0 | GG4: =INDEX($E$11:$ED$150,MATCH($FV4,$A$11:$A$150,0),GG$1) -> 0 | GH4: =INDEX($E$11:$ED$150,MATCH($FV4,$A$11:$A$150,0),GH$1) -> 0 | GI4: =INDEX($E$11:$ED$150,MATCH($FV4,$A$11:$A$150,0),GI$1) -> 0 | GJ4: =INDEX($E$11:$ED$150,MATCH($FV4,$A$11:$A$150,0),GJ$1) -> 0 | GK4: =INDEX($E$11:$ED$150,MATCH($FV4,$A$11:$A$150,0),GK$1) -> 0 | GL4: =INDEX($E$11:$ED$150,MATCH($FV4,$A$11:$A$150,0),GL$1) -> 0 | GM4: =INDEX($E$11:$ED$150,MATCH($FV4,$A$11:$A$150,0),GM$1) -> 0 | GN4: =INDEX($E$11:$ED$150,MATCH($FV4,$A$11:$A$150,0),GN$1) -> 0 | GO4: =INDEX($E$11:$ED$150,MATCH($FV4,$A$11:$A$150,0),GO$1) -> 0 | GP4: =INDEX($E$11:$ED$150,MATCH($FV4,$A$11:$A$150,0),GP$1) -> 0 | GQ4: =INDEX($E$11:$ED$150,MATCH($FV4,$A$11:$A$150,0),GQ$1) -> 0 | GR4: =INDEX($E$11:$ED$150,MATCH($FV4,$A$11:$A$150,0),GR$1) -> 0 | GS4: =INDEX($E$11:$ED$150,MATCH($FV4,$A$11:$A$150,0),GS$1) -> 0 | GT4: =INDEX($E$11:$ED$150,MATCH($FV4,$A$11:$A$150,0),GT$1) -> 0 | GU4: =INDEX($E$11:$ED$150,MATCH($FV4,$A$11:$A$150,0),GU$1) -> 0 | GV4: =INDEX($E$11:$ED$150,MATCH($FV4,$A$11:$A$150,0),GV$1) -> 0 | GW4: =INDEX($E$11:$ED$150,MATCH($FV4,$A$11:$A$150,0),GW$1) -> 0 | GX4: =INDEX($E$11:$ED$150,MATCH($FV4,$A$11:$A$150,0),GX$1) -> 0 | GY4: =INDEX($E$11:$ED$150,MATCH($FV4,$A$11:$A$150,0),GY$1) -> 0 | GZ4: =INDEX($E$11:$ED$150,MATCH($FV4,$A$11:$A$150,0),GZ$1) -> 0 | HA4: =INDEX($E$11:$ED$150,MATCH($FV4,$A$11:$A$150,0),HA$1) -> 0 | HB4: =INDEX($E$11:$ED$150,MATCH($FV4,$A$11:$A$150,0),HB$1) -> 0 | HC4: =INDEX($E$11:$ED$150,MATCH($FV4,$A$11:$A$150,0),HC$1) -> 0 | HD4: =INDEX($E$11:$ED$150,MATCH($FV4,$A$11:$A$150,0),HD$1) -> 0 | HE4: =INDEX($E$11:$ED$150,MATCH($FV4,$A$11:$A$150,0),HE$1) -> 0 | HF4: =INDEX($E$11:$ED$150,MATCH($FV4,$A$11:$A$150,0),HF$1) -> 0 | HG4: =INDEX($E$11:$ED$150,MATCH($FV4,$A$11:$A$150,0),HG$1) -> 0 | HH4: =INDEX($E$11:$ED$150,MATCH($FV4,$A$11:$A$150,0),HH$1) -> 0 | HI4: =INDEX($E$11:$ED$150,MATCH($FV4,$A$11:$A$150,0),HI$1) -> 0 | HJ4: =INDEX($E$11:$ED$150,MATCH($FV4,$A$11:$A$150,0),HJ$1) -> 0 | HK4: =INDEX($E$11:$ED$150,MATCH($FV4,$A$11:$A$150,0),HK$1) -> 0 | HL4: =INDEX($E$11:$ED$150,MATCH($FV4,$A$11:$A$150,0),HL$1) -> 0 | HM4: =INDEX($E$11:$ED$150,MATCH($FV4,$A$11:$A$150,0),HM$1) -> 0 | HN4: =INDEX($E$11:$ED$150,MATCH($FV4,$A$11:$A$150,0),HN$1) -> 0 | HO4: =INDEX($E$11:$ED$150,MATCH($FV4,$A$11:$A$150,0),HO$1) -> 0 | HP4: =INDEX($E$11:$ED$150,MATCH($FV4,$A$11:$A$150,0),HP$1) -> 0 | HQ4: =INDEX($E$11:$ED$150,MATCH($FV4,$A$11:$A$150,0),HQ$1) -> 0 | HR4: =INDEX($E$11:$ED$150,MATCH($FV4,$A$11:$A$150,0),HR$1) -> 0 | HS4: =INDEX($E$11:$ED$150,MATCH($FV4,$A$11:$A$150,0),HS$1) -> 0 | HT4: =INDEX($E$11:$ED$150,MATCH($FV4,$A$11:$A$150,0),HT$1) -> 0 | HU4: =INDEX($E$11:$ED$150,MATCH($FV4,$A$11:$A$150,0),HU$1) -> 0 | HV4: =INDEX($E$11:$ED$150,MATCH($FV4,$A$11:$A$150,0),HV$1) -> 0 | HW4: =INDEX($E$11:$ED$150,MATCH($FV4,$A$11:$A$150,0),HW$1) -> 0 | HX4: =INDEX($E$11:$ED$150,MATCH($FV4,$A$11:$A$150,0),HX$1) -> 0 | HY4: =INDEX($E$11:$ED$150,MATCH($FV4,$A$11:$A$150,0),HY$1) -> 0 | HZ4: =INDEX($E$11:$ED$150,MATCH($FV4,$A$11:$A$150,0),HZ$1) -> 0 | IA4: =INDEX($E$11:$ED$150,MATCH($FV4,$A$11:$A$150,0),IA$1) -> 0 | IB4: =INDEX($E$11:$ED$150,MATCH($FV4,$A$11:$A$150,0),IB$1) -> 0 | IC4: =INDEX($E$11:$ED$150,MATCH($FV4,$A$11:$A$150,0),IC$1) -> 0 | ID4: =INDEX($E$11:$ED$150,MATCH($FV4,$A$11:$A$150,0),ID$1) -> 0 | IE4: =INDEX($E$11:$ED$150,MATCH($FV4,$A$11:$A$150,0),IE$1) -> 0 | IF4: =INDEX($E$11:$ED$150,MATCH($FV4,$A$11:$A$150,0),IF$1) -> 0 | IG4: =INDEX($E$11:$ED$150,MATCH($FV4,$A$11:$A$150,0),IG$1) -> 0 | IH4: =INDEX($E$11:$ED$150,MATCH($FV4,$A$11:$A$150,0),IH$1) -> 0 | II4: =INDEX($E$11:$ED$150,MATCH($FV4,$A$11:$A$150,0),II$1) -> 0 | IJ4: =INDEX($E$11:$ED$150,MATCH($FV4,$A$11:$A$150,0),IJ$1) -> 0 | IK4: =INDEX($E$11:$ED$150,MATCH($FV4,$A$11:$A$150,0),IK$1) -> 0 | IL4: =INDEX($E$11:$ED$150,MATCH($FV4,$A$11:$A$150,0),IL$1) -> 0 | IM4: =INDEX($E$11:$ED$150,MATCH($FV4,$A$11:$A$150,0),IM$1) -> 0 | IN4: =INDEX($E$11:$ED$150,MATCH($FV4,$A$11:$A$150,0),IN$1) -> 0 | IO4: =INDEX($E$11:$ED$150,MATCH($FV4,$A$11:$A$150,0),IO$1) -> 0 | IP4: =INDEX($E$11:$ED$150,MATCH($FV4,$A$11:$A$150,0),IP$1) -> 0 | IQ4: =INDEX($E$11:$ED$150,MATCH($FV4,$A$11:$A$150,0),IQ$1) -> 0 | IR4: =INDEX($E$11:$ED$150,MATCH($FV4,$A$11:$A$150,0),IR$1) -> 0 | IS4: =INDEX($E$11:$ED$150,MATCH($FV4,$A$11:$A$150,0),IS$1) -> 0 | IT4: =INDEX($E$11:$ED$150,MATCH($FV4,$A$11:$A$150,0),IT$1) -> 0 | IU4: =INDEX($E$11:$ED$150,MATCH($FV4,$A$11:$A$150,0),IU$1) -> 0 | IV4: =INDEX($E$11:$ED$150,MATCH($FV4,$A$11:$A$150,0),IV$1) -> 0 | IW4: =INDEX($E$11:$ED$150,MATCH($FV4,$A$11:$A$150,0),IW$1) -> 0 | IX4: =INDEX($E$11:$ED$150,MATCH($FV4,$A$11:$A$150,0),IX$1) -> 0 | IY4: =INDEX($E$11:$ED$150,MATCH($FV4,$A$11:$A$150,0),IY$1) -> 0 | IZ4: =INDEX($E$11:$ED$150,MATCH($FV4,$A$11:$A$150,0),IZ$1) -> 0 | JA4: =INDEX($E$11:$ED$150,MATCH($FV4,$A$11:$A$150,0),JA$1) -> 0 | JB4: =INDEX($E$11:$ED$150,MATCH($FV4,$A$11:$A$150,0),JB$1) -> 0 | JC4: =INDEX($E$11:$ED$150,MATCH($FV4,$A$11:$A$150,0),JC$1) -> 0 | JD4: =INDEX($E$11:$ED$150,MATCH($FV4,$A$11:$A$150,0),JD$1) -> 0 | JE4: =INDEX($E$11:$ED$150,MATCH($FV4,$A$11:$A$150,0),JE$1) -> 0 | JF4: =INDEX($E$11:$ED$150,MATCH($FV4,$A$11:$A$150,0),JF$1) -> 0 | JG4: =INDEX($E$11:$ED$150,MATCH($FV4,$A$11:$A$150,0),JG$1) -> 0 | JH4: =INDEX($E$11:$ED$150,MATCH($FV4,$A$11:$A$150,0),JH$1) -> 0 | JI4: =INDEX($E$11:$ED$150,MATCH($FV4,$A$11:$A$150,0),JI$1) -> 0 | JJ4: =INDEX($E$11:$ED$150,MATCH($FV4,$A$11:$A$150,0),JJ$1) -> 0 | JK4: =INDEX($E$11:$ED$150,MATCH($FV4,$A$11:$A$150,0),JK$1) -> 0 | JL4: =INDEX($E$11:$ED$150,MATCH($FV4,$A$11:$A$150,0),JL$1) -> 0 | JM4: =INDEX($E$11:$ED$150,MATCH($FV4,$A$11:$A$150,0),JM$1) -> 0 | JN4: =INDEX($E$11:$ED$150,MATCH($FV4,$A$11:$A$150,0),JN$1) -> 0 | JO4: =INDEX($E$11:$ED$150,MATCH($FV4,$A$11:$A$150,0),JO$1) -> 0 | JP4: =INDEX($E$11:$ED$150,MATCH($FV4,$A$11:$A$150,0),JP$1) -> 35 | JQ4: =INDEX($E$11:$ED$150,MATCH($FV4,$A$11:$A$150,0),JQ$1) -> 0 | JR4: =INDEX($E$11:$ED$150,MATCH($FV4,$A$11:$A$150,0),JR$1) -> 0 | JS4: =INDEX($E$11:$ED$150,MATCH($FV4,$A$11:$A$150,0),JS$1) -> 0 | JT4: =INDEX($E$11:$ED$150,MATCH($FV4,$A$11:$A$150,0),JT$1) -> 0 | JU4: =INDEX($E$11:$ED$150,MATCH($FV4,$A$11:$A$150,0),JU$1) -> 0 | JV4: =INDEX($E$11:$ED$150,MATCH($FV4,$A$11:$A$150,0),JV$1) -> 0 | JW4: =INDEX($E$11:$ED$150,MATCH($FV4,$A$11:$A$150,0),JW$1) -> 0 | JX4: =INDEX($E$11:$ED$150,MATCH($FV4,$A$11:$A$150,0),JX$1) -> 0 | JY4: =INDEX($E$11:$ED$150,MATCH($FV4,$A$11:$A$150,0),JY$1) -> 0 | JZ4: =INDEX($E$11:$ED$150,MATCH($FV4,$A$11:$A$150,0),JZ$1) -> 34 | KA4: =INDEX($E$11:$ED$150,MATCH($FV4,$A$11:$A$150,0),KA$1) -> 0 | KB4: =INDEX($E$11:$ED$150,MATCH($FV4,$A$11:$A$150,0),KB$1) -> 0 | KC4: =INDEX($E$11:$ED$150,MATCH($FV4,$A$11:$A$150,0),KC$1) -> 0 | KD4: =INDEX($E$11:$ED$150,MATCH($FV4,$A$11:$A$150,0),KD$1) -> 0 | KE4: =INDEX($E$11:$ED$150,MATCH($FV4,$A$11:$A$150,0),KE$1) -> 0 | KF4: =INDEX($E$11:$ED$150,MATCH($FV4,$A$11:$A$150,0),KF$1) -> 0 | KG4: =INDEX($E$11:$ED$150,MATCH($FV4,$A$11:$A$150,0),KG$1) -> 0 | KH4: =INDEX($E$11:$ED$150,MATCH($FV4,$A$11:$A$150,0),KH$1) -> 0 | KI4: =INDEX($E$11:$ED$150,MATCH($FV4,$A$11:$A$150,0),KI$1) -> 0 | KJ4: =INDEX($E$11:$ED$150,MATCH($FV4,$A$11:$A$150,0),KJ$1) -> 0 | KK4: =INDEX($E$11:$ED$150,MATCH($FV4,$A$11:$A$150,0),KK$1) -> 0 | KL4: =INDEX($E$11:$ED$150,MATCH($FV4,$A$11:$A$150,0),KL$1) -> 0 | KM4: =INDEX($E$11:$ED$150,MATCH($FV4,$A$11:$A$150,0),KM$1) -> 0 | KN4: =INDEX($E$11:$ED$150,MATCH($FV4,$A$11:$A$150,0),KN$1) -> 0 | KO4: =INDEX($E$11:$ED$150,MATCH($FV4,$A$11:$A$150,0),KO$1) -> 0 | KP4: =INDEX($E$11:$ED$150,MATCH($FV4,$A$11:$A$150,0),KP$1) -> 0 | KQ4: =INDEX($E$11:$ED$150,MATCH($FV4,$A$11:$A$150,0),KQ$1) -> 0 | KR4: =INDEX($E$11:$ED$150,MATCH($FV4,$A$11:$A$150,0),KR$1) -> 0 | KS4: =INDEX($E$11:$ED$150,MATCH($FV4,$A$11:$A$150,0),KS$1) -> 0 | KT4: =INDEX($E$11:$ED$150,MATCH($FV4,$A$11:$A$150,0),KT$1) -> 0 | KU4: =INDEX($E$11:$ED$150,MATCH($FV4,$A$11:$A$150,0),KU$1) -> 0 | KV4: =INDEX($E$11:$ED$150,MATCH($FV4,$A$11:$A$150,0),KV$1) -> 0
A5: =CONCATENATE($C$5," ",$C$6,D5) -> Libor HruškaProhry | B5: =CONCATENATE(C5," ",C6) -> Libor Hruška | C5: =Tabulka!B6 -> Libor | D5: =Tabulka!C6 -> Prohry | E5: 0 | J5: 0 | O5: 1 | T5: 0 | Y5: 1 | AD5: 0 | AI5: 0 | AN5: 1 | AS5: 0 | AX5: 0 | BC5: 2 | BH5: 0 | BM5: 0 | BR5: 2 | BW5: 2 | CB5: 1 | CG5: 0 | CL5: 3 | CQ5: 1 | CV5: 2 | DA5: 1 | DF5: 2 | DK5: 1 | DP5: 1 | EE5: =IF(AND(SUM(Tabulka!$AG$5)>0.99,(SUM(Tabulka!$AH$9)<$EJ$1)),-50000+(SUM(E5:ED5)),IF(OR(SUM(Tabulka!$AG$5)<2),-90000,SUM(E5:ED5))) -> 21 | EF5: =SUM(EE4-EE5) -> -11 | EG5: =SUM(E5:ED5) -> 21 | EL5: =Tabulka!B6 -> Libor | EM5: =D5 -> Prohry | EN5: =Tabulka!D6 -> 1e-11 | FT5: =FT4+8 -> 8 | FV5: =OFFSET($A$11,FT5,0) -> Pavel PernekrPočet šipek (průměr den) | FW5: =INDEX($E$11:$ED$150,MATCH($FV5,$A$11:$A$150,0),FW$1) -> 0 | FX5: =INDEX($E$11:$ED$150,MATCH($FV5,$A$11:$A$150,0),FX$1) -> 0 | FY5: =INDEX($E$11:$ED$150,MATCH($FV5,$A$11:$A$150,0),FY$1) -> 0 | FZ5: =INDEX($E$11:$ED$150,MATCH($FV5,$A$11:$A$150,0),FZ$1) -> 0 | GA5: =INDEX($E$11:$ED$150,MATCH($FV5,$A$11:$A$150,0),GA$1) -> 0 | GB5: =INDEX($E$11:$ED$150,MATCH($FV5,$A$11:$A$150,0),GB$1) -> 0 | GC5: =INDEX($E$11:$ED$150,MATCH($FV5,$A$11:$A$150,0),GC$1) -> 0 | GD5: =INDEX($E$11:$ED$150,MATCH($FV5,$A$11:$A$150,0),GD$1) -> 0 | GE5: =INDEX($E$11:$ED$150,MATCH($FV5,$A$11:$A$150,0),GE$1) -> 0 | GF5: =INDEX($E$11:$ED$150,MATCH($FV5,$A$11:$A$150,0),GF$1) -> 0 | GG5: =INDEX($E$11:$ED$150,MATCH($FV5,$A$11:$A$150,0),GG$1) -> 0 | GH5: =INDEX($E$11:$ED$150,MATCH($FV5,$A$11:$A$150,0),GH$1) -> 0 | GI5: =INDEX($E$11:$ED$150,MATCH($FV5,$A$11:$A$150,0),GI$1) -> 0 | GJ5: =INDEX($E$11:$ED$150,MATCH($FV5,$A$11:$A$150,0),GJ$1) -> 0 | GK5: =INDEX($E$11:$ED$150,MATCH($FV5,$A$11:$A$150,0),GK$1) -> 0 | GL5: =INDEX($E$11:$ED$150,MATCH($FV5,$A$11:$A$150,0),GL$1) -> 0 | GM5: =INDEX($E$11:$ED$150,MATCH($FV5,$A$11:$A$150,0),GM$1) -> 0 | GN5: =INDEX($E$11:$ED$150,MATCH($FV5,$A$11:$A$150,0),GN$1) -> 0 | GO5: =INDEX($E$11:$ED$150,MATCH($FV5,$A$11:$A$150,0),GO$1) -> 0 | GP5: =INDEX($E$11:$ED$150,MATCH($FV5,$A$11:$A$150,0),GP$1) -> 0 | GQ5: =INDEX($E$11:$ED$150,MATCH($FV5,$A$11:$A$150,0),GQ$1) -> 0 | GR5: =INDEX($E$11:$ED$150,MATCH($FV5,$A$11:$A$150,0),GR$1) -> 0 | GS5: =INDEX($E$11:$ED$150,MATCH($FV5,$A$11:$A$150,0),GS$1) -> 0 | GT5: =INDEX($E$11:$ED$150,MATCH($FV5,$A$11:$A$150,0),GT$1) -> 0 | GU5: =INDEX($E$11:$ED$150,MATCH($FV5,$A$11:$A$150,0),GU$1) -> 0 | GV5: =INDEX($E$11:$ED$150,MATCH($FV5,$A$11:$A$150,0),GV$1) -> 0 | GW5: =INDEX($E$11:$ED$150,MATCH($FV5,$A$11:$A$150,0),GW$1) -> 0 | GX5: =INDEX($E$11:$ED$150,MATCH($FV5,$A$11:$A$150,0),GX$1) -> 0 | GY5: =INDEX($E$11:$ED$150,MATCH($FV5,$A$11:$A$150,0),GY$1) -> 0 | GZ5: =INDEX($E$11:$ED$150,MATCH($FV5,$A$11:$A$150,0),GZ$1) -> 0 | HA5: =INDEX($E$11:$ED$150,MATCH($FV5,$A$11:$A$150,0),HA$1) -> 0 | HB5: =INDEX($E$11:$ED$150,MATCH($FV5,$A$11:$A$150,0),HB$1) -> 0 | HC5: =INDEX($E$11:$ED$150,MATCH($FV5,$A$11:$A$150,0),HC$1) -> 0 | HD5: =INDEX($E$11:$ED$150,MATCH($FV5,$A$11:$A$150,0),HD$1) -> 0 | HE5: =INDEX($E$11:$ED$150,MATCH($FV5,$A$11:$A$150,0),HE$1) -> 0 | HF5: =INDEX($E$11:$ED$150,MATCH($FV5,$A$11:$A$150,0),HF$1) -> 0 | HG5: =INDEX($E$11:$ED$150,MATCH($FV5,$A$11:$A$150,0),HG$1) -> 0 | HH5: =INDEX($E$11:$ED$150,MATCH($FV5,$A$11:$A$150,0),HH$1) -> 0 | HI5: =INDEX($E$11:$ED$150,MATCH($FV5,$A$11:$A$150,0),HI$1) -> 0 | HJ5: =INDEX($E$11:$ED$150,MATCH($FV5,$A$11:$A$150,0),HJ$1) -> 0 | HK5: =INDEX($E$11:$ED$150,MATCH($FV5,$A$11:$A$150,0),HK$1) -> 0 | HL5: =INDEX($E$11:$ED$150,MATCH($FV5,$A$11:$A$150,0),HL$1) -> 0 | HM5: =INDEX($E$11:$ED$150,MATCH($FV5,$A$11:$A$150,0),HM$1) -> 0 | HN5: =INDEX($E$11:$ED$150,MATCH($FV5,$A$11:$A$150,0),HN$1) -> 0 | HO5: =INDEX($E$11:$ED$150,MATCH($FV5,$A$11:$A$150,0),HO$1) -> 0 | HP5: =INDEX($E$11:$ED$150,MATCH($FV5,$A$11:$A$150,0),HP$1) -> 0 | HQ5: =INDEX($E$11:$ED$150,MATCH($FV5,$A$11:$A$150,0),HQ$1) -> 0 | HR5: =INDEX($E$11:$ED$150,MATCH($FV5,$A$11:$A$150,0),HR$1) -> 0 | HS5: =INDEX($E$11:$ED$150,MATCH($FV5,$A$11:$A$150,0),HS$1) -> 0 | HT5: =INDEX($E$11:$ED$150,MATCH($FV5,$A$11:$A$150,0),HT$1) -> 0 | HU5: =INDEX($E$11:$ED$150,MATCH($FV5,$A$11:$A$150,0),HU$1) -> 0 | HV5: =INDEX($E$11:$ED$150,MATCH($FV5,$A$11:$A$150,0),HV$1) -> 0 | HW5: =INDEX($E$11:$ED$150,MATCH($FV5,$A$11:$A$150,0),HW$1) -> 0 | HX5: =INDEX($E$11:$ED$150,MATCH($FV5,$A$11:$A$150,0),HX$1) -> 0 | HY5: =INDEX($E$11:$ED$150,MATCH($FV5,$A$11:$A$150,0),HY$1) -> 0 | HZ5: =INDEX($E$11:$ED$150,MATCH($FV5,$A$11:$A$150,0),HZ$1) -> 0 | IA5: =INDEX($E$11:$ED$150,MATCH($FV5,$A$11:$A$150,0),IA$1) -> 0 | IB5: =INDEX($E$11:$ED$150,MATCH($FV5,$A$11:$A$150,0),IB$1) -> 0 | IC5: =INDEX($E$11:$ED$150,MATCH($FV5,$A$11:$A$150,0),IC$1) -> 0 | ID5: =INDEX($E$11:$ED$150,MATCH($FV5,$A$11:$A$150,0),ID$1) -> 0 | IE5: =INDEX($E$11:$ED$150,MATCH($FV5,$A$11:$A$150,0),IE$1) -> 0 | IF5: =INDEX($E$11:$ED$150,MATCH($FV5,$A$11:$A$150,0),IF$1) -> 0 | IG5: =INDEX($E$11:$ED$150,MATCH($FV5,$A$11:$A$150,0),IG$1) -> 0 | IH5: =INDEX($E$11:$ED$150,MATCH($FV5,$A$11:$A$150,0),IH$1) -> 0 | II5: =INDEX($E$11:$ED$150,MATCH($FV5,$A$11:$A$150,0),II$1) -> 0 | IJ5: =INDEX($E$11:$ED$150,MATCH($FV5,$A$11:$A$150,0),IJ$1) -> 0 | IK5: =INDEX($E$11:$ED$150,MATCH($FV5,$A$11:$A$150,0),IK$1) -> 0 | IL5: =INDEX($E$11:$ED$150,MATCH($FV5,$A$11:$A$150,0),IL$1) -> 0 | IM5: =INDEX($E$11:$ED$150,MATCH($FV5,$A$11:$A$150,0),IM$1) -> 0 | IN5: =INDEX($E$11:$ED$150,MATCH($FV5,$A$11:$A$150,0),IN$1) -> 0 | IO5: =INDEX($E$11:$ED$150,MATCH($FV5,$A$11:$A$150,0),IO$1) -> 0 | IP5: =INDEX($E$11:$ED$150,MATCH($FV5,$A$11:$A$150,0),IP$1) -> 0 | IQ5: =INDEX($E$11:$ED$150,MATCH($FV5,$A$11:$A$150,0),IQ$1) -> 0 | IR5: =INDEX($E$11:$ED$150,MATCH($FV5,$A$11:$A$150,0),IR$1) -> 0 | IS5: =INDEX($E$11:$ED$150,MATCH($FV5,$A$11:$A$150,0),IS$1) -> 0 | IT5: =INDEX($E$11:$ED$150,MATCH($FV5,$A$11:$A$150,0),IT$1) -> 0 | IU5: =INDEX($E$11:$ED$150,MATCH($FV5,$A$11:$A$150,0),IU$1) -> 0 | IV5: =INDEX($E$11:$ED$150,MATCH($FV5,$A$11:$A$150,0),IV$1) -> 0 | IW5: =INDEX($E$11:$ED$150,MATCH($FV5,$A$11:$A$150,0),IW$1) -> 0 | IX5: =INDEX($E$11:$ED$150,MATCH($FV5,$A$11:$A$150,0),IX$1) -> 0 | IY5: =INDEX($E$11:$ED$150,MATCH($FV5,$A$11:$A$150,0),IY$1) -> 0 | IZ5: =INDEX($E$11:$ED$150,MATCH($FV5,$A$11:$A$150,0),IZ$1) -> 0 | JA5: =INDEX($E$11:$ED$150,MATCH($FV5,$A$11:$A$150,0),JA$1) -> 0 | JB5: =INDEX($E$11:$ED$150,MATCH($FV5,$A$11:$A$150,0),JB$1) -> 0 | JC5: =INDEX($E$11:$ED$150,MATCH($FV5,$A$11:$A$150,0),JC$1) -> 0 | JD5: =INDEX($E$11:$ED$150,MATCH($FV5,$A$11:$A$150,0),JD$1) -> 0 | JE5: =INDEX($E$11:$ED$150,MATCH($FV5,$A$11:$A$150,0),JE$1) -> 0 | JF5: =INDEX($E$11:$ED$150,MATCH($FV5,$A$11:$A$150,0),JF$1) -> 0 | JG5: =INDEX($E$11:$ED$150,MATCH($FV5,$A$11:$A$150,0),JG$1) -> 0 | JH5: =INDEX($E$11:$ED$150,MATCH($FV5,$A$11:$A$150,0),JH$1) -> 0 | JI5: =INDEX($E$11:$ED$150,MATCH($FV5,$A$11:$A$150,0),JI$1) -> 0 | JJ5: =INDEX($E$11:$ED$150,MATCH($FV5,$A$11:$A$150,0),JJ$1) -> 0 | JK5: =INDEX($E$11:$ED$150,MATCH($FV5,$A$11:$A$150,0),JK$1) -> 0 | JL5: =INDEX($E$11:$ED$150,MATCH($FV5,$A$11:$A$150,0),JL$1) -> 0 | JM5: =INDEX($E$11:$ED$150,MATCH($FV5,$A$11:$A$150,0),JM$1) -> 0 | JN5: =INDEX($E$11:$ED$150,MATCH($FV5,$A$11:$A$150,0),JN$1) -> 0 | JO5: =INDEX($E$11:$ED$150,MATCH($FV5,$A$11:$A$150,0),JO$1) -> 0 | JP5: =INDEX($E$11:$ED$150,MATCH($FV5,$A$11:$A$150,0),JP$1) -> 0 | JQ5: =INDEX($E$11:$ED$150,MATCH($FV5,$A$11:$A$150,0),JQ$1) -> 0 | JR5: =INDEX($E$11:$ED$150,MATCH($FV5,$A$11:$A$150,0),JR$1) -> 0 | JS5: =INDEX($E$11:$ED$150,MATCH($FV5,$A$11:$A$150,0),JS$1) -> 0 | JT5: =INDEX($E$11:$ED$150,MATCH($FV5,$A$11:$A$150,0),JT$1) -> 0 | JU5: =INDEX($E$11:$ED$150,MATCH($FV5,$A$11:$A$150,0),JU$1) -> 0 | JV5: =INDEX($E$11:$ED$150,MATCH($FV5,$A$11:$A$150,0),JV$1) -> 0 | JW5: =INDEX($E$11:$ED$150,MATCH($FV5,$A$11:$A$150,0),JW$1) -> 0 | JX5: =INDEX($E$11:$ED$150,MATCH($FV5,$A$11:$A$150,0),JX$1) -> 0 | JY5: =INDEX($E$11:$ED$150,MATCH($FV5,$A$11:$A$150,0),JY$1) -> 0 | JZ5: =INDEX($E$11:$ED$150,MATCH($FV5,$A$11:$A$150,0),JZ$1) -> 0 | KA5: =INDEX($E$11:$ED$150,MATCH($FV5,$A$11:$A$150,0),KA$1) -> 0 | KB5: =INDEX($E$11:$ED$150,MATCH($FV5,$A$11:$A$150,0),KB$1) -> 0 | KC5: =INDEX($E$11:$ED$150,MATCH($FV5,$A$11:$A$150,0),KC$1) -> 0 | KD5: =INDEX($E$11:$ED$150,MATCH($FV5,$A$11:$A$150,0),KD$1) -> 0 | KE5: =INDEX($E$11:$ED$150,MATCH($FV5,$A$11:$A$150,0),KE$1) -> 0 | KF5: =INDEX($E$11:$ED$150,MATCH($FV5,$A$11:$A$150,0),KF$1) -> 0 | KG5: =INDEX($E$11:$ED$150,MATCH($FV5,$A$11:$A$150,0),KG$1) -> 0 | KH5: =INDEX($E$11:$ED$150,MATCH($FV5,$A$11:$A$150,0),KH$1) -> 0 | KI5: =INDEX($E$11:$ED$150,MATCH($FV5,$A$11:$A$150,0),KI$1) -> 0 | KJ5: =INDEX($E$11:$ED$150,MATCH($FV5,$A$11:$A$150,0),KJ$1) -> 0 | KK5: =INDEX($E$11:$ED$150,MATCH($FV5,$A$11:$A$150,0),KK$1) -> 0 | KL5: =INDEX($E$11:$ED$150,MATCH($FV5,$A$11:$A$150,0),KL$1) -> 0 | KM5: =INDEX($E$11:$ED$150,MATCH($FV5,$A$11:$A$150,0),KM$1) -> 0 | KN5: =INDEX($E$11:$ED$150,MATCH($FV5,$A$11:$A$150,0),KN$1) -> 0 | KO5: =INDEX($E$11:$ED$150,MATCH($FV5,$A$11:$A$150,0),KO$1) -> 0 | KP5: =INDEX($E$11:$ED$150,MATCH($FV5,$A$11:$A$150,0),KP$1) -> 0 | KQ5: =INDEX($E$11:$ED$150,MATCH($FV5,$A$11:$A$150,0),KQ$1) -> 0 | KR5: =INDEX($E$11:$ED$150,MATCH($FV5,$A$11:$A$150,0),KR$1) -> 0 | KS5: =INDEX($E$11:$ED$150,MATCH($FV5,$A$11:$A$150,0),KS$1) -> 0 | KT5: =INDEX($E$11:$ED$150,MATCH($FV5,$A$11:$A$150,0),KT$1) -> 0 | KU5: =INDEX($E$11:$ED$150,MATCH($FV5,$A$11:$A$150,0),KU$1) -> 0 | KV5: =INDEX($E$11:$ED$150,MATCH($FV5,$A$11:$A$150,0),KV$1) -> 0
A6: Libor HruškaPlaceno panáků | B6: =CONCATENATE(C5," ",C6) -> Libor Hruška | C6: =Tabulka!B7 -> Hruška | D6: =Tabulka!C7 -> Placeno panáků | E6: 0 | J6: 0 | O6: 1 | T6: 0 | Y6: 3 | AD6: 0 | AI6: 0 | AN6: 1 | AS6: 0 | AX6: 0 | BC6: 3 | BH6: 0 | BM6: 0 | BR6: 3 | BW6: 1 | CB6: 1 | CG6: 0 | CL6: 6 | CQ6: 2 | CV6: 2 | DA6: 1 | DF6: 3 | DK6: 3 | DP6: 1 | EE6: =IF(AND(SUM(Tabulka!$AG$5)>0.99,(SUM(Tabulka!$AH$9)<$EJ$1)),-50000+(SUM(E6:ED6)),IF(OR(SUM(Tabulka!$AG$5)<2),-90000,SUM(E6:ED6))) -> 31 | EG6: =SUM(E6:ED6)+0.2 -> 31.2 | EL6: =Tabulka!B7 -> Hruška | EM6: =D6 -> Placeno panáků | EN6: =Tabulka!D7 -> 1e-11 | FT6: =FT5+8 -> 16 | FV6: Kuba ŠedivýPočet šipek (průměr den) | FW6: =INDEX($E$11:$ED$150,MATCH($FV6,$A$11:$A$150,0),FW$1) -> 0 | FX6: =INDEX($E$11:$ED$150,MATCH($FV6,$A$11:$A$150,0),FX$1) -> 0 | FY6: =INDEX($E$11:$ED$150,MATCH($FV6,$A$11:$A$150,0),FY$1) -> 0 | FZ6: =INDEX($E$11:$ED$150,MATCH($FV6,$A$11:$A$150,0),FZ$1) -> 0 | GA6: =INDEX($E$11:$ED$150,MATCH($FV6,$A$11:$A$150,0),GA$1) -> 0 | GB6: =INDEX($E$11:$ED$150,MATCH($FV6,$A$11:$A$150,0),GB$1) -> 0 | GC6: =INDEX($E$11:$ED$150,MATCH($FV6,$A$11:$A$150,0),GC$1) -> 0 | GD6: =INDEX($E$11:$ED$150,MATCH($FV6,$A$11:$A$150,0),GD$1) -> 0 | GE6: =INDEX($E$11:$ED$150,MATCH($FV6,$A$11:$A$150,0),GE$1) -> 0 | GF6: =INDEX($E$11:$ED$150,MATCH($FV6,$A$11:$A$150,0),GF$1) -> 0 | GG6: =INDEX($E$11:$ED$150,MATCH($FV6,$A$11:$A$150,0),GG$1) -> 0 | GH6: =INDEX($E$11:$ED$150,MATCH($FV6,$A$11:$A$150,0),GH$1) -> 0 | GI6: =INDEX($E$11:$ED$150,MATCH($FV6,$A$11:$A$150,0),GI$1) -> 0 | GJ6: =INDEX($E$11:$ED$150,MATCH($FV6,$A$11:$A$150,0),GJ$1) -> 0 | GK6: =INDEX($E$11:$ED$150,MATCH($FV6,$A$11:$A$150,0),GK$1) -> 0 | GL6: =INDEX($E$11:$ED$150,MATCH($FV6,$A$11:$A$150,0),GL$1) -> 0 | GM6: =INDEX($E$11:$ED$150,MATCH($FV6,$A$11:$A$150,0),GM$1) -> 0 | GN6: =INDEX($E$11:$ED$150,MATCH($FV6,$A$11:$A$150,0),GN$1) -> 0 | GO6: =INDEX($E$11:$ED$150,MATCH($FV6,$A$11:$A$150,0),GO$1) -> 0 | GP6: =INDEX($E$11:$ED$150,MATCH($FV6,$A$11:$A$150,0),GP$1) -> 0 | GQ6: =INDEX($E$11:$ED$150,MATCH($FV6,$A$11:$A$150,0),GQ$1) -> 0 | GR6: =INDEX($E$11:$ED$150,MATCH($FV6,$A$11:$A$150,0),GR$1) -> 0 | GS6: =INDEX($E$11:$ED$150,MATCH($FV6,$A$11:$A$150,0),GS$1) -> 0 | GT6: =INDEX($E$11:$ED$150,MATCH($FV6,$A$11:$A$150,0),GT$1) -> 0 | GU6: =INDEX($E$11:$ED$150,MATCH($FV6,$A$11:$A$150,0),GU$1) -> 0 | GV6: =INDEX($E$11:$ED$150,MATCH($FV6,$A$11:$A$150,0),GV$1) -> 0 | GW6: =INDEX($E$11:$ED$150,MATCH($FV6,$A$11:$A$150,0),GW$1) -> 0 | GX6: =INDEX($E$11:$ED$150,MATCH($FV6,$A$11:$A$150,0),GX$1) -> 0 | GY6: =INDEX($E$11:$ED$150,MATCH($FV6,$A$11:$A$150,0),GY$1) -> 0 | GZ6: =INDEX($E$11:$ED$150,MATCH($FV6,$A$11:$A$150,0),GZ$1) -> 0 | HA6: =INDEX($E$11:$ED$150,MATCH($FV6,$A$11:$A$150,0),HA$1) -> 0 | HB6: =INDEX($E$11:$ED$150,MATCH($FV6,$A$11:$A$150,0),HB$1) -> 0 | HC6: =INDEX($E$11:$ED$150,MATCH($FV6,$A$11:$A$150,0),HC$1) -> 0 | HD6: =INDEX($E$11:$ED$150,MATCH($FV6,$A$11:$A$150,0),HD$1) -> 0 | HE6: =INDEX($E$11:$ED$150,MATCH($FV6,$A$11:$A$150,0),HE$1) -> 0 | HF6: =INDEX($E$11:$ED$150,MATCH($FV6,$A$11:$A$150,0),HF$1) -> 0 | HG6: =INDEX($E$11:$ED$150,MATCH($FV6,$A$11:$A$150,0),HG$1) -> 0 | HH6: =INDEX($E$11:$ED$150,MATCH($FV6,$A$11:$A$150,0),HH$1) -> 0 | HI6: =INDEX($E$11:$ED$150,MATCH($FV6,$A$11:$A$150,0),HI$1) -> 0 | HJ6: =INDEX($E$11:$ED$150,MATCH($FV6,$A$11:$A$150,0),HJ$1) -> 0 | HK6: =INDEX($E$11:$ED$150,MATCH($FV6,$A$11:$A$150,0),HK$1) -> 0 | HL6: =INDEX($E$11:$ED$150,MATCH($FV6,$A$11:$A$150,0),HL$1) -> 0 | HM6: =INDEX($E$11:$ED$150,MATCH($FV6,$A$11:$A$150,0),HM$1) -> 0 | HN6: =INDEX($E$11:$ED$150,MATCH($FV6,$A$11:$A$150,0),HN$1) -> 0 | HO6: =INDEX($E$11:$ED$150,MATCH($FV6,$A$11:$A$150,0),HO$1) -> 0 | HP6: =INDEX($E$11:$ED$150,MATCH($FV6,$A$11:$A$150,0),HP$1) -> 0 | HQ6: =INDEX($E$11:$ED$150,MATCH($FV6,$A$11:$A$150,0),HQ$1) -> 0 | HR6: =INDEX($E$11:$ED$150,MATCH($FV6,$A$11:$A$150,0),HR$1) -> 0 | HS6: =INDEX($E$11:$ED$150,MATCH($FV6,$A$11:$A$150,0),HS$1) -> 0 | HT6: =INDEX($E$11:$ED$150,MATCH($FV6,$A$11:$A$150,0),HT$1) -> 0 | HU6: =INDEX($E$11:$ED$150,MATCH($FV6,$A$11:$A$150,0),HU$1) -> 0 | HV6: =INDEX($E$11:$ED$150,MATCH($FV6,$A$11:$A$150,0),HV$1) -> 0 | HW6: =INDEX($E$11:$ED$150,MATCH($FV6,$A$11:$A$150,0),HW$1) -> 0 | HX6: =INDEX($E$11:$ED$150,MATCH($FV6,$A$11:$A$150,0),HX$1) -> 0 | HY6: =INDEX($E$11:$ED$150,MATCH($FV6,$A$11:$A$150,0),HY$1) -> 0 | HZ6: =INDEX($E$11:$ED$150,MATCH($FV6,$A$11:$A$150,0),HZ$1) -> 0 | IA6: =INDEX($E$11:$ED$150,MATCH($FV6,$A$11:$A$150,0),IA$1) -> 0 | IB6: =INDEX($E$11:$ED$150,MATCH($FV6,$A$11:$A$150,0),IB$1) -> 0 | IC6: =INDEX($E$11:$ED$150,MATCH($FV6,$A$11:$A$150,0),IC$1) -> 0 | ID6: =INDEX($E$11:$ED$150,MATCH($FV6,$A$11:$A$150,0),ID$1) -> 0 | IE6: =INDEX($E$11:$ED$150,MATCH($FV6,$A$11:$A$150,0),IE$1) -> 0 | IF6: =INDEX($E$11:$ED$150,MATCH($FV6,$A$11:$A$150,0),IF$1) -> 0 | IG6: =INDEX($E$11:$ED$150,MATCH($FV6,$A$11:$A$150,0),IG$1) -> 0 | IH6: =INDEX($E$11:$ED$150,MATCH($FV6,$A$11:$A$150,0),IH$1) -> 0 | II6: =INDEX($E$11:$ED$150,MATCH($FV6,$A$11:$A$150,0),II$1) -> 0 | IJ6: =INDEX($E$11:$ED$150,MATCH($FV6,$A$11:$A$150,0),IJ$1) -> 0 | IK6: =INDEX($E$11:$ED$150,MATCH($FV6,$A$11:$A$150,0),IK$1) -> 0 | IL6: =INDEX($E$11:$ED$150,MATCH($FV6,$A$11:$A$150,0),IL$1) -> 0 | IM6: =INDEX($E$11:$ED$150,MATCH($FV6,$A$11:$A$150,0),IM$1) -> 0 | IN6: =INDEX($E$11:$ED$150,MATCH($FV6,$A$11:$A$150,0),IN$1) -> 0 | IO6: =INDEX($E$11:$ED$150,MATCH($FV6,$A$11:$A$150,0),IO$1) -> 0 | IP6: =INDEX($E$11:$ED$150,MATCH($FV6,$A$11:$A$150,0),IP$1) -> 0 | IQ6: =INDEX($E$11:$ED$150,MATCH($FV6,$A$11:$A$150,0),IQ$1) -> 0 | IR6: =INDEX($E$11:$ED$150,MATCH($FV6,$A$11:$A$150,0),IR$1) -> 0 | IS6: =INDEX($E$11:$ED$150,MATCH($FV6,$A$11:$A$150,0),IS$1) -> 0 | IT6: =INDEX($E$11:$ED$150,MATCH($FV6,$A$11:$A$150,0),IT$1) -> 0 | IU6: =INDEX($E$11:$ED$150,MATCH($FV6,$A$11:$A$150,0),IU$1) -> 0 | IV6: =INDEX($E$11:$ED$150,MATCH($FV6,$A$11:$A$150,0),IV$1) -> 0 | IW6: =INDEX($E$11:$ED$150,MATCH($FV6,$A$11:$A$150,0),IW$1) -> 0 | IX6: =INDEX($E$11:$ED$150,MATCH($FV6,$A$11:$A$150,0),IX$1) -> 0 | IY6: =INDEX($E$11:$ED$150,MATCH($FV6,$A$11:$A$150,0),IY$1) -> 0 | IZ6: =INDEX($E$11:$ED$150,MATCH($FV6,$A$11:$A$150,0),IZ$1) -> 0 | JA6: =INDEX($E$11:$ED$150,MATCH($FV6,$A$11:$A$150,0),JA$1) -> 0 | JB6: =INDEX($E$11:$ED$150,MATCH($FV6,$A$11:$A$150,0),JB$1) -> 0 | JC6: =INDEX($E$11:$ED$150,MATCH($FV6,$A$11:$A$150,0),JC$1) -> 0 | JD6: =INDEX($E$11:$ED$150,MATCH($FV6,$A$11:$A$150,0),JD$1) -> 0 | JE6: =INDEX($E$11:$ED$150,MATCH($FV6,$A$11:$A$150,0),JE$1) -> 0 | JF6: =INDEX($E$11:$ED$150,MATCH($FV6,$A$11:$A$150,0),JF$1) -> 0 | JG6: =INDEX($E$11:$ED$150,MATCH($FV6,$A$11:$A$150,0),JG$1) -> 0 | JH6: =INDEX($E$11:$ED$150,MATCH($FV6,$A$11:$A$150,0),JH$1) -> 0 | JI6: =INDEX($E$11:$ED$150,MATCH($FV6,$A$11:$A$150,0),JI$1) -> 0 | JJ6: =INDEX($E$11:$ED$150,MATCH($FV6,$A$11:$A$150,0),JJ$1) -> 0 | JK6: =INDEX($E$11:$ED$150,MATCH($FV6,$A$11:$A$150,0),JK$1) -> 0 | JL6: =INDEX($E$11:$ED$150,MATCH($FV6,$A$11:$A$150,0),JL$1) -> 0 | JM6: =INDEX($E$11:$ED$150,MATCH($FV6,$A$11:$A$150,0),JM$1) -> 0 | JN6: =INDEX($E$11:$ED$150,MATCH($FV6,$A$11:$A$150,0),JN$1) -> 0 | JO6: =INDEX($E$11:$ED$150,MATCH($FV6,$A$11:$A$150,0),JO$1) -> 0 | JP6: =INDEX($E$11:$ED$150,MATCH($FV6,$A$11:$A$150,0),JP$1) -> 0 | JQ6: =INDEX($E$11:$ED$150,MATCH($FV6,$A$11:$A$150,0),JQ$1) -> 0 | JR6: =INDEX($E$11:$ED$150,MATCH($FV6,$A$11:$A$150,0),JR$1) -> 0 | JS6: =INDEX($E$11:$ED$150,MATCH($FV6,$A$11:$A$150,0),JS$1) -> 0 | JT6: =INDEX($E$11:$ED$150,MATCH($FV6,$A$11:$A$150,0),JT$1) -> 0 | JU6: =INDEX($E$11:$ED$150,MATCH($FV6,$A$11:$A$150,0),JU$1) -> 30 | JV6: =INDEX($E$11:$ED$150,MATCH($FV6,$A$11:$A$150,0),JV$1) -> 0 | JW6: =INDEX($E$11:$ED$150,MATCH($FV6,$A$11:$A$150,0),JW$1) -> 0 | JX6: =INDEX($E$11:$ED$150,MATCH($FV6,$A$11:$A$150,0),JX$1) -> 0 | JY6: =INDEX($E$11:$ED$150,MATCH($FV6,$A$11:$A$150,0),JY$1) -> 0 | JZ6: =INDEX($E$11:$ED$150,MATCH($FV6,$A$11:$A$150,0),JZ$1) -> 0 | KA6: =INDEX($E$11:$ED$150,MATCH($FV6,$A$11:$A$150,0),KA$1) -> 0 | KB6: =INDEX($E$11:$ED$150,MATCH($FV6,$A$11:$A$150,0),KB$1) -> 0 | KC6: =INDEX($E$11:$ED$150,MATCH($FV6,$A$11:$A$150,0),KC$1) -> 27 | KD6: =INDEX($E$11:$ED$150,MATCH($FV6,$A$11:$A$150,0),KD$1) -> 0 | KE6: =INDEX($E$11:$ED$150,MATCH($FV6,$A$11:$A$150,0),KE$1) -> 0 | KF6: =INDEX($E$11:$ED$150,MATCH($FV6,$A$11:$A$150,0),KF$1) -> 29 | KG6: =INDEX($E$11:$ED$150,MATCH($FV6,$A$11:$A$150,0),KG$1) -> 0 | KH6: =INDEX($E$11:$ED$150,MATCH($FV6,$A$11:$A$150,0),KH$1) -> 0 | KI6: =INDEX($E$11:$ED$150,MATCH($FV6,$A$11:$A$150,0),KI$1) -> 0 | KJ6: =INDEX($E$11:$ED$150,MATCH($FV6,$A$11:$A$150,0),KJ$1) -> 0 | KK6: =INDEX($E$11:$ED$150,MATCH($FV6,$A$11:$A$150,0),KK$1) -> 0 | KL6: =INDEX($E$11:$ED$150,MATCH($FV6,$A$11:$A$150,0),KL$1) -> 0 | KM6: =INDEX($E$11:$ED$150,MATCH($FV6,$A$11:$A$150,0),KM$1) -> 0 | KN6: =INDEX($E$11:$ED$150,MATCH($FV6,$A$11:$A$150,0),KN$1) -> 0 | KO6: =INDEX($E$11:$ED$150,MATCH($FV6,$A$11:$A$150,0),KO$1) -> 0 | KP6: =INDEX($E$11:$ED$150,MATCH($FV6,$A$11:$A$150,0),KP$1) -> 0 | KQ6: =INDEX($E$11:$ED$150,MATCH($FV6,$A$11:$A$150,0),KQ$1) -> 0 | KR6: =INDEX($E$11:$ED$150,MATCH($FV6,$A$11:$A$150,0),KR$1) -> 0 | KS6: =INDEX($E$11:$ED$150,MATCH($FV6,$A$11:$A$150,0),KS$1) -> 0 | KT6: =INDEX($E$11:$ED$150,MATCH($FV6,$A$11:$A$150,0),KT$1) -> 0 | KU6: =INDEX($E$11:$ED$150,MATCH($FV6,$A$11:$A$150,0),KU$1) -> 0 | KV6: =INDEX($E$11:$ED$150,MATCH($FV6,$A$11:$A$150,0),KV$1) -> 0
A7: Libor HruškaPřehozy | B7: =CONCATENATE(C5," ",C6) -> Libor Hruška | C7: =Tabulka!B8 -> Libor H | D7: =Tabulka!C8 -> Přehozy | E7: 0 | J7: 0 | O7: 1 | T7: 0 | Y7: 1 | AD7: 0 | AI7: 0 | AN7: 0 | AS7: 0 | AX7: 0 | BC7: 1 | BH7: 1 | BM7: 1 | BR7: 0 | BW7: 0 | CB7: 0 | CG7: 1 | CL7: 0 | CQ7: 0 | CV7: 0 | DA7: 0 | DF7: 2 | DK7: 0 | DP7: 0 | EE7: =IF(AND(SUM(Tabulka!$AG$5)>0.99,(SUM(Tabulka!$AH$9)<$EJ$1)),-50000+(SUM(E7:ED7)),IF(OR(SUM(Tabulka!$AG$5)<2),-90000,SUM(E7:ED7))) -> 8 | EG7: =SUM(E7:ED7) -> 8 | EL7: =Tabulka!B8 -> Libor H | EM7: =D7 -> Přehozy | EN7: =Tabulka!D8 -> 1e-11 | FT7: 24 | FV7: Míra ŠedivýPočet šipek (průměr den) | FW7: =INDEX($E$11:$ED$150,MATCH($FV7,$A$11:$A$150,0),FW$1) -> 0 | FX7: =INDEX($E$11:$ED$150,MATCH($FV7,$A$11:$A$150,0),FX$1) -> 0 | FY7: =INDEX($E$11:$ED$150,MATCH($FV7,$A$11:$A$150,0),FY$1) -> 0 | FZ7: =INDEX($E$11:$ED$150,MATCH($FV7,$A$11:$A$150,0),FZ$1) -> 0 | GA7: =INDEX($E$11:$ED$150,MATCH($FV7,$A$11:$A$150,0),GA$1) -> 0 | GB7: =INDEX($E$11:$ED$150,MATCH($FV7,$A$11:$A$150,0),GB$1) -> 0 | GC7: =INDEX($E$11:$ED$150,MATCH($FV7,$A$11:$A$150,0),GC$1) -> 0 | GD7: =INDEX($E$11:$ED$150,MATCH($FV7,$A$11:$A$150,0),GD$1) -> 0 | GE7: =INDEX($E$11:$ED$150,MATCH($FV7,$A$11:$A$150,0),GE$1) -> 0 | GF7: =INDEX($E$11:$ED$150,MATCH($FV7,$A$11:$A$150,0),GF$1) -> 0 | GG7: =INDEX($E$11:$ED$150,MATCH($FV7,$A$11:$A$150,0),GG$1) -> 0 | GH7: =INDEX($E$11:$ED$150,MATCH($FV7,$A$11:$A$150,0),GH$1) -> 0 | GI7: =INDEX($E$11:$ED$150,MATCH($FV7,$A$11:$A$150,0),GI$1) -> 0 | GJ7: =INDEX($E$11:$ED$150,MATCH($FV7,$A$11:$A$150,0),GJ$1) -> 0 | GK7: =INDEX($E$11:$ED$150,MATCH($FV7,$A$11:$A$150,0),GK$1) -> 0 | GL7: =INDEX($E$11:$ED$150,MATCH($FV7,$A$11:$A$150,0),GL$1) -> 0 | GM7: =INDEX($E$11:$ED$150,MATCH($FV7,$A$11:$A$150,0),GM$1) -> 0 | GN7: =INDEX($E$11:$ED$150,MATCH($FV7,$A$11:$A$150,0),GN$1) -> 0 | GO7: =INDEX($E$11:$ED$150,MATCH($FV7,$A$11:$A$150,0),GO$1) -> 0 | GP7: =INDEX($E$11:$ED$150,MATCH($FV7,$A$11:$A$150,0),GP$1) -> 0 | GQ7: =INDEX($E$11:$ED$150,MATCH($FV7,$A$11:$A$150,0),GQ$1) -> 0 | GR7: =INDEX($E$11:$ED$150,MATCH($FV7,$A$11:$A$150,0),GR$1) -> 0 | GS7: =INDEX($E$11:$ED$150,MATCH($FV7,$A$11:$A$150,0),GS$1) -> 0 | GT7: =INDEX($E$11:$ED$150,MATCH($FV7,$A$11:$A$150,0),GT$1) -> 0 | GU7: =INDEX($E$11:$ED$150,MATCH($FV7,$A$11:$A$150,0),GU$1) -> 0 | GV7: =INDEX($E$11:$ED$150,MATCH($FV7,$A$11:$A$150,0),GV$1) -> 0 | GW7: =INDEX($E$11:$ED$150,MATCH($FV7,$A$11:$A$150,0),GW$1) -> 0 | GX7: =INDEX($E$11:$ED$150,MATCH($FV7,$A$11:$A$150,0),GX$1) -> 0 | GY7: =INDEX($E$11:$ED$150,MATCH($FV7,$A$11:$A$150,0),GY$1) -> 0 | GZ7: =INDEX($E$11:$ED$150,MATCH($FV7,$A$11:$A$150,0),GZ$1) -> 0 | HA7: =INDEX($E$11:$ED$150,MATCH($FV7,$A$11:$A$150,0),HA$1) -> 0 | HB7: =INDEX($E$11:$ED$150,MATCH($FV7,$A$11:$A$150,0),HB$1) -> 0 | HC7: =INDEX($E$11:$ED$150,MATCH($FV7,$A$11:$A$150,0),HC$1) -> 0 | HD7: =INDEX($E$11:$ED$150,MATCH($FV7,$A$11:$A$150,0),HD$1) -> 0 | HE7: =INDEX($E$11:$ED$150,MATCH($FV7,$A$11:$A$150,0),HE$1) -> 0 | HF7: =INDEX($E$11:$ED$150,MATCH($FV7,$A$11:$A$150,0),HF$1) -> 0 | HG7: =INDEX($E$11:$ED$150,MATCH($FV7,$A$11:$A$150,0),HG$1) -> 0 | HH7: =INDEX($E$11:$ED$150,MATCH($FV7,$A$11:$A$150,0),HH$1) -> 0 | HI7: =INDEX($E$11:$ED$150,MATCH($FV7,$A$11:$A$150,0),HI$1) -> 0 | HJ7: =INDEX($E$11:$ED$150,MATCH($FV7,$A$11:$A$150,0),HJ$1) -> 0 | HK7: =INDEX($E$11:$ED$150,MATCH($FV7,$A$11:$A$150,0),HK$1) -> 0 | HL7: =INDEX($E$11:$ED$150,MATCH($FV7,$A$11:$A$150,0),HL$1) -> 0 | HM7: =INDEX($E$11:$ED$150,MATCH($FV7,$A$11:$A$150,0),HM$1) -> 0 | HN7: =INDEX($E$11:$ED$150,MATCH($FV7,$A$11:$A$150,0),HN$1) -> 0 | HO7: =INDEX($E$11:$ED$150,MATCH($FV7,$A$11:$A$150,0),HO$1) -> 0 | HP7: =INDEX($E$11:$ED$150,MATCH($FV7,$A$11:$A$150,0),HP$1) -> 0 | HQ7: =INDEX($E$11:$ED$150,MATCH($FV7,$A$11:$A$150,0),HQ$1) -> 0 | HR7: =INDEX($E$11:$ED$150,MATCH($FV7,$A$11:$A$150,0),HR$1) -> 0 | HS7: =INDEX($E$11:$ED$150,MATCH($FV7,$A$11:$A$150,0),HS$1) -> 0 | HT7: =INDEX($E$11:$ED$150,MATCH($FV7,$A$11:$A$150,0),HT$1) -> 0 | HU7: =INDEX($E$11:$ED$150,MATCH($FV7,$A$11:$A$150,0),HU$1) -> 0 | HV7: =INDEX($E$11:$ED$150,MATCH($FV7,$A$11:$A$150,0),HV$1) -> 0 | HW7: =INDEX($E$11:$ED$150,MATCH($FV7,$A$11:$A$150,0),HW$1) -> 0 | HX7: =INDEX($E$11:$ED$150,MATCH($FV7,$A$11:$A$150,0),HX$1) -> 0 | HY7: =INDEX($E$11:$ED$150,MATCH($FV7,$A$11:$A$150,0),HY$1) -> 0 | HZ7: =INDEX($E$11:$ED$150,MATCH($FV7,$A$11:$A$150,0),HZ$1) -> 0 | IA7: =INDEX($E$11:$ED$150,MATCH($FV7,$A$11:$A$150,0),IA$1) -> 0 | IB7: =INDEX($E$11:$ED$150,MATCH($FV7,$A$11:$A$150,0),IB$1) -> 0 | IC7: =INDEX($E$11:$ED$150,MATCH($FV7,$A$11:$A$150,0),IC$1) -> 0 | ID7: =INDEX($E$11:$ED$150,MATCH($FV7,$A$11:$A$150,0),ID$1) -> 0 | IE7: =INDEX($E$11:$ED$150,MATCH($FV7,$A$11:$A$150,0),IE$1) -> 0 | IF7: =INDEX($E$11:$ED$150,MATCH($FV7,$A$11:$A$150,0),IF$1) -> 0 | IG7: =INDEX($E$11:$ED$150,MATCH($FV7,$A$11:$A$150,0),IG$1) -> 0 | IH7: =INDEX($E$11:$ED$150,MATCH($FV7,$A$11:$A$150,0),IH$1) -> 0 | II7: =INDEX($E$11:$ED$150,MATCH($FV7,$A$11:$A$150,0),II$1) -> 0 | IJ7: =INDEX($E$11:$ED$150,MATCH($FV7,$A$11:$A$150,0),IJ$1) -> 0 | IK7: =INDEX($E$11:$ED$150,MATCH($FV7,$A$11:$A$150,0),IK$1) -> 0 | IL7: =INDEX($E$11:$ED$150,MATCH($FV7,$A$11:$A$150,0),IL$1) -> 0 | IM7: =INDEX($E$11:$ED$150,MATCH($FV7,$A$11:$A$150,0),IM$1) -> 0 | IN7: =INDEX($E$11:$ED$150,MATCH($FV7,$A$11:$A$150,0),IN$1) -> 0 | IO7: =INDEX($E$11:$ED$150,MATCH($FV7,$A$11:$A$150,0),IO$1) -> 0 | IP7: =INDEX($E$11:$ED$150,MATCH($FV7,$A$11:$A$150,0),IP$1) -> 0 | IQ7: =INDEX($E$11:$ED$150,MATCH($FV7,$A$11:$A$150,0),IQ$1) -> 0 | IR7: =INDEX($E$11:$ED$150,MATCH($FV7,$A$11:$A$150,0),IR$1) -> 0 | IS7: =INDEX($E$11:$ED$150,MATCH($FV7,$A$11:$A$150,0),IS$1) -> 0 | IT7: =INDEX($E$11:$ED$150,MATCH($FV7,$A$11:$A$150,0),IT$1) -> 0 | IU7: =INDEX($E$11:$ED$150,MATCH($FV7,$A$11:$A$150,0),IU$1) -> 0 | IV7: =INDEX($E$11:$ED$150,MATCH($FV7,$A$11:$A$150,0),IV$1) -> 0 | IW7: =INDEX($E$11:$ED$150,MATCH($FV7,$A$11:$A$150,0),IW$1) -> 0 | IX7: =INDEX($E$11:$ED$150,MATCH($FV7,$A$11:$A$150,0),IX$1) -> 0 | IY7: =INDEX($E$11:$ED$150,MATCH($FV7,$A$11:$A$150,0),IY$1) -> 0 | IZ7: =INDEX($E$11:$ED$150,MATCH($FV7,$A$11:$A$150,0),IZ$1) -> 0 | JA7: =INDEX($E$11:$ED$150,MATCH($FV7,$A$11:$A$150,0),JA$1) -> 0 | JB7: =INDEX($E$11:$ED$150,MATCH($FV7,$A$11:$A$150,0),JB$1) -> 0 | JC7: =INDEX($E$11:$ED$150,MATCH($FV7,$A$11:$A$150,0),JC$1) -> 0 | JD7: =INDEX($E$11:$ED$150,MATCH($FV7,$A$11:$A$150,0),JD$1) -> 0 | JE7: =INDEX($E$11:$ED$150,MATCH($FV7,$A$11:$A$150,0),JE$1) -> 0 | JF7: =INDEX($E$11:$ED$150,MATCH($FV7,$A$11:$A$150,0),JF$1) -> 0 | JG7: =INDEX($E$11:$ED$150,MATCH($FV7,$A$11:$A$150,0),JG$1) -> 0 | JH7: =INDEX($E$11:$ED$150,MATCH($FV7,$A$11:$A$150,0),JH$1) -> 0 | JI7: =INDEX($E$11:$ED$150,MATCH($FV7,$A$11:$A$150,0),JI$1) -> 0 | JJ7: =INDEX($E$11:$ED$150,MATCH($FV7,$A$11:$A$150,0),JJ$1) -> 0 | JK7: =INDEX($E$11:$ED$150,MATCH($FV7,$A$11:$A$150,0),JK$1) -> 0 | JL7: =INDEX($E$11:$ED$150,MATCH($FV7,$A$11:$A$150,0),JL$1) -> 0 | JM7: =INDEX($E$11:$ED$150,MATCH($FV7,$A$11:$A$150,0),JM$1) -> 0 | JN7: =INDEX($E$11:$ED$150,MATCH($FV7,$A$11:$A$150,0),JN$1) -> 0 | JO7: =INDEX($E$11:$ED$150,MATCH($FV7,$A$11:$A$150,0),JO$1) -> 0 | JP7: =INDEX($E$11:$ED$150,MATCH($FV7,$A$11:$A$150,0),JP$1) -> 0 | JQ7: =INDEX($E$11:$ED$150,MATCH($FV7,$A$11:$A$150,0),JQ$1) -> 0 | JR7: =INDEX($E$11:$ED$150,MATCH($FV7,$A$11:$A$150,0),JR$1) -> 0 | JS7: =INDEX($E$11:$ED$150,MATCH($FV7,$A$11:$A$150,0),JS$1) -> 0 | JT7: =INDEX($E$11:$ED$150,MATCH($FV7,$A$11:$A$150,0),JT$1) -> 0 | JU7: =INDEX($E$11:$ED$150,MATCH($FV7,$A$11:$A$150,0),JU$1) -> 0 | JV7: =INDEX($E$11:$ED$150,MATCH($FV7,$A$11:$A$150,0),JV$1) -> 0 | JW7: =INDEX($E$11:$ED$150,MATCH($FV7,$A$11:$A$150,0),JW$1) -> 0 | JX7: =INDEX($E$11:$ED$150,MATCH($FV7,$A$11:$A$150,0),JX$1) -> 0 | JY7: =INDEX($E$11:$ED$150,MATCH($FV7,$A$11:$A$150,0),JY$1) -> 0 | JZ7: =INDEX($E$11:$ED$150,MATCH($FV7,$A$11:$A$150,0),JZ$1) -> 0 | KA7: =INDEX($E$11:$ED$150,MATCH($FV7,$A$11:$A$150,0),KA$1) -> 0 | KB7: =INDEX($E$11:$ED$150,MATCH($FV7,$A$11:$A$150,0),KB$1) -> 0 | KC7: =INDEX($E$11:$ED$150,MATCH($FV7,$A$11:$A$150,0),KC$1) -> 0 | KD7: =INDEX($E$11:$ED$150,MATCH($FV7,$A$11:$A$150,0),KD$1) -> 0 | KE7: =INDEX($E$11:$ED$150,MATCH($FV7,$A$11:$A$150,0),KE$1) -> 0 | KF7: =INDEX($E$11:$ED$150,MATCH($FV7,$A$11:$A$150,0),KF$1) -> 0 | KG7: =INDEX($E$11:$ED$150,MATCH($FV7,$A$11:$A$150,0),KG$1) -> 0 | KH7: =INDEX($E$11:$ED$150,MATCH($FV7,$A$11:$A$150,0),KH$1) -> 0 | KI7: =INDEX($E$11:$ED$150,MATCH($FV7,$A$11:$A$150,0),KI$1) -> 0 | KJ7: =INDEX($E$11:$ED$150,MATCH($FV7,$A$11:$A$150,0),KJ$1) -> 0 | KK7: =INDEX($E$11:$ED$150,MATCH($FV7,$A$11:$A$150,0),KK$1) -> 0 | KL7: =INDEX($E$11:$ED$150,MATCH($FV7,$A$11:$A$150,0),KL$1) -> 0 | KM7: =INDEX($E$11:$ED$150,MATCH($FV7,$A$11:$A$150,0),KM$1) -> 0 | KN7: =INDEX($E$11:$ED$150,MATCH($FV7,$A$11:$A$150,0),KN$1) -> 0 | KO7: =INDEX($E$11:$ED$150,MATCH($FV7,$A$11:$A$150,0),KO$1) -> 0 | KP7: =INDEX($E$11:$ED$150,MATCH($FV7,$A$11:$A$150,0),KP$1) -> 0 | KQ7: =INDEX($E$11:$ED$150,MATCH($FV7,$A$11:$A$150,0),KQ$1) -> 0 | KR7: =INDEX($E$11:$ED$150,MATCH($FV7,$A$11:$A$150,0),KR$1) -> 0 | KS7: =INDEX($E$11:$ED$150,MATCH($FV7,$A$11:$A$150,0),KS$1) -> 0 | KT7: =INDEX($E$11:$ED$150,MATCH($FV7,$A$11:$A$150,0),KT$1) -> 0 | KU7: =INDEX($E$11:$ED$150,MATCH($FV7,$A$11:$A$150,0),KU$1) -> 0 | KV7: =INDEX($E$11:$ED$150,MATCH($FV7,$A$11:$A$150,0),KV$1) -> 0
A8: Libor HruškaPoč. kol | B8: =CONCATENATE(C5," ",C6) -> Libor Hruška | C8: =Tabulka!B9 -> 0 | D8: =Tabulka!C9 -> Poč. kol | E8: 4 | J8: 4 | O8: 4 | T8: 4 | Y8: 4 | AD8: 4 | AI8: 4 | AN8: 4 | AS8: 4 | AX8: 2 | BC8: 4 | BH8: 5 | BM8: 3 | BR8: 5 | BW8: 4 | CB8: 4 | CG8: 4 | CL8: 5 | CQ8: 4 | CV8: 4 | DA8: 4 | DF8: 4 | DK8: 4 | DP8: 4 | EE8: =IF(AND(SUM(Tabulka!$AG$5)>0.99,(SUM(Tabulka!$AH$9)<$EJ$1)),-50000+(SUM(E8:ED8)),IF(OR(SUM(Tabulka!$AG$5)<2),-90000,SUM(E8:ED8))) -> 96 | EG8: =SUM(E8:ED8) -> 96 | EM8: =D8 -> Poč. kol | EN8: =Tabulka!D9 -> 4 | FT8: 32 | FV8: Milan VeselýPočet šipek (průměr den) | FW8: =INDEX($E$11:$ED$150,MATCH($FV8,$A$11:$A$150,0),FW$1) -> 0 | FX8: =INDEX($E$11:$ED$150,MATCH($FV8,$A$11:$A$150,0),FX$1) -> 0 | FY8: =INDEX($E$11:$ED$150,MATCH($FV8,$A$11:$A$150,0),FY$1) -> 0 | FZ8: =INDEX($E$11:$ED$150,MATCH($FV8,$A$11:$A$150,0),FZ$1) -> 0 | GA8: =INDEX($E$11:$ED$150,MATCH($FV8,$A$11:$A$150,0),GA$1) -> 0 | GB8: =INDEX($E$11:$ED$150,MATCH($FV8,$A$11:$A$150,0),GB$1) -> 0 | GC8: =INDEX($E$11:$ED$150,MATCH($FV8,$A$11:$A$150,0),GC$1) -> 0 | GD8: =INDEX($E$11:$ED$150,MATCH($FV8,$A$11:$A$150,0),GD$1) -> 0 | GE8: =INDEX($E$11:$ED$150,MATCH($FV8,$A$11:$A$150,0),GE$1) -> 0 | GF8: =INDEX($E$11:$ED$150,MATCH($FV8,$A$11:$A$150,0),GF$1) -> 0 | GG8: =INDEX($E$11:$ED$150,MATCH($FV8,$A$11:$A$150,0),GG$1) -> 0 | GH8: =INDEX($E$11:$ED$150,MATCH($FV8,$A$11:$A$150,0),GH$1) -> 0 | GI8: =INDEX($E$11:$ED$150,MATCH($FV8,$A$11:$A$150,0),GI$1) -> 0 | GJ8: =INDEX($E$11:$ED$150,MATCH($FV8,$A$11:$A$150,0),GJ$1) -> 0 | GK8: =INDEX($E$11:$ED$150,MATCH($FV8,$A$11:$A$150,0),GK$1) -> 0 | GL8: =INDEX($E$11:$ED$150,MATCH($FV8,$A$11:$A$150,0),GL$1) -> 0 | GM8: =INDEX($E$11:$ED$150,MATCH($FV8,$A$11:$A$150,0),GM$1) -> 0 | GN8: =INDEX($E$11:$ED$150,MATCH($FV8,$A$11:$A$150,0),GN$1) -> 0 | GO8: =INDEX($E$11:$ED$150,MATCH($FV8,$A$11:$A$150,0),GO$1) -> 0 | GP8: =INDEX($E$11:$ED$150,MATCH($FV8,$A$11:$A$150,0),GP$1) -> 0 | GQ8: =INDEX($E$11:$ED$150,MATCH($FV8,$A$11:$A$150,0),GQ$1) -> 0 | GR8: =INDEX($E$11:$ED$150,MATCH($FV8,$A$11:$A$150,0),GR$1) -> 0 | GS8: =INDEX($E$11:$ED$150,MATCH($FV8,$A$11:$A$150,0),GS$1) -> 0 | GT8: =INDEX($E$11:$ED$150,MATCH($FV8,$A$11:$A$150,0),GT$1) -> 0 | GU8: =INDEX($E$11:$ED$150,MATCH($FV8,$A$11:$A$150,0),GU$1) -> 0 | GV8: =INDEX($E$11:$ED$150,MATCH($FV8,$A$11:$A$150,0),GV$1) -> 0 | GW8: =INDEX($E$11:$ED$150,MATCH($FV8,$A$11:$A$150,0),GW$1) -> 0 | GX8: =INDEX($E$11:$ED$150,MATCH($FV8,$A$11:$A$150,0),GX$1) -> 0 | GY8: =INDEX($E$11:$ED$150,MATCH($FV8,$A$11:$A$150,0),GY$1) -> 0 | GZ8: =INDEX($E$11:$ED$150,MATCH($FV8,$A$11:$A$150,0),GZ$1) -> 0 | HA8: =INDEX($E$11:$ED$150,MATCH($FV8,$A$11:$A$150,0),HA$1) -> 0 | HB8: =INDEX($E$11:$ED$150,MATCH($FV8,$A$11:$A$150,0),HB$1) -> 0 | HC8: =INDEX($E$11:$ED$150,MATCH($FV8,$A$11:$A$150,0),HC$1) -> 0 | HD8: =INDEX($E$11:$ED$150,MATCH($FV8,$A$11:$A$150,0),HD$1) -> 0 | HE8: =INDEX($E$11:$ED$150,MATCH($FV8,$A$11:$A$150,0),HE$1) -> 0 | HF8: =INDEX($E$11:$ED$150,MATCH($FV8,$A$11:$A$150,0),HF$1) -> 0 | HG8: =INDEX($E$11:$ED$150,MATCH($FV8,$A$11:$A$150,0),HG$1) -> 0 | HH8: =INDEX($E$11:$ED$150,MATCH($FV8,$A$11:$A$150,0),HH$1) -> 0 | HI8: =INDEX($E$11:$ED$150,MATCH($FV8,$A$11:$A$150,0),HI$1) -> 0 | HJ8: =INDEX($E$11:$ED$150,MATCH($FV8,$A$11:$A$150,0),HJ$1) -> 0 | HK8: =INDEX($E$11:$ED$150,MATCH($FV8,$A$11:$A$150,0),HK$1) -> 0 | HL8: =INDEX($E$11:$ED$150,MATCH($FV8,$A$11:$A$150,0),HL$1) -> 0 | HM8: =INDEX($E$11:$ED$150,MATCH($FV8,$A$11:$A$150,0),HM$1) -> 0 | HN8: =INDEX($E$11:$ED$150,MATCH($FV8,$A$11:$A$150,0),HN$1) -> 0 | HO8: =INDEX($E$11:$ED$150,MATCH($FV8,$A$11:$A$150,0),HO$1) -> 0 | HP8: =INDEX($E$11:$ED$150,MATCH($FV8,$A$11:$A$150,0),HP$1) -> 0 | HQ8: =INDEX($E$11:$ED$150,MATCH($FV8,$A$11:$A$150,0),HQ$1) -> 0 | HR8: =INDEX($E$11:$ED$150,MATCH($FV8,$A$11:$A$150,0),HR$1) -> 0 | HS8: =INDEX($E$11:$ED$150,MATCH($FV8,$A$11:$A$150,0),HS$1) -> 0 | HT8: =INDEX($E$11:$ED$150,MATCH($FV8,$A$11:$A$150,0),HT$1) -> 0 | HU8: =INDEX($E$11:$ED$150,MATCH($FV8,$A$11:$A$150,0),HU$1) -> 0 | HV8: =INDEX($E$11:$ED$150,MATCH($FV8,$A$11:$A$150,0),HV$1) -> 0 | HW8: =INDEX($E$11:$ED$150,MATCH($FV8,$A$11:$A$150,0),HW$1) -> 0 | HX8: =INDEX($E$11:$ED$150,MATCH($FV8,$A$11:$A$150,0),HX$1) -> 0 | HY8: =INDEX($E$11:$ED$150,MATCH($FV8,$A$11:$A$150,0),HY$1) -> 0 | HZ8: =INDEX($E$11:$ED$150,MATCH($FV8,$A$11:$A$150,0),HZ$1) -> 0 | IA8: =INDEX($E$11:$ED$150,MATCH($FV8,$A$11:$A$150,0),IA$1) -> 0 | IB8: =INDEX($E$11:$ED$150,MATCH($FV8,$A$11:$A$150,0),IB$1) -> 0 | IC8: =INDEX($E$11:$ED$150,MATCH($FV8,$A$11:$A$150,0),IC$1) -> 0 | ID8: =INDEX($E$11:$ED$150,MATCH($FV8,$A$11:$A$150,0),ID$1) -> 0 | IE8: =INDEX($E$11:$ED$150,MATCH($FV8,$A$11:$A$150,0),IE$1) -> 0 | IF8: =INDEX($E$11:$ED$150,MATCH($FV8,$A$11:$A$150,0),IF$1) -> 0 | IG8: =INDEX($E$11:$ED$150,MATCH($FV8,$A$11:$A$150,0),IG$1) -> 0 | IH8: =INDEX($E$11:$ED$150,MATCH($FV8,$A$11:$A$150,0),IH$1) -> 0 | II8: =INDEX($E$11:$ED$150,MATCH($FV8,$A$11:$A$150,0),II$1) -> 0 | IJ8: =INDEX($E$11:$ED$150,MATCH($FV8,$A$11:$A$150,0),IJ$1) -> 0 | IK8: =INDEX($E$11:$ED$150,MATCH($FV8,$A$11:$A$150,0),IK$1) -> 0 | IL8: =INDEX($E$11:$ED$150,MATCH($FV8,$A$11:$A$150,0),IL$1) -> 0 | IM8: =INDEX($E$11:$ED$150,MATCH($FV8,$A$11:$A$150,0),IM$1) -> 0 | IN8: =INDEX($E$11:$ED$150,MATCH($FV8,$A$11:$A$150,0),IN$1) -> 0 | IO8: =INDEX($E$11:$ED$150,MATCH($FV8,$A$11:$A$150,0),IO$1) -> 0 | IP8: =INDEX($E$11:$ED$150,MATCH($FV8,$A$11:$A$150,0),IP$1) -> 0 | IQ8: =INDEX($E$11:$ED$150,MATCH($FV8,$A$11:$A$150,0),IQ$1) -> 0 | IR8: =INDEX($E$11:$ED$150,MATCH($FV8,$A$11:$A$150,0),IR$1) -> 0 | IS8: =INDEX($E$11:$ED$150,MATCH($FV8,$A$11:$A$150,0),IS$1) -> 0 | IT8: =INDEX($E$11:$ED$150,MATCH($FV8,$A$11:$A$150,0),IT$1) -> 0 | IU8: =INDEX($E$11:$ED$150,MATCH($FV8,$A$11:$A$150,0),IU$1) -> 0 | IV8: =INDEX($E$11:$ED$150,MATCH($FV8,$A$11:$A$150,0),IV$1) -> 0 | IW8: =INDEX($E$11:$ED$150,MATCH($FV8,$A$11:$A$150,0),IW$1) -> 0 | IX8: =INDEX($E$11:$ED$150,MATCH($FV8,$A$11:$A$150,0),IX$1) -> 0 | IY8: =INDEX($E$11:$ED$150,MATCH($FV8,$A$11:$A$150,0),IY$1) -> 0 | IZ8: =INDEX($E$11:$ED$150,MATCH($FV8,$A$11:$A$150,0),IZ$1) -> 0 | JA8: =INDEX($E$11:$ED$150,MATCH($FV8,$A$11:$A$150,0),JA$1) -> 0 | JB8: =INDEX($E$11:$ED$150,MATCH($FV8,$A$11:$A$150,0),JB$1) -> 0 | JC8: =INDEX($E$11:$ED$150,MATCH($FV8,$A$11:$A$150,0),JC$1) -> 0 | JD8: =INDEX($E$11:$ED$150,MATCH($FV8,$A$11:$A$150,0),JD$1) -> 0 | JE8: =INDEX($E$11:$ED$150,MATCH($FV8,$A$11:$A$150,0),JE$1) -> 0 | JF8: =INDEX($E$11:$ED$150,MATCH($FV8,$A$11:$A$150,0),JF$1) -> 0 | JG8: =INDEX($E$11:$ED$150,MATCH($FV8,$A$11:$A$150,0),JG$1) -> 16 | JH8: =INDEX($E$11:$ED$150,MATCH($FV8,$A$11:$A$150,0),JH$1) -> 0 | JI8: =INDEX($E$11:$ED$150,MATCH($FV8,$A$11:$A$150,0),JI$1) -> 0 | JJ8: =INDEX($E$11:$ED$150,MATCH($FV8,$A$11:$A$150,0),JJ$1) -> 0 | JK8: =INDEX($E$11:$ED$150,MATCH($FV8,$A$11:$A$150,0),JK$1) -> 0 | JL8: =INDEX($E$11:$ED$150,MATCH($FV8,$A$11:$A$150,0),JL$1) -> 30 | JM8: =INDEX($E$11:$ED$150,MATCH($FV8,$A$11:$A$150,0),JM$1) -> 0 | JN8: =INDEX($E$11:$ED$150,MATCH($FV8,$A$11:$A$150,0),JN$1) -> 0 | JO8: =INDEX($E$11:$ED$150,MATCH($FV8,$A$11:$A$150,0),JO$1) -> 35 | JP8: =INDEX($E$11:$ED$150,MATCH($FV8,$A$11:$A$150,0),JP$1) -> 36 | JQ8: =INDEX($E$11:$ED$150,MATCH($FV8,$A$11:$A$150,0),JQ$1) -> 0 | JR8: =INDEX($E$11:$ED$150,MATCH($FV8,$A$11:$A$150,0),JR$1) -> 0 | JS8: =INDEX($E$11:$ED$150,MATCH($FV8,$A$11:$A$150,0),JS$1) -> 33 | JT8: =INDEX($E$11:$ED$150,MATCH($FV8,$A$11:$A$150,0),JT$1) -> 0 | JU8: =INDEX($E$11:$ED$150,MATCH($FV8,$A$11:$A$150,0),JU$1) -> 0 | JV8: =INDEX($E$11:$ED$150,MATCH($FV8,$A$11:$A$150,0),JV$1) -> 0 | JW8: =INDEX($E$11:$ED$150,MATCH($FV8,$A$11:$A$150,0),JW$1) -> 0 | JX8: =INDEX($E$11:$ED$150,MATCH($FV8,$A$11:$A$150,0),JX$1) -> 0 | JY8: =INDEX($E$11:$ED$150,MATCH($FV8,$A$11:$A$150,0),JY$1) -> 0 | JZ8: =INDEX($E$11:$ED$150,MATCH($FV8,$A$11:$A$150,0),JZ$1) -> 0 | KA8: =INDEX($E$11:$ED$150,MATCH($FV8,$A$11:$A$150,0),KA$1) -> 0 | KB8: =INDEX($E$11:$ED$150,MATCH($FV8,$A$11:$A$150,0),KB$1) -> 0 | KC8: =INDEX($E$11:$ED$150,MATCH($FV8,$A$11:$A$150,0),KC$1) -> 0 | KD8: =INDEX($E$11:$ED$150,MATCH($FV8,$A$11:$A$150,0),KD$1) -> 0 | KE8: =INDEX($E$11:$ED$150,MATCH($FV8,$A$11:$A$150,0),KE$1) -> 0 | KF8: =INDEX($E$11:$ED$150,MATCH($FV8,$A$11:$A$150,0),KF$1) -> 28 | KG8: =INDEX($E$11:$ED$150,MATCH($FV8,$A$11:$A$150,0),KG$1) -> 0 | KH8: =INDEX($E$11:$ED$150,MATCH($FV8,$A$11:$A$150,0),KH$1) -> 32 | KI8: =INDEX($E$11:$ED$150,MATCH($FV8,$A$11:$A$150,0),KI$1) -> 0 | KJ8: =INDEX($E$11:$ED$150,MATCH($FV8,$A$11:$A$150,0),KJ$1) -> 0 | KK8: =INDEX($E$11:$ED$150,MATCH($FV8,$A$11:$A$150,0),KK$1) -> 29 | KL8: =INDEX($E$11:$ED$150,MATCH($FV8,$A$11:$A$150,0),KL$1) -> 0 | KM8: =INDEX($E$11:$ED$150,MATCH($FV8,$A$11:$A$150,0),KM$1) -> 0 | KN8: =INDEX($E$11:$ED$150,MATCH($FV8,$A$11:$A$150,0),KN$1) -> 0 | KO8: =INDEX($E$11:$ED$150,MATCH($FV8,$A$11:$A$150,0),KO$1) -> 0 | KP8: =INDEX($E$11:$ED$150,MATCH($FV8,$A$11:$A$150,0),KP$1) -> 0 | KQ8: =INDEX($E$11:$ED$150,MATCH($FV8,$A$11:$A$150,0),KQ$1) -> 0 | KR8: =INDEX($E$11:$ED$150,MATCH($FV8,$A$11:$A$150,0),KR$1) -> 0 | KS8: =INDEX($E$11:$ED$150,MATCH($FV8,$A$11:$A$150,0),KS$1) -> 0 | KT8: =INDEX($E$11:$ED$150,MATCH($FV8,$A$11:$A$150,0),KT$1) -> 0 | KU8: =INDEX($E$11:$ED$150,MATCH($FV8,$A$11:$A$150,0),KU$1) -> 0 | KV8: =INDEX($E$11:$ED$150,MATCH($FV8,$A$11:$A$150,0),KV$1) -> 0
A9: Libor HruškaPočet konečných bodů | B9: =CONCATENATE(C5," ",C6) -> Libor Hruška | D9: =Tabulka!C10 -> Počet konečných bodů | E9: 0 | F9: 20 | G9: 62 | H9: 52 | J9: 96 | K9: 57 | L9: 20 | M9: 119 | O9: 0 | P9: 40 | Q9: 105 | R9: 14 | T9: 49 | U9: 15 | V9: 0 | W9: 104 | Y9: 19 | Z9: 8 | AA9: 35 | AB9: 80 | AD9: 0 | AE9: 139 | AF9: 88 | AG9: 125 | AI9: 103 | AJ9: 21 | AK9: 96 | AL9: 15 | AN9: 147 | AO9: 0 | AP9: 148 | AQ9: 83 | AS9: 50 | AT9: 63 | AU9: 15 | AV9: 17 | AX9: 20 | AY9: 91 | BC9: 43 | BD9: 0 | BE9: 40 | BF9: 52 | BH9: 15 | BI9: 40 | BJ9: 125 | BK9: 13 | BL9: 16 | BM9: 3 | BN9: 0 | BO9: 45 | BR9: 110 | BS9: 0 | BT9: 132 | BU9: 79 | BV9: 65 | BW9: 112 | BX9: 48 | BY9: 81 | BZ9: 66 | CB9: 168 | CC9: 55 | CD9: 178 | CE9: 81 | CG9: 64 | CH9: 136 | CI9: 109 | CJ9: 25 | CL9: 182 | CM9: 61 | CN9: 99 | CO9: 275 | CP9: 28 | CQ9: 25 | CR9: 122 | CS9: 46 | CT9: 116 | CV9: 134 | CW9: 48 | CX9: 0 | CY9: 147 | DA9: 80 | DB9: 133 | DC9: 218 | DD9: 53 | DF9: 45 | DG9: 28 | DH9: 0 | DI9: 99 | DK9: 112 | DL9: 135 | DM9: 48 | DN9: 90 | DP9: 88 | DQ9: 85 | DR9: 35 | DS9: 128 | EE9: =IF(AND(SUM(Tabulka!$AG$5)>0.99,(SUM(Tabulka!$AH$9)<$EJ$1)),50000+(SUM(E9:ED9)),IF(OR(SUM(Tabulka!$AG$5)<2),90000,SUM(E9:ED9))) -> 6677 | EG9: =SUM(E9:ED9) -> 6677 | EI9: =$EJ$3-EG9 -> -1677 | EM9: Počet bodů den | EN9: =SUM(E9:I9) -> 134 | FT9: 40 | FV9: Jiří BlínPočet šipek (průměr den) | FW9: =INDEX($E$11:$ED$150,MATCH($FV9,$A$11:$A$150,0),FW$1) -> 0 | FX9: =INDEX($E$11:$ED$150,MATCH($FV9,$A$11:$A$150,0),FX$1) -> 0 | FY9: =INDEX($E$11:$ED$150,MATCH($FV9,$A$11:$A$150,0),FY$1) -> 0 | FZ9: =INDEX($E$11:$ED$150,MATCH($FV9,$A$11:$A$150,0),FZ$1) -> 0 | GA9: =INDEX($E$11:$ED$150,MATCH($FV9,$A$11:$A$150,0),GA$1) -> 0 | GB9: =INDEX($E$11:$ED$150,MATCH($FV9,$A$11:$A$150,0),GB$1) -> 0 | GC9: =INDEX($E$11:$ED$150,MATCH($FV9,$A$11:$A$150,0),GC$1) -> 0 | GD9: =INDEX($E$11:$ED$150,MATCH($FV9,$A$11:$A$150,0),GD$1) -> 0 | GE9: =INDEX($E$11:$ED$150,MATCH($FV9,$A$11:$A$150,0),GE$1) -> 0 | GF9: =INDEX($E$11:$ED$150,MATCH($FV9,$A$11:$A$150,0),GF$1) -> 0 | GG9: =INDEX($E$11:$ED$150,MATCH($FV9,$A$11:$A$150,0),GG$1) -> 0 | GH9: =INDEX($E$11:$ED$150,MATCH($FV9,$A$11:$A$150,0),GH$1) -> 0 | GI9: =INDEX($E$11:$ED$150,MATCH($FV9,$A$11:$A$150,0),GI$1) -> 0 | GJ9: =INDEX($E$11:$ED$150,MATCH($FV9,$A$11:$A$150,0),GJ$1) -> 0 | GK9: =INDEX($E$11:$ED$150,MATCH($FV9,$A$11:$A$150,0),GK$1) -> 0 | GL9: =INDEX($E$11:$ED$150,MATCH($FV9,$A$11:$A$150,0),GL$1) -> 0 | GM9: =INDEX($E$11:$ED$150,MATCH($FV9,$A$11:$A$150,0),GM$1) -> 0 | GN9: =INDEX($E$11:$ED$150,MATCH($FV9,$A$11:$A$150,0),GN$1) -> 0 | GO9: =INDEX($E$11:$ED$150,MATCH($FV9,$A$11:$A$150,0),GO$1) -> 0 | GP9: =INDEX($E$11:$ED$150,MATCH($FV9,$A$11:$A$150,0),GP$1) -> 0 | GQ9: =INDEX($E$11:$ED$150,MATCH($FV9,$A$11:$A$150,0),GQ$1) -> 0 | GR9: =INDEX($E$11:$ED$150,MATCH($FV9,$A$11:$A$150,0),GR$1) -> 0 | GS9: =INDEX($E$11:$ED$150,MATCH($FV9,$A$11:$A$150,0),GS$1) -> 0 | GT9: =INDEX($E$11:$ED$150,MATCH($FV9,$A$11:$A$150,0),GT$1) -> 0 | GU9: =INDEX($E$11:$ED$150,MATCH($FV9,$A$11:$A$150,0),GU$1) -> 0 | GV9: =INDEX($E$11:$ED$150,MATCH($FV9,$A$11:$A$150,0),GV$1) -> 0 | GW9: =INDEX($E$11:$ED$150,MATCH($FV9,$A$11:$A$150,0),GW$1) -> 0 | GX9: =INDEX($E$11:$ED$150,MATCH($FV9,$A$11:$A$150,0),GX$1) -> 0 | GY9: =INDEX($E$11:$ED$150,MATCH($FV9,$A$11:$A$150,0),GY$1) -> 0 | GZ9: =INDEX($E$11:$ED$150,MATCH($FV9,$A$11:$A$150,0),GZ$1) -> 0 | HA9: =INDEX($E$11:$ED$150,MATCH($FV9,$A$11:$A$150,0),HA$1) -> 0 | HB9: =INDEX($E$11:$ED$150,MATCH($FV9,$A$11:$A$150,0),HB$1) -> 0 | HC9: =INDEX($E$11:$ED$150,MATCH($FV9,$A$11:$A$150,0),HC$1) -> 0 | HD9: =INDEX($E$11:$ED$150,MATCH($FV9,$A$11:$A$150,0),HD$1) -> 0 | HE9: =INDEX($E$11:$ED$150,MATCH($FV9,$A$11:$A$150,0),HE$1) -> 0 | HF9: =INDEX($E$11:$ED$150,MATCH($FV9,$A$11:$A$150,0),HF$1) -> 0 | HG9: =INDEX($E$11:$ED$150,MATCH($FV9,$A$11:$A$150,0),HG$1) -> 0 | HH9: =INDEX($E$11:$ED$150,MATCH($FV9,$A$11:$A$150,0),HH$1) -> 0 | HI9: =INDEX($E$11:$ED$150,MATCH($FV9,$A$11:$A$150,0),HI$1) -> 0 | HJ9: =INDEX($E$11:$ED$150,MATCH($FV9,$A$11:$A$150,0),HJ$1) -> 0 | HK9: =INDEX($E$11:$ED$150,MATCH($FV9,$A$11:$A$150,0),HK$1) -> 0 | HL9: =INDEX($E$11:$ED$150,MATCH($FV9,$A$11:$A$150,0),HL$1) -> 0 | HM9: =INDEX($E$11:$ED$150,MATCH($FV9,$A$11:$A$150,0),HM$1) -> 0 | HN9: =INDEX($E$11:$ED$150,MATCH($FV9,$A$11:$A$150,0),HN$1) -> 0 | HO9: =INDEX($E$11:$ED$150,MATCH($FV9,$A$11:$A$150,0),HO$1) -> 0 | HP9: =INDEX($E$11:$ED$150,MATCH($FV9,$A$11:$A$150,0),HP$1) -> 0 | HQ9: =INDEX($E$11:$ED$150,MATCH($FV9,$A$11:$A$150,0),HQ$1) -> 0 | HR9: =INDEX($E$11:$ED$150,MATCH($FV9,$A$11:$A$150,0),HR$1) -> 0 | HS9: =INDEX($E$11:$ED$150,MATCH($FV9,$A$11:$A$150,0),HS$1) -> 0 | HT9: =INDEX($E$11:$ED$150,MATCH($FV9,$A$11:$A$150,0),HT$1) -> 0 | HU9: =INDEX($E$11:$ED$150,MATCH($FV9,$A$11:$A$150,0),HU$1) -> 0 | HV9: =INDEX($E$11:$ED$150,MATCH($FV9,$A$11:$A$150,0),HV$1) -> 0 | HW9: =INDEX($E$11:$ED$150,MATCH($FV9,$A$11:$A$150,0),HW$1) -> 0 | HX9: =INDEX($E$11:$ED$150,MATCH($FV9,$A$11:$A$150,0),HX$1) -> 0 | HY9: =INDEX($E$11:$ED$150,MATCH($FV9,$A$11:$A$150,0),HY$1) -> 0 | HZ9: =INDEX($E$11:$ED$150,MATCH($FV9,$A$11:$A$150,0),HZ$1) -> 0 | IA9: =INDEX($E$11:$ED$150,MATCH($FV9,$A$11:$A$150,0),IA$1) -> 0 | IB9: =INDEX($E$11:$ED$150,MATCH($FV9,$A$11:$A$150,0),IB$1) -> 0 | IC9: =INDEX($E$11:$ED$150,MATCH($FV9,$A$11:$A$150,0),IC$1) -> 0 | ID9: =INDEX($E$11:$ED$150,MATCH($FV9,$A$11:$A$150,0),ID$1) -> 0 | IE9: =INDEX($E$11:$ED$150,MATCH($FV9,$A$11:$A$150,0),IE$1) -> 0 | IF9: =INDEX($E$11:$ED$150,MATCH($FV9,$A$11:$A$150,0),IF$1) -> 0 | IG9: =INDEX($E$11:$ED$150,MATCH($FV9,$A$11:$A$150,0),IG$1) -> 0 | IH9: =INDEX($E$11:$ED$150,MATCH($FV9,$A$11:$A$150,0),IH$1) -> 0 | II9: =INDEX($E$11:$ED$150,MATCH($FV9,$A$11:$A$150,0),II$1) -> 0 | IJ9: =INDEX($E$11:$ED$150,MATCH($FV9,$A$11:$A$150,0),IJ$1) -> 0 | IK9: =INDEX($E$11:$ED$150,MATCH($FV9,$A$11:$A$150,0),IK$1) -> 0 | IL9: =INDEX($E$11:$ED$150,MATCH($FV9,$A$11:$A$150,0),IL$1) -> 0 | IM9: =INDEX($E$11:$ED$150,MATCH($FV9,$A$11:$A$150,0),IM$1) -> 0 | IN9: =INDEX($E$11:$ED$150,MATCH($FV9,$A$11:$A$150,0),IN$1) -> 0 | IO9: =INDEX($E$11:$ED$150,MATCH($FV9,$A$11:$A$150,0),IO$1) -> 0 | IP9: =INDEX($E$11:$ED$150,MATCH($FV9,$A$11:$A$150,0),IP$1) -> 0 | IQ9: =INDEX($E$11:$ED$150,MATCH($FV9,$A$11:$A$150,0),IQ$1) -> 0 | IR9: =INDEX($E$11:$ED$150,MATCH($FV9,$A$11:$A$150,0),IR$1) -> 0 | IS9: =INDEX($E$11:$ED$150,MATCH($FV9,$A$11:$A$150,0),IS$1) -> 0 | IT9: =INDEX($E$11:$ED$150,MATCH($FV9,$A$11:$A$150,0),IT$1) -> 0 | IU9: =INDEX($E$11:$ED$150,MATCH($FV9,$A$11:$A$150,0),IU$1) -> 0 | IV9: =INDEX($E$11:$ED$150,MATCH($FV9,$A$11:$A$150,0),IV$1) -> 0 | IW9: =INDEX($E$11:$ED$150,MATCH($FV9,$A$11:$A$150,0),IW$1) -> 0 | IX9: =INDEX($E$11:$ED$150,MATCH($FV9,$A$11:$A$150,0),IX$1) -> 0 | IY9: =INDEX($E$11:$ED$150,MATCH($FV9,$A$11:$A$150,0),IY$1) -> 0 | IZ9: =INDEX($E$11:$ED$150,MATCH($FV9,$A$11:$A$150,0),IZ$1) -> 0 | JA9: =INDEX($E$11:$ED$150,MATCH($FV9,$A$11:$A$150,0),JA$1) -> 0 | JB9: =INDEX($E$11:$ED$150,MATCH($FV9,$A$11:$A$150,0),JB$1) -> 0 | JC9: =INDEX($E$11:$ED$150,MATCH($FV9,$A$11:$A$150,0),JC$1) -> 0 | JD9: =INDEX($E$11:$ED$150,MATCH($FV9,$A$11:$A$150,0),JD$1) -> 0 | JE9: =INDEX($E$11:$ED$150,MATCH($FV9,$A$11:$A$150,0),JE$1) -> 0 | JF9: =INDEX($E$11:$ED$150,MATCH($FV9,$A$11:$A$150,0),JF$1) -> 0 | JG9: =INDEX($E$11:$ED$150,MATCH($FV9,$A$11:$A$150,0),JG$1) -> 0 | JH9: =INDEX($E$11:$ED$150,MATCH($FV9,$A$11:$A$150,0),JH$1) -> 0 | JI9: =INDEX($E$11:$ED$150,MATCH($FV9,$A$11:$A$150,0),JI$1) -> 32 | JJ9: =INDEX($E$11:$ED$150,MATCH($FV9,$A$11:$A$150,0),JJ$1) -> 0 | JK9: =INDEX($E$11:$ED$150,MATCH($FV9,$A$11:$A$150,0),JK$1) -> 36 | JL9: =INDEX($E$11:$ED$150,MATCH($FV9,$A$11:$A$150,0),JL$1) -> 0 | JM9: =INDEX($E$11:$ED$150,MATCH($FV9,$A$11:$A$150,0),JM$1) -> 0 | JN9: =INDEX($E$11:$ED$150,MATCH($FV9,$A$11:$A$150,0),JN$1) -> 0 | JO9: =INDEX($E$11:$ED$150,MATCH($FV9,$A$11:$A$150,0),JO$1) -> 0 | JP9: =INDEX($E$11:$ED$150,MATCH($FV9,$A$11:$A$150,0),JP$1) -> 0 | JQ9: =INDEX($E$11:$ED$150,MATCH($FV9,$A$11:$A$150,0),JQ$1) -> 0 | JR9: =INDEX($E$11:$ED$150,MATCH($FV9,$A$11:$A$150,0),JR$1) -> 0 | JS9: =INDEX($E$11:$ED$150,MATCH($FV9,$A$11:$A$150,0),JS$1) -> 0 | JT9: =INDEX($E$11:$ED$150,MATCH($FV9,$A$11:$A$150,0),JT$1) -> 0 | JU9: =INDEX($E$11:$ED$150,MATCH($FV9,$A$11:$A$150,0),JU$1) -> 0 | JV9: =INDEX($E$11:$ED$150,MATCH($FV9,$A$11:$A$150,0),JV$1) -> 0 | JW9: =INDEX($E$11:$ED$150,MATCH($FV9,$A$11:$A$150,0),JW$1) -> 0 | JX9: =INDEX($E$11:$ED$150,MATCH($FV9,$A$11:$A$150,0),JX$1) -> 0 | JY9: =INDEX($E$11:$ED$150,MATCH($FV9,$A$11:$A$150,0),JY$1) -> 0 | JZ9: =INDEX($E$11:$ED$150,MATCH($FV9,$A$11:$A$150,0),JZ$1) -> 0 | KA9: =INDEX($E$11:$ED$150,MATCH($FV9,$A$11:$A$150,0),KA$1) -> 0 | KB9: =INDEX($E$11:$ED$150,MATCH($FV9,$A$11:$A$150,0),KB$1) -> 0 | KC9: =INDEX($E$11:$ED$150,MATCH($FV9,$A$11:$A$150,0),KC$1) -> 0 | KD9: =INDEX($E$11:$ED$150,MATCH($FV9,$A$11:$A$150,0),KD$1) -> 0 | KE9: =INDEX($E$11:$ED$150,MATCH($FV9,$A$11:$A$150,0),KE$1) -> 35 | KF9: =INDEX($E$11:$ED$150,MATCH($FV9,$A$11:$A$150,0),KF$1) -> 0 | KG9: =INDEX($E$11:$ED$150,MATCH($FV9,$A$11:$A$150,0),KG$1) -> 0 | KH9: =INDEX($E$11:$ED$150,MATCH($FV9,$A$11:$A$150,0),KH$1) -> 0 | KI9: =INDEX($E$11:$ED$150,MATCH($FV9,$A$11:$A$150,0),KI$1) -> 0 | KJ9: =INDEX($E$11:$ED$150,MATCH($FV9,$A$11:$A$150,0),KJ$1) -> 0 | KK9: =INDEX($E$11:$ED$150,MATCH($FV9,$A$11:$A$150,0),KK$1) -> 0 | KL9: =INDEX($E$11:$ED$150,MATCH($FV9,$A$11:$A$150,0),KL$1) -> 0 | KM9: =INDEX($E$11:$ED$150,MATCH($FV9,$A$11:$A$150,0),KM$1) -> 0 | KN9: =INDEX($E$11:$ED$150,MATCH($FV9,$A$11:$A$150,0),KN$1) -> 0 | KO9: =INDEX($E$11:$ED$150,MATCH($FV9,$A$11:$A$150,0),KO$1) -> 0 | KP9: =INDEX($E$11:$ED$150,MATCH($FV9,$A$11:$A$150,0),KP$1) -> 0 | KQ9: =INDEX($E$11:$ED$150,MATCH($FV9,$A$11:$A$150,0),KQ$1) -> 0 | KR9: =INDEX($E$11:$ED$150,MATCH($FV9,$A$11:$A$150,0),KR$1) -> 0 | KS9: =INDEX($E$11:$ED$150,MATCH($FV9,$A$11:$A$150,0),KS$1) -> 0 | KT9: =INDEX($E$11:$ED$150,MATCH($FV9,$A$11:$A$150,0),KT$1) -> 0 | KU9: =INDEX($E$11:$ED$150,MATCH($FV9,$A$11:$A$150,0),KU$1) -> 0 | KV9: =INDEX($E$11:$ED$150,MATCH($FV9,$A$11:$A$150,0),KV$1) -> 0
A10: Libor HruškaPrůměr konečných bodů na hru | B10: =CONCATENATE(C5," ",C6) -> Libor Hruška | D10: =Tabulka!C11 -> Průměr konečných bodů na hru | E10: 2.201e-06 | F10: 10.0000022 | G10: 27.33333553 | H10: 33.5000022 | J10: 46.0000022 | K10: 47.83333553 | L10: 43.85714506 | M10: 53.2500022 | O10: 47.33333553 | P10: 46.6000022 | Q10: 51.90909311 | R10: 48.7500022 | T10: 48.76923297 | U10: 46.35714506 | V10: 43.26666887 | W10: 47.0625022 | Y10: 45.41176691 | Z10: 43.33333553 | AA10: 42.89473904 | AB10: 44.7500022 | AD10: 42.61904982 | AE10: 47.0000022 | AF10: 48.7826109 | AG10: 51.95833553 | AI10: 54.0000022 | AJ10: 52.73077143 | AK10: 54.33333553 | AL10: 52.92857363 | AN10: 56.17241599 | AO10: 54.3000022 | AP10: 57.32258285 | AQ10: 58.1250022 | AS10: 57.87879008 | AT10: 58.02941397 | AU10: 56.8000022 | AV10: 55.69444665 | AX10: 54.72973193 | AY10: 55.68421273 | BC10: 55.35897656 | BD10: 53.9750022 | BE10: 53.63414854 | BF10: 53.5952403 | BH10: 52.69767662 | BI10: 52.40909311 | BJ10: 54.02222442 | BK10: 53.13043698 | BL10: 52.34042773 | BM10: 51.3125022 | BN10: 50.26530832 | BO10: 50.1600022 | BR10: 51.33333553 | BS10: 50.34615605 | BT10: 51.88679465 | BU10: 52.38889109 | BV10: 52.61818402 | BW10: 53.67857363 | BX10: 53.57894957 | BY10: 54.05172634 | BZ10: 54.25423949 | CB10: 56.1500022 | CC10: 56.13114974 | CD10: 58.09677639 | CE10: 58.46031966 | CG10: 58.5468772 | CH10: 59.73846374 | CI10: 60.48485069 | CJ10: 59.95522608 | CL10: 61.7500022 | CM10: 61.73913264 | CN10: 62.27143077 | CO10: 65.26760783 | CP10: 64.7500022 | CQ10: 64.20548165 | CR10: 64.98648869 | CS10: 64.73333553 | CT10: 65.40789694 | CV10: 66.2987035 | CW10: 66.06410477 | CX10: 65.2278503 | CY10: 66.2500022 | DA10: 66.41975529 | DB10: 67.23170952 | DC10: 69.04819497 | DD10: 68.85714506 | DF10: =IF(DF9<>"",AVERAGE($E9:DF9)+$EI10,"") -> 68.57647062 | DG10: =IF(DG9<>"",AVERAGE($E9:DG9)+$EI10,"") -> 68.10465119 | DH10: =IF(DH9<>"",AVERAGE($E9:DH9)+$EI10,"") -> 67.32183911 | DI10: =IF(DI9<>"",AVERAGE($E9:DI9)+$EI10,"") -> 67.68181821 | DJ10: =IF(DJ9<>"",AVERAGE($E9:DJ9)+$EI10,"") ->  | DK10: =IF(DK9<>"",AVERAGE($E9:DK9)+$EI10,"") -> 68.17977531 | DL10: =IF(DL9<>"",AVERAGE($E9:DL9)+$EI10,"") -> 68.92222225 | DM10: =IF(DM9<>"",AVERAGE($E9:DM9)+$EI10,"") -> 68.69230772 | DN10: =IF(DN9<>"",AVERAGE($E9:DN9)+$EI10,"") -> 68.92391307 | DO10: =IF(DO9<>"",AVERAGE($E9:DO9)+$EI10,"") ->  | DP10: =IF(DP9<>"",AVERAGE($E9:DP9)+$EI10,"") -> 69.12903229 | DQ10: =IF(DQ9<>"",AVERAGE($E9:DQ9)+$EI10,"") -> 69.29787237 | DR10: =IF(DR9<>"",AVERAGE($E9:DR9)+$EI10,"") -> 68.93684214 | DS10: =IF(DS9<>"",AVERAGE($E9:DS9)+$EI10,"") -> 69.55208336 | DT10: =IF(DT9<>"",AVERAGE($E9:DT9)+$EI10,"") ->  | DU10: =IF(DU9<>"",AVERAGE($E9:DU9)+$EI10,"") ->  | DV10: =IF(DV9<>"",AVERAGE($E9:DV9)+$EI10,"") ->  | DW10: =IF(DW9<>"",AVERAGE($E9:DW9)+$EI10,"") ->  | DX10: =IF(DX9<>"",AVERAGE($E9:DX9)+$EI10,"") ->  | DY10: =IF(DY9<>"",AVERAGE($E9:DY9)+$EI10,"") ->  | DZ10: =IF(DZ9<>"",AVERAGE($E9:DZ9)+$EI10,"") ->  | EA10: =IF(EA9<>"",AVERAGE($E9:EA9)+$EI10,"") ->  | EB10: =IF(EB9<>"",AVERAGE($E9:EB9)+$EI10,"") ->  | EC10: =IF(EC9<>"",AVERAGE($E9:EC9)+$EI10,"") ->  | ED10: =IF(ED9<>"",AVERAGE($E9:ED9)+$EI10,"") ->  | EE10: =IF(AND(SUM(Tabulka!$AG$5)>0.99,(SUM(Tabulka!$AH$9)<$EJ$1)),50000+C4/1000,IF(OR(SUM(Tabulka!$AG$5)<2),90000,SUM(E9:ED9)/COUNT(E10:ED10)))+EG10 -> 139.1041667 | EG10: =IFERROR(SUM(E9:ED9)/COUNT(E9:ED9),) -> 69.55208333 | EH10: =CONCATENATE(C5," ",C6) -> Libor Hruška | EI10: =INDEX(List4!$E$2:$E$19,MATCH(CONCATENATE(C5," ",C6),List4!$A$2:$A$19,0),1) -> 3e-08 | EK10: =IFERROR(501/EK11*3,) -> 43.56521739 | EM10: průměr kolo | EN10: =EN9/EN8 -> 33.5 | EP10: Prům bodů na kolo při zavření | EQ10: =IF(OR(SUM(Tabulka!$AG5)<1),-90000+INDEX(List4!$F$2:$F$17,MATCH(Přehled_body!B11,List4!$D$2:$D$17,0),1),IF(OR(AND(SUM(Tabulka!$AG5)>0.99,(SUM(Tabulka!$AH$9)<$EJ$1)),Tabulka!AG5<$EJ$2),-50000+(501/EQ11*3)+INDEX(List4!$F$2:$F$17,MATCH(Přehled_body!B10,List4!$D$2:$D$17,0),1),IF(EE11<9,1,501/EQ11*3)+INDEX(List4!$F$2:$F$17,MATCH(Přehled_body!B10,List4!$D$2:$D$17,0),1))) -> 43.56521734 | FT10: 48 | FV10: Standa RothPočet šipek (průměr den) | FW10: =INDEX($E$11:$ED$150,MATCH($FV10,$A$11:$A$150,0),FW$1) -> 0 | FX10: =INDEX($E$11:$ED$150,MATCH($FV10,$A$11:$A$150,0),FX$1) -> 0 | FY10: =INDEX($E$11:$ED$150,MATCH($FV10,$A$11:$A$150,0),FY$1) -> 0 | FZ10: =INDEX($E$11:$ED$150,MATCH($FV10,$A$11:$A$150,0),FZ$1) -> 0 | GA10: =INDEX($E$11:$ED$150,MATCH($FV10,$A$11:$A$150,0),GA$1) -> 0 | GB10: =INDEX($E$11:$ED$150,MATCH($FV10,$A$11:$A$150,0),GB$1) -> 0 | GC10: =INDEX($E$11:$ED$150,MATCH($FV10,$A$11:$A$150,0),GC$1) -> 0 | GD10: =INDEX($E$11:$ED$150,MATCH($FV10,$A$11:$A$150,0),GD$1) -> 0 | GE10: =INDEX($E$11:$ED$150,MATCH($FV10,$A$11:$A$150,0),GE$1) -> 0 | GF10: =INDEX($E$11:$ED$150,MATCH($FV10,$A$11:$A$150,0),GF$1) -> 0 | GG10: =INDEX($E$11:$ED$150,MATCH($FV10,$A$11:$A$150,0),GG$1) -> 0 | GH10: =INDEX($E$11:$ED$150,MATCH($FV10,$A$11:$A$150,0),GH$1) -> 0 | GI10: =INDEX($E$11:$ED$150,MATCH($FV10,$A$11:$A$150,0),GI$1) -> 0 | GJ10: =INDEX($E$11:$ED$150,MATCH($FV10,$A$11:$A$150,0),GJ$1) -> 0 | GK10: =INDEX($E$11:$ED$150,MATCH($FV10,$A$11:$A$150,0),GK$1) -> 0 | GL10: =INDEX($E$11:$ED$150,MATCH($FV10,$A$11:$A$150,0),GL$1) -> 0 | GM10: =INDEX($E$11:$ED$150,MATCH($FV10,$A$11:$A$150,0),GM$1) -> 0 | GN10: =INDEX($E$11:$ED$150,MATCH($FV10,$A$11:$A$150,0),GN$1) -> 0 | GO10: =INDEX($E$11:$ED$150,MATCH($FV10,$A$11:$A$150,0),GO$1) -> 0 | GP10: =INDEX($E$11:$ED$150,MATCH($FV10,$A$11:$A$150,0),GP$1) -> 0 | GQ10: =INDEX($E$11:$ED$150,MATCH($FV10,$A$11:$A$150,0),GQ$1) -> 0 | GR10: =INDEX($E$11:$ED$150,MATCH($FV10,$A$11:$A$150,0),GR$1) -> 0 | GS10: =INDEX($E$11:$ED$150,MATCH($FV10,$A$11:$A$150,0),GS$1) -> 0 | GT10: =INDEX($E$11:$ED$150,MATCH($FV10,$A$11:$A$150,0),GT$1) -> 0 | GU10: =INDEX($E$11:$ED$150,MATCH($FV10,$A$11:$A$150,0),GU$1) -> 0 | GV10: =INDEX($E$11:$ED$150,MATCH($FV10,$A$11:$A$150,0),GV$1) -> 0 | GW10: =INDEX($E$11:$ED$150,MATCH($FV10,$A$11:$A$150,0),GW$1) -> 0 | GX10: =INDEX($E$11:$ED$150,MATCH($FV10,$A$11:$A$150,0),GX$1) -> 0 | GY10: =INDEX($E$11:$ED$150,MATCH($FV10,$A$11:$A$150,0),GY$1) -> 0 | GZ10: =INDEX($E$11:$ED$150,MATCH($FV10,$A$11:$A$150,0),GZ$1) -> 0 | HA10: =INDEX($E$11:$ED$150,MATCH($FV10,$A$11:$A$150,0),HA$1) -> 0 | HB10: =INDEX($E$11:$ED$150,MATCH($FV10,$A$11:$A$150,0),HB$1) -> 0 | HC10: =INDEX($E$11:$ED$150,MATCH($FV10,$A$11:$A$150,0),HC$1) -> 0 | HD10: =INDEX($E$11:$ED$150,MATCH($FV10,$A$11:$A$150,0),HD$1) -> 0 | HE10: =INDEX($E$11:$ED$150,MATCH($FV10,$A$11:$A$150,0),HE$1) -> 0 | HF10: =INDEX($E$11:$ED$150,MATCH($FV10,$A$11:$A$150,0),HF$1) -> 0 | HG10: =INDEX($E$11:$ED$150,MATCH($FV10,$A$11:$A$150,0),HG$1) -> 0 | HH10: =INDEX($E$11:$ED$150,MATCH($FV10,$A$11:$A$150,0),HH$1) -> 0 | HI10: =INDEX($E$11:$ED$150,MATCH($FV10,$A$11:$A$150,0),HI$1) -> 0 | HJ10: =INDEX($E$11:$ED$150,MATCH($FV10,$A$11:$A$150,0),HJ$1) -> 0 | HK10: =INDEX($E$11:$ED$150,MATCH($FV10,$A$11:$A$150,0),HK$1) -> 0 | HL10: =INDEX($E$11:$ED$150,MATCH($FV10,$A$11:$A$150,0),HL$1) -> 0 | HM10: =INDEX($E$11:$ED$150,MATCH($FV10,$A$11:$A$150,0),HM$1) -> 0 | HN10: =INDEX($E$11:$ED$150,MATCH($FV10,$A$11:$A$150,0),HN$1) -> 0 | HO10: =INDEX($E$11:$ED$150,MATCH($FV10,$A$11:$A$150,0),HO$1) -> 0 | HP10: =INDEX($E$11:$ED$150,MATCH($FV10,$A$11:$A$150,0),HP$1) -> 0 | HQ10: =INDEX($E$11:$ED$150,MATCH($FV10,$A$11:$A$150,0),HQ$1) -> 0 | HR10: =INDEX($E$11:$ED$150,MATCH($FV10,$A$11:$A$150,0),HR$1) -> 0 | HS10: =INDEX($E$11:$ED$150,MATCH($FV10,$A$11:$A$150,0),HS$1) -> 0 | HT10: =INDEX($E$11:$ED$150,MATCH($FV10,$A$11:$A$150,0),HT$1) -> 0 | HU10: =INDEX($E$11:$ED$150,MATCH($FV10,$A$11:$A$150,0),HU$1) -> 0 | HV10: =INDEX($E$11:$ED$150,MATCH($FV10,$A$11:$A$150,0),HV$1) -> 0 | HW10: =INDEX($E$11:$ED$150,MATCH($FV10,$A$11:$A$150,0),HW$1) -> 0 | HX10: =INDEX($E$11:$ED$150,MATCH($FV10,$A$11:$A$150,0),HX$1) -> 0 | HY10: =INDEX($E$11:$ED$150,MATCH($FV10,$A$11:$A$150,0),HY$1) -> 0 | HZ10: =INDEX($E$11:$ED$150,MATCH($FV10,$A$11:$A$150,0),HZ$1) -> 0 | IA10: =INDEX($E$11:$ED$150,MATCH($FV10,$A$11:$A$150,0),IA$1) -> 0 | IB10: =INDEX($E$11:$ED$150,MATCH($FV10,$A$11:$A$150,0),IB$1) -> 0 | IC10: =INDEX($E$11:$ED$150,MATCH($FV10,$A$11:$A$150,0),IC$1) -> 0 | ID10: =INDEX($E$11:$ED$150,MATCH($FV10,$A$11:$A$150,0),ID$1) -> 0 | IE10: =INDEX($E$11:$ED$150,MATCH($FV10,$A$11:$A$150,0),IE$1) -> 0 | IF10: =INDEX($E$11:$ED$150,MATCH($FV10,$A$11:$A$150,0),IF$1) -> 0 | IG10: =INDEX($E$11:$ED$150,MATCH($FV10,$A$11:$A$150,0),IG$1) -> 0 | IH10: =INDEX($E$11:$ED$150,MATCH($FV10,$A$11:$A$150,0),IH$1) -> 0 | II10: =INDEX($E$11:$ED$150,MATCH($FV10,$A$11:$A$150,0),II$1) -> 0 | IJ10: =INDEX($E$11:$ED$150,MATCH($FV10,$A$11:$A$150,0),IJ$1) -> 0 | IK10: =INDEX($E$11:$ED$150,MATCH($FV10,$A$11:$A$150,0),IK$1) -> 0 | IL10: =INDEX($E$11:$ED$150,MATCH($FV10,$A$11:$A$150,0),IL$1) -> 0 | IM10: =INDEX($E$11:$ED$150,MATCH($FV10,$A$11:$A$150,0),IM$1) -> 0 | IN10: =INDEX($E$11:$ED$150,MATCH($FV10,$A$11:$A$150,0),IN$1) -> 0 | IO10: =INDEX($E$11:$ED$150,MATCH($FV10,$A$11:$A$150,0),IO$1) -> 0 | IP10: =INDEX($E$11:$ED$150,MATCH($FV10,$A$11:$A$150,0),IP$1) -> 0 | IQ10: =INDEX($E$11:$ED$150,MATCH($FV10,$A$11:$A$150,0),IQ$1) -> 0 | IR10: =INDEX($E$11:$ED$150,MATCH($FV10,$A$11:$A$150,0),IR$1) -> 0 | IS10: =INDEX($E$11:$ED$150,MATCH($FV10,$A$11:$A$150,0),IS$1) -> 0 | IT10: =INDEX($E$11:$ED$150,MATCH($FV10,$A$11:$A$150,0),IT$1) -> 0 | IU10: =INDEX($E$11:$ED$150,MATCH($FV10,$A$11:$A$150,0),IU$1) -> 0 | IV10: =INDEX($E$11:$ED$150,MATCH($FV10,$A$11:$A$150,0),IV$1) -> 0 | IW10: =INDEX($E$11:$ED$150,MATCH($FV10,$A$11:$A$150,0),IW$1) -> 0 | IX10: =INDEX($E$11:$ED$150,MATCH($FV10,$A$11:$A$150,0),IX$1) -> 0 | IY10: =INDEX($E$11:$ED$150,MATCH($FV10,$A$11:$A$150,0),IY$1) -> 0 | IZ10: =INDEX($E$11:$ED$150,MATCH($FV10,$A$11:$A$150,0),IZ$1) -> 0 | JA10: =INDEX($E$11:$ED$150,MATCH($FV10,$A$11:$A$150,0),JA$1) -> 0 | JB10: =INDEX($E$11:$ED$150,MATCH($FV10,$A$11:$A$150,0),JB$1) -> 0 | JC10: =INDEX($E$11:$ED$150,MATCH($FV10,$A$11:$A$150,0),JC$1) -> 0 | JD10: =INDEX($E$11:$ED$150,MATCH($FV10,$A$11:$A$150,0),JD$1) -> 0 | JE10: =INDEX($E$11:$ED$150,MATCH($FV10,$A$11:$A$150,0),JE$1) -> 0 | JF10: =INDEX($E$11:$ED$150,MATCH($FV10,$A$11:$A$150,0),JF$1) -> 0 | JG10: =INDEX($E$11:$ED$150,MATCH($FV10,$A$11:$A$150,0),JG$1) -> 0 | JH10: =INDEX($E$11:$ED$150,MATCH($FV10,$A$11:$A$150,0),JH$1) -> 0 | JI10: =INDEX($E$11:$ED$150,MATCH($FV10,$A$11:$A$150,0),JI$1) -> 0 | JJ10: =INDEX($E$11:$ED$150,MATCH($FV10,$A$11:$A$150,0),JJ$1) -> 32 | JK10: =INDEX($E$11:$ED$150,MATCH($FV10,$A$11:$A$150,0),JK$1) -> 0 | JL10: =INDEX($E$11:$ED$150,MATCH($FV10,$A$11:$A$150,0),JL$1) -> 29 | JM10: =INDEX($E$11:$ED$150,MATCH($FV10,$A$11:$A$150,0),JM$1) -> 0 | JN10: =INDEX($E$11:$ED$150,MATCH($FV10,$A$11:$A$150,0),JN$1) -> 0 | JO10: =INDEX($E$11:$ED$150,MATCH($FV10,$A$11:$A$150,0),JO$1) -> 0 | JP10: =INDEX($E$11:$ED$150,MATCH($FV10,$A$11:$A$150,0),JP$1) -> 0 | JQ10: =INDEX($E$11:$ED$150,MATCH($FV10,$A$11:$A$150,0),JQ$1) -> 31 | JR10: =INDEX($E$11:$ED$150,MATCH($FV10,$A$11:$A$150,0),JR$1) -> 0 | JS10: =INDEX($E$11:$ED$150,MATCH($FV10,$A$11:$A$150,0),JS$1) -> 0 | JT10: =INDEX($E$11:$ED$150,MATCH($FV10,$A$11:$A$150,0),JT$1) -> 33 | JU10: =INDEX($E$11:$ED$150,MATCH($FV10,$A$11:$A$150,0),JU$1) -> 0 | JV10: =INDEX($E$11:$ED$150,MATCH($FV10,$A$11:$A$150,0),JV$1) -> 0 | JW10: =INDEX($E$11:$ED$150,MATCH($FV10,$A$11:$A$150,0),JW$1) -> 0 | JX10: =INDEX($E$11:$ED$150,MATCH($FV10,$A$11:$A$150,0),JX$1) -> 38 | JY10: =INDEX($E$11:$ED$150,MATCH($FV10,$A$11:$A$150,0),JY$1) -> 0 | JZ10: =INDEX($E$11:$ED$150,MATCH($FV10,$A$11:$A$150,0),JZ$1) -> 0 | KA10: =INDEX($E$11:$ED$150,MATCH($FV10,$A$11:$A$150,0),KA$1) -> 0 | KB10: =INDEX($E$11:$ED$150,MATCH($FV10,$A$11:$A$150,0),KB$1) -> 0 | KC10: =INDEX($E$11:$ED$150,MATCH($FV10,$A$11:$A$150,0),KC$1) -> 0 | KD10: =INDEX($E$11:$ED$150,MATCH($FV10,$A$11:$A$150,0),KD$1) -> 0 | KE10: =INDEX($E$11:$ED$150,MATCH($FV10,$A$11:$A$150,0),KE$1) -> 0 | KF10: =INDEX($E$11:$ED$150,MATCH($FV10,$A$11:$A$150,0),KF$1) -> 0 | KG10: =INDEX($E$11:$ED$150,MATCH($FV10,$A$11:$A$150,0),KG$1) -> 0 | KH10: =INDEX($E$11:$ED$150,MATCH($FV10,$A$11:$A$150,0),KH$1) -> 0 | KI10: =INDEX($E$11:$ED$150,MATCH($FV10,$A$11:$A$150,0),KI$1) -> 0 | KJ10: =INDEX($E$11:$ED$150,MATCH($FV10,$A$11:$A$150,0),KJ$1) -> 35 | KK10: =INDEX($E$11:$ED$150,MATCH($FV10,$A$11:$A$150,0),KK$1) -> 28 | KL10: =INDEX($E$11:$ED$150,MATCH($FV10,$A$11:$A$150,0),KL$1) -> 0 | KM10: =INDEX($E$11:$ED$150,MATCH($FV10,$A$11:$A$150,0),KM$1) -> 0 | KN10: =INDEX($E$11:$ED$150,MATCH($FV10,$A$11:$A$150,0),KN$1) -> 0 | KO10: =INDEX($E$11:$ED$150,MATCH($FV10,$A$11:$A$150,0),KO$1) -> 0 | KP10: =INDEX($E$11:$ED$150,MATCH($FV10,$A$11:$A$150,0),KP$1) -> 0 | KQ10: =INDEX($E$11:$ED$150,MATCH($FV10,$A$11:$A$150,0),KQ$1) -> 0 | KR10: =INDEX($E$11:$ED$150,MATCH($FV10,$A$11:$A$150,0),KR$1) -> 0 | KS10: =INDEX($E$11:$ED$150,MATCH($FV10,$A$11:$A$150,0),KS$1) -> 0 | KT10: =INDEX($E$11:$ED$150,MATCH($FV10,$A$11:$A$150,0),KT$1) -> 0 | KU10: =INDEX($E$11:$ED$150,MATCH($FV10,$A$11:$A$150,0),KU$1) -> 0 | KV10: =INDEX($E$11:$ED$150,MATCH($FV10,$A$11:$A$150,0),KV$1) -> 0
A11: =CONCATENATE($C$5," ",$C$6,C11) -> Libor HruškaPočet šipek (průměr den) | B11: =CONCATENATE(C5," ",C6) -> Libor Hruška | C11: =Tabulka!C12 -> Počet šipek (průměr den) | D11: Počet šipek | CX11: 35 | DH11: 34 | EE11: =IF(AND(SUM(Tabulka!$AG$5)>0.99,(SUM(Tabulka!$AH$9)<$EJ$1)),-50000+(SUM($E11:$ED11)),IF(OR(SUM(Tabulka!$AG$5)<2),-90000+INDEX(List4!$E$2:$E$17,MATCH(Přehled_body!B11,List4!$D$2:$D$17,0),1),SUM($E11:$ED11)))+INDEX(List4!$E$2:$E$17,MATCH(Přehled_body!B11,List4!$D$2:$D$17,0),1) -> 69.00000003 | EG11: =IF(SUM(E11:ED11)=ROUND(0,),-100,EE11) -> 69.00000003 | EH11: =2*EG10 -> 139.1041667 | EI11: =EH11=EE10 -> TRUE | EJ11: =MIN(E11:ED11) -> 34 | EK11: =IFERROR(SUM(E11:ED11)/COUNT(E11:ED11),) -> 34.5 | EM11: =C11 -> Počet šipek (průměr den) | EO11: =IF(COUNT(E11:ED11)=0,-100,COUNT(E11:ED11)) -> 2 | EP11: =IF(OR(SUM(Tabulka!$AG5)<1),-90000+INDEX(List4!$F$2:$F$17,MATCH(Přehled_body!B11,List4!$D$2:$D$17,0),1),IF(OR(AND(SUM(Tabulka!$AG5)>0.99,(SUM(Tabulka!$AH9)<$EJ$1))),-50000+MIN(IF(E11:ED11>0,E11:ED11)+INDEX(List4!$E$2:$E$17,MATCH(Přehled_body!B11,List4!$D$2:$D$17,0),1)),IFERROR(MIN(IF(E11:ED11>0,E11:ED11)),)))+INDEX(List4!$F$2:$F$17,MATCH(Přehled_body!B11,List4!$D$2:$D$17,0),1) -> 34.00000001 | EQ11: =IF(OR(SUM(Tabulka!$AG5)<1),-90000+INDEX(List4!$E$2:$E$17,MATCH(Přehled_body!B11,List4!$D$2:$D$17,0),1),IF(OR(AND(SUM(Tabulka!$AG5)>0.99,(SUM(Tabulka!$AH$9)<$EJ$1)),Tabulka!AH9<Přehled_body!$EJ$1),-50000+(SUM(E11:ED11)),IF(EE11<9,1,EG11/EO11))+INDEX(List4!$E$2:$E$17,MATCH(Přehled_body!B11,List4!$D$2:$D$17,0),1)) -> 34.50000005 | ER11: =IF(AND(SUM(Tabulka!$AG5)>0.99,(SUM(Tabulka!$AH$9)<$EJ$1)),-50000+(SUM(E11:ED11)),IF(OR(SUM(Tabulka!$AG5)<2),-90000,SUM(E11:ED11)))+INDEX(List4!$E$2:$E$17,MATCH(Přehled_body!B11,List4!$D$2:$D$17,0),1) -> 69.00000003 | ES11: =IF(SUM(OFFSET($E11,0,ES$4,1,5))=0,"",AVERAGE(OFFSET($E11,0,ES$4,1,5))) ->  | ET11: =IF(SUM(OFFSET($E11,0,ET$4,1,5))=0,"",AVERAGE(OFFSET($E11,0,ET$4,1,5))) ->  | EU11: =IF(SUM(OFFSET($E11,0,EU$4,1,5))=0,"",AVERAGE(OFFSET($E11,0,EU$4,1,5))) ->  | EY11: =IF(SUM(OFFSET($E11,0,EY$4,1,5))=0,"",AVERAGE(OFFSET($E11,0,EY$4,1,5))) ->  | FL11: 35 | FN11: 34 | FT11: 56 | FV11: Roman MarekPočet šipek (průměr den) | FW11: =INDEX($E$11:$ED$150,MATCH($FV11,$A$11:$A$150,0),FW$1) -> 0 | FX11: =INDEX($E$11:$ED$150,MATCH($FV11,$A$11:$A$150,0),FX$1) -> 0 | FY11: =INDEX($E$11:$ED$150,MATCH($FV11,$A$11:$A$150,0),FY$1) -> 0 | FZ11: =INDEX($E$11:$ED$150,MATCH($FV11,$A$11:$A$150,0),FZ$1) -> 0 | GA11: =INDEX($E$11:$ED$150,MATCH($FV11,$A$11:$A$150,0),GA$1) -> 0 | GB11: =INDEX($E$11:$ED$150,MATCH($FV11,$A$11:$A$150,0),GB$1) -> 0 | GC11: =INDEX($E$11:$ED$150,MATCH($FV11,$A$11:$A$150,0),GC$1) -> 0 | GD11: =INDEX($E$11:$ED$150,MATCH($FV11,$A$11:$A$150,0),GD$1) -> 0 | GE11: =INDEX($E$11:$ED$150,MATCH($FV11,$A$11:$A$150,0),GE$1) -> 0 | GF11: =INDEX($E$11:$ED$150,MATCH($FV11,$A$11:$A$150,0),GF$1) -> 0 | GG11: =INDEX($E$11:$ED$150,MATCH($FV11,$A$11:$A$150,0),GG$1) -> 0 | GH11: =INDEX($E$11:$ED$150,MATCH($FV11,$A$11:$A$150,0),GH$1) -> 0 | GI11: =INDEX($E$11:$ED$150,MATCH($FV11,$A$11:$A$150,0),GI$1) -> 0 | GJ11: =INDEX($E$11:$ED$150,MATCH($FV11,$A$11:$A$150,0),GJ$1) -> 0 | GK11: =INDEX($E$11:$ED$150,MATCH($FV11,$A$11:$A$150,0),GK$1) -> 0 | GL11: =INDEX($E$11:$ED$150,MATCH($FV11,$A$11:$A$150,0),GL$1) -> 0 | GM11: =INDEX($E$11:$ED$150,MATCH($FV11,$A$11:$A$150,0),GM$1) -> 0 | GN11: =INDEX($E$11:$ED$150,MATCH($FV11,$A$11:$A$150,0),GN$1) -> 0 | GO11: =INDEX($E$11:$ED$150,MATCH($FV11,$A$11:$A$150,0),GO$1) -> 0 | GP11: =INDEX($E$11:$ED$150,MATCH($FV11,$A$11:$A$150,0),GP$1) -> 0 | GQ11: =INDEX($E$11:$ED$150,MATCH($FV11,$A$11:$A$150,0),GQ$1) -> 0 | GR11: =INDEX($E$11:$ED$150,MATCH($FV11,$A$11:$A$150,0),GR$1) -> 0 | GS11: =INDEX($E$11:$ED$150,MATCH($FV11,$A$11:$A$150,0),GS$1) -> 0 | GT11: =INDEX($E$11:$ED$150,MATCH($FV11,$A$11:$A$150,0),GT$1) -> 0 | GU11: =INDEX($E$11:$ED$150,MATCH($FV11,$A$11:$A$150,0),GU$1) -> 0 | GV11: =INDEX($E$11:$ED$150,MATCH($FV11,$A$11:$A$150,0),GV$1) -> 0 | GW11: =INDEX($E$11:$ED$150,MATCH($FV11,$A$11:$A$150,0),GW$1) -> 0 | GX11: =INDEX($E$11:$ED$150,MATCH($FV11,$A$11:$A$150,0),GX$1) -> 0 | GY11: =INDEX($E$11:$ED$150,MATCH($FV11,$A$11:$A$150,0),GY$1) -> 0 | GZ11: =INDEX($E$11:$ED$150,MATCH($FV11,$A$11:$A$150,0),GZ$1) -> 0 | HA11: =INDEX($E$11:$ED$150,MATCH($FV11,$A$11:$A$150,0),HA$1) -> 0 | HB11: =INDEX($E$11:$ED$150,MATCH($FV11,$A$11:$A$150,0),HB$1) -> 0 | HC11: =INDEX($E$11:$ED$150,MATCH($FV11,$A$11:$A$150,0),HC$1) -> 0 | HD11: =INDEX($E$11:$ED$150,MATCH($FV11,$A$11:$A$150,0),HD$1) -> 0 | HE11: =INDEX($E$11:$ED$150,MATCH($FV11,$A$11:$A$150,0),HE$1) -> 0 | HF11: =INDEX($E$11:$ED$150,MATCH($FV11,$A$11:$A$150,0),HF$1) -> 0 | HG11: =INDEX($E$11:$ED$150,MATCH($FV11,$A$11:$A$150,0),HG$1) -> 0 | HH11: =INDEX($E$11:$ED$150,MATCH($FV11,$A$11:$A$150,0),HH$1) -> 0 | HI11: =INDEX($E$11:$ED$150,MATCH($FV11,$A$11:$A$150,0),HI$1) -> 0 | HJ11: =INDEX($E$11:$ED$150,MATCH($FV11,$A$11:$A$150,0),HJ$1) -> 0 | HK11: =INDEX($E$11:$ED$150,MATCH($FV11,$A$11:$A$150,0),HK$1) -> 0 | HL11: =INDEX($E$11:$ED$150,MATCH($FV11,$A$11:$A$150,0),HL$1) -> 0 | HM11: =INDEX($E$11:$ED$150,MATCH($FV11,$A$11:$A$150,0),HM$1) -> 0 | HN11: =INDEX($E$11:$ED$150,MATCH($FV11,$A$11:$A$150,0),HN$1) -> 0 | HO11: =INDEX($E$11:$ED$150,MATCH($FV11,$A$11:$A$150,0),HO$1) -> 0 | HP11: =INDEX($E$11:$ED$150,MATCH($FV11,$A$11:$A$150,0),HP$1) -> 0 | HQ11: =INDEX($E$11:$ED$150,MATCH($FV11,$A$11:$A$150,0),HQ$1) -> 0 | HR11: =INDEX($E$11:$ED$150,MATCH($FV11,$A$11:$A$150,0),HR$1) -> 0 | HS11: =INDEX($E$11:$ED$150,MATCH($FV11,$A$11:$A$150,0),HS$1) -> 0 | HT11: =INDEX($E$11:$ED$150,MATCH($FV11,$A$11:$A$150,0),HT$1) -> 0 | HU11: =INDEX($E$11:$ED$150,MATCH($FV11,$A$11:$A$150,0),HU$1) -> 0 | HV11: =INDEX($E$11:$ED$150,MATCH($FV11,$A$11:$A$150,0),HV$1) -> 0 | HW11: =INDEX($E$11:$ED$150,MATCH($FV11,$A$11:$A$150,0),HW$1) -> 0 | HX11: =INDEX($E$11:$ED$150,MATCH($FV11,$A$11:$A$150,0),HX$1) -> 0 | HY11: =INDEX($E$11:$ED$150,MATCH($FV11,$A$11:$A$150,0),HY$1) -> 0 | HZ11: =INDEX($E$11:$ED$150,MATCH($FV11,$A$11:$A$150,0),HZ$1) -> 0 | IA11: =INDEX($E$11:$ED$150,MATCH($FV11,$A$11:$A$150,0),IA$1) -> 0 | IB11: =INDEX($E$11:$ED$150,MATCH($FV11,$A$11:$A$150,0),IB$1) -> 0 | IC11: =INDEX($E$11:$ED$150,MATCH($FV11,$A$11:$A$150,0),IC$1) -> 0 | ID11: =INDEX($E$11:$ED$150,MATCH($FV11,$A$11:$A$150,0),ID$1) -> 0 | IE11: =INDEX($E$11:$ED$150,MATCH($FV11,$A$11:$A$150,0),IE$1) -> 0 | IF11: =INDEX($E$11:$ED$150,MATCH($FV11,$A$11:$A$150,0),IF$1) -> 0 | IG11: =INDEX($E$11:$ED$150,MATCH($FV11,$A$11:$A$150,0),IG$1) -> 0 | IH11: =INDEX($E$11:$ED$150,MATCH($FV11,$A$11:$A$150,0),IH$1) -> 0 | II11: =INDEX($E$11:$ED$150,MATCH($FV11,$A$11:$A$150,0),II$1) -> 0 | IJ11: =INDEX($E$11:$ED$150,MATCH($FV11,$A$11:$A$150,0),IJ$1) -> 0 | IK11: =INDEX($E$11:$ED$150,MATCH($FV11,$A$11:$A$150,0),IK$1) -> 0 | IL11: =INDEX($E$11:$ED$150,MATCH($FV11,$A$11:$A$150,0),IL$1) -> 0 | IM11: =INDEX($E$11:$ED$150,MATCH($FV11,$A$11:$A$150,0),IM$1) -> 0 | IN11: =INDEX($E$11:$ED$150,MATCH($FV11,$A$11:$A$150,0),IN$1) -> 0 | IO11: =INDEX($E$11:$ED$150,MATCH($FV11,$A$11:$A$150,0),IO$1) -> 0 | IP11: =INDEX($E$11:$ED$150,MATCH($FV11,$A$11:$A$150,0),IP$1) -> 0 | IQ11: =INDEX($E$11:$ED$150,MATCH($FV11,$A$11:$A$150,0),IQ$1) -> 0 | IR11: =INDEX($E$11:$ED$150,MATCH($FV11,$A$11:$A$150,0),IR$1) -> 0 | IS11: =INDEX($E$11:$ED$150,MATCH($FV11,$A$11:$A$150,0),IS$1) -> 0 | IT11: =INDEX($E$11:$ED$150,MATCH($FV11,$A$11:$A$150,0),IT$1) -> 0 | IU11: =INDEX($E$11:$ED$150,MATCH($FV11,$A$11:$A$150,0),IU$1) -> 0 | IV11: =INDEX($E$11:$ED$150,MATCH($FV11,$A$11:$A$150,0),IV$1) -> 0 | IW11: =INDEX($E$11:$ED$150,MATCH($FV11,$A$11:$A$150,0),IW$1) -> 0 | IX11: =INDEX($E$11:$ED$150,MATCH($FV11,$A$11:$A$150,0),IX$1) -> 0 | IY11: =INDEX($E$11:$ED$150,MATCH($FV11,$A$11:$A$150,0),IY$1) -> 0 | IZ11: =INDEX($E$11:$ED$150,MATCH($FV11,$A$11:$A$150,0),IZ$1) -> 0 | JA11: =INDEX($E$11:$ED$150,MATCH($FV11,$A$11:$A$150,0),JA$1) -> 0 | JB11: =INDEX($E$11:$ED$150,MATCH($FV11,$A$11:$A$150,0),JB$1) -> 0 | JC11: =INDEX($E$11:$ED$150,MATCH($FV11,$A$11:$A$150,0),JC$1) -> 0 | JD11: =INDEX($E$11:$ED$150,MATCH($FV11,$A$11:$A$150,0),JD$1) -> 0 | JE11: =INDEX($E$11:$ED$150,MATCH($FV11,$A$11:$A$150,0),JE$1) -> 0 | JF11: =INDEX($E$11:$ED$150,MATCH($FV11,$A$11:$A$150,0),JF$1) -> 0 | JG11: =INDEX($E$11:$ED$150,MATCH($FV11,$A$11:$A$150,0),JG$1) -> 0 | JH11: =INDEX($E$11:$ED$150,MATCH($FV11,$A$11:$A$150,0),JH$1) -> 0 | JI11: =INDEX($E$11:$ED$150,MATCH($FV11,$A$11:$A$150,0),JI$1) -> 0 | JJ11: =INDEX($E$11:$ED$150,MATCH($FV11,$A$11:$A$150,0),JJ$1) -> 0 | JK11: =INDEX($E$11:$ED$150,MATCH($FV11,$A$11:$A$150,0),JK$1) -> 34 | JL11: =INDEX($E$11:$ED$150,MATCH($FV11,$A$11:$A$150,0),JL$1) -> 0 | JM11: =INDEX($E$11:$ED$150,MATCH($FV11,$A$11:$A$150,0),JM$1) -> 0 | JN11: =INDEX($E$11:$ED$150,MATCH($FV11,$A$11:$A$150,0),JN$1) -> 0 | JO11: =INDEX($E$11:$ED$150,MATCH($FV11,$A$11:$A$150,0),JO$1) -> 0 | JP11: =INDEX($E$11:$ED$150,MATCH($FV11,$A$11:$A$150,0),JP$1) -> 0 | JQ11: =INDEX($E$11:$ED$150,MATCH($FV11,$A$11:$A$150,0),JQ$1) -> 0 | JR11: =INDEX($E$11:$ED$150,MATCH($FV11,$A$11:$A$150,0),JR$1) -> 0 | JS11: =INDEX($E$11:$ED$150,MATCH($FV11,$A$11:$A$150,0),JS$1) -> 0 | JT11: =INDEX($E$11:$ED$150,MATCH($FV11,$A$11:$A$150,0),JT$1) -> 0 | JU11: =INDEX($E$11:$ED$150,MATCH($FV11,$A$11:$A$150,0),JU$1) -> 0 | JV11: =INDEX($E$11:$ED$150,MATCH($FV11,$A$11:$A$150,0),JV$1) -> 0 | JW11: =INDEX($E$11:$ED$150,MATCH($FV11,$A$11:$A$150,0),JW$1) -> 0 | JX11: =INDEX($E$11:$ED$150,MATCH($FV11,$A$11:$A$150,0),JX$1) -> 39 | JY11: =INDEX($E$11:$ED$150,MATCH($FV11,$A$11:$A$150,0),JY$1) -> 34 | JZ11: =INDEX($E$11:$ED$150,MATCH($FV11,$A$11:$A$150,0),JZ$1) -> 0 | KA11: =INDEX($E$11:$ED$150,MATCH($FV11,$A$11:$A$150,0),KA$1) -> 35 | KB11: =INDEX($E$11:$ED$150,MATCH($FV11,$A$11:$A$150,0),KB$1) -> 0 | KC11: =INDEX($E$11:$ED$150,MATCH($FV11,$A$11:$A$150,0),KC$1) -> 0 | KD11: =INDEX($E$11:$ED$150,MATCH($FV11,$A$11:$A$150,0),KD$1) -> 33 | KE11: =INDEX($E$11:$ED$150,MATCH($FV11,$A$11:$A$150,0),KE$1) -> 0 | KF11: =INDEX($E$11:$ED$150,MATCH($FV11,$A$11:$A$150,0),KF$1) -> 0 | KG11: =INDEX($E$11:$ED$150,MATCH($FV11,$A$11:$A$150,0),KG$1) -> 0 | KH11: =INDEX($E$11:$ED$150,MATCH($FV11,$A$11:$A$150,0),KH$1) -> 0 | KI11: =INDEX($E$11:$ED$150,MATCH($FV11,$A$11:$A$150,0),KI$1) -> 0 | KJ11: =INDEX($E$11:$ED$150,MATCH($FV11,$A$11:$A$150,0),KJ$1) -> 0 | KK11: =INDEX($E$11:$ED$150,MATCH($FV11,$A$11:$A$150,0),KK$1) -> 0 | KL11: =INDEX($E$11:$ED$150,MATCH($FV11,$A$11:$A$150,0),KL$1) -> 0 | KM11: =INDEX($E$11:$ED$150,MATCH($FV11,$A$11:$A$150,0),KM$1) -> 0 | KN11: =INDEX($E$11:$ED$150,MATCH($FV11,$A$11:$A$150,0),KN$1) -> 0 | KO11: =INDEX($E$11:$ED$150,MATCH($FV11,$A$11:$A$150,0),KO$1) -> 0 | KP11: =INDEX($E$11:$ED$150,MATCH($FV11,$A$11:$A$150,0),KP$1) -> 0 | KQ11: =INDEX($E$11:$ED$150,MATCH($FV11,$A$11:$A$150,0),KQ$1) -> 0 | KR11: =INDEX($E$11:$ED$150,MATCH($FV11,$A$11:$A$150,0),KR$1) -> 0 | KS11: =INDEX($E$11:$ED$150,MATCH($FV11,$A$11:$A$150,0),KS$1) -> 0 | KT11: =INDEX($E$11:$ED$150,MATCH($FV11,$A$11:$A$150,0),KT$1) -> 0 | KU11: =INDEX($E$11:$ED$150,MATCH($FV11,$A$11:$A$150,0),KU$1) -> 0 | KV11: =INDEX($E$11:$ED$150,MATCH($FV11,$A$11:$A$150,0),KV$1) -> 0
A12: =CONCATENATE($C$13," ",$C$14,D12) -> Pavel PernekrVýhry | B12: =CONCATENATE(C13," ",C14) -> Pavel Pernekr | C12: =Tabulka!A13 -> 2 | D12: =Tabulka!C13 -> Výhry | AN12: 0 | AX12: 0 | BM12: 0 | CB12: 1 | CQ12: 0 | EE12: =IF(AND(SUM(Tabulka!$AG$13)>0.99,(SUM(Tabulka!$AH$17)<$EJ$1)),-50000+(SUM(E12:ED12)),IF(OR(SUM(Tabulka!$AG$13)<2),-90000,SUM(E12:ED12))) -> -49999 | EG12: =SUM(E12:ED12) -> 1 | EL12: =Tabulka!A13 -> 2 | FT12: 64 | FV12: Adam ŠmídPočet šipek (průměr den) | FW12: =INDEX($E$11:$ED$150,MATCH($FV12,$A$11:$A$150,0),FW$1) -> 0 | FX12: =INDEX($E$11:$ED$150,MATCH($FV12,$A$11:$A$150,0),FX$1) -> 0 | FY12: =INDEX($E$11:$ED$150,MATCH($FV12,$A$11:$A$150,0),FY$1) -> 0 | FZ12: =INDEX($E$11:$ED$150,MATCH($FV12,$A$11:$A$150,0),FZ$1) -> 0 | GA12: =INDEX($E$11:$ED$150,MATCH($FV12,$A$11:$A$150,0),GA$1) -> 0 | GB12: =INDEX($E$11:$ED$150,MATCH($FV12,$A$11:$A$150,0),GB$1) -> 0 | GC12: =INDEX($E$11:$ED$150,MATCH($FV12,$A$11:$A$150,0),GC$1) -> 0 | GD12: =INDEX($E$11:$ED$150,MATCH($FV12,$A$11:$A$150,0),GD$1) -> 0 | GE12: =INDEX($E$11:$ED$150,MATCH($FV12,$A$11:$A$150,0),GE$1) -> 0 | GF12: =INDEX($E$11:$ED$150,MATCH($FV12,$A$11:$A$150,0),GF$1) -> 0 | GG12: =INDEX($E$11:$ED$150,MATCH($FV12,$A$11:$A$150,0),GG$1) -> 0 | GH12: =INDEX($E$11:$ED$150,MATCH($FV12,$A$11:$A$150,0),GH$1) -> 0 | GI12: =INDEX($E$11:$ED$150,MATCH($FV12,$A$11:$A$150,0),GI$1) -> 0 | GJ12: =INDEX($E$11:$ED$150,MATCH($FV12,$A$11:$A$150,0),GJ$1) -> 0 | GK12: =INDEX($E$11:$ED$150,MATCH($FV12,$A$11:$A$150,0),GK$1) -> 0 | GL12: =INDEX($E$11:$ED$150,MATCH($FV12,$A$11:$A$150,0),GL$1) -> 0 | GM12: =INDEX($E$11:$ED$150,MATCH($FV12,$A$11:$A$150,0),GM$1) -> 0 | GN12: =INDEX($E$11:$ED$150,MATCH($FV12,$A$11:$A$150,0),GN$1) -> 0 | GO12: =INDEX($E$11:$ED$150,MATCH($FV12,$A$11:$A$150,0),GO$1) -> 0 | GP12: =INDEX($E$11:$ED$150,MATCH($FV12,$A$11:$A$150,0),GP$1) -> 0 | GQ12: =INDEX($E$11:$ED$150,MATCH($FV12,$A$11:$A$150,0),GQ$1) -> 0 | GR12: =INDEX($E$11:$ED$150,MATCH($FV12,$A$11:$A$150,0),GR$1) -> 0 | GS12: =INDEX($E$11:$ED$150,MATCH($FV12,$A$11:$A$150,0),GS$1) -> 0 | GT12: =INDEX($E$11:$ED$150,MATCH($FV12,$A$11:$A$150,0),GT$1) -> 0 | GU12: =INDEX($E$11:$ED$150,MATCH($FV12,$A$11:$A$150,0),GU$1) -> 0 | GV12: =INDEX($E$11:$ED$150,MATCH($FV12,$A$11:$A$150,0),GV$1) -> 0 | GW12: =INDEX($E$11:$ED$150,MATCH($FV12,$A$11:$A$150,0),GW$1) -> 0 | GX12: =INDEX($E$11:$ED$150,MATCH($FV12,$A$11:$A$150,0),GX$1) -> 0 | GY12: =INDEX($E$11:$ED$150,MATCH($FV12,$A$11:$A$150,0),GY$1) -> 0 | GZ12: =INDEX($E$11:$ED$150,MATCH($FV12,$A$11:$A$150,0),GZ$1) -> 0 | HA12: =INDEX($E$11:$ED$150,MATCH($FV12,$A$11:$A$150,0),HA$1) -> 0 | HB12: =INDEX($E$11:$ED$150,MATCH($FV12,$A$11:$A$150,0),HB$1) -> 0 | HC12: =INDEX($E$11:$ED$150,MATCH($FV12,$A$11:$A$150,0),HC$1) -> 0 | HD12: =INDEX($E$11:$ED$150,MATCH($FV12,$A$11:$A$150,0),HD$1) -> 0 | HE12: =INDEX($E$11:$ED$150,MATCH($FV12,$A$11:$A$150,0),HE$1) -> 0 | HF12: =INDEX($E$11:$ED$150,MATCH($FV12,$A$11:$A$150,0),HF$1) -> 0 | HG12: =INDEX($E$11:$ED$150,MATCH($FV12,$A$11:$A$150,0),HG$1) -> 0 | HH12: =INDEX($E$11:$ED$150,MATCH($FV12,$A$11:$A$150,0),HH$1) -> 0 | HI12: =INDEX($E$11:$ED$150,MATCH($FV12,$A$11:$A$150,0),HI$1) -> 0 | HJ12: =INDEX($E$11:$ED$150,MATCH($FV12,$A$11:$A$150,0),HJ$1) -> 0 | HK12: =INDEX($E$11:$ED$150,MATCH($FV12,$A$11:$A$150,0),HK$1) -> 0 | HL12: =INDEX($E$11:$ED$150,MATCH($FV12,$A$11:$A$150,0),HL$1) -> 0 | HM12: =INDEX($E$11:$ED$150,MATCH($FV12,$A$11:$A$150,0),HM$1) -> 0 | HN12: =INDEX($E$11:$ED$150,MATCH($FV12,$A$11:$A$150,0),HN$1) -> 0 | HO12: =INDEX($E$11:$ED$150,MATCH($FV12,$A$11:$A$150,0),HO$1) -> 0 | HP12: =INDEX($E$11:$ED$150,MATCH($FV12,$A$11:$A$150,0),HP$1) -> 0 | HQ12: =INDEX($E$11:$ED$150,MATCH($FV12,$A$11:$A$150,0),HQ$1) -> 0 | HR12: =INDEX($E$11:$ED$150,MATCH($FV12,$A$11:$A$150,0),HR$1) -> 0 | HS12: =INDEX($E$11:$ED$150,MATCH($FV12,$A$11:$A$150,0),HS$1) -> 0 | HT12: =INDEX($E$11:$ED$150,MATCH($FV12,$A$11:$A$150,0),HT$1) -> 0 | HU12: =INDEX($E$11:$ED$150,MATCH($FV12,$A$11:$A$150,0),HU$1) -> 0 | HV12: =INDEX($E$11:$ED$150,MATCH($FV12,$A$11:$A$150,0),HV$1) -> 0 | HW12: =INDEX($E$11:$ED$150,MATCH($FV12,$A$11:$A$150,0),HW$1) -> 0 | HX12: =INDEX($E$11:$ED$150,MATCH($FV12,$A$11:$A$150,0),HX$1) -> 0 | HY12: =INDEX($E$11:$ED$150,MATCH($FV12,$A$11:$A$150,0),HY$1) -> 0 | HZ12: =INDEX($E$11:$ED$150,MATCH($FV12,$A$11:$A$150,0),HZ$1) -> 0 | IA12: =INDEX($E$11:$ED$150,MATCH($FV12,$A$11:$A$150,0),IA$1) -> 0 | IB12: =INDEX($E$11:$ED$150,MATCH($FV12,$A$11:$A$150,0),IB$1) -> 0 | IC12: =INDEX($E$11:$ED$150,MATCH($FV12,$A$11:$A$150,0),IC$1) -> 0 | ID12: =INDEX($E$11:$ED$150,MATCH($FV12,$A$11:$A$150,0),ID$1) -> 0 | IE12: =INDEX($E$11:$ED$150,MATCH($FV12,$A$11:$A$150,0),IE$1) -> 0 | IF12: =INDEX($E$11:$ED$150,MATCH($FV12,$A$11:$A$150,0),IF$1) -> 0 | IG12: =INDEX($E$11:$ED$150,MATCH($FV12,$A$11:$A$150,0),IG$1) -> 0 | IH12: =INDEX($E$11:$ED$150,MATCH($FV12,$A$11:$A$150,0),IH$1) -> 0 | II12: =INDEX($E$11:$ED$150,MATCH($FV12,$A$11:$A$150,0),II$1) -> 0 | IJ12: =INDEX($E$11:$ED$150,MATCH($FV12,$A$11:$A$150,0),IJ$1) -> 0 | IK12: =INDEX($E$11:$ED$150,MATCH($FV12,$A$11:$A$150,0),IK$1) -> 0 | IL12: =INDEX($E$11:$ED$150,MATCH($FV12,$A$11:$A$150,0),IL$1) -> 0 | IM12: =INDEX($E$11:$ED$150,MATCH($FV12,$A$11:$A$150,0),IM$1) -> 0 | IN12: =INDEX($E$11:$ED$150,MATCH($FV12,$A$11:$A$150,0),IN$1) -> 0 | IO12: =INDEX($E$11:$ED$150,MATCH($FV12,$A$11:$A$150,0),IO$1) -> 0 | IP12: =INDEX($E$11:$ED$150,MATCH($FV12,$A$11:$A$150,0),IP$1) -> 0 | IQ12: =INDEX($E$11:$ED$150,MATCH($FV12,$A$11:$A$150,0),IQ$1) -> 0 | IR12: =INDEX($E$11:$ED$150,MATCH($FV12,$A$11:$A$150,0),IR$1) -> 0 | IS12: =INDEX($E$11:$ED$150,MATCH($FV12,$A$11:$A$150,0),IS$1) -> 0 | IT12: =INDEX($E$11:$ED$150,MATCH($FV12,$A$11:$A$150,0),IT$1) -> 0 | IU12: =INDEX($E$11:$ED$150,MATCH($FV12,$A$11:$A$150,0),IU$1) -> 0 | IV12: =INDEX($E$11:$ED$150,MATCH($FV12,$A$11:$A$150,0),IV$1) -> 0 | IW12: =INDEX($E$11:$ED$150,MATCH($FV12,$A$11:$A$150,0),IW$1) -> 0 | IX12: =INDEX($E$11:$ED$150,MATCH($FV12,$A$11:$A$150,0),IX$1) -> 0 | IY12: =INDEX($E$11:$ED$150,MATCH($FV12,$A$11:$A$150,0),IY$1) -> 0 | IZ12: =INDEX($E$11:$ED$150,MATCH($FV12,$A$11:$A$150,0),IZ$1) -> 0 | JA12: =INDEX($E$11:$ED$150,MATCH($FV12,$A$11:$A$150,0),JA$1) -> 0 | JB12: =INDEX($E$11:$ED$150,MATCH($FV12,$A$11:$A$150,0),JB$1) -> 0 | JC12: =INDEX($E$11:$ED$150,MATCH($FV12,$A$11:$A$150,0),JC$1) -> 0 | JD12: =INDEX($E$11:$ED$150,MATCH($FV12,$A$11:$A$150,0),JD$1) -> 0 | JE12: =INDEX($E$11:$ED$150,MATCH($FV12,$A$11:$A$150,0),JE$1) -> 0 | JF12: =INDEX($E$11:$ED$150,MATCH($FV12,$A$11:$A$150,0),JF$1) -> 0 | JG12: =INDEX($E$11:$ED$150,MATCH($FV12,$A$11:$A$150,0),JG$1) -> 0 | JH12: =INDEX($E$11:$ED$150,MATCH($FV12,$A$11:$A$150,0),JH$1) -> 0 | JI12: =INDEX($E$11:$ED$150,MATCH($FV12,$A$11:$A$150,0),JI$1) -> 0 | JJ12: =INDEX($E$11:$ED$150,MATCH($FV12,$A$11:$A$150,0),JJ$1) -> 0 | JK12: =INDEX($E$11:$ED$150,MATCH($FV12,$A$11:$A$150,0),JK$1) -> 0 | JL12: =INDEX($E$11:$ED$150,MATCH($FV12,$A$11:$A$150,0),JL$1) -> 0 | JM12: =INDEX($E$11:$ED$150,MATCH($FV12,$A$11:$A$150,0),JM$1) -> 0 | JN12: =INDEX($E$11:$ED$150,MATCH($FV12,$A$11:$A$150,0),JN$1) -> 0 | JO12: =INDEX($E$11:$ED$150,MATCH($FV12,$A$11:$A$150,0),JO$1) -> 0 | JP12: =INDEX($E$11:$ED$150,MATCH($FV12,$A$11:$A$150,0),JP$1) -> 0 | JQ12: =INDEX($E$11:$ED$150,MATCH($FV12,$A$11:$A$150,0),JQ$1) -> 0 | JR12: =INDEX($E$11:$ED$150,MATCH($FV12,$A$11:$A$150,0),JR$1) -> 0 | JS12: =INDEX($E$11:$ED$150,MATCH($FV12,$A$11:$A$150,0),JS$1) -> 0 | JT12: =INDEX($E$11:$ED$150,MATCH($FV12,$A$11:$A$150,0),JT$1) -> 0 | JU12: =INDEX($E$11:$ED$150,MATCH($FV12,$A$11:$A$150,0),JU$1) -> 0 | JV12: =INDEX($E$11:$ED$150,MATCH($FV12,$A$11:$A$150,0),JV$1) -> 0 | JW12: =INDEX($E$11:$ED$150,MATCH($FV12,$A$11:$A$150,0),JW$1) -> 0 | JX12: =INDEX($E$11:$ED$150,MATCH($FV12,$A$11:$A$150,0),JX$1) -> 0 | JY12: =INDEX($E$11:$ED$150,MATCH($FV12,$A$11:$A$150,0),JY$1) -> 0 | JZ12: =INDEX($E$11:$ED$150,MATCH($FV12,$A$11:$A$150,0),JZ$1) -> 0 | KA12: =INDEX($E$11:$ED$150,MATCH($FV12,$A$11:$A$150,0),KA$1) -> 0 | KB12: =INDEX($E$11:$ED$150,MATCH($FV12,$A$11:$A$150,0),KB$1) -> 0 | KC12: =INDEX($E$11:$ED$150,MATCH($FV12,$A$11:$A$150,0),KC$1) -> 0 | KD12: =INDEX($E$11:$ED$150,MATCH($FV12,$A$11:$A$150,0),KD$1) -> 0 | KE12: =INDEX($E$11:$ED$150,MATCH($FV12,$A$11:$A$150,0),KE$1) -> 0 | KF12: =INDEX($E$11:$ED$150,MATCH($FV12,$A$11:$A$150,0),KF$1) -> 0 | KG12: =INDEX($E$11:$ED$150,MATCH($FV12,$A$11:$A$150,0),KG$1) -> 0 | KH12: =INDEX($E$11:$ED$150,MATCH($FV12,$A$11:$A$150,0),KH$1) -> 0 | KI12: =INDEX($E$11:$ED$150,MATCH($FV12,$A$11:$A$150,0),KI$1) -> 0 | KJ12: =INDEX($E$11:$ED$150,MATCH($FV12,$A$11:$A$150,0),KJ$1) -> 0 | KK12: =INDEX($E$11:$ED$150,MATCH($FV12,$A$11:$A$150,0),KK$1) -> 0 | KL12: =INDEX($E$11:$ED$150,MATCH($FV12,$A$11:$A$150,0),KL$1) -> 0 | KM12: =INDEX($E$11:$ED$150,MATCH($FV12,$A$11:$A$150,0),KM$1) -> 0 | KN12: =INDEX($E$11:$ED$150,MATCH($FV12,$A$11:$A$150,0),KN$1) -> 0 | KO12: =INDEX($E$11:$ED$150,MATCH($FV12,$A$11:$A$150,0),KO$1) -> 0 | KP12: =INDEX($E$11:$ED$150,MATCH($FV12,$A$11:$A$150,0),KP$1) -> 0 | KQ12: =INDEX($E$11:$ED$150,MATCH($FV12,$A$11:$A$150,0),KQ$1) -> 0 | KR12: =INDEX($E$11:$ED$150,MATCH($FV12,$A$11:$A$150,0),KR$1) -> 0 | KS12: =INDEX($E$11:$ED$150,MATCH($FV12,$A$11:$A$150,0),KS$1) -> 0 | KT12: =INDEX($E$11:$ED$150,MATCH($FV12,$A$11:$A$150,0),KT$1) -> 0 | KU12: =INDEX($E$11:$ED$150,MATCH($FV12,$A$11:$A$150,0),KU$1) -> 0 | KV12: =INDEX($E$11:$ED$150,MATCH($FV12,$A$11:$A$150,0),KV$1) -> 0
A13: Pavel PernekrProhry | B13: =CONCATENATE(C13," ",C14) -> Pavel Pernekr | C13: =Tabulka!B14 -> Pavel | D13: =Tabulka!C14 -> Prohry | AN13: 0 | AX13: 3 | BM13: 1 | CB13: 0 | CQ13: 0 | EE13: =IF(AND(SUM(Tabulka!$AG$13)>0.99,(SUM(Tabulka!$AH$17)<$EJ$1)),-50000+(SUM(E13:ED13)),IF(OR(SUM(Tabulka!$AG$13)<2),-90000,SUM(E13:ED13))) -> -49996 | EF13: =SUM(EE12-EE13) -> -3 | EG13: =SUM(E13:ED13) -> 4 | EL13: =Tabulka!B14 -> Pavel | FT13: 72 | FV13: Jarda KleinPočet šipek (průměr den) | FW13: =INDEX($E$11:$ED$150,MATCH($FV13,$A$11:$A$150,0),FW$1) -> 0 | FX13: =INDEX($E$11:$ED$150,MATCH($FV13,$A$11:$A$150,0),FX$1) -> 0 | FY13: =INDEX($E$11:$ED$150,MATCH($FV13,$A$11:$A$150,0),FY$1) -> 0 | FZ13: =INDEX($E$11:$ED$150,MATCH($FV13,$A$11:$A$150,0),FZ$1) -> 0 | GA13: =INDEX($E$11:$ED$150,MATCH($FV13,$A$11:$A$150,0),GA$1) -> 0 | GB13: =INDEX($E$11:$ED$150,MATCH($FV13,$A$11:$A$150,0),GB$1) -> 0 | GC13: =INDEX($E$11:$ED$150,MATCH($FV13,$A$11:$A$150,0),GC$1) -> 0 | GD13: =INDEX($E$11:$ED$150,MATCH($FV13,$A$11:$A$150,0),GD$1) -> 0 | GE13: =INDEX($E$11:$ED$150,MATCH($FV13,$A$11:$A$150,0),GE$1) -> 0 | GF13: =INDEX($E$11:$ED$150,MATCH($FV13,$A$11:$A$150,0),GF$1) -> 0 | GG13: =INDEX($E$11:$ED$150,MATCH($FV13,$A$11:$A$150,0),GG$1) -> 0 | GH13: =INDEX($E$11:$ED$150,MATCH($FV13,$A$11:$A$150,0),GH$1) -> 0 | GI13: =INDEX($E$11:$ED$150,MATCH($FV13,$A$11:$A$150,0),GI$1) -> 0 | GJ13: =INDEX($E$11:$ED$150,MATCH($FV13,$A$11:$A$150,0),GJ$1) -> 0 | GK13: =INDEX($E$11:$ED$150,MATCH($FV13,$A$11:$A$150,0),GK$1) -> 0 | GL13: =INDEX($E$11:$ED$150,MATCH($FV13,$A$11:$A$150,0),GL$1) -> 0 | GM13: =INDEX($E$11:$ED$150,MATCH($FV13,$A$11:$A$150,0),GM$1) -> 0 | GN13: =INDEX($E$11:$ED$150,MATCH($FV13,$A$11:$A$150,0),GN$1) -> 0 | GO13: =INDEX($E$11:$ED$150,MATCH($FV13,$A$11:$A$150,0),GO$1) -> 0 | GP13: =INDEX($E$11:$ED$150,MATCH($FV13,$A$11:$A$150,0),GP$1) -> 0 | GQ13: =INDEX($E$11:$ED$150,MATCH($FV13,$A$11:$A$150,0),GQ$1) -> 0 | GR13: =INDEX($E$11:$ED$150,MATCH($FV13,$A$11:$A$150,0),GR$1) -> 0 | GS13: =INDEX($E$11:$ED$150,MATCH($FV13,$A$11:$A$150,0),GS$1) -> 0 | GT13: =INDEX($E$11:$ED$150,MATCH($FV13,$A$11:$A$150,0),GT$1) -> 0 | GU13: =INDEX($E$11:$ED$150,MATCH($FV13,$A$11:$A$150,0),GU$1) -> 0 | GV13: =INDEX($E$11:$ED$150,MATCH($FV13,$A$11:$A$150,0),GV$1) -> 0 | GW13: =INDEX($E$11:$ED$150,MATCH($FV13,$A$11:$A$150,0),GW$1) -> 0 | GX13: =INDEX($E$11:$ED$150,MATCH($FV13,$A$11:$A$150,0),GX$1) -> 0 | GY13: =INDEX($E$11:$ED$150,MATCH($FV13,$A$11:$A$150,0),GY$1) -> 0 | GZ13: =INDEX($E$11:$ED$150,MATCH($FV13,$A$11:$A$150,0),GZ$1) -> 0 | HA13: =INDEX($E$11:$ED$150,MATCH($FV13,$A$11:$A$150,0),HA$1) -> 0 | HB13: =INDEX($E$11:$ED$150,MATCH($FV13,$A$11:$A$150,0),HB$1) -> 0 | HC13: =INDEX($E$11:$ED$150,MATCH($FV13,$A$11:$A$150,0),HC$1) -> 0 | HD13: =INDEX($E$11:$ED$150,MATCH($FV13,$A$11:$A$150,0),HD$1) -> 0 | HE13: =INDEX($E$11:$ED$150,MATCH($FV13,$A$11:$A$150,0),HE$1) -> 0 | HF13: =INDEX($E$11:$ED$150,MATCH($FV13,$A$11:$A$150,0),HF$1) -> 0 | HG13: =INDEX($E$11:$ED$150,MATCH($FV13,$A$11:$A$150,0),HG$1) -> 0 | HH13: =INDEX($E$11:$ED$150,MATCH($FV13,$A$11:$A$150,0),HH$1) -> 0 | HI13: =INDEX($E$11:$ED$150,MATCH($FV13,$A$11:$A$150,0),HI$1) -> 0 | HJ13: =INDEX($E$11:$ED$150,MATCH($FV13,$A$11:$A$150,0),HJ$1) -> 0 | HK13: =INDEX($E$11:$ED$150,MATCH($FV13,$A$11:$A$150,0),HK$1) -> 0 | HL13: =INDEX($E$11:$ED$150,MATCH($FV13,$A$11:$A$150,0),HL$1) -> 0 | HM13: =INDEX($E$11:$ED$150,MATCH($FV13,$A$11:$A$150,0),HM$1) -> 0 | HN13: =INDEX($E$11:$ED$150,MATCH($FV13,$A$11:$A$150,0),HN$1) -> 0 | HO13: =INDEX($E$11:$ED$150,MATCH($FV13,$A$11:$A$150,0),HO$1) -> 0 | HP13: =INDEX($E$11:$ED$150,MATCH($FV13,$A$11:$A$150,0),HP$1) -> 0 | HQ13: =INDEX($E$11:$ED$150,MATCH($FV13,$A$11:$A$150,0),HQ$1) -> 0 | HR13: =INDEX($E$11:$ED$150,MATCH($FV13,$A$11:$A$150,0),HR$1) -> 0 | HS13: =INDEX($E$11:$ED$150,MATCH($FV13,$A$11:$A$150,0),HS$1) -> 0 | HT13: =INDEX($E$11:$ED$150,MATCH($FV13,$A$11:$A$150,0),HT$1) -> 0 | HU13: =INDEX($E$11:$ED$150,MATCH($FV13,$A$11:$A$150,0),HU$1) -> 0 | HV13: =INDEX($E$11:$ED$150,MATCH($FV13,$A$11:$A$150,0),HV$1) -> 0 | HW13: =INDEX($E$11:$ED$150,MATCH($FV13,$A$11:$A$150,0),HW$1) -> 0 | HX13: =INDEX($E$11:$ED$150,MATCH($FV13,$A$11:$A$150,0),HX$1) -> 0 | HY13: =INDEX($E$11:$ED$150,MATCH($FV13,$A$11:$A$150,0),HY$1) -> 0 | HZ13: =INDEX($E$11:$ED$150,MATCH($FV13,$A$11:$A$150,0),HZ$1) -> 0 | IA13: =INDEX($E$11:$ED$150,MATCH($FV13,$A$11:$A$150,0),IA$1) -> 0 | IB13: =INDEX($E$11:$ED$150,MATCH($FV13,$A$11:$A$150,0),IB$1) -> 0 | IC13: =INDEX($E$11:$ED$150,MATCH($FV13,$A$11:$A$150,0),IC$1) -> 0 | ID13: =INDEX($E$11:$ED$150,MATCH($FV13,$A$11:$A$150,0),ID$1) -> 0 | IE13: =INDEX($E$11:$ED$150,MATCH($FV13,$A$11:$A$150,0),IE$1) -> 0 | IF13: =INDEX($E$11:$ED$150,MATCH($FV13,$A$11:$A$150,0),IF$1) -> 0 | IG13: =INDEX($E$11:$ED$150,MATCH($FV13,$A$11:$A$150,0),IG$1) -> 0 | IH13: =INDEX($E$11:$ED$150,MATCH($FV13,$A$11:$A$150,0),IH$1) -> 0 | II13: =INDEX($E$11:$ED$150,MATCH($FV13,$A$11:$A$150,0),II$1) -> 0 | IJ13: =INDEX($E$11:$ED$150,MATCH($FV13,$A$11:$A$150,0),IJ$1) -> 0 | IK13: =INDEX($E$11:$ED$150,MATCH($FV13,$A$11:$A$150,0),IK$1) -> 0 | IL13: =INDEX($E$11:$ED$150,MATCH($FV13,$A$11:$A$150,0),IL$1) -> 0 | IM13: =INDEX($E$11:$ED$150,MATCH($FV13,$A$11:$A$150,0),IM$1) -> 0 | IN13: =INDEX($E$11:$ED$150,MATCH($FV13,$A$11:$A$150,0),IN$1) -> 0 | IO13: =INDEX($E$11:$ED$150,MATCH($FV13,$A$11:$A$150,0),IO$1) -> 0 | IP13: =INDEX($E$11:$ED$150,MATCH($FV13,$A$11:$A$150,0),IP$1) -> 0 | IQ13: =INDEX($E$11:$ED$150,MATCH($FV13,$A$11:$A$150,0),IQ$1) -> 0 | IR13: =INDEX($E$11:$ED$150,MATCH($FV13,$A$11:$A$150,0),IR$1) -> 0 | IS13: =INDEX($E$11:$ED$150,MATCH($FV13,$A$11:$A$150,0),IS$1) -> 0 | IT13: =INDEX($E$11:$ED$150,MATCH($FV13,$A$11:$A$150,0),IT$1) -> 0 | IU13: =INDEX($E$11:$ED$150,MATCH($FV13,$A$11:$A$150,0),IU$1) -> 0 | IV13: =INDEX($E$11:$ED$150,MATCH($FV13,$A$11:$A$150,0),IV$1) -> 0 | IW13: =INDEX($E$11:$ED$150,MATCH($FV13,$A$11:$A$150,0),IW$1) -> 0 | IX13: =INDEX($E$11:$ED$150,MATCH($FV13,$A$11:$A$150,0),IX$1) -> 0 | IY13: =INDEX($E$11:$ED$150,MATCH($FV13,$A$11:$A$150,0),IY$1) -> 0 | IZ13: =INDEX($E$11:$ED$150,MATCH($FV13,$A$11:$A$150,0),IZ$1) -> 0 | JA13: =INDEX($E$11:$ED$150,MATCH($FV13,$A$11:$A$150,0),JA$1) -> 0 | JB13: =INDEX($E$11:$ED$150,MATCH($FV13,$A$11:$A$150,0),JB$1) -> 0 | JC13: =INDEX($E$11:$ED$150,MATCH($FV13,$A$11:$A$150,0),JC$1) -> 0 | JD13: =INDEX($E$11:$ED$150,MATCH($FV13,$A$11:$A$150,0),JD$1) -> 0 | JE13: =INDEX($E$11:$ED$150,MATCH($FV13,$A$11:$A$150,0),JE$1) -> 0 | JF13: =INDEX($E$11:$ED$150,MATCH($FV13,$A$11:$A$150,0),JF$1) -> 0 | JG13: =INDEX($E$11:$ED$150,MATCH($FV13,$A$11:$A$150,0),JG$1) -> 0 | JH13: =INDEX($E$11:$ED$150,MATCH($FV13,$A$11:$A$150,0),JH$1) -> 0 | JI13: =INDEX($E$11:$ED$150,MATCH($FV13,$A$11:$A$150,0),JI$1) -> 0 | JJ13: =INDEX($E$11:$ED$150,MATCH($FV13,$A$11:$A$150,0),JJ$1) -> 32 | JK13: =INDEX($E$11:$ED$150,MATCH($FV13,$A$11:$A$150,0),JK$1) -> 0 | JL13: =INDEX($E$11:$ED$150,MATCH($FV13,$A$11:$A$150,0),JL$1) -> 0 | JM13: =INDEX($E$11:$ED$150,MATCH($FV13,$A$11:$A$150,0),JM$1) -> 0 | JN13: =INDEX($E$11:$ED$150,MATCH($FV13,$A$11:$A$150,0),JN$1) -> 34 | JO13: =INDEX($E$11:$ED$150,MATCH($FV13,$A$11:$A$150,0),JO$1) -> 0 | JP13: =INDEX($E$11:$ED$150,MATCH($FV13,$A$11:$A$150,0),JP$1) -> 34 | JQ13: =INDEX($E$11:$ED$150,MATCH($FV13,$A$11:$A$150,0),JQ$1) -> 0 | JR13: =INDEX($E$11:$ED$150,MATCH($FV13,$A$11:$A$150,0),JR$1) -> 0 | JS13: =INDEX($E$11:$ED$150,MATCH($FV13,$A$11:$A$150,0),JS$1) -> 0 | JT13: =INDEX($E$11:$ED$150,MATCH($FV13,$A$11:$A$150,0),JT$1) -> 32 | JU13: =INDEX($E$11:$ED$150,MATCH($FV13,$A$11:$A$150,0),JU$1) -> 0 | JV13: =INDEX($E$11:$ED$150,MATCH($FV13,$A$11:$A$150,0),JV$1) -> 33 | JW13: =INDEX($E$11:$ED$150,MATCH($FV13,$A$11:$A$150,0),JW$1) -> 0 | JX13: =INDEX($E$11:$ED$150,MATCH($FV13,$A$11:$A$150,0),JX$1) -> 0 | JY13: =INDEX($E$11:$ED$150,MATCH($FV13,$A$11:$A$150,0),JY$1) -> 0 | JZ13: =INDEX($E$11:$ED$150,MATCH($FV13,$A$11:$A$150,0),JZ$1) -> 0 | KA13: =INDEX($E$11:$ED$150,MATCH($FV13,$A$11:$A$150,0),KA$1) -> 0 | KB13: =INDEX($E$11:$ED$150,MATCH($FV13,$A$11:$A$150,0),KB$1) -> 0 | KC13: =INDEX($E$11:$ED$150,MATCH($FV13,$A$11:$A$150,0),KC$1) -> 0 | KD13: =INDEX($E$11:$ED$150,MATCH($FV13,$A$11:$A$150,0),KD$1) -> 32 | KE13: =INDEX($E$11:$ED$150,MATCH($FV13,$A$11:$A$150,0),KE$1) -> 0 | KF13: =INDEX($E$11:$ED$150,MATCH($FV13,$A$11:$A$150,0),KF$1) -> 0 | KG13: =INDEX($E$11:$ED$150,MATCH($FV13,$A$11:$A$150,0),KG$1) -> 0 | KH13: =INDEX($E$11:$ED$150,MATCH($FV13,$A$11:$A$150,0),KH$1) -> 0 | KI13: =INDEX($E$11:$ED$150,MATCH($FV13,$A$11:$A$150,0),KI$1) -> 0 | KJ13: =INDEX($E$11:$ED$150,MATCH($FV13,$A$11:$A$150,0),KJ$1) -> 0 | KK13: =INDEX($E$11:$ED$150,MATCH($FV13,$A$11:$A$150,0),KK$1) -> 0 | KL13: =INDEX($E$11:$ED$150,MATCH($FV13,$A$11:$A$150,0),KL$1) -> 0 | KM13: =INDEX($E$11:$ED$150,MATCH($FV13,$A$11:$A$150,0),KM$1) -> 0 | KN13: =INDEX($E$11:$ED$150,MATCH($FV13,$A$11:$A$150,0),KN$1) -> 0 | KO13: =INDEX($E$11:$ED$150,MATCH($FV13,$A$11:$A$150,0),KO$1) -> 0 | KP13: =INDEX($E$11:$ED$150,MATCH($FV13,$A$11:$A$150,0),KP$1) -> 0 | KQ13: =INDEX($E$11:$ED$150,MATCH($FV13,$A$11:$A$150,0),KQ$1) -> 0 | KR13: =INDEX($E$11:$ED$150,MATCH($FV13,$A$11:$A$150,0),KR$1) -> 0 | KS13: =INDEX($E$11:$ED$150,MATCH($FV13,$A$11:$A$150,0),KS$1) -> 0 | KT13: =INDEX($E$11:$ED$150,MATCH($FV13,$A$11:$A$150,0),KT$1) -> 0 | KU13: =INDEX($E$11:$ED$150,MATCH($FV13,$A$11:$A$150,0),KU$1) -> 0 | KV13: =INDEX($E$11:$ED$150,MATCH($FV13,$A$11:$A$150,0),KV$1) -> 0
A14: Pavel PernekrPlaceno panáků | B14: =CONCATENATE(C13," ",C14) -> Pavel Pernekr | C14: =Tabulka!B15 -> Pernekr | D14: =Tabulka!C15 -> Placeno panáků | AN14: 0 | AX14: 5 | BM14: 3 | CB14: 0 | CQ14: 0 | EE14: =IF(AND(SUM(Tabulka!$AG$13)>0.99,(SUM(Tabulka!$AH$17)<$EJ$1)),-50000+(SUM(E14:ED14)),IF(OR(SUM(Tabulka!$AG$13)<2),-90000,SUM(E14:ED14))) -> -49992 | EG14: =SUM(E14:ED14)+0.2 -> 8.2 | EL14: =Tabulka!B15 -> Pernekr | FT14: 80 | FV14: Petr ŠumPočet šipek (průměr den) | FW14: =INDEX($E$11:$ED$150,MATCH($FV14,$A$11:$A$150,0),FW$1) -> 0 | FX14: =INDEX($E$11:$ED$150,MATCH($FV14,$A$11:$A$150,0),FX$1) -> 0 | FY14: =INDEX($E$11:$ED$150,MATCH($FV14,$A$11:$A$150,0),FY$1) -> 0 | FZ14: =INDEX($E$11:$ED$150,MATCH($FV14,$A$11:$A$150,0),FZ$1) -> 0 | GA14: =INDEX($E$11:$ED$150,MATCH($FV14,$A$11:$A$150,0),GA$1) -> 0 | GB14: =INDEX($E$11:$ED$150,MATCH($FV14,$A$11:$A$150,0),GB$1) -> 0 | GC14: =INDEX($E$11:$ED$150,MATCH($FV14,$A$11:$A$150,0),GC$1) -> 0 | GD14: =INDEX($E$11:$ED$150,MATCH($FV14,$A$11:$A$150,0),GD$1) -> 0 | GE14: =INDEX($E$11:$ED$150,MATCH($FV14,$A$11:$A$150,0),GE$1) -> 0 | GF14: =INDEX($E$11:$ED$150,MATCH($FV14,$A$11:$A$150,0),GF$1) -> 0 | GG14: =INDEX($E$11:$ED$150,MATCH($FV14,$A$11:$A$150,0),GG$1) -> 0 | GH14: =INDEX($E$11:$ED$150,MATCH($FV14,$A$11:$A$150,0),GH$1) -> 0 | GI14: =INDEX($E$11:$ED$150,MATCH($FV14,$A$11:$A$150,0),GI$1) -> 0 | GJ14: =INDEX($E$11:$ED$150,MATCH($FV14,$A$11:$A$150,0),GJ$1) -> 0 | GK14: =INDEX($E$11:$ED$150,MATCH($FV14,$A$11:$A$150,0),GK$1) -> 0 | GL14: =INDEX($E$11:$ED$150,MATCH($FV14,$A$11:$A$150,0),GL$1) -> 0 | GM14: =INDEX($E$11:$ED$150,MATCH($FV14,$A$11:$A$150,0),GM$1) -> 0 | GN14: =INDEX($E$11:$ED$150,MATCH($FV14,$A$11:$A$150,0),GN$1) -> 0 | GO14: =INDEX($E$11:$ED$150,MATCH($FV14,$A$11:$A$150,0),GO$1) -> 0 | GP14: =INDEX($E$11:$ED$150,MATCH($FV14,$A$11:$A$150,0),GP$1) -> 0 | GQ14: =INDEX($E$11:$ED$150,MATCH($FV14,$A$11:$A$150,0),GQ$1) -> 0 | GR14: =INDEX($E$11:$ED$150,MATCH($FV14,$A$11:$A$150,0),GR$1) -> 0 | GS14: =INDEX($E$11:$ED$150,MATCH($FV14,$A$11:$A$150,0),GS$1) -> 0 | GT14: =INDEX($E$11:$ED$150,MATCH($FV14,$A$11:$A$150,0),GT$1) -> 0 | GU14: =INDEX($E$11:$ED$150,MATCH($FV14,$A$11:$A$150,0),GU$1) -> 0 | GV14: =INDEX($E$11:$ED$150,MATCH($FV14,$A$11:$A$150,0),GV$1) -> 0 | GW14: =INDEX($E$11:$ED$150,MATCH($FV14,$A$11:$A$150,0),GW$1) -> 0 | GX14: =INDEX($E$11:$ED$150,MATCH($FV14,$A$11:$A$150,0),GX$1) -> 0 | GY14: =INDEX($E$11:$ED$150,MATCH($FV14,$A$11:$A$150,0),GY$1) -> 0 | GZ14: =INDEX($E$11:$ED$150,MATCH($FV14,$A$11:$A$150,0),GZ$1) -> 0 | HA14: =INDEX($E$11:$ED$150,MATCH($FV14,$A$11:$A$150,0),HA$1) -> 0 | HB14: =INDEX($E$11:$ED$150,MATCH($FV14,$A$11:$A$150,0),HB$1) -> 0 | HC14: =INDEX($E$11:$ED$150,MATCH($FV14,$A$11:$A$150,0),HC$1) -> 0 | HD14: =INDEX($E$11:$ED$150,MATCH($FV14,$A$11:$A$150,0),HD$1) -> 0 | HE14: =INDEX($E$11:$ED$150,MATCH($FV14,$A$11:$A$150,0),HE$1) -> 0 | HF14: =INDEX($E$11:$ED$150,MATCH($FV14,$A$11:$A$150,0),HF$1) -> 0 | HG14: =INDEX($E$11:$ED$150,MATCH($FV14,$A$11:$A$150,0),HG$1) -> 0 | HH14: =INDEX($E$11:$ED$150,MATCH($FV14,$A$11:$A$150,0),HH$1) -> 0 | HI14: =INDEX($E$11:$ED$150,MATCH($FV14,$A$11:$A$150,0),HI$1) -> 0 | HJ14: =INDEX($E$11:$ED$150,MATCH($FV14,$A$11:$A$150,0),HJ$1) -> 0 | HK14: =INDEX($E$11:$ED$150,MATCH($FV14,$A$11:$A$150,0),HK$1) -> 0 | HL14: =INDEX($E$11:$ED$150,MATCH($FV14,$A$11:$A$150,0),HL$1) -> 0 | HM14: =INDEX($E$11:$ED$150,MATCH($FV14,$A$11:$A$150,0),HM$1) -> 0 | HN14: =INDEX($E$11:$ED$150,MATCH($FV14,$A$11:$A$150,0),HN$1) -> 0 | HO14: =INDEX($E$11:$ED$150,MATCH($FV14,$A$11:$A$150,0),HO$1) -> 0 | HP14: =INDEX($E$11:$ED$150,MATCH($FV14,$A$11:$A$150,0),HP$1) -> 0 | HQ14: =INDEX($E$11:$ED$150,MATCH($FV14,$A$11:$A$150,0),HQ$1) -> 0 | HR14: =INDEX($E$11:$ED$150,MATCH($FV14,$A$11:$A$150,0),HR$1) -> 0 | HS14: =INDEX($E$11:$ED$150,MATCH($FV14,$A$11:$A$150,0),HS$1) -> 0 | HT14: =INDEX($E$11:$ED$150,MATCH($FV14,$A$11:$A$150,0),HT$1) -> 0 | HU14: =INDEX($E$11:$ED$150,MATCH($FV14,$A$11:$A$150,0),HU$1) -> 0 | HV14: =INDEX($E$11:$ED$150,MATCH($FV14,$A$11:$A$150,0),HV$1) -> 0 | HW14: =INDEX($E$11:$ED$150,MATCH($FV14,$A$11:$A$150,0),HW$1) -> 0 | HX14: =INDEX($E$11:$ED$150,MATCH($FV14,$A$11:$A$150,0),HX$1) -> 0 | HY14: =INDEX($E$11:$ED$150,MATCH($FV14,$A$11:$A$150,0),HY$1) -> 0 | HZ14: =INDEX($E$11:$ED$150,MATCH($FV14,$A$11:$A$150,0),HZ$1) -> 0 | IA14: =INDEX($E$11:$ED$150,MATCH($FV14,$A$11:$A$150,0),IA$1) -> 0 | IB14: =INDEX($E$11:$ED$150,MATCH($FV14,$A$11:$A$150,0),IB$1) -> 0 | IC14: =INDEX($E$11:$ED$150,MATCH($FV14,$A$11:$A$150,0),IC$1) -> 0 | ID14: =INDEX($E$11:$ED$150,MATCH($FV14,$A$11:$A$150,0),ID$1) -> 0 | IE14: =INDEX($E$11:$ED$150,MATCH($FV14,$A$11:$A$150,0),IE$1) -> 0 | IF14: =INDEX($E$11:$ED$150,MATCH($FV14,$A$11:$A$150,0),IF$1) -> 0 | IG14: =INDEX($E$11:$ED$150,MATCH($FV14,$A$11:$A$150,0),IG$1) -> 0 | IH14: =INDEX($E$11:$ED$150,MATCH($FV14,$A$11:$A$150,0),IH$1) -> 0 | II14: =INDEX($E$11:$ED$150,MATCH($FV14,$A$11:$A$150,0),II$1) -> 0 | IJ14: =INDEX($E$11:$ED$150,MATCH($FV14,$A$11:$A$150,0),IJ$1) -> 0 | IK14: =INDEX($E$11:$ED$150,MATCH($FV14,$A$11:$A$150,0),IK$1) -> 0 | IL14: =INDEX($E$11:$ED$150,MATCH($FV14,$A$11:$A$150,0),IL$1) -> 0 | IM14: =INDEX($E$11:$ED$150,MATCH($FV14,$A$11:$A$150,0),IM$1) -> 0 | IN14: =INDEX($E$11:$ED$150,MATCH($FV14,$A$11:$A$150,0),IN$1) -> 0 | IO14: =INDEX($E$11:$ED$150,MATCH($FV14,$A$11:$A$150,0),IO$1) -> 0 | IP14: =INDEX($E$11:$ED$150,MATCH($FV14,$A$11:$A$150,0),IP$1) -> 0 | IQ14: =INDEX($E$11:$ED$150,MATCH($FV14,$A$11:$A$150,0),IQ$1) -> 0 | IR14: =INDEX($E$11:$ED$150,MATCH($FV14,$A$11:$A$150,0),IR$1) -> 0 | IS14: =INDEX($E$11:$ED$150,MATCH($FV14,$A$11:$A$150,0),IS$1) -> 0 | IT14: =INDEX($E$11:$ED$150,MATCH($FV14,$A$11:$A$150,0),IT$1) -> 0 | IU14: =INDEX($E$11:$ED$150,MATCH($FV14,$A$11:$A$150,0),IU$1) -> 0 | IV14: =INDEX($E$11:$ED$150,MATCH($FV14,$A$11:$A$150,0),IV$1) -> 0 | IW14: =INDEX($E$11:$ED$150,MATCH($FV14,$A$11:$A$150,0),IW$1) -> 0 | IX14: =INDEX($E$11:$ED$150,MATCH($FV14,$A$11:$A$150,0),IX$1) -> 0 | IY14: =INDEX($E$11:$ED$150,MATCH($FV14,$A$11:$A$150,0),IY$1) -> 0 | IZ14: =INDEX($E$11:$ED$150,MATCH($FV14,$A$11:$A$150,0),IZ$1) -> 0 | JA14: =INDEX($E$11:$ED$150,MATCH($FV14,$A$11:$A$150,0),JA$1) -> 0 | JB14: =INDEX($E$11:$ED$150,MATCH($FV14,$A$11:$A$150,0),JB$1) -> 0 | JC14: =INDEX($E$11:$ED$150,MATCH($FV14,$A$11:$A$150,0),JC$1) -> 0 | JD14: =INDEX($E$11:$ED$150,MATCH($FV14,$A$11:$A$150,0),JD$1) -> 0 | JE14: =INDEX($E$11:$ED$150,MATCH($FV14,$A$11:$A$150,0),JE$1) -> 0 | JF14: =INDEX($E$11:$ED$150,MATCH($FV14,$A$11:$A$150,0),JF$1) -> 0 | JG14: =INDEX($E$11:$ED$150,MATCH($FV14,$A$11:$A$150,0),JG$1) -> 0 | JH14: =INDEX($E$11:$ED$150,MATCH($FV14,$A$11:$A$150,0),JH$1) -> 0 | JI14: =INDEX($E$11:$ED$150,MATCH($FV14,$A$11:$A$150,0),JI$1) -> 0 | JJ14: =INDEX($E$11:$ED$150,MATCH($FV14,$A$11:$A$150,0),JJ$1) -> 0 | JK14: =INDEX($E$11:$ED$150,MATCH($FV14,$A$11:$A$150,0),JK$1) -> 0 | JL14: =INDEX($E$11:$ED$150,MATCH($FV14,$A$11:$A$150,0),JL$1) -> 0 | JM14: =INDEX($E$11:$ED$150,MATCH($FV14,$A$11:$A$150,0),JM$1) -> 0 | JN14: =INDEX($E$11:$ED$150,MATCH($FV14,$A$11:$A$150,0),JN$1) -> 0 | JO14: =INDEX($E$11:$ED$150,MATCH($FV14,$A$11:$A$150,0),JO$1) -> 0 | JP14: =INDEX($E$11:$ED$150,MATCH($FV14,$A$11:$A$150,0),JP$1) -> 0 | JQ14: =INDEX($E$11:$ED$150,MATCH($FV14,$A$11:$A$150,0),JQ$1) -> 0 | JR14: =INDEX($E$11:$ED$150,MATCH($FV14,$A$11:$A$150,0),JR$1) -> 0 | JS14: =INDEX($E$11:$ED$150,MATCH($FV14,$A$11:$A$150,0),JS$1) -> 0 | JT14: =INDEX($E$11:$ED$150,MATCH($FV14,$A$11:$A$150,0),JT$1) -> 0 | JU14: =INDEX($E$11:$ED$150,MATCH($FV14,$A$11:$A$150,0),JU$1) -> 0 | JV14: =INDEX($E$11:$ED$150,MATCH($FV14,$A$11:$A$150,0),JV$1) -> 0 | JW14: =INDEX($E$11:$ED$150,MATCH($FV14,$A$11:$A$150,0),JW$1) -> 0 | JX14: =INDEX($E$11:$ED$150,MATCH($FV14,$A$11:$A$150,0),JX$1) -> 0 | JY14: =INDEX($E$11:$ED$150,MATCH($FV14,$A$11:$A$150,0),JY$1) -> 0 | JZ14: =INDEX($E$11:$ED$150,MATCH($FV14,$A$11:$A$150,0),JZ$1) -> 0 | KA14: =INDEX($E$11:$ED$150,MATCH($FV14,$A$11:$A$150,0),KA$1) -> 0 | KB14: =INDEX($E$11:$ED$150,MATCH($FV14,$A$11:$A$150,0),KB$1) -> 0 | KC14: =INDEX($E$11:$ED$150,MATCH($FV14,$A$11:$A$150,0),KC$1) -> 0 | KD14: =INDEX($E$11:$ED$150,MATCH($FV14,$A$11:$A$150,0),KD$1) -> 0 | KE14: =INDEX($E$11:$ED$150,MATCH($FV14,$A$11:$A$150,0),KE$1) -> 0 | KF14: =INDEX($E$11:$ED$150,MATCH($FV14,$A$11:$A$150,0),KF$1) -> 0 | KG14: =INDEX($E$11:$ED$150,MATCH($FV14,$A$11:$A$150,0),KG$1) -> 0 | KH14: =INDEX($E$11:$ED$150,MATCH($FV14,$A$11:$A$150,0),KH$1) -> 0 | KI14: =INDEX($E$11:$ED$150,MATCH($FV14,$A$11:$A$150,0),KI$1) -> 0 | KJ14: =INDEX($E$11:$ED$150,MATCH($FV14,$A$11:$A$150,0),KJ$1) -> 0 | KK14: =INDEX($E$11:$ED$150,MATCH($FV14,$A$11:$A$150,0),KK$1) -> 0 | KL14: =INDEX($E$11:$ED$150,MATCH($FV14,$A$11:$A$150,0),KL$1) -> 0 | KM14: =INDEX($E$11:$ED$150,MATCH($FV14,$A$11:$A$150,0),KM$1) -> 0 | KN14: =INDEX($E$11:$ED$150,MATCH($FV14,$A$11:$A$150,0),KN$1) -> 0 | KO14: =INDEX($E$11:$ED$150,MATCH($FV14,$A$11:$A$150,0),KO$1) -> 0 | KP14: =INDEX($E$11:$ED$150,MATCH($FV14,$A$11:$A$150,0),KP$1) -> 0 | KQ14: =INDEX($E$11:$ED$150,MATCH($FV14,$A$11:$A$150,0),KQ$1) -> 0 | KR14: =INDEX($E$11:$ED$150,MATCH($FV14,$A$11:$A$150,0),KR$1) -> 0 | KS14: =INDEX($E$11:$ED$150,MATCH($FV14,$A$11:$A$150,0),KS$1) -> 0 | KT14: =INDEX($E$11:$ED$150,MATCH($FV14,$A$11:$A$150,0),KT$1) -> 0 | KU14: =INDEX($E$11:$ED$150,MATCH($FV14,$A$11:$A$150,0),KU$1) -> 0 | KV14: =INDEX($E$11:$ED$150,MATCH($FV14,$A$11:$A$150,0),KV$1) -> 0
A15: Pavel PernekrPřehozy | B15: =CONCATENATE(C13," ",C14) -> Pavel Pernekr | C15: =Tabulka!B16 -> Pavel P | D15: =Tabulka!C16 -> Přehozy | AN15: 1 | AX15: 0 | BM15: 2 | CB15: 0 | CQ15: 2 | EE15: =IF(AND(SUM(Tabulka!$AG$13)>0.99,(SUM(Tabulka!$AH$17)<$EJ$1)),-50000+(SUM(E15:ED15)),IF(OR(SUM(Tabulka!$AG$13)<2),-90000,SUM(E15:ED15))) -> -49995 | EG15: =SUM(E15:ED15) -> 5 | EL15: =Tabulka!B16 -> Pavel P | FT15: 88 | FV15: Jiří FialaPočet šipek (průměr den) | FW15: =INDEX($E$11:$ED$150,MATCH($FV15,$A$11:$A$150,0),FW$1) -> 0 | FX15: =INDEX($E$11:$ED$150,MATCH($FV15,$A$11:$A$150,0),FX$1) -> 0 | FY15: =INDEX($E$11:$ED$150,MATCH($FV15,$A$11:$A$150,0),FY$1) -> 0 | FZ15: =INDEX($E$11:$ED$150,MATCH($FV15,$A$11:$A$150,0),FZ$1) -> 0 | GA15: =INDEX($E$11:$ED$150,MATCH($FV15,$A$11:$A$150,0),GA$1) -> 0 | GB15: =INDEX($E$11:$ED$150,MATCH($FV15,$A$11:$A$150,0),GB$1) -> 0 | GC15: =INDEX($E$11:$ED$150,MATCH($FV15,$A$11:$A$150,0),GC$1) -> 0 | GD15: =INDEX($E$11:$ED$150,MATCH($FV15,$A$11:$A$150,0),GD$1) -> 0 | GE15: =INDEX($E$11:$ED$150,MATCH($FV15,$A$11:$A$150,0),GE$1) -> 0 | GF15: =INDEX($E$11:$ED$150,MATCH($FV15,$A$11:$A$150,0),GF$1) -> 0 | GG15: =INDEX($E$11:$ED$150,MATCH($FV15,$A$11:$A$150,0),GG$1) -> 0 | GH15: =INDEX($E$11:$ED$150,MATCH($FV15,$A$11:$A$150,0),GH$1) -> 0 | GI15: =INDEX($E$11:$ED$150,MATCH($FV15,$A$11:$A$150,0),GI$1) -> 0 | GJ15: =INDEX($E$11:$ED$150,MATCH($FV15,$A$11:$A$150,0),GJ$1) -> 0 | GK15: =INDEX($E$11:$ED$150,MATCH($FV15,$A$11:$A$150,0),GK$1) -> 0 | GL15: =INDEX($E$11:$ED$150,MATCH($FV15,$A$11:$A$150,0),GL$1) -> 0 | GM15: =INDEX($E$11:$ED$150,MATCH($FV15,$A$11:$A$150,0),GM$1) -> 0 | GN15: =INDEX($E$11:$ED$150,MATCH($FV15,$A$11:$A$150,0),GN$1) -> 0 | GO15: =INDEX($E$11:$ED$150,MATCH($FV15,$A$11:$A$150,0),GO$1) -> 0 | GP15: =INDEX($E$11:$ED$150,MATCH($FV15,$A$11:$A$150,0),GP$1) -> 0 | GQ15: =INDEX($E$11:$ED$150,MATCH($FV15,$A$11:$A$150,0),GQ$1) -> 0 | GR15: =INDEX($E$11:$ED$150,MATCH($FV15,$A$11:$A$150,0),GR$1) -> 0 | GS15: =INDEX($E$11:$ED$150,MATCH($FV15,$A$11:$A$150,0),GS$1) -> 0 | GT15: =INDEX($E$11:$ED$150,MATCH($FV15,$A$11:$A$150,0),GT$1) -> 0 | GU15: =INDEX($E$11:$ED$150,MATCH($FV15,$A$11:$A$150,0),GU$1) -> 0 | GV15: =INDEX($E$11:$ED$150,MATCH($FV15,$A$11:$A$150,0),GV$1) -> 0 | GW15: =INDEX($E$11:$ED$150,MATCH($FV15,$A$11:$A$150,0),GW$1) -> 0 | GX15: =INDEX($E$11:$ED$150,MATCH($FV15,$A$11:$A$150,0),GX$1) -> 0 | GY15: =INDEX($E$11:$ED$150,MATCH($FV15,$A$11:$A$150,0),GY$1) -> 0 | GZ15: =INDEX($E$11:$ED$150,MATCH($FV15,$A$11:$A$150,0),GZ$1) -> 0 | HA15: =INDEX($E$11:$ED$150,MATCH($FV15,$A$11:$A$150,0),HA$1) -> 0 | HB15: =INDEX($E$11:$ED$150,MATCH($FV15,$A$11:$A$150,0),HB$1) -> 0 | HC15: =INDEX($E$11:$ED$150,MATCH($FV15,$A$11:$A$150,0),HC$1) -> 0 | HD15: =INDEX($E$11:$ED$150,MATCH($FV15,$A$11:$A$150,0),HD$1) -> 0 | HE15: =INDEX($E$11:$ED$150,MATCH($FV15,$A$11:$A$150,0),HE$1) -> 0 | HF15: =INDEX($E$11:$ED$150,MATCH($FV15,$A$11:$A$150,0),HF$1) -> 0 | HG15: =INDEX($E$11:$ED$150,MATCH($FV15,$A$11:$A$150,0),HG$1) -> 0 | HH15: =INDEX($E$11:$ED$150,MATCH($FV15,$A$11:$A$150,0),HH$1) -> 0 | HI15: =INDEX($E$11:$ED$150,MATCH($FV15,$A$11:$A$150,0),HI$1) -> 0 | HJ15: =INDEX($E$11:$ED$150,MATCH($FV15,$A$11:$A$150,0),HJ$1) -> 0 | HK15: =INDEX($E$11:$ED$150,MATCH($FV15,$A$11:$A$150,0),HK$1) -> 0 | HL15: =INDEX($E$11:$ED$150,MATCH($FV15,$A$11:$A$150,0),HL$1) -> 0 | HM15: =INDEX($E$11:$ED$150,MATCH($FV15,$A$11:$A$150,0),HM$1) -> 0 | HN15: =INDEX($E$11:$ED$150,MATCH($FV15,$A$11:$A$150,0),HN$1) -> 0 | HO15: =INDEX($E$11:$ED$150,MATCH($FV15,$A$11:$A$150,0),HO$1) -> 0 | HP15: =INDEX($E$11:$ED$150,MATCH($FV15,$A$11:$A$150,0),HP$1) -> 0 | HQ15: =INDEX($E$11:$ED$150,MATCH($FV15,$A$11:$A$150,0),HQ$1) -> 0 | HR15: =INDEX($E$11:$ED$150,MATCH($FV15,$A$11:$A$150,0),HR$1) -> 0 | HS15: =INDEX($E$11:$ED$150,MATCH($FV15,$A$11:$A$150,0),HS$1) -> 0 | HT15: =INDEX($E$11:$ED$150,MATCH($FV15,$A$11:$A$150,0),HT$1) -> 0 | HU15: =INDEX($E$11:$ED$150,MATCH($FV15,$A$11:$A$150,0),HU$1) -> 0 | HV15: =INDEX($E$11:$ED$150,MATCH($FV15,$A$11:$A$150,0),HV$1) -> 0 | HW15: =INDEX($E$11:$ED$150,MATCH($FV15,$A$11:$A$150,0),HW$1) -> 0 | HX15: =INDEX($E$11:$ED$150,MATCH($FV15,$A$11:$A$150,0),HX$1) -> 0 | HY15: =INDEX($E$11:$ED$150,MATCH($FV15,$A$11:$A$150,0),HY$1) -> 0 | HZ15: =INDEX($E$11:$ED$150,MATCH($FV15,$A$11:$A$150,0),HZ$1) -> 0 | IA15: =INDEX($E$11:$ED$150,MATCH($FV15,$A$11:$A$150,0),IA$1) -> 0 | IB15: =INDEX($E$11:$ED$150,MATCH($FV15,$A$11:$A$150,0),IB$1) -> 0 | IC15: =INDEX($E$11:$ED$150,MATCH($FV15,$A$11:$A$150,0),IC$1) -> 0 | ID15: =INDEX($E$11:$ED$150,MATCH($FV15,$A$11:$A$150,0),ID$1) -> 0 | IE15: =INDEX($E$11:$ED$150,MATCH($FV15,$A$11:$A$150,0),IE$1) -> 0 | IF15: =INDEX($E$11:$ED$150,MATCH($FV15,$A$11:$A$150,0),IF$1) -> 0 | IG15: =INDEX($E$11:$ED$150,MATCH($FV15,$A$11:$A$150,0),IG$1) -> 0 | IH15: =INDEX($E$11:$ED$150,MATCH($FV15,$A$11:$A$150,0),IH$1) -> 0 | II15: =INDEX($E$11:$ED$150,MATCH($FV15,$A$11:$A$150,0),II$1) -> 0 | IJ15: =INDEX($E$11:$ED$150,MATCH($FV15,$A$11:$A$150,0),IJ$1) -> 0 | IK15: =INDEX($E$11:$ED$150,MATCH($FV15,$A$11:$A$150,0),IK$1) -> 0 | IL15: =INDEX($E$11:$ED$150,MATCH($FV15,$A$11:$A$150,0),IL$1) -> 0 | IM15: =INDEX($E$11:$ED$150,MATCH($FV15,$A$11:$A$150,0),IM$1) -> 0 | IN15: =INDEX($E$11:$ED$150,MATCH($FV15,$A$11:$A$150,0),IN$1) -> 0 | IO15: =INDEX($E$11:$ED$150,MATCH($FV15,$A$11:$A$150,0),IO$1) -> 0 | IP15: =INDEX($E$11:$ED$150,MATCH($FV15,$A$11:$A$150,0),IP$1) -> 0 | IQ15: =INDEX($E$11:$ED$150,MATCH($FV15,$A$11:$A$150,0),IQ$1) -> 0 | IR15: =INDEX($E$11:$ED$150,MATCH($FV15,$A$11:$A$150,0),IR$1) -> 0 | IS15: =INDEX($E$11:$ED$150,MATCH($FV15,$A$11:$A$150,0),IS$1) -> 0 | IT15: =INDEX($E$11:$ED$150,MATCH($FV15,$A$11:$A$150,0),IT$1) -> 0 | IU15: =INDEX($E$11:$ED$150,MATCH($FV15,$A$11:$A$150,0),IU$1) -> 0 | IV15: =INDEX($E$11:$ED$150,MATCH($FV15,$A$11:$A$150,0),IV$1) -> 0 | IW15: =INDEX($E$11:$ED$150,MATCH($FV15,$A$11:$A$150,0),IW$1) -> 0 | IX15: =INDEX($E$11:$ED$150,MATCH($FV15,$A$11:$A$150,0),IX$1) -> 0 | IY15: =INDEX($E$11:$ED$150,MATCH($FV15,$A$11:$A$150,0),IY$1) -> 0 | IZ15: =INDEX($E$11:$ED$150,MATCH($FV15,$A$11:$A$150,0),IZ$1) -> 0 | JA15: =INDEX($E$11:$ED$150,MATCH($FV15,$A$11:$A$150,0),JA$1) -> 0 | JB15: =INDEX($E$11:$ED$150,MATCH($FV15,$A$11:$A$150,0),JB$1) -> 0 | JC15: =INDEX($E$11:$ED$150,MATCH($FV15,$A$11:$A$150,0),JC$1) -> 0 | JD15: =INDEX($E$11:$ED$150,MATCH($FV15,$A$11:$A$150,0),JD$1) -> 0 | JE15: =INDEX($E$11:$ED$150,MATCH($FV15,$A$11:$A$150,0),JE$1) -> 0 | JF15: =INDEX($E$11:$ED$150,MATCH($FV15,$A$11:$A$150,0),JF$1) -> 0 | JG15: =INDEX($E$11:$ED$150,MATCH($FV15,$A$11:$A$150,0),JG$1) -> 0 | JH15: =INDEX($E$11:$ED$150,MATCH($FV15,$A$11:$A$150,0),JH$1) -> 0 | JI15: =INDEX($E$11:$ED$150,MATCH($FV15,$A$11:$A$150,0),JI$1) -> 0 | JJ15: =INDEX($E$11:$ED$150,MATCH($FV15,$A$11:$A$150,0),JJ$1) -> 0 | JK15: =INDEX($E$11:$ED$150,MATCH($FV15,$A$11:$A$150,0),JK$1) -> 0 | JL15: =INDEX($E$11:$ED$150,MATCH($FV15,$A$11:$A$150,0),JL$1) -> 0 | JM15: =INDEX($E$11:$ED$150,MATCH($FV15,$A$11:$A$150,0),JM$1) -> 0 | JN15: =INDEX($E$11:$ED$150,MATCH($FV15,$A$11:$A$150,0),JN$1) -> 0 | JO15: =INDEX($E$11:$ED$150,MATCH($FV15,$A$11:$A$150,0),JO$1) -> 0 | JP15: =INDEX($E$11:$ED$150,MATCH($FV15,$A$11:$A$150,0),JP$1) -> 0 | JQ15: =INDEX($E$11:$ED$150,MATCH($FV15,$A$11:$A$150,0),JQ$1) -> 0 | JR15: =INDEX($E$11:$ED$150,MATCH($FV15,$A$11:$A$150,0),JR$1) -> 0 | JS15: =INDEX($E$11:$ED$150,MATCH($FV15,$A$11:$A$150,0),JS$1) -> 0 | JT15: =INDEX($E$11:$ED$150,MATCH($FV15,$A$11:$A$150,0),JT$1) -> 0 | JU15: =INDEX($E$11:$ED$150,MATCH($FV15,$A$11:$A$150,0),JU$1) -> 0 | JV15: =INDEX($E$11:$ED$150,MATCH($FV15,$A$11:$A$150,0),JV$1) -> 0 | JW15: =INDEX($E$11:$ED$150,MATCH($FV15,$A$11:$A$150,0),JW$1) -> 0 | JX15: =INDEX($E$11:$ED$150,MATCH($FV15,$A$11:$A$150,0),JX$1) -> 0 | JY15: =INDEX($E$11:$ED$150,MATCH($FV15,$A$11:$A$150,0),JY$1) -> 0 | JZ15: =INDEX($E$11:$ED$150,MATCH($FV15,$A$11:$A$150,0),JZ$1) -> 0 | KA15: =INDEX($E$11:$ED$150,MATCH($FV15,$A$11:$A$150,0),KA$1) -> 0 | KB15: =INDEX($E$11:$ED$150,MATCH($FV15,$A$11:$A$150,0),KB$1) -> 0 | KC15: =INDEX($E$11:$ED$150,MATCH($FV15,$A$11:$A$150,0),KC$1) -> 0 | KD15: =INDEX($E$11:$ED$150,MATCH($FV15,$A$11:$A$150,0),KD$1) -> 0 | KE15: =INDEX($E$11:$ED$150,MATCH($FV15,$A$11:$A$150,0),KE$1) -> 0 | KF15: =INDEX($E$11:$ED$150,MATCH($FV15,$A$11:$A$150,0),KF$1) -> 0 | KG15: =INDEX($E$11:$ED$150,MATCH($FV15,$A$11:$A$150,0),KG$1) -> 0 | KH15: =INDEX($E$11:$ED$150,MATCH($FV15,$A$11:$A$150,0),KH$1) -> 0 | KI15: =INDEX($E$11:$ED$150,MATCH($FV15,$A$11:$A$150,0),KI$1) -> 0 | KJ15: =INDEX($E$11:$ED$150,MATCH($FV15,$A$11:$A$150,0),KJ$1) -> 0 | KK15: =INDEX($E$11:$ED$150,MATCH($FV15,$A$11:$A$150,0),KK$1) -> 0 | KL15: =INDEX($E$11:$ED$150,MATCH($FV15,$A$11:$A$150,0),KL$1) -> 0 | KM15: =INDEX($E$11:$ED$150,MATCH($FV15,$A$11:$A$150,0),KM$1) -> 0 | KN15: =INDEX($E$11:$ED$150,MATCH($FV15,$A$11:$A$150,0),KN$1) -> 0 | KO15: =INDEX($E$11:$ED$150,MATCH($FV15,$A$11:$A$150,0),KO$1) -> 0 | KP15: =INDEX($E$11:$ED$150,MATCH($FV15,$A$11:$A$150,0),KP$1) -> 0 | KQ15: =INDEX($E$11:$ED$150,MATCH($FV15,$A$11:$A$150,0),KQ$1) -> 0 | KR15: =INDEX($E$11:$ED$150,MATCH($FV15,$A$11:$A$150,0),KR$1) -> 0 | KS15: =INDEX($E$11:$ED$150,MATCH($FV15,$A$11:$A$150,0),KS$1) -> 0 | KT15: =INDEX($E$11:$ED$150,MATCH($FV15,$A$11:$A$150,0),KT$1) -> 0 | KU15: =INDEX($E$11:$ED$150,MATCH($FV15,$A$11:$A$150,0),KU$1) -> 0 | KV15: =INDEX($E$11:$ED$150,MATCH($FV15,$A$11:$A$150,0),KV$1) -> 0
A16: Pavel PernekrPoč. kol | B16: =CONCATENATE(C13," ",C14) -> Pavel Pernekr | C16: =Tabulka!B17 -> 0 | D16: =Tabulka!C17 -> Poč. kol | AN16: 4 | AX16: 3 | BM16: 3 | CB16: 3 | CQ16: 3 | EE16: =IF(AND(SUM(Tabulka!$AG$13)>0.99,(SUM(Tabulka!$AH$17)<$EJ$1)),-50000+(SUM(E16:ED16)),IF(OR(SUM(Tabulka!$AG$13)<2),-90000,SUM(E16:ED16))) -> -49984 | EG16: =SUM(E16:ED16) -> 16 | FT16: 96 | FV16: Míra ChalupníkPočet šipek (průměr den) | FW16: =INDEX($E$11:$ED$150,MATCH($FV16,$A$11:$A$150,0),FW$1) -> 0 | FX16: =INDEX($E$11:$ED$150,MATCH($FV16,$A$11:$A$150,0),FX$1) -> 0 | FY16: =INDEX($E$11:$ED$150,MATCH($FV16,$A$11:$A$150,0),FY$1) -> 0 | FZ16: =INDEX($E$11:$ED$150,MATCH($FV16,$A$11:$A$150,0),FZ$1) -> 0 | GA16: =INDEX($E$11:$ED$150,MATCH($FV16,$A$11:$A$150,0),GA$1) -> 0 | GB16: =INDEX($E$11:$ED$150,MATCH($FV16,$A$11:$A$150,0),GB$1) -> 0 | GC16: =INDEX($E$11:$ED$150,MATCH($FV16,$A$11:$A$150,0),GC$1) -> 0 | GD16: =INDEX($E$11:$ED$150,MATCH($FV16,$A$11:$A$150,0),GD$1) -> 0 | GE16: =INDEX($E$11:$ED$150,MATCH($FV16,$A$11:$A$150,0),GE$1) -> 0 | GF16: =INDEX($E$11:$ED$150,MATCH($FV16,$A$11:$A$150,0),GF$1) -> 0 | GG16: =INDEX($E$11:$ED$150,MATCH($FV16,$A$11:$A$150,0),GG$1) -> 0 | GH16: =INDEX($E$11:$ED$150,MATCH($FV16,$A$11:$A$150,0),GH$1) -> 0 | GI16: =INDEX($E$11:$ED$150,MATCH($FV16,$A$11:$A$150,0),GI$1) -> 0 | GJ16: =INDEX($E$11:$ED$150,MATCH($FV16,$A$11:$A$150,0),GJ$1) -> 0 | GK16: =INDEX($E$11:$ED$150,MATCH($FV16,$A$11:$A$150,0),GK$1) -> 0 | GL16: =INDEX($E$11:$ED$150,MATCH($FV16,$A$11:$A$150,0),GL$1) -> 0 | GM16: =INDEX($E$11:$ED$150,MATCH($FV16,$A$11:$A$150,0),GM$1) -> 0 | GN16: =INDEX($E$11:$ED$150,MATCH($FV16,$A$11:$A$150,0),GN$1) -> 0 | GO16: =INDEX($E$11:$ED$150,MATCH($FV16,$A$11:$A$150,0),GO$1) -> 0 | GP16: =INDEX($E$11:$ED$150,MATCH($FV16,$A$11:$A$150,0),GP$1) -> 0 | GQ16: =INDEX($E$11:$ED$150,MATCH($FV16,$A$11:$A$150,0),GQ$1) -> 0 | GR16: =INDEX($E$11:$ED$150,MATCH($FV16,$A$11:$A$150,0),GR$1) -> 0 | GS16: =INDEX($E$11:$ED$150,MATCH($FV16,$A$11:$A$150,0),GS$1) -> 0 | GT16: =INDEX($E$11:$ED$150,MATCH($FV16,$A$11:$A$150,0),GT$1) -> 0 | GU16: =INDEX($E$11:$ED$150,MATCH($FV16,$A$11:$A$150,0),GU$1) -> 0 | GV16: =INDEX($E$11:$ED$150,MATCH($FV16,$A$11:$A$150,0),GV$1) -> 0 | GW16: =INDEX($E$11:$ED$150,MATCH($FV16,$A$11:$A$150,0),GW$1) -> 0 | GX16: =INDEX($E$11:$ED$150,MATCH($FV16,$A$11:$A$150,0),GX$1) -> 0 | GY16: =INDEX($E$11:$ED$150,MATCH($FV16,$A$11:$A$150,0),GY$1) -> 0 | GZ16: =INDEX($E$11:$ED$150,MATCH($FV16,$A$11:$A$150,0),GZ$1) -> 0 | HA16: =INDEX($E$11:$ED$150,MATCH($FV16,$A$11:$A$150,0),HA$1) -> 0 | HB16: =INDEX($E$11:$ED$150,MATCH($FV16,$A$11:$A$150,0),HB$1) -> 0 | HC16: =INDEX($E$11:$ED$150,MATCH($FV16,$A$11:$A$150,0),HC$1) -> 0 | HD16: =INDEX($E$11:$ED$150,MATCH($FV16,$A$11:$A$150,0),HD$1) -> 0 | HE16: =INDEX($E$11:$ED$150,MATCH($FV16,$A$11:$A$150,0),HE$1) -> 0 | HF16: =INDEX($E$11:$ED$150,MATCH($FV16,$A$11:$A$150,0),HF$1) -> 0 | HG16: =INDEX($E$11:$ED$150,MATCH($FV16,$A$11:$A$150,0),HG$1) -> 0 | HH16: =INDEX($E$11:$ED$150,MATCH($FV16,$A$11:$A$150,0),HH$1) -> 0 | HI16: =INDEX($E$11:$ED$150,MATCH($FV16,$A$11:$A$150,0),HI$1) -> 0 | HJ16: =INDEX($E$11:$ED$150,MATCH($FV16,$A$11:$A$150,0),HJ$1) -> 0 | HK16: =INDEX($E$11:$ED$150,MATCH($FV16,$A$11:$A$150,0),HK$1) -> 0 | HL16: =INDEX($E$11:$ED$150,MATCH($FV16,$A$11:$A$150,0),HL$1) -> 0 | HM16: =INDEX($E$11:$ED$150,MATCH($FV16,$A$11:$A$150,0),HM$1) -> 0 | HN16: =INDEX($E$11:$ED$150,MATCH($FV16,$A$11:$A$150,0),HN$1) -> 0 | HO16: =INDEX($E$11:$ED$150,MATCH($FV16,$A$11:$A$150,0),HO$1) -> 0 | HP16: =INDEX($E$11:$ED$150,MATCH($FV16,$A$11:$A$150,0),HP$1) -> 0 | HQ16: =INDEX($E$11:$ED$150,MATCH($FV16,$A$11:$A$150,0),HQ$1) -> 0 | HR16: =INDEX($E$11:$ED$150,MATCH($FV16,$A$11:$A$150,0),HR$1) -> 0 | HS16: =INDEX($E$11:$ED$150,MATCH($FV16,$A$11:$A$150,0),HS$1) -> 0 | HT16: =INDEX($E$11:$ED$150,MATCH($FV16,$A$11:$A$150,0),HT$1) -> 0 | HU16: =INDEX($E$11:$ED$150,MATCH($FV16,$A$11:$A$150,0),HU$1) -> 0 | HV16: =INDEX($E$11:$ED$150,MATCH($FV16,$A$11:$A$150,0),HV$1) -> 0 | HW16: =INDEX($E$11:$ED$150,MATCH($FV16,$A$11:$A$150,0),HW$1) -> 0 | HX16: =INDEX($E$11:$ED$150,MATCH($FV16,$A$11:$A$150,0),HX$1) -> 0 | HY16: =INDEX($E$11:$ED$150,MATCH($FV16,$A$11:$A$150,0),HY$1) -> 0 | HZ16: =INDEX($E$11:$ED$150,MATCH($FV16,$A$11:$A$150,0),HZ$1) -> 0 | IA16: =INDEX($E$11:$ED$150,MATCH($FV16,$A$11:$A$150,0),IA$1) -> 0 | IB16: =INDEX($E$11:$ED$150,MATCH($FV16,$A$11:$A$150,0),IB$1) -> 0 | IC16: =INDEX($E$11:$ED$150,MATCH($FV16,$A$11:$A$150,0),IC$1) -> 0 | ID16: =INDEX($E$11:$ED$150,MATCH($FV16,$A$11:$A$150,0),ID$1) -> 0 | IE16: =INDEX($E$11:$ED$150,MATCH($FV16,$A$11:$A$150,0),IE$1) -> 0 | IF16: =INDEX($E$11:$ED$150,MATCH($FV16,$A$11:$A$150,0),IF$1) -> 0 | IG16: =INDEX($E$11:$ED$150,MATCH($FV16,$A$11:$A$150,0),IG$1) -> 0 | IH16: =INDEX($E$11:$ED$150,MATCH($FV16,$A$11:$A$150,0),IH$1) -> 0 | II16: =INDEX($E$11:$ED$150,MATCH($FV16,$A$11:$A$150,0),II$1) -> 0 | IJ16: =INDEX($E$11:$ED$150,MATCH($FV16,$A$11:$A$150,0),IJ$1) -> 0 | IK16: =INDEX($E$11:$ED$150,MATCH($FV16,$A$11:$A$150,0),IK$1) -> 0 | IL16: =INDEX($E$11:$ED$150,MATCH($FV16,$A$11:$A$150,0),IL$1) -> 0 | IM16: =INDEX($E$11:$ED$150,MATCH($FV16,$A$11:$A$150,0),IM$1) -> 0 | IN16: =INDEX($E$11:$ED$150,MATCH($FV16,$A$11:$A$150,0),IN$1) -> 0 | IO16: =INDEX($E$11:$ED$150,MATCH($FV16,$A$11:$A$150,0),IO$1) -> 0 | IP16: =INDEX($E$11:$ED$150,MATCH($FV16,$A$11:$A$150,0),IP$1) -> 0 | IQ16: =INDEX($E$11:$ED$150,MATCH($FV16,$A$11:$A$150,0),IQ$1) -> 0 | IR16: =INDEX($E$11:$ED$150,MATCH($FV16,$A$11:$A$150,0),IR$1) -> 0 | IS16: =INDEX($E$11:$ED$150,MATCH($FV16,$A$11:$A$150,0),IS$1) -> 0 | IT16: =INDEX($E$11:$ED$150,MATCH($FV16,$A$11:$A$150,0),IT$1) -> 0 | IU16: =INDEX($E$11:$ED$150,MATCH($FV16,$A$11:$A$150,0),IU$1) -> 0 | IV16: =INDEX($E$11:$ED$150,MATCH($FV16,$A$11:$A$150,0),IV$1) -> 0 | IW16: =INDEX($E$11:$ED$150,MATCH($FV16,$A$11:$A$150,0),IW$1) -> 0 | IX16: =INDEX($E$11:$ED$150,MATCH($FV16,$A$11:$A$150,0),IX$1) -> 0 | IY16: =INDEX($E$11:$ED$150,MATCH($FV16,$A$11:$A$150,0),IY$1) -> 0 | IZ16: =INDEX($E$11:$ED$150,MATCH($FV16,$A$11:$A$150,0),IZ$1) -> 0 | JA16: =INDEX($E$11:$ED$150,MATCH($FV16,$A$11:$A$150,0),JA$1) -> 0 | JB16: =INDEX($E$11:$ED$150,MATCH($FV16,$A$11:$A$150,0),JB$1) -> 0 | JC16: =INDEX($E$11:$ED$150,MATCH($FV16,$A$11:$A$150,0),JC$1) -> 0 | JD16: =INDEX($E$11:$ED$150,MATCH($FV16,$A$11:$A$150,0),JD$1) -> 0 | JE16: =INDEX($E$11:$ED$150,MATCH($FV16,$A$11:$A$150,0),JE$1) -> 0 | JF16: =INDEX($E$11:$ED$150,MATCH($FV16,$A$11:$A$150,0),JF$1) -> 0 | JG16: =INDEX($E$11:$ED$150,MATCH($FV16,$A$11:$A$150,0),JG$1) -> 0 | JH16: =INDEX($E$11:$ED$150,MATCH($FV16,$A$11:$A$150,0),JH$1) -> 0 | JI16: =INDEX($E$11:$ED$150,MATCH($FV16,$A$11:$A$150,0),JI$1) -> 0 | JJ16: =INDEX($E$11:$ED$150,MATCH($FV16,$A$11:$A$150,0),JJ$1) -> 0 | JK16: =INDEX($E$11:$ED$150,MATCH($FV16,$A$11:$A$150,0),JK$1) -> 0 | JL16: =INDEX($E$11:$ED$150,MATCH($FV16,$A$11:$A$150,0),JL$1) -> 0 | JM16: =INDEX($E$11:$ED$150,MATCH($FV16,$A$11:$A$150,0),JM$1) -> 0 | JN16: =INDEX($E$11:$ED$150,MATCH($FV16,$A$11:$A$150,0),JN$1) -> 0 | JO16: =INDEX($E$11:$ED$150,MATCH($FV16,$A$11:$A$150,0),JO$1) -> 0 | JP16: =INDEX($E$11:$ED$150,MATCH($FV16,$A$11:$A$150,0),JP$1) -> 0 | JQ16: =INDEX($E$11:$ED$150,MATCH($FV16,$A$11:$A$150,0),JQ$1) -> 0 | JR16: =INDEX($E$11:$ED$150,MATCH($FV16,$A$11:$A$150,0),JR$1) -> 0 | JS16: =INDEX($E$11:$ED$150,MATCH($FV16,$A$11:$A$150,0),JS$1) -> 0 | JT16: =INDEX($E$11:$ED$150,MATCH($FV16,$A$11:$A$150,0),JT$1) -> 0 | JU16: =INDEX($E$11:$ED$150,MATCH($FV16,$A$11:$A$150,0),JU$1) -> 0 | JV16: =INDEX($E$11:$ED$150,MATCH($FV16,$A$11:$A$150,0),JV$1) -> 0 | JW16: =INDEX($E$11:$ED$150,MATCH($FV16,$A$11:$A$150,0),JW$1) -> 0 | JX16: =INDEX($E$11:$ED$150,MATCH($FV16,$A$11:$A$150,0),JX$1) -> 0 | JY16: =INDEX($E$11:$ED$150,MATCH($FV16,$A$11:$A$150,0),JY$1) -> 0 | JZ16: =INDEX($E$11:$ED$150,MATCH($FV16,$A$11:$A$150,0),JZ$1) -> 0 | KA16: =INDEX($E$11:$ED$150,MATCH($FV16,$A$11:$A$150,0),KA$1) -> 0 | KB16: =INDEX($E$11:$ED$150,MATCH($FV16,$A$11:$A$150,0),KB$1) -> 0 | KC16: =INDEX($E$11:$ED$150,MATCH($FV16,$A$11:$A$150,0),KC$1) -> 0 | KD16: =INDEX($E$11:$ED$150,MATCH($FV16,$A$11:$A$150,0),KD$1) -> 0 | KE16: =INDEX($E$11:$ED$150,MATCH($FV16,$A$11:$A$150,0),KE$1) -> 0 | KF16: =INDEX($E$11:$ED$150,MATCH($FV16,$A$11:$A$150,0),KF$1) -> 0 | KG16: =INDEX($E$11:$ED$150,MATCH($FV16,$A$11:$A$150,0),KG$1) -> 0 | KH16: =INDEX($E$11:$ED$150,MATCH($FV16,$A$11:$A$150,0),KH$1) -> 0 | KI16: =INDEX($E$11:$ED$150,MATCH($FV16,$A$11:$A$150,0),KI$1) -> 0 | KJ16: =INDEX($E$11:$ED$150,MATCH($FV16,$A$11:$A$150,0),KJ$1) -> 0 | KK16: =INDEX($E$11:$ED$150,MATCH($FV16,$A$11:$A$150,0),KK$1) -> 0 | KL16: =INDEX($E$11:$ED$150,MATCH($FV16,$A$11:$A$150,0),KL$1) -> 0 | KM16: =INDEX($E$11:$ED$150,MATCH($FV16,$A$11:$A$150,0),KM$1) -> 0 | KN16: =INDEX($E$11:$ED$150,MATCH($FV16,$A$11:$A$150,0),KN$1) -> 0 | KO16: =INDEX($E$11:$ED$150,MATCH($FV16,$A$11:$A$150,0),KO$1) -> 0 | KP16: =INDEX($E$11:$ED$150,MATCH($FV16,$A$11:$A$150,0),KP$1) -> 0 | KQ16: =INDEX($E$11:$ED$150,MATCH($FV16,$A$11:$A$150,0),KQ$1) -> 0 | KR16: =INDEX($E$11:$ED$150,MATCH($FV16,$A$11:$A$150,0),KR$1) -> 0 | KS16: =INDEX($E$11:$ED$150,MATCH($FV16,$A$11:$A$150,0),KS$1) -> 0 | KT16: =INDEX($E$11:$ED$150,MATCH($FV16,$A$11:$A$150,0),KT$1) -> 0 | KU16: =INDEX($E$11:$ED$150,MATCH($FV16,$A$11:$A$150,0),KU$1) -> 0 | KV16: =INDEX($E$11:$ED$150,MATCH($FV16,$A$11:$A$150,0),KV$1) -> 0
A17: Pavel PernekrPočet konečných bodů | B17: =CONCATENATE(C13," ",C14) -> Pavel Pernekr | D17: =Tabulka!C18 -> Počet konečných bodů | AN17: 17 | AO17: 6 | AP17: 149 | AQ17: 146 | AX17: 107 | AY17: 141 | AZ17: 158 | BM17: 24 | BN17: 67 | BO17: 19 | CB17: 0 | CC17: 19 | CD17: 39 | CQ17: 5 | CR17: 47 | CS17: 61 | EE17: =IF(AND(SUM(Tabulka!$AG$13)>0.99,(SUM(Tabulka!$AH$17)<$EJ$1)),50000+(SUM(E17:ED17)),IF(OR(SUM(Tabulka!$AG$13)<2),90000,SUM(E17:ED17))) -> 51005 | EG17: =SUM(E17:ED17) -> 1005 | EH17: =Tabulka!$AG$13 -> 5 | EI17: =$EJ$3-EG17 -> 3995 | FT17: 104 | FV17: Petr WeinerPočet šipek (průměr den) | FW17: =INDEX($E$11:$ED$150,MATCH($FV17,$A$11:$A$150,0),FW$1) -> 0 | FX17: =INDEX($E$11:$ED$150,MATCH($FV17,$A$11:$A$150,0),FX$1) -> 0 | FY17: =INDEX($E$11:$ED$150,MATCH($FV17,$A$11:$A$150,0),FY$1) -> 0 | FZ17: =INDEX($E$11:$ED$150,MATCH($FV17,$A$11:$A$150,0),FZ$1) -> 0 | GA17: =INDEX($E$11:$ED$150,MATCH($FV17,$A$11:$A$150,0),GA$1) -> 0 | GB17: =INDEX($E$11:$ED$150,MATCH($FV17,$A$11:$A$150,0),GB$1) -> 0 | GC17: =INDEX($E$11:$ED$150,MATCH($FV17,$A$11:$A$150,0),GC$1) -> 0 | GD17: =INDEX($E$11:$ED$150,MATCH($FV17,$A$11:$A$150,0),GD$1) -> 0 | GE17: =INDEX($E$11:$ED$150,MATCH($FV17,$A$11:$A$150,0),GE$1) -> 0 | GF17: =INDEX($E$11:$ED$150,MATCH($FV17,$A$11:$A$150,0),GF$1) -> 0 | GG17: =INDEX($E$11:$ED$150,MATCH($FV17,$A$11:$A$150,0),GG$1) -> 0 | GH17: =INDEX($E$11:$ED$150,MATCH($FV17,$A$11:$A$150,0),GH$1) -> 0 | GI17: =INDEX($E$11:$ED$150,MATCH($FV17,$A$11:$A$150,0),GI$1) -> 0 | GJ17: =INDEX($E$11:$ED$150,MATCH($FV17,$A$11:$A$150,0),GJ$1) -> 0 | GK17: =INDEX($E$11:$ED$150,MATCH($FV17,$A$11:$A$150,0),GK$1) -> 0 | GL17: =INDEX($E$11:$ED$150,MATCH($FV17,$A$11:$A$150,0),GL$1) -> 0 | GM17: =INDEX($E$11:$ED$150,MATCH($FV17,$A$11:$A$150,0),GM$1) -> 0 | GN17: =INDEX($E$11:$ED$150,MATCH($FV17,$A$11:$A$150,0),GN$1) -> 0 | GO17: =INDEX($E$11:$ED$150,MATCH($FV17,$A$11:$A$150,0),GO$1) -> 0 | GP17: =INDEX($E$11:$ED$150,MATCH($FV17,$A$11:$A$150,0),GP$1) -> 0 | GQ17: =INDEX($E$11:$ED$150,MATCH($FV17,$A$11:$A$150,0),GQ$1) -> 0 | GR17: =INDEX($E$11:$ED$150,MATCH($FV17,$A$11:$A$150,0),GR$1) -> 0 | GS17: =INDEX($E$11:$ED$150,MATCH($FV17,$A$11:$A$150,0),GS$1) -> 0 | GT17: =INDEX($E$11:$ED$150,MATCH($FV17,$A$11:$A$150,0),GT$1) -> 0 | GU17: =INDEX($E$11:$ED$150,MATCH($FV17,$A$11:$A$150,0),GU$1) -> 0 | GV17: =INDEX($E$11:$ED$150,MATCH($FV17,$A$11:$A$150,0),GV$1) -> 0 | GW17: =INDEX($E$11:$ED$150,MATCH($FV17,$A$11:$A$150,0),GW$1) -> 0 | GX17: =INDEX($E$11:$ED$150,MATCH($FV17,$A$11:$A$150,0),GX$1) -> 0 | GY17: =INDEX($E$11:$ED$150,MATCH($FV17,$A$11:$A$150,0),GY$1) -> 0 | GZ17: =INDEX($E$11:$ED$150,MATCH($FV17,$A$11:$A$150,0),GZ$1) -> 0 | HA17: =INDEX($E$11:$ED$150,MATCH($FV17,$A$11:$A$150,0),HA$1) -> 0 | HB17: =INDEX($E$11:$ED$150,MATCH($FV17,$A$11:$A$150,0),HB$1) -> 0 | HC17: =INDEX($E$11:$ED$150,MATCH($FV17,$A$11:$A$150,0),HC$1) -> 0 | HD17: =INDEX($E$11:$ED$150,MATCH($FV17,$A$11:$A$150,0),HD$1) -> 0 | HE17: =INDEX($E$11:$ED$150,MATCH($FV17,$A$11:$A$150,0),HE$1) -> 0 | HF17: =INDEX($E$11:$ED$150,MATCH($FV17,$A$11:$A$150,0),HF$1) -> 0 | HG17: =INDEX($E$11:$ED$150,MATCH($FV17,$A$11:$A$150,0),HG$1) -> 0 | HH17: =INDEX($E$11:$ED$150,MATCH($FV17,$A$11:$A$150,0),HH$1) -> 0 | HI17: =INDEX($E$11:$ED$150,MATCH($FV17,$A$11:$A$150,0),HI$1) -> 0 | HJ17: =INDEX($E$11:$ED$150,MATCH($FV17,$A$11:$A$150,0),HJ$1) -> 0 | HK17: =INDEX($E$11:$ED$150,MATCH($FV17,$A$11:$A$150,0),HK$1) -> 0 | HL17: =INDEX($E$11:$ED$150,MATCH($FV17,$A$11:$A$150,0),HL$1) -> 0 | HM17: =INDEX($E$11:$ED$150,MATCH($FV17,$A$11:$A$150,0),HM$1) -> 0 | HN17: =INDEX($E$11:$ED$150,MATCH($FV17,$A$11:$A$150,0),HN$1) -> 0 | HO17: =INDEX($E$11:$ED$150,MATCH($FV17,$A$11:$A$150,0),HO$1) -> 0 | HP17: =INDEX($E$11:$ED$150,MATCH($FV17,$A$11:$A$150,0),HP$1) -> 0 | HQ17: =INDEX($E$11:$ED$150,MATCH($FV17,$A$11:$A$150,0),HQ$1) -> 0 | HR17: =INDEX($E$11:$ED$150,MATCH($FV17,$A$11:$A$150,0),HR$1) -> 0 | HS17: =INDEX($E$11:$ED$150,MATCH($FV17,$A$11:$A$150,0),HS$1) -> 0 | HT17: =INDEX($E$11:$ED$150,MATCH($FV17,$A$11:$A$150,0),HT$1) -> 0 | HU17: =INDEX($E$11:$ED$150,MATCH($FV17,$A$11:$A$150,0),HU$1) -> 0 | HV17: =INDEX($E$11:$ED$150,MATCH($FV17,$A$11:$A$150,0),HV$1) -> 0 | HW17: =INDEX($E$11:$ED$150,MATCH($FV17,$A$11:$A$150,0),HW$1) -> 0 | HX17: =INDEX($E$11:$ED$150,MATCH($FV17,$A$11:$A$150,0),HX$1) -> 0 | HY17: =INDEX($E$11:$ED$150,MATCH($FV17,$A$11:$A$150,0),HY$1) -> 0 | HZ17: =INDEX($E$11:$ED$150,MATCH($FV17,$A$11:$A$150,0),HZ$1) -> 0 | IA17: =INDEX($E$11:$ED$150,MATCH($FV17,$A$11:$A$150,0),IA$1) -> 0 | IB17: =INDEX($E$11:$ED$150,MATCH($FV17,$A$11:$A$150,0),IB$1) -> 0 | IC17: =INDEX($E$11:$ED$150,MATCH($FV17,$A$11:$A$150,0),IC$1) -> 0 | ID17: =INDEX($E$11:$ED$150,MATCH($FV17,$A$11:$A$150,0),ID$1) -> 0 | IE17: =INDEX($E$11:$ED$150,MATCH($FV17,$A$11:$A$150,0),IE$1) -> 0 | IF17: =INDEX($E$11:$ED$150,MATCH($FV17,$A$11:$A$150,0),IF$1) -> 0 | IG17: =INDEX($E$11:$ED$150,MATCH($FV17,$A$11:$A$150,0),IG$1) -> 0 | IH17: =INDEX($E$11:$ED$150,MATCH($FV17,$A$11:$A$150,0),IH$1) -> 0 | II17: =INDEX($E$11:$ED$150,MATCH($FV17,$A$11:$A$150,0),II$1) -> 0 | IJ17: =INDEX($E$11:$ED$150,MATCH($FV17,$A$11:$A$150,0),IJ$1) -> 0 | IK17: =INDEX($E$11:$ED$150,MATCH($FV17,$A$11:$A$150,0),IK$1) -> 0 | IL17: =INDEX($E$11:$ED$150,MATCH($FV17,$A$11:$A$150,0),IL$1) -> 0 | IM17: =INDEX($E$11:$ED$150,MATCH($FV17,$A$11:$A$150,0),IM$1) -> 0 | IN17: =INDEX($E$11:$ED$150,MATCH($FV17,$A$11:$A$150,0),IN$1) -> 0 | IO17: =INDEX($E$11:$ED$150,MATCH($FV17,$A$11:$A$150,0),IO$1) -> 0 | IP17: =INDEX($E$11:$ED$150,MATCH($FV17,$A$11:$A$150,0),IP$1) -> 0 | IQ17: =INDEX($E$11:$ED$150,MATCH($FV17,$A$11:$A$150,0),IQ$1) -> 0 | IR17: =INDEX($E$11:$ED$150,MATCH($FV17,$A$11:$A$150,0),IR$1) -> 0 | IS17: =INDEX($E$11:$ED$150,MATCH($FV17,$A$11:$A$150,0),IS$1) -> 0 | IT17: =INDEX($E$11:$ED$150,MATCH($FV17,$A$11:$A$150,0),IT$1) -> 0 | IU17: =INDEX($E$11:$ED$150,MATCH($FV17,$A$11:$A$150,0),IU$1) -> 0 | IV17: =INDEX($E$11:$ED$150,MATCH($FV17,$A$11:$A$150,0),IV$1) -> 0 | IW17: =INDEX($E$11:$ED$150,MATCH($FV17,$A$11:$A$150,0),IW$1) -> 0 | IX17: =INDEX($E$11:$ED$150,MATCH($FV17,$A$11:$A$150,0),IX$1) -> 0 | IY17: =INDEX($E$11:$ED$150,MATCH($FV17,$A$11:$A$150,0),IY$1) -> 0 | IZ17: =INDEX($E$11:$ED$150,MATCH($FV17,$A$11:$A$150,0),IZ$1) -> 0 | JA17: =INDEX($E$11:$ED$150,MATCH($FV17,$A$11:$A$150,0),JA$1) -> 0 | JB17: =INDEX($E$11:$ED$150,MATCH($FV17,$A$11:$A$150,0),JB$1) -> 0 | JC17: =INDEX($E$11:$ED$150,MATCH($FV17,$A$11:$A$150,0),JC$1) -> 0 | JD17: =INDEX($E$11:$ED$150,MATCH($FV17,$A$11:$A$150,0),JD$1) -> 0 | JE17: =INDEX($E$11:$ED$150,MATCH($FV17,$A$11:$A$150,0),JE$1) -> 0 | JF17: =INDEX($E$11:$ED$150,MATCH($FV17,$A$11:$A$150,0),JF$1) -> 0 | JG17: =INDEX($E$11:$ED$150,MATCH($FV17,$A$11:$A$150,0),JG$1) -> 0 | JH17: =INDEX($E$11:$ED$150,MATCH($FV17,$A$11:$A$150,0),JH$1) -> 0 | JI17: =INDEX($E$11:$ED$150,MATCH($FV17,$A$11:$A$150,0),JI$1) -> 0 | JJ17: =INDEX($E$11:$ED$150,MATCH($FV17,$A$11:$A$150,0),JJ$1) -> 0 | JK17: =INDEX($E$11:$ED$150,MATCH($FV17,$A$11:$A$150,0),JK$1) -> 0 | JL17: =INDEX($E$11:$ED$150,MATCH($FV17,$A$11:$A$150,0),JL$1) -> 0 | JM17: =INDEX($E$11:$ED$150,MATCH($FV17,$A$11:$A$150,0),JM$1) -> 0 | JN17: =INDEX($E$11:$ED$150,MATCH($FV17,$A$11:$A$150,0),JN$1) -> 0 | JO17: =INDEX($E$11:$ED$150,MATCH($FV17,$A$11:$A$150,0),JO$1) -> 0 | JP17: =INDEX($E$11:$ED$150,MATCH($FV17,$A$11:$A$150,0),JP$1) -> 0 | JQ17: =INDEX($E$11:$ED$150,MATCH($FV17,$A$11:$A$150,0),JQ$1) -> 0 | JR17: =INDEX($E$11:$ED$150,MATCH($FV17,$A$11:$A$150,0),JR$1) -> 0 | JS17: =INDEX($E$11:$ED$150,MATCH($FV17,$A$11:$A$150,0),JS$1) -> 32 | JT17: =INDEX($E$11:$ED$150,MATCH($FV17,$A$11:$A$150,0),JT$1) -> 0 | JU17: =INDEX($E$11:$ED$150,MATCH($FV17,$A$11:$A$150,0),JU$1) -> 0 | JV17: =INDEX($E$11:$ED$150,MATCH($FV17,$A$11:$A$150,0),JV$1) -> 0 | JW17: =INDEX($E$11:$ED$150,MATCH($FV17,$A$11:$A$150,0),JW$1) -> 0 | JX17: =INDEX($E$11:$ED$150,MATCH($FV17,$A$11:$A$150,0),JX$1) -> 0 | JY17: =INDEX($E$11:$ED$150,MATCH($FV17,$A$11:$A$150,0),JY$1) -> 0 | JZ17: =INDEX($E$11:$ED$150,MATCH($FV17,$A$11:$A$150,0),JZ$1) -> 0 | KA17: =INDEX($E$11:$ED$150,MATCH($FV17,$A$11:$A$150,0),KA$1) -> 0 | KB17: =INDEX($E$11:$ED$150,MATCH($FV17,$A$11:$A$150,0),KB$1) -> 0 | KC17: =INDEX($E$11:$ED$150,MATCH($FV17,$A$11:$A$150,0),KC$1) -> 0 | KD17: =INDEX($E$11:$ED$150,MATCH($FV17,$A$11:$A$150,0),KD$1) -> 32 | KE17: =INDEX($E$11:$ED$150,MATCH($FV17,$A$11:$A$150,0),KE$1) -> 0 | KF17: =INDEX($E$11:$ED$150,MATCH($FV17,$A$11:$A$150,0),KF$1) -> 0 | KG17: =INDEX($E$11:$ED$150,MATCH($FV17,$A$11:$A$150,0),KG$1) -> 0 | KH17: =INDEX($E$11:$ED$150,MATCH($FV17,$A$11:$A$150,0),KH$1) -> 0 | KI17: =INDEX($E$11:$ED$150,MATCH($FV17,$A$11:$A$150,0),KI$1) -> 35 | KJ17: =INDEX($E$11:$ED$150,MATCH($FV17,$A$11:$A$150,0),KJ$1) -> 0 | KK17: =INDEX($E$11:$ED$150,MATCH($FV17,$A$11:$A$150,0),KK$1) -> 0 | KL17: =INDEX($E$11:$ED$150,MATCH($FV17,$A$11:$A$150,0),KL$1) -> 0 | KM17: =INDEX($E$11:$ED$150,MATCH($FV17,$A$11:$A$150,0),KM$1) -> 0 | KN17: =INDEX($E$11:$ED$150,MATCH($FV17,$A$11:$A$150,0),KN$1) -> 0 | KO17: =INDEX($E$11:$ED$150,MATCH($FV17,$A$11:$A$150,0),KO$1) -> 0 | KP17: =INDEX($E$11:$ED$150,MATCH($FV17,$A$11:$A$150,0),KP$1) -> 0 | KQ17: =INDEX($E$11:$ED$150,MATCH($FV17,$A$11:$A$150,0),KQ$1) -> 0 | KR17: =INDEX($E$11:$ED$150,MATCH($FV17,$A$11:$A$150,0),KR$1) -> 0 | KS17: =INDEX($E$11:$ED$150,MATCH($FV17,$A$11:$A$150,0),KS$1) -> 0 | KT17: =INDEX($E$11:$ED$150,MATCH($FV17,$A$11:$A$150,0),KT$1) -> 0 | KU17: =INDEX($E$11:$ED$150,MATCH($FV17,$A$11:$A$150,0),KU$1) -> 0 | KV17: =INDEX($E$11:$ED$150,MATCH($FV17,$A$11:$A$150,0),KV$1) -> 0
A18: Pavel PernekrPrůměr konečných bodů na hru | B18: =CONCATENATE(C13," ",C14) -> Pavel Pernekr | D18: =Tabulka!C19 -> Průměr konečných bodů na hru | AN18: 17.0000088 | AO18: 11.5000088 | AP18: 57.33334213 | AQ18: 79.5000088 | AX18: 85.0000088 | AY18: 94.33334213 | AZ18: 103.4285802 | BM18: 93.5000088 | BN18: 90.55556436 | BO18: 83.4000088 | CB18: 75.81819062 | CC18: 71.08334213 | CD18: 68.61539342 | CQ18: 64.07143737 | CR18: 62.93334213 | CS18: 62.8125088 | DF18: =IF(DF17<>"",AVERAGE($E17:DF17)+$EI18,"") ->  | DG18: =IF(DG17<>"",AVERAGE($E17:DG17)+$EI18,"") ->  | DH18: =IF(DH17<>"",AVERAGE($E17:DH17)+$EI18,"") ->  | DI18: =IF(DI17<>"",AVERAGE($E17:DI17)+$EI18,"") ->  | DJ18: =IF(DJ17<>"",AVERAGE($E17:DJ17)+$EI18,"") ->  | DK18: =IF(DK17<>"",AVERAGE($E17:DK17)+$EI18,"") ->  | DL18: =IF(DL17<>"",AVERAGE($E17:DL17)+$EI18,"") ->  | DM18: =IF(DM17<>"",AVERAGE($E17:DM17)+$EI18,"") ->  | DN18: =IF(DN17<>"",AVERAGE($E17:DN17)+$EI18,"") ->  | DO18: =IF(DO17<>"",AVERAGE($E17:DO17)+$EI18,"") ->  | DP18: =IF(DP17<>"",AVERAGE($E17:DP17)+$EI18,"") ->  | DQ18: =IF(DQ17<>"",AVERAGE($E17:DQ17)+$EI18,"") ->  | DR18: =IF(DR17<>"",AVERAGE($E17:DR17)+$EI18,"") ->  | DS18: =IF(DS17<>"",AVERAGE($E17:DS17)+$EI18,"") ->  | DT18: =IF(DT17<>"",AVERAGE($E17:DT17)+$EI18,"") ->  | DU18: =IF(DU17<>"",AVERAGE($E17:DU17)+$EI18,"") ->  | DV18: =IF(DV17<>"",AVERAGE($E17:DV17)+$EI18,"") ->  | DW18: =IF(DW17<>"",AVERAGE($E17:DW17)+$EI18,"") ->  | DX18: =IF(DX17<>"",AVERAGE($E17:DX17)+$EI18,"") ->  | DY18: =IF(DY17<>"",AVERAGE($E17:DY17)+$EI18,"") ->  | DZ18: =IF(DZ17<>"",AVERAGE($E17:DZ17)+$EI18,"") ->  | EA18: =IF(EA17<>"",AVERAGE($E17:EA17)+$EI18,"") ->  | EB18: =IF(EB17<>"",AVERAGE($E17:EB17)+$EI18,"") ->  | EC18: =IF(EC17<>"",AVERAGE($E17:EC17)+$EI18,"") ->  | ED18: =IF(ED17<>"",AVERAGE($E17:ED17)+$EI18,"") ->  | EE18: =IF(AND(SUM(Tabulka!$AG$13)>0.99,(SUM(Tabulka!$AH$17)<$EJ$1)),50000+C12/1000,IF(OR(SUM(Tabulka!$AG$13)<2),90000,SUM(E17:ED17)/COUNT(E18:ED18)))+EG18 -> 50062.8145 | EG18: =IFERROR(SUM(E17:ED17)/COUNT(E17:ED17),) -> 62.8125 | EH18: =CONCATENATE(C13," ",C14) -> Pavel Pernekr | EI18: =INDEX(List4!$E$2:$E$19,MATCH(CONCATENATE(C13," ",C14),List4!$A$2:$A$19,0),1) -> 9e-08 | EK18: =IFERROR(501/EK19*3,) -> 0 | EP18: Prům bodů na kolo při zavření | EQ18: =IF(OR(SUM(Tabulka!$AG13)<1),-90000+INDEX(List4!$F$2:$F$17,MATCH(Přehled_body!B19,List4!$D$2:$D$17,0),1),IF(OR(AND(SUM(Tabulka!$AG13)>0.99,(SUM(Tabulka!$AH$9)<$EJ$1)),Tabulka!AG13<$EJ$2),-50000+(501/EQ19*3)+INDEX(List4!$F$2:$F$17,MATCH(Přehled_body!B18,List4!$D$2:$D$17,0),1),IF(EE19<9,1,501/EQ19*3)+INDEX(List4!$F$2:$F$17,MATCH(Přehled_body!B18,List4!$D$2:$D$17,0),1))) -> 1.000000009 | FT18: 112 | FV18: Míra KulhanPočet šipek (průměr den) | FW18: =INDEX($E$11:$ED$150,MATCH($FV18,$A$11:$A$150,0),FW$1) -> 0 | FX18: =INDEX($E$11:$ED$150,MATCH($FV18,$A$11:$A$150,0),FX$1) -> 0 | FY18: =INDEX($E$11:$ED$150,MATCH($FV18,$A$11:$A$150,0),FY$1) -> 0 | FZ18: =INDEX($E$11:$ED$150,MATCH($FV18,$A$11:$A$150,0),FZ$1) -> 0 | GA18: =INDEX($E$11:$ED$150,MATCH($FV18,$A$11:$A$150,0),GA$1) -> 0 | GB18: =INDEX($E$11:$ED$150,MATCH($FV18,$A$11:$A$150,0),GB$1) -> 0 | GC18: =INDEX($E$11:$ED$150,MATCH($FV18,$A$11:$A$150,0),GC$1) -> 0 | GD18: =INDEX($E$11:$ED$150,MATCH($FV18,$A$11:$A$150,0),GD$1) -> 0 | GE18: =INDEX($E$11:$ED$150,MATCH($FV18,$A$11:$A$150,0),GE$1) -> 0 | GF18: =INDEX($E$11:$ED$150,MATCH($FV18,$A$11:$A$150,0),GF$1) -> 0 | GG18: =INDEX($E$11:$ED$150,MATCH($FV18,$A$11:$A$150,0),GG$1) -> 0 | GH18: =INDEX($E$11:$ED$150,MATCH($FV18,$A$11:$A$150,0),GH$1) -> 0 | GI18: =INDEX($E$11:$ED$150,MATCH($FV18,$A$11:$A$150,0),GI$1) -> 0 | GJ18: =INDEX($E$11:$ED$150,MATCH($FV18,$A$11:$A$150,0),GJ$1) -> 0 | GK18: =INDEX($E$11:$ED$150,MATCH($FV18,$A$11:$A$150,0),GK$1) -> 0 | GL18: =INDEX($E$11:$ED$150,MATCH($FV18,$A$11:$A$150,0),GL$1) -> 0 | GM18: =INDEX($E$11:$ED$150,MATCH($FV18,$A$11:$A$150,0),GM$1) -> 0 | GN18: =INDEX($E$11:$ED$150,MATCH($FV18,$A$11:$A$150,0),GN$1) -> 0 | GO18: =INDEX($E$11:$ED$150,MATCH($FV18,$A$11:$A$150,0),GO$1) -> 0 | GP18: =INDEX($E$11:$ED$150,MATCH($FV18,$A$11:$A$150,0),GP$1) -> 0 | GQ18: =INDEX($E$11:$ED$150,MATCH($FV18,$A$11:$A$150,0),GQ$1) -> 0 | GR18: =INDEX($E$11:$ED$150,MATCH($FV18,$A$11:$A$150,0),GR$1) -> 0 | GS18: =INDEX($E$11:$ED$150,MATCH($FV18,$A$11:$A$150,0),GS$1) -> 0 | GT18: =INDEX($E$11:$ED$150,MATCH($FV18,$A$11:$A$150,0),GT$1) -> 0 | GU18: =INDEX($E$11:$ED$150,MATCH($FV18,$A$11:$A$150,0),GU$1) -> 0 | GV18: =INDEX($E$11:$ED$150,MATCH($FV18,$A$11:$A$150,0),GV$1) -> 0 | GW18: =INDEX($E$11:$ED$150,MATCH($FV18,$A$11:$A$150,0),GW$1) -> 0 | GX18: =INDEX($E$11:$ED$150,MATCH($FV18,$A$11:$A$150,0),GX$1) -> 0 | GY18: =INDEX($E$11:$ED$150,MATCH($FV18,$A$11:$A$150,0),GY$1) -> 0 | GZ18: =INDEX($E$11:$ED$150,MATCH($FV18,$A$11:$A$150,0),GZ$1) -> 0 | HA18: =INDEX($E$11:$ED$150,MATCH($FV18,$A$11:$A$150,0),HA$1) -> 0 | HB18: =INDEX($E$11:$ED$150,MATCH($FV18,$A$11:$A$150,0),HB$1) -> 0 | HC18: =INDEX($E$11:$ED$150,MATCH($FV18,$A$11:$A$150,0),HC$1) -> 0 | HD18: =INDEX($E$11:$ED$150,MATCH($FV18,$A$11:$A$150,0),HD$1) -> 0 | HE18: =INDEX($E$11:$ED$150,MATCH($FV18,$A$11:$A$150,0),HE$1) -> 0 | HF18: =INDEX($E$11:$ED$150,MATCH($FV18,$A$11:$A$150,0),HF$1) -> 0 | HG18: =INDEX($E$11:$ED$150,MATCH($FV18,$A$11:$A$150,0),HG$1) -> 0 | HH18: =INDEX($E$11:$ED$150,MATCH($FV18,$A$11:$A$150,0),HH$1) -> 0 | HI18: =INDEX($E$11:$ED$150,MATCH($FV18,$A$11:$A$150,0),HI$1) -> 0 | HJ18: =INDEX($E$11:$ED$150,MATCH($FV18,$A$11:$A$150,0),HJ$1) -> 0 | HK18: =INDEX($E$11:$ED$150,MATCH($FV18,$A$11:$A$150,0),HK$1) -> 0 | HL18: =INDEX($E$11:$ED$150,MATCH($FV18,$A$11:$A$150,0),HL$1) -> 0 | HM18: =INDEX($E$11:$ED$150,MATCH($FV18,$A$11:$A$150,0),HM$1) -> 0 | HN18: =INDEX($E$11:$ED$150,MATCH($FV18,$A$11:$A$150,0),HN$1) -> 0 | HO18: =INDEX($E$11:$ED$150,MATCH($FV18,$A$11:$A$150,0),HO$1) -> 0 | HP18: =INDEX($E$11:$ED$150,MATCH($FV18,$A$11:$A$150,0),HP$1) -> 0 | HQ18: =INDEX($E$11:$ED$150,MATCH($FV18,$A$11:$A$150,0),HQ$1) -> 0 | HR18: =INDEX($E$11:$ED$150,MATCH($FV18,$A$11:$A$150,0),HR$1) -> 0 | HS18: =INDEX($E$11:$ED$150,MATCH($FV18,$A$11:$A$150,0),HS$1) -> 0 | HT18: =INDEX($E$11:$ED$150,MATCH($FV18,$A$11:$A$150,0),HT$1) -> 0 | HU18: =INDEX($E$11:$ED$150,MATCH($FV18,$A$11:$A$150,0),HU$1) -> 0 | HV18: =INDEX($E$11:$ED$150,MATCH($FV18,$A$11:$A$150,0),HV$1) -> 0 | HW18: =INDEX($E$11:$ED$150,MATCH($FV18,$A$11:$A$150,0),HW$1) -> 0 | HX18: =INDEX($E$11:$ED$150,MATCH($FV18,$A$11:$A$150,0),HX$1) -> 0 | HY18: =INDEX($E$11:$ED$150,MATCH($FV18,$A$11:$A$150,0),HY$1) -> 0 | HZ18: =INDEX($E$11:$ED$150,MATCH($FV18,$A$11:$A$150,0),HZ$1) -> 0 | IA18: =INDEX($E$11:$ED$150,MATCH($FV18,$A$11:$A$150,0),IA$1) -> 0 | IB18: =INDEX($E$11:$ED$150,MATCH($FV18,$A$11:$A$150,0),IB$1) -> 0 | IC18: =INDEX($E$11:$ED$150,MATCH($FV18,$A$11:$A$150,0),IC$1) -> 0 | ID18: =INDEX($E$11:$ED$150,MATCH($FV18,$A$11:$A$150,0),ID$1) -> 0 | IE18: =INDEX($E$11:$ED$150,MATCH($FV18,$A$11:$A$150,0),IE$1) -> 0 | IF18: =INDEX($E$11:$ED$150,MATCH($FV18,$A$11:$A$150,0),IF$1) -> 0 | IG18: =INDEX($E$11:$ED$150,MATCH($FV18,$A$11:$A$150,0),IG$1) -> 0 | IH18: =INDEX($E$11:$ED$150,MATCH($FV18,$A$11:$A$150,0),IH$1) -> 0 | II18: =INDEX($E$11:$ED$150,MATCH($FV18,$A$11:$A$150,0),II$1) -> 0 | IJ18: =INDEX($E$11:$ED$150,MATCH($FV18,$A$11:$A$150,0),IJ$1) -> 0 | IK18: =INDEX($E$11:$ED$150,MATCH($FV18,$A$11:$A$150,0),IK$1) -> 0 | IL18: =INDEX($E$11:$ED$150,MATCH($FV18,$A$11:$A$150,0),IL$1) -> 0 | IM18: =INDEX($E$11:$ED$150,MATCH($FV18,$A$11:$A$150,0),IM$1) -> 0 | IN18: =INDEX($E$11:$ED$150,MATCH($FV18,$A$11:$A$150,0),IN$1) -> 0 | IO18: =INDEX($E$11:$ED$150,MATCH($FV18,$A$11:$A$150,0),IO$1) -> 0 | IP18: =INDEX($E$11:$ED$150,MATCH($FV18,$A$11:$A$150,0),IP$1) -> 0 | IQ18: =INDEX($E$11:$ED$150,MATCH($FV18,$A$11:$A$150,0),IQ$1) -> 0 | IR18: =INDEX($E$11:$ED$150,MATCH($FV18,$A$11:$A$150,0),IR$1) -> 0 | IS18: =INDEX($E$11:$ED$150,MATCH($FV18,$A$11:$A$150,0),IS$1) -> 0 | IT18: =INDEX($E$11:$ED$150,MATCH($FV18,$A$11:$A$150,0),IT$1) -> 0 | IU18: =INDEX($E$11:$ED$150,MATCH($FV18,$A$11:$A$150,0),IU$1) -> 0 | IV18: =INDEX($E$11:$ED$150,MATCH($FV18,$A$11:$A$150,0),IV$1) -> 0 | IW18: =INDEX($E$11:$ED$150,MATCH($FV18,$A$11:$A$150,0),IW$1) -> 0 | IX18: =INDEX($E$11:$ED$150,MATCH($FV18,$A$11:$A$150,0),IX$1) -> 0 | IY18: =INDEX($E$11:$ED$150,MATCH($FV18,$A$11:$A$150,0),IY$1) -> 0 | IZ18: =INDEX($E$11:$ED$150,MATCH($FV18,$A$11:$A$150,0),IZ$1) -> 0 | JA18: =INDEX($E$11:$ED$150,MATCH($FV18,$A$11:$A$150,0),JA$1) -> 0 | JB18: =INDEX($E$11:$ED$150,MATCH($FV18,$A$11:$A$150,0),JB$1) -> 0 | JC18: =INDEX($E$11:$ED$150,MATCH($FV18,$A$11:$A$150,0),JC$1) -> 0 | JD18: =INDEX($E$11:$ED$150,MATCH($FV18,$A$11:$A$150,0),JD$1) -> 0 | JE18: =INDEX($E$11:$ED$150,MATCH($FV18,$A$11:$A$150,0),JE$1) -> 0 | JF18: =INDEX($E$11:$ED$150,MATCH($FV18,$A$11:$A$150,0),JF$1) -> 0 | JG18: =INDEX($E$11:$ED$150,MATCH($FV18,$A$11:$A$150,0),JG$1) -> 0 | JH18: =INDEX($E$11:$ED$150,MATCH($FV18,$A$11:$A$150,0),JH$1) -> 0 | JI18: =INDEX($E$11:$ED$150,MATCH($FV18,$A$11:$A$150,0),JI$1) -> 0 | JJ18: =INDEX($E$11:$ED$150,MATCH($FV18,$A$11:$A$150,0),JJ$1) -> 0 | JK18: =INDEX($E$11:$ED$150,MATCH($FV18,$A$11:$A$150,0),JK$1) -> 0 | JL18: =INDEX($E$11:$ED$150,MATCH($FV18,$A$11:$A$150,0),JL$1) -> 0 | JM18: =INDEX($E$11:$ED$150,MATCH($FV18,$A$11:$A$150,0),JM$1) -> 0 | JN18: =INDEX($E$11:$ED$150,MATCH($FV18,$A$11:$A$150,0),JN$1) -> 0 | JO18: =INDEX($E$11:$ED$150,MATCH($FV18,$A$11:$A$150,0),JO$1) -> 0 | JP18: =INDEX($E$11:$ED$150,MATCH($FV18,$A$11:$A$150,0),JP$1) -> 0 | JQ18: =INDEX($E$11:$ED$150,MATCH($FV18,$A$11:$A$150,0),JQ$1) -> 0 | JR18: =INDEX($E$11:$ED$150,MATCH($FV18,$A$11:$A$150,0),JR$1) -> 0 | JS18: =INDEX($E$11:$ED$150,MATCH($FV18,$A$11:$A$150,0),JS$1) -> 0 | JT18: =INDEX($E$11:$ED$150,MATCH($FV18,$A$11:$A$150,0),JT$1) -> 0 | JU18: =INDEX($E$11:$ED$150,MATCH($FV18,$A$11:$A$150,0),JU$1) -> 0 | JV18: =INDEX($E$11:$ED$150,MATCH($FV18,$A$11:$A$150,0),JV$1) -> 0 | JW18: =INDEX($E$11:$ED$150,MATCH($FV18,$A$11:$A$150,0),JW$1) -> 0 | JX18: =INDEX($E$11:$ED$150,MATCH($FV18,$A$11:$A$150,0),JX$1) -> 0 | JY18: =INDEX($E$11:$ED$150,MATCH($FV18,$A$11:$A$150,0),JY$1) -> 0 | JZ18: =INDEX($E$11:$ED$150,MATCH($FV18,$A$11:$A$150,0),JZ$1) -> 0 | KA18: =INDEX($E$11:$ED$150,MATCH($FV18,$A$11:$A$150,0),KA$1) -> 0 | KB18: =INDEX($E$11:$ED$150,MATCH($FV18,$A$11:$A$150,0),KB$1) -> 0 | KC18: =INDEX($E$11:$ED$150,MATCH($FV18,$A$11:$A$150,0),KC$1) -> 0 | KD18: =INDEX($E$11:$ED$150,MATCH($FV18,$A$11:$A$150,0),KD$1) -> 0 | KE18: =INDEX($E$11:$ED$150,MATCH($FV18,$A$11:$A$150,0),KE$1) -> 0 | KF18: =INDEX($E$11:$ED$150,MATCH($FV18,$A$11:$A$150,0),KF$1) -> 0 | KG18: =INDEX($E$11:$ED$150,MATCH($FV18,$A$11:$A$150,0),KG$1) -> 0 | KH18: =INDEX($E$11:$ED$150,MATCH($FV18,$A$11:$A$150,0),KH$1) -> 0 | KI18: =INDEX($E$11:$ED$150,MATCH($FV18,$A$11:$A$150,0),KI$1) -> 0 | KJ18: =INDEX($E$11:$ED$150,MATCH($FV18,$A$11:$A$150,0),KJ$1) -> 0 | KK18: =INDEX($E$11:$ED$150,MATCH($FV18,$A$11:$A$150,0),KK$1) -> 0 | KL18: =INDEX($E$11:$ED$150,MATCH($FV18,$A$11:$A$150,0),KL$1) -> 0 | KM18: =INDEX($E$11:$ED$150,MATCH($FV18,$A$11:$A$150,0),KM$1) -> 0 | KN18: =INDEX($E$11:$ED$150,MATCH($FV18,$A$11:$A$150,0),KN$1) -> 0 | KO18: =INDEX($E$11:$ED$150,MATCH($FV18,$A$11:$A$150,0),KO$1) -> 0 | KP18: =INDEX($E$11:$ED$150,MATCH($FV18,$A$11:$A$150,0),KP$1) -> 0 | KQ18: =INDEX($E$11:$ED$150,MATCH($FV18,$A$11:$A$150,0),KQ$1) -> 0 | KR18: =INDEX($E$11:$ED$150,MATCH($FV18,$A$11:$A$150,0),KR$1) -> 0 | KS18: =INDEX($E$11:$ED$150,MATCH($FV18,$A$11:$A$150,0),KS$1) -> 0 | KT18: =INDEX($E$11:$ED$150,MATCH($FV18,$A$11:$A$150,0),KT$1) -> 0 | KU18: =INDEX($E$11:$ED$150,MATCH($FV18,$A$11:$A$150,0),KU$1) -> 0 | KV18: =INDEX($E$11:$ED$150,MATCH($FV18,$A$11:$A$150,0),KV$1) -> 0
A19: =CONCATENATE($C$13," ",$C$14,C19) -> Pavel PernekrPočet šipek (průměr den) | B19: =CONCATENATE(C13," ",C14) -> Pavel Pernekr | C19: =Tabulka!C20 -> Počet šipek (průměr den) | D19: Počet šipek | EE19: =IF(AND(SUM(Tabulka!$AG$13)>0.99,(SUM(Tabulka!$AH$17)<$EJ$1)),-50000+(SUM(E19:ED19)),IF(OR(SUM(Tabulka!$AG$13)<1),-90000,IF(SUM(E19:ED19)=ROUND(0,),-100,SUM(E19:ED19)))) -> -50000 | EG19: =IF(SUM(E19:ED19)=ROUND(0,),-100,EE19) -> -100 | EH19: =2*EG18 -> 125.625 | EI19: =EH19=EE18 -> FALSE | EJ19: =MIN(E19:ED19) -> 0 | EK19: 0 | EO19: =IF(COUNT(E19:ED19)=0,-100,COUNT(E19:ED19)) -> -100 | EP19: =IF(OR(SUM(Tabulka!$AG13)<1),-90000+INDEX(List4!$F$2:$F$17,MATCH(Přehled_body!B19,List4!$D$2:$D$17,0),1),IF(OR(AND(SUM(Tabulka!$AG13)>0.99,(SUM(Tabulka!$AH17)<$EJ$1))),-50000+MIN(IF(E19:ED19>0,E19:ED19)+INDEX(List4!$E$2:$E$17,MATCH(Přehled_body!B19,List4!$D$2:$D$17,0),1)),IFERROR(MIN(IF(E19:ED19>0,E19:ED19)),)))+INDEX(List4!$F$2:$F$17,MATCH(Přehled_body!B19,List4!$D$2:$D$17,0),1) -> -50000 | EQ19: =IF(OR(SUM(Tabulka!$AG13)<1),-90000+INDEX(List4!$E$2:$E$17,MATCH(Přehled_body!B19,List4!$D$2:$D$17,0),1),IF(OR(AND(SUM(Tabulka!$AG13)>0.99,(SUM(Tabulka!$AH$9)<$EJ$1)),Tabulka!AH17<Přehled_body!$EJ$1),-50000+(SUM(E19:ED19)),IF(EE19<9,1,EG19/EO19))+INDEX(List4!$E$2:$E$17,MATCH(Přehled_body!B19,List4!$D$2:$D$17,0),1)) -> -50000 | ER19: =IF(AND(SUM(Tabulka!$AG13)>0.99,(SUM(Tabulka!$AH$9)<$EJ$1)),-50000+(SUM(E19:ED19)),IF(OR(SUM(Tabulka!$AG13)<2),-90000,SUM(E19:ED19)))+INDEX(List4!$E$2:$E$17,MATCH(Přehled_body!B19,List4!$D$2:$D$17,0),1) -> 9e-08 | ES19: =IF(SUM(OFFSET($E19,0,ES$4,1,5))=0,"",AVERAGE(OFFSET($E19,0,ES$4,1,5))) ->  | EY19: =IF(SUM(OFFSET($E19,0,EY$4,1,5))=0,"",AVERAGE(OFFSET($E19,0,EY$4,1,5))) ->  | FT19: 120 | FV19: Iva IvankaPočet šipek (průměr den) | FW19: =INDEX($E$11:$ED$150,MATCH($FV19,$A$11:$A$150,0),FW$1) -> 0 | FX19: =INDEX($E$11:$ED$150,MATCH($FV19,$A$11:$A$150,0),FX$1) -> 0 | FY19: =INDEX($E$11:$ED$150,MATCH($FV19,$A$11:$A$150,0),FY$1) -> 0 | FZ19: =INDEX($E$11:$ED$150,MATCH($FV19,$A$11:$A$150,0),FZ$1) -> 0 | GA19: =INDEX($E$11:$ED$150,MATCH($FV19,$A$11:$A$150,0),GA$1) -> 0 | GB19: =INDEX($E$11:$ED$150,MATCH($FV19,$A$11:$A$150,0),GB$1) -> 0 | GC19: =INDEX($E$11:$ED$150,MATCH($FV19,$A$11:$A$150,0),GC$1) -> 0 | GD19: =INDEX($E$11:$ED$150,MATCH($FV19,$A$11:$A$150,0),GD$1) -> 0 | GE19: =INDEX($E$11:$ED$150,MATCH($FV19,$A$11:$A$150,0),GE$1) -> 0 | GF19: =INDEX($E$11:$ED$150,MATCH($FV19,$A$11:$A$150,0),GF$1) -> 0 | GG19: =INDEX($E$11:$ED$150,MATCH($FV19,$A$11:$A$150,0),GG$1) -> 0 | GH19: =INDEX($E$11:$ED$150,MATCH($FV19,$A$11:$A$150,0),GH$1) -> 0 | GI19: =INDEX($E$11:$ED$150,MATCH($FV19,$A$11:$A$150,0),GI$1) -> 0 | GJ19: =INDEX($E$11:$ED$150,MATCH($FV19,$A$11:$A$150,0),GJ$1) -> 0 | GK19: =INDEX($E$11:$ED$150,MATCH($FV19,$A$11:$A$150,0),GK$1) -> 0 | GL19: =INDEX($E$11:$ED$150,MATCH($FV19,$A$11:$A$150,0),GL$1) -> 0 | GM19: =INDEX($E$11:$ED$150,MATCH($FV19,$A$11:$A$150,0),GM$1) -> 0 | GN19: =INDEX($E$11:$ED$150,MATCH($FV19,$A$11:$A$150,0),GN$1) -> 0 | GO19: =INDEX($E$11:$ED$150,MATCH($FV19,$A$11:$A$150,0),GO$1) -> 0 | GP19: =INDEX($E$11:$ED$150,MATCH($FV19,$A$11:$A$150,0),GP$1) -> 0 | GQ19: =INDEX($E$11:$ED$150,MATCH($FV19,$A$11:$A$150,0),GQ$1) -> 0 | GR19: =INDEX($E$11:$ED$150,MATCH($FV19,$A$11:$A$150,0),GR$1) -> 0 | GS19: =INDEX($E$11:$ED$150,MATCH($FV19,$A$11:$A$150,0),GS$1) -> 0 | GT19: =INDEX($E$11:$ED$150,MATCH($FV19,$A$11:$A$150,0),GT$1) -> 0 | GU19: =INDEX($E$11:$ED$150,MATCH($FV19,$A$11:$A$150,0),GU$1) -> 0 | GV19: =INDEX($E$11:$ED$150,MATCH($FV19,$A$11:$A$150,0),GV$1) -> 0 | GW19: =INDEX($E$11:$ED$150,MATCH($FV19,$A$11:$A$150,0),GW$1) -> 0 | GX19: =INDEX($E$11:$ED$150,MATCH($FV19,$A$11:$A$150,0),GX$1) -> 0 | GY19: =INDEX($E$11:$ED$150,MATCH($FV19,$A$11:$A$150,0),GY$1) -> 0 | GZ19: =INDEX($E$11:$ED$150,MATCH($FV19,$A$11:$A$150,0),GZ$1) -> 0 | HA19: =INDEX($E$11:$ED$150,MATCH($FV19,$A$11:$A$150,0),HA$1) -> 0 | HB19: =INDEX($E$11:$ED$150,MATCH($FV19,$A$11:$A$150,0),HB$1) -> 0 | HC19: =INDEX($E$11:$ED$150,MATCH($FV19,$A$11:$A$150,0),HC$1) -> 0 | HD19: =INDEX($E$11:$ED$150,MATCH($FV19,$A$11:$A$150,0),HD$1) -> 0 | HE19: =INDEX($E$11:$ED$150,MATCH($FV19,$A$11:$A$150,0),HE$1) -> 0 | HF19: =INDEX($E$11:$ED$150,MATCH($FV19,$A$11:$A$150,0),HF$1) -> 0 | HG19: =INDEX($E$11:$ED$150,MATCH($FV19,$A$11:$A$150,0),HG$1) -> 0 | HH19: =INDEX($E$11:$ED$150,MATCH($FV19,$A$11:$A$150,0),HH$1) -> 0 | HI19: =INDEX($E$11:$ED$150,MATCH($FV19,$A$11:$A$150,0),HI$1) -> 0 | HJ19: =INDEX($E$11:$ED$150,MATCH($FV19,$A$11:$A$150,0),HJ$1) -> 0 | HK19: =INDEX($E$11:$ED$150,MATCH($FV19,$A$11:$A$150,0),HK$1) -> 0 | HL19: =INDEX($E$11:$ED$150,MATCH($FV19,$A$11:$A$150,0),HL$1) -> 0 | HM19: =INDEX($E$11:$ED$150,MATCH($FV19,$A$11:$A$150,0),HM$1) -> 0 | HN19: =INDEX($E$11:$ED$150,MATCH($FV19,$A$11:$A$150,0),HN$1) -> 0 | HO19: =INDEX($E$11:$ED$150,MATCH($FV19,$A$11:$A$150,0),HO$1) -> 0 | HP19: =INDEX($E$11:$ED$150,MATCH($FV19,$A$11:$A$150,0),HP$1) -> 0 | HQ19: =INDEX($E$11:$ED$150,MATCH($FV19,$A$11:$A$150,0),HQ$1) -> 0 | HR19: =INDEX($E$11:$ED$150,MATCH($FV19,$A$11:$A$150,0),HR$1) -> 0 | HS19: =INDEX($E$11:$ED$150,MATCH($FV19,$A$11:$A$150,0),HS$1) -> 0 | HT19: =INDEX($E$11:$ED$150,MATCH($FV19,$A$11:$A$150,0),HT$1) -> 0 | HU19: =INDEX($E$11:$ED$150,MATCH($FV19,$A$11:$A$150,0),HU$1) -> 0 | HV19: =INDEX($E$11:$ED$150,MATCH($FV19,$A$11:$A$150,0),HV$1) -> 0 | HW19: =INDEX($E$11:$ED$150,MATCH($FV19,$A$11:$A$150,0),HW$1) -> 0 | HX19: =INDEX($E$11:$ED$150,MATCH($FV19,$A$11:$A$150,0),HX$1) -> 0 | HY19: =INDEX($E$11:$ED$150,MATCH($FV19,$A$11:$A$150,0),HY$1) -> 0 | HZ19: =INDEX($E$11:$ED$150,MATCH($FV19,$A$11:$A$150,0),HZ$1) -> 0 | IA19: =INDEX($E$11:$ED$150,MATCH($FV19,$A$11:$A$150,0),IA$1) -> 0 | IB19: =INDEX($E$11:$ED$150,MATCH($FV19,$A$11:$A$150,0),IB$1) -> 0 | IC19: =INDEX($E$11:$ED$150,MATCH($FV19,$A$11:$A$150,0),IC$1) -> 0 | ID19: =INDEX($E$11:$ED$150,MATCH($FV19,$A$11:$A$150,0),ID$1) -> 0 | IE19: =INDEX($E$11:$ED$150,MATCH($FV19,$A$11:$A$150,0),IE$1) -> 0 | IF19: =INDEX($E$11:$ED$150,MATCH($FV19,$A$11:$A$150,0),IF$1) -> 0 | IG19: =INDEX($E$11:$ED$150,MATCH($FV19,$A$11:$A$150,0),IG$1) -> 0 | IH19: =INDEX($E$11:$ED$150,MATCH($FV19,$A$11:$A$150,0),IH$1) -> 0 | II19: =INDEX($E$11:$ED$150,MATCH($FV19,$A$11:$A$150,0),II$1) -> 0 | IJ19: =INDEX($E$11:$ED$150,MATCH($FV19,$A$11:$A$150,0),IJ$1) -> 0 | IK19: =INDEX($E$11:$ED$150,MATCH($FV19,$A$11:$A$150,0),IK$1) -> 0 | IL19: =INDEX($E$11:$ED$150,MATCH($FV19,$A$11:$A$150,0),IL$1) -> 0 | IM19: =INDEX($E$11:$ED$150,MATCH($FV19,$A$11:$A$150,0),IM$1) -> 0 | IN19: =INDEX($E$11:$ED$150,MATCH($FV19,$A$11:$A$150,0),IN$1) -> 0 | IO19: =INDEX($E$11:$ED$150,MATCH($FV19,$A$11:$A$150,0),IO$1) -> 0 | IP19: =INDEX($E$11:$ED$150,MATCH($FV19,$A$11:$A$150,0),IP$1) -> 0 | IQ19: =INDEX($E$11:$ED$150,MATCH($FV19,$A$11:$A$150,0),IQ$1) -> 0 | IR19: =INDEX($E$11:$ED$150,MATCH($FV19,$A$11:$A$150,0),IR$1) -> 0 | IS19: =INDEX($E$11:$ED$150,MATCH($FV19,$A$11:$A$150,0),IS$1) -> 0 | IT19: =INDEX($E$11:$ED$150,MATCH($FV19,$A$11:$A$150,0),IT$1) -> 0 | IU19: =INDEX($E$11:$ED$150,MATCH($FV19,$A$11:$A$150,0),IU$1) -> 0 | IV19: =INDEX($E$11:$ED$150,MATCH($FV19,$A$11:$A$150,0),IV$1) -> 0 | IW19: =INDEX($E$11:$ED$150,MATCH($FV19,$A$11:$A$150,0),IW$1) -> 0 | IX19: =INDEX($E$11:$ED$150,MATCH($FV19,$A$11:$A$150,0),IX$1) -> 0 | IY19: =INDEX($E$11:$ED$150,MATCH($FV19,$A$11:$A$150,0),IY$1) -> 0 | IZ19: =INDEX($E$11:$ED$150,MATCH($FV19,$A$11:$A$150,0),IZ$1) -> 0 | JA19: =INDEX($E$11:$ED$150,MATCH($FV19,$A$11:$A$150,0),JA$1) -> 0 | JB19: =INDEX($E$11:$ED$150,MATCH($FV19,$A$11:$A$150,0),JB$1) -> 0 | JC19: =INDEX($E$11:$ED$150,MATCH($FV19,$A$11:$A$150,0),JC$1) -> 0 | JD19: =INDEX($E$11:$ED$150,MATCH($FV19,$A$11:$A$150,0),JD$1) -> 0 | JE19: =INDEX($E$11:$ED$150,MATCH($FV19,$A$11:$A$150,0),JE$1) -> 0 | JF19: =INDEX($E$11:$ED$150,MATCH($FV19,$A$11:$A$150,0),JF$1) -> 0 | JG19: =INDEX($E$11:$ED$150,MATCH($FV19,$A$11:$A$150,0),JG$1) -> 0 | JH19: =INDEX($E$11:$ED$150,MATCH($FV19,$A$11:$A$150,0),JH$1) -> 0 | JI19: =INDEX($E$11:$ED$150,MATCH($FV19,$A$11:$A$150,0),JI$1) -> 0 | JJ19: =INDEX($E$11:$ED$150,MATCH($FV19,$A$11:$A$150,0),JJ$1) -> 0 | JK19: =INDEX($E$11:$ED$150,MATCH($FV19,$A$11:$A$150,0),JK$1) -> 0 | JL19: =INDEX($E$11:$ED$150,MATCH($FV19,$A$11:$A$150,0),JL$1) -> 0 | JM19: =INDEX($E$11:$ED$150,MATCH($FV19,$A$11:$A$150,0),JM$1) -> 0 | JN19: =INDEX($E$11:$ED$150,MATCH($FV19,$A$11:$A$150,0),JN$1) -> 0 | JO19: =INDEX($E$11:$ED$150,MATCH($FV19,$A$11:$A$150,0),JO$1) -> 0 | JP19: =INDEX($E$11:$ED$150,MATCH($FV19,$A$11:$A$150,0),JP$1) -> 0 | JQ19: =INDEX($E$11:$ED$150,MATCH($FV19,$A$11:$A$150,0),JQ$1) -> 0 | JR19: =INDEX($E$11:$ED$150,MATCH($FV19,$A$11:$A$150,0),JR$1) -> 0 | JS19: =INDEX($E$11:$ED$150,MATCH($FV19,$A$11:$A$150,0),JS$1) -> 0 | JT19: =INDEX($E$11:$ED$150,MATCH($FV19,$A$11:$A$150,0),JT$1) -> 0 | JU19: =INDEX($E$11:$ED$150,MATCH($FV19,$A$11:$A$150,0),JU$1) -> 0 | JV19: =INDEX($E$11:$ED$150,MATCH($FV19,$A$11:$A$150,0),JV$1) -> 0 | JW19: =INDEX($E$11:$ED$150,MATCH($FV19,$A$11:$A$150,0),JW$1) -> 0 | JX19: =INDEX($E$11:$ED$150,MATCH($FV19,$A$11:$A$150,0),JX$1) -> 0 | JY19: =INDEX($E$11:$ED$150,MATCH($FV19,$A$11:$A$150,0),JY$1) -> 0 | JZ19: =INDEX($E$11:$ED$150,MATCH($FV19,$A$11:$A$150,0),JZ$1) -> 0 | KA19: =INDEX($E$11:$ED$150,MATCH($FV19,$A$11:$A$150,0),KA$1) -> 0 | KB19: =INDEX($E$11:$ED$150,MATCH($FV19,$A$11:$A$150,0),KB$1) -> 0 | KC19: =INDEX($E$11:$ED$150,MATCH($FV19,$A$11:$A$150,0),KC$1) -> 0 | KD19: =INDEX($E$11:$ED$150,MATCH($FV19,$A$11:$A$150,0),KD$1) -> 0 | KE19: =INDEX($E$11:$ED$150,MATCH($FV19,$A$11:$A$150,0),KE$1) -> 0 | KF19: =INDEX($E$11:$ED$150,MATCH($FV19,$A$11:$A$150,0),KF$1) -> 0 | KG19: =INDEX($E$11:$ED$150,MATCH($FV19,$A$11:$A$150,0),KG$1) -> 0 | KH19: =INDEX($E$11:$ED$150,MATCH($FV19,$A$11:$A$150,0),KH$1) -> 0 | KI19: =INDEX($E$11:$ED$150,MATCH($FV19,$A$11:$A$150,0),KI$1) -> 0 | KJ19: =INDEX($E$11:$ED$150,MATCH($FV19,$A$11:$A$150,0),KJ$1) -> 0 | KK19: =INDEX($E$11:$ED$150,MATCH($FV19,$A$11:$A$150,0),KK$1) -> 0 | KL19: =INDEX($E$11:$ED$150,MATCH($FV19,$A$11:$A$150,0),KL$1) -> 0 | KM19: =INDEX($E$11:$ED$150,MATCH($FV19,$A$11:$A$150,0),KM$1) -> 0 | KN19: =INDEX($E$11:$ED$150,MATCH($FV19,$A$11:$A$150,0),KN$1) -> 0 | KO19: =INDEX($E$11:$ED$150,MATCH($FV19,$A$11:$A$150,0),KO$1) -> 0 | KP19: =INDEX($E$11:$ED$150,MATCH($FV19,$A$11:$A$150,0),KP$1) -> 0 | KQ19: =INDEX($E$11:$ED$150,MATCH($FV19,$A$11:$A$150,0),KQ$1) -> 0 | KR19: =INDEX($E$11:$ED$150,MATCH($FV19,$A$11:$A$150,0),KR$1) -> 0 | KS19: =INDEX($E$11:$ED$150,MATCH($FV19,$A$11:$A$150,0),KS$1) -> 0 | KT19: =INDEX($E$11:$ED$150,MATCH($FV19,$A$11:$A$150,0),KT$1) -> 0 | KU19: =INDEX($E$11:$ED$150,MATCH($FV19,$A$11:$A$150,0),KU$1) -> 0 | KV19: =INDEX($E$11:$ED$150,MATCH($FV19,$A$11:$A$150,0),KV$1) -> 0
A20: =CONCATENATE($C$21," ",$C$22,D20) -> Kuba ŠedivýVýhry | B20: =CONCATENATE(C21," ",C22) -> Kuba Šedivý | C20: =Tabulka!A21 -> 3 | D20: =Tabulka!C21 -> Výhry | J20: 1 | O20: 1 | AD20: 1 | AI20: 3 | AX20: 1 | BR20: 1 | CB20: 0 | CG20: 1 | CQ20: 0 | DA20: 1 | DK20: 2 | EE20: =IF(AND(SUM(Tabulka!$AG$21)>0.99,(SUM(Tabulka!$AH$25)<$EJ$1)),-50000+(SUM(E20:ED20)),IF(OR(SUM(Tabulka!$AG$21)<2),-90000,SUM(E20:ED20))) -> 12 | EG20: =SUM(E20:ED20) -> 12 | EL20: =Tabulka!A21 -> 3 | FT20: 128 | FV20: Jmeno Z1_PříjmeníPočet šipek (průměr den) | FW20: =INDEX($E$11:$ED$150,MATCH($FV20,$A$11:$A$150,0),FW$1) -> 0 | FX20: =INDEX($E$11:$ED$150,MATCH($FV20,$A$11:$A$150,0),FX$1) -> 0 | FY20: =INDEX($E$11:$ED$150,MATCH($FV20,$A$11:$A$150,0),FY$1) -> 0 | FZ20: =INDEX($E$11:$ED$150,MATCH($FV20,$A$11:$A$150,0),FZ$1) -> 0 | GA20: =INDEX($E$11:$ED$150,MATCH($FV20,$A$11:$A$150,0),GA$1) -> 0 | GB20: =INDEX($E$11:$ED$150,MATCH($FV20,$A$11:$A$150,0),GB$1) -> 0 | GC20: =INDEX($E$11:$ED$150,MATCH($FV20,$A$11:$A$150,0),GC$1) -> 0 | GD20: =INDEX($E$11:$ED$150,MATCH($FV20,$A$11:$A$150,0),GD$1) -> 0 | GE20: =INDEX($E$11:$ED$150,MATCH($FV20,$A$11:$A$150,0),GE$1) -> 0 | GF20: =INDEX($E$11:$ED$150,MATCH($FV20,$A$11:$A$150,0),GF$1) -> 0 | GG20: =INDEX($E$11:$ED$150,MATCH($FV20,$A$11:$A$150,0),GG$1) -> 0 | GH20: =INDEX($E$11:$ED$150,MATCH($FV20,$A$11:$A$150,0),GH$1) -> 0 | GI20: =INDEX($E$11:$ED$150,MATCH($FV20,$A$11:$A$150,0),GI$1) -> 0 | GJ20: =INDEX($E$11:$ED$150,MATCH($FV20,$A$11:$A$150,0),GJ$1) -> 0 | GK20: =INDEX($E$11:$ED$150,MATCH($FV20,$A$11:$A$150,0),GK$1) -> 0 | GL20: =INDEX($E$11:$ED$150,MATCH($FV20,$A$11:$A$150,0),GL$1) -> 0 | GM20: =INDEX($E$11:$ED$150,MATCH($FV20,$A$11:$A$150,0),GM$1) -> 0 | GN20: =INDEX($E$11:$ED$150,MATCH($FV20,$A$11:$A$150,0),GN$1) -> 0 | GO20: =INDEX($E$11:$ED$150,MATCH($FV20,$A$11:$A$150,0),GO$1) -> 0 | GP20: =INDEX($E$11:$ED$150,MATCH($FV20,$A$11:$A$150,0),GP$1) -> 0 | GQ20: =INDEX($E$11:$ED$150,MATCH($FV20,$A$11:$A$150,0),GQ$1) -> 0 | GR20: =INDEX($E$11:$ED$150,MATCH($FV20,$A$11:$A$150,0),GR$1) -> 0 | GS20: =INDEX($E$11:$ED$150,MATCH($FV20,$A$11:$A$150,0),GS$1) -> 0 | GT20: =INDEX($E$11:$ED$150,MATCH($FV20,$A$11:$A$150,0),GT$1) -> 0 | GU20: =INDEX($E$11:$ED$150,MATCH($FV20,$A$11:$A$150,0),GU$1) -> 0 | GV20: =INDEX($E$11:$ED$150,MATCH($FV20,$A$11:$A$150,0),GV$1) -> 0 | GW20: =INDEX($E$11:$ED$150,MATCH($FV20,$A$11:$A$150,0),GW$1) -> 0 | GX20: =INDEX($E$11:$ED$150,MATCH($FV20,$A$11:$A$150,0),GX$1) -> 0 | GY20: =INDEX($E$11:$ED$150,MATCH($FV20,$A$11:$A$150,0),GY$1) -> 0 | GZ20: =INDEX($E$11:$ED$150,MATCH($FV20,$A$11:$A$150,0),GZ$1) -> 0 | HA20: =INDEX($E$11:$ED$150,MATCH($FV20,$A$11:$A$150,0),HA$1) -> 0 | HB20: =INDEX($E$11:$ED$150,MATCH($FV20,$A$11:$A$150,0),HB$1) -> 0 | HC20: =INDEX($E$11:$ED$150,MATCH($FV20,$A$11:$A$150,0),HC$1) -> 0 | HD20: =INDEX($E$11:$ED$150,MATCH($FV20,$A$11:$A$150,0),HD$1) -> 0 | HE20: =INDEX($E$11:$ED$150,MATCH($FV20,$A$11:$A$150,0),HE$1) -> 0 | HF20: =INDEX($E$11:$ED$150,MATCH($FV20,$A$11:$A$150,0),HF$1) -> 0 | HG20: =INDEX($E$11:$ED$150,MATCH($FV20,$A$11:$A$150,0),HG$1) -> 0 | HH20: =INDEX($E$11:$ED$150,MATCH($FV20,$A$11:$A$150,0),HH$1) -> 0 | HI20: =INDEX($E$11:$ED$150,MATCH($FV20,$A$11:$A$150,0),HI$1) -> 0 | HJ20: =INDEX($E$11:$ED$150,MATCH($FV20,$A$11:$A$150,0),HJ$1) -> 0 | HK20: =INDEX($E$11:$ED$150,MATCH($FV20,$A$11:$A$150,0),HK$1) -> 0 | HL20: =INDEX($E$11:$ED$150,MATCH($FV20,$A$11:$A$150,0),HL$1) -> 0 | HM20: =INDEX($E$11:$ED$150,MATCH($FV20,$A$11:$A$150,0),HM$1) -> 0 | HN20: =INDEX($E$11:$ED$150,MATCH($FV20,$A$11:$A$150,0),HN$1) -> 0 | HO20: =INDEX($E$11:$ED$150,MATCH($FV20,$A$11:$A$150,0),HO$1) -> 0 | HP20: =INDEX($E$11:$ED$150,MATCH($FV20,$A$11:$A$150,0),HP$1) -> 0 | HQ20: =INDEX($E$11:$ED$150,MATCH($FV20,$A$11:$A$150,0),HQ$1) -> 0 | HR20: =INDEX($E$11:$ED$150,MATCH($FV20,$A$11:$A$150,0),HR$1) -> 0 | HS20: =INDEX($E$11:$ED$150,MATCH($FV20,$A$11:$A$150,0),HS$1) -> 0 | HT20: =INDEX($E$11:$ED$150,MATCH($FV20,$A$11:$A$150,0),HT$1) -> 0 | HU20: =INDEX($E$11:$ED$150,MATCH($FV20,$A$11:$A$150,0),HU$1) -> 0 | HV20: =INDEX($E$11:$ED$150,MATCH($FV20,$A$11:$A$150,0),HV$1) -> 0 | HW20: =INDEX($E$11:$ED$150,MATCH($FV20,$A$11:$A$150,0),HW$1) -> 0 | HX20: =INDEX($E$11:$ED$150,MATCH($FV20,$A$11:$A$150,0),HX$1) -> 0 | HY20: =INDEX($E$11:$ED$150,MATCH($FV20,$A$11:$A$150,0),HY$1) -> 0 | HZ20: =INDEX($E$11:$ED$150,MATCH($FV20,$A$11:$A$150,0),HZ$1) -> 0 | IA20: =INDEX($E$11:$ED$150,MATCH($FV20,$A$11:$A$150,0),IA$1) -> 0 | IB20: =INDEX($E$11:$ED$150,MATCH($FV20,$A$11:$A$150,0),IB$1) -> 0 | IC20: =INDEX($E$11:$ED$150,MATCH($FV20,$A$11:$A$150,0),IC$1) -> 0 | ID20: =INDEX($E$11:$ED$150,MATCH($FV20,$A$11:$A$150,0),ID$1) -> 0 | IE20: =INDEX($E$11:$ED$150,MATCH($FV20,$A$11:$A$150,0),IE$1) -> 0 | IF20: =INDEX($E$11:$ED$150,MATCH($FV20,$A$11:$A$150,0),IF$1) -> 0 | IG20: =INDEX($E$11:$ED$150,MATCH($FV20,$A$11:$A$150,0),IG$1) -> 0 | IH20: =INDEX($E$11:$ED$150,MATCH($FV20,$A$11:$A$150,0),IH$1) -> 0 | II20: =INDEX($E$11:$ED$150,MATCH($FV20,$A$11:$A$150,0),II$1) -> 0 | IJ20: =INDEX($E$11:$ED$150,MATCH($FV20,$A$11:$A$150,0),IJ$1) -> 0 | IK20: =INDEX($E$11:$ED$150,MATCH($FV20,$A$11:$A$150,0),IK$1) -> 0 | IL20: =INDEX($E$11:$ED$150,MATCH($FV20,$A$11:$A$150,0),IL$1) -> 0 | IM20: =INDEX($E$11:$ED$150,MATCH($FV20,$A$11:$A$150,0),IM$1) -> 0 | IN20: =INDEX($E$11:$ED$150,MATCH($FV20,$A$11:$A$150,0),IN$1) -> 0 | IO20: =INDEX($E$11:$ED$150,MATCH($FV20,$A$11:$A$150,0),IO$1) -> 0 | IP20: =INDEX($E$11:$ED$150,MATCH($FV20,$A$11:$A$150,0),IP$1) -> 0 | IQ20: =INDEX($E$11:$ED$150,MATCH($FV20,$A$11:$A$150,0),IQ$1) -> 0 | IR20: =INDEX($E$11:$ED$150,MATCH($FV20,$A$11:$A$150,0),IR$1) -> 0 | IS20: =INDEX($E$11:$ED$150,MATCH($FV20,$A$11:$A$150,0),IS$1) -> 0 | IT20: =INDEX($E$11:$ED$150,MATCH($FV20,$A$11:$A$150,0),IT$1) -> 0 | IU20: =INDEX($E$11:$ED$150,MATCH($FV20,$A$11:$A$150,0),IU$1) -> 0 | IV20: =INDEX($E$11:$ED$150,MATCH($FV20,$A$11:$A$150,0),IV$1) -> 0 | IW20: =INDEX($E$11:$ED$150,MATCH($FV20,$A$11:$A$150,0),IW$1) -> 0 | IX20: =INDEX($E$11:$ED$150,MATCH($FV20,$A$11:$A$150,0),IX$1) -> 0 | IY20: =INDEX($E$11:$ED$150,MATCH($FV20,$A$11:$A$150,0),IY$1) -> 0 | IZ20: =INDEX($E$11:$ED$150,MATCH($FV20,$A$11:$A$150,0),IZ$1) -> 0 | JA20: =INDEX($E$11:$ED$150,MATCH($FV20,$A$11:$A$150,0),JA$1) -> 0 | JB20: =INDEX($E$11:$ED$150,MATCH($FV20,$A$11:$A$150,0),JB$1) -> 0 | JC20: =INDEX($E$11:$ED$150,MATCH($FV20,$A$11:$A$150,0),JC$1) -> 0 | JD20: =INDEX($E$11:$ED$150,MATCH($FV20,$A$11:$A$150,0),JD$1) -> 0 | JE20: =INDEX($E$11:$ED$150,MATCH($FV20,$A$11:$A$150,0),JE$1) -> 0 | JF20: =INDEX($E$11:$ED$150,MATCH($FV20,$A$11:$A$150,0),JF$1) -> 0 | JG20: =INDEX($E$11:$ED$150,MATCH($FV20,$A$11:$A$150,0),JG$1) -> 0 | JH20: =INDEX($E$11:$ED$150,MATCH($FV20,$A$11:$A$150,0),JH$1) -> 0 | JI20: =INDEX($E$11:$ED$150,MATCH($FV20,$A$11:$A$150,0),JI$1) -> 0 | JJ20: =INDEX($E$11:$ED$150,MATCH($FV20,$A$11:$A$150,0),JJ$1) -> 0 | JK20: =INDEX($E$11:$ED$150,MATCH($FV20,$A$11:$A$150,0),JK$1) -> 0 | JL20: =INDEX($E$11:$ED$150,MATCH($FV20,$A$11:$A$150,0),JL$1) -> 0 | JM20: =INDEX($E$11:$ED$150,MATCH($FV20,$A$11:$A$150,0),JM$1) -> 0 | JN20: =INDEX($E$11:$ED$150,MATCH($FV20,$A$11:$A$150,0),JN$1) -> 0 | JO20: =INDEX($E$11:$ED$150,MATCH($FV20,$A$11:$A$150,0),JO$1) -> 0 | JP20: =INDEX($E$11:$ED$150,MATCH($FV20,$A$11:$A$150,0),JP$1) -> 0 | JQ20: =INDEX($E$11:$ED$150,MATCH($FV20,$A$11:$A$150,0),JQ$1) -> 0 | JR20: =INDEX($E$11:$ED$150,MATCH($FV20,$A$11:$A$150,0),JR$1) -> 0 | JS20: =INDEX($E$11:$ED$150,MATCH($FV20,$A$11:$A$150,0),JS$1) -> 0 | JT20: =INDEX($E$11:$ED$150,MATCH($FV20,$A$11:$A$150,0),JT$1) -> 0 | JU20: =INDEX($E$11:$ED$150,MATCH($FV20,$A$11:$A$150,0),JU$1) -> 0 | JV20: =INDEX($E$11:$ED$150,MATCH($FV20,$A$11:$A$150,0),JV$1) -> 0 | JW20: =INDEX($E$11:$ED$150,MATCH($FV20,$A$11:$A$150,0),JW$1) -> 0 | JX20: =INDEX($E$11:$ED$150,MATCH($FV20,$A$11:$A$150,0),JX$1) -> 0 | JY20: =INDEX($E$11:$ED$150,MATCH($FV20,$A$11:$A$150,0),JY$1) -> 0 | JZ20: =INDEX($E$11:$ED$150,MATCH($FV20,$A$11:$A$150,0),JZ$1) -> 0 | KA20: =INDEX($E$11:$ED$150,MATCH($FV20,$A$11:$A$150,0),KA$1) -> 0 | KB20: =INDEX($E$11:$ED$150,MATCH($FV20,$A$11:$A$150,0),KB$1) -> 0 | KC20: =INDEX($E$11:$ED$150,MATCH($FV20,$A$11:$A$150,0),KC$1) -> 0 | KD20: =INDEX($E$11:$ED$150,MATCH($FV20,$A$11:$A$150,0),KD$1) -> 0 | KE20: =INDEX($E$11:$ED$150,MATCH($FV20,$A$11:$A$150,0),KE$1) -> 0 | KF20: =INDEX($E$11:$ED$150,MATCH($FV20,$A$11:$A$150,0),KF$1) -> 0 | KG20: =INDEX($E$11:$ED$150,MATCH($FV20,$A$11:$A$150,0),KG$1) -> 0 | KH20: =INDEX($E$11:$ED$150,MATCH($FV20,$A$11:$A$150,0),KH$1) -> 0 | KI20: =INDEX($E$11:$ED$150,MATCH($FV20,$A$11:$A$150,0),KI$1) -> 0 | KJ20: =INDEX($E$11:$ED$150,MATCH($FV20,$A$11:$A$150,0),KJ$1) -> 0 | KK20: =INDEX($E$11:$ED$150,MATCH($FV20,$A$11:$A$150,0),KK$1) -> 0 | KL20: =INDEX($E$11:$ED$150,MATCH($FV20,$A$11:$A$150,0),KL$1) -> 0 | KM20: =INDEX($E$11:$ED$150,MATCH($FV20,$A$11:$A$150,0),KM$1) -> 0 | KN20: =INDEX($E$11:$ED$150,MATCH($FV20,$A$11:$A$150,0),KN$1) -> 0 | KO20: =INDEX($E$11:$ED$150,MATCH($FV20,$A$11:$A$150,0),KO$1) -> 0 | KP20: =INDEX($E$11:$ED$150,MATCH($FV20,$A$11:$A$150,0),KP$1) -> 0 | KQ20: =INDEX($E$11:$ED$150,MATCH($FV20,$A$11:$A$150,0),KQ$1) -> 0 | KR20: =INDEX($E$11:$ED$150,MATCH($FV20,$A$11:$A$150,0),KR$1) -> 0 | KS20: =INDEX($E$11:$ED$150,MATCH($FV20,$A$11:$A$150,0),KS$1) -> 0 | KT20: =INDEX($E$11:$ED$150,MATCH($FV20,$A$11:$A$150,0),KT$1) -> 0 | KU20: =INDEX($E$11:$ED$150,MATCH($FV20,$A$11:$A$150,0),KU$1) -> 0 | KV20: =INDEX($E$11:$ED$150,MATCH($FV20,$A$11:$A$150,0),KV$1) -> 0
A21: Kuba ŠedivýProhry | B21: =CONCATENATE(C21," ",C22) -> Kuba Šedivý | C21: =Tabulka!B22 -> Kuba | D21: =Tabulka!C22 -> Prohry | J21: 0 | O21: 0 | AD21: 0 | AI21: 0 | AX21: 0 | BR21: 0 | CB21: 2 | CG21: 0 | CQ21: 1 | DA21: 1 | DK21: 0 | EE21: =IF(AND(SUM(Tabulka!$AG$21)>0.99,(SUM(Tabulka!$AH$25)<$EJ$1)),-50000+(SUM(E21:ED21)),IF(OR(SUM(Tabulka!$AG$21)<2),-90000,SUM(E21:ED21))) -> 4 | EF21: =SUM(EE20-EE21) -> 8 | EG21: 4 | EL21: =Tabulka!B22 -> Kuba | FT21: 136 | FV21: Jméno Z2_PříjmeníPočet šipek (průměr den) | FW21: =INDEX($E$11:$ED$150,MATCH($FV21,$A$11:$A$150,0),FW$1) -> 0 | FX21: =INDEX($E$11:$ED$150,MATCH($FV21,$A$11:$A$150,0),FX$1) -> 0 | FY21: =INDEX($E$11:$ED$150,MATCH($FV21,$A$11:$A$150,0),FY$1) -> 0 | FZ21: =INDEX($E$11:$ED$150,MATCH($FV21,$A$11:$A$150,0),FZ$1) -> 0 | GA21: =INDEX($E$11:$ED$150,MATCH($FV21,$A$11:$A$150,0),GA$1) -> 0 | GB21: =INDEX($E$11:$ED$150,MATCH($FV21,$A$11:$A$150,0),GB$1) -> 0 | GC21: =INDEX($E$11:$ED$150,MATCH($FV21,$A$11:$A$150,0),GC$1) -> 0 | GD21: =INDEX($E$11:$ED$150,MATCH($FV21,$A$11:$A$150,0),GD$1) -> 0 | GE21: =INDEX($E$11:$ED$150,MATCH($FV21,$A$11:$A$150,0),GE$1) -> 0 | GF21: =INDEX($E$11:$ED$150,MATCH($FV21,$A$11:$A$150,0),GF$1) -> 0 | GG21: =INDEX($E$11:$ED$150,MATCH($FV21,$A$11:$A$150,0),GG$1) -> 0 | GH21: =INDEX($E$11:$ED$150,MATCH($FV21,$A$11:$A$150,0),GH$1) -> 0 | GI21: =INDEX($E$11:$ED$150,MATCH($FV21,$A$11:$A$150,0),GI$1) -> 0 | GJ21: =INDEX($E$11:$ED$150,MATCH($FV21,$A$11:$A$150,0),GJ$1) -> 0 | GK21: =INDEX($E$11:$ED$150,MATCH($FV21,$A$11:$A$150,0),GK$1) -> 0 | GL21: =INDEX($E$11:$ED$150,MATCH($FV21,$A$11:$A$150,0),GL$1) -> 0 | GM21: =INDEX($E$11:$ED$150,MATCH($FV21,$A$11:$A$150,0),GM$1) -> 0 | GN21: =INDEX($E$11:$ED$150,MATCH($FV21,$A$11:$A$150,0),GN$1) -> 0 | GO21: =INDEX($E$11:$ED$150,MATCH($FV21,$A$11:$A$150,0),GO$1) -> 0 | GP21: =INDEX($E$11:$ED$150,MATCH($FV21,$A$11:$A$150,0),GP$1) -> 0 | GQ21: =INDEX($E$11:$ED$150,MATCH($FV21,$A$11:$A$150,0),GQ$1) -> 0 | GR21: =INDEX($E$11:$ED$150,MATCH($FV21,$A$11:$A$150,0),GR$1) -> 0 | GS21: =INDEX($E$11:$ED$150,MATCH($FV21,$A$11:$A$150,0),GS$1) -> 0 | GT21: =INDEX($E$11:$ED$150,MATCH($FV21,$A$11:$A$150,0),GT$1) -> 0 | GU21: =INDEX($E$11:$ED$150,MATCH($FV21,$A$11:$A$150,0),GU$1) -> 0 | GV21: =INDEX($E$11:$ED$150,MATCH($FV21,$A$11:$A$150,0),GV$1) -> 0 | GW21: =INDEX($E$11:$ED$150,MATCH($FV21,$A$11:$A$150,0),GW$1) -> 0 | GX21: =INDEX($E$11:$ED$150,MATCH($FV21,$A$11:$A$150,0),GX$1) -> 0 | GY21: =INDEX($E$11:$ED$150,MATCH($FV21,$A$11:$A$150,0),GY$1) -> 0 | GZ21: =INDEX($E$11:$ED$150,MATCH($FV21,$A$11:$A$150,0),GZ$1) -> 0 | HA21: =INDEX($E$11:$ED$150,MATCH($FV21,$A$11:$A$150,0),HA$1) -> 0 | HB21: =INDEX($E$11:$ED$150,MATCH($FV21,$A$11:$A$150,0),HB$1) -> 0 | HC21: =INDEX($E$11:$ED$150,MATCH($FV21,$A$11:$A$150,0),HC$1) -> 0 | HD21: =INDEX($E$11:$ED$150,MATCH($FV21,$A$11:$A$150,0),HD$1) -> 0 | HE21: =INDEX($E$11:$ED$150,MATCH($FV21,$A$11:$A$150,0),HE$1) -> 0 | HF21: =INDEX($E$11:$ED$150,MATCH($FV21,$A$11:$A$150,0),HF$1) -> 0 | HG21: =INDEX($E$11:$ED$150,MATCH($FV21,$A$11:$A$150,0),HG$1) -> 0 | HH21: =INDEX($E$11:$ED$150,MATCH($FV21,$A$11:$A$150,0),HH$1) -> 0 | HI21: =INDEX($E$11:$ED$150,MATCH($FV21,$A$11:$A$150,0),HI$1) -> 0 | HJ21: =INDEX($E$11:$ED$150,MATCH($FV21,$A$11:$A$150,0),HJ$1) -> 0 | HK21: =INDEX($E$11:$ED$150,MATCH($FV21,$A$11:$A$150,0),HK$1) -> 0 | HL21: =INDEX($E$11:$ED$150,MATCH($FV21,$A$11:$A$150,0),HL$1) -> 0 | HM21: =INDEX($E$11:$ED$150,MATCH($FV21,$A$11:$A$150,0),HM$1) -> 0 | HN21: =INDEX($E$11:$ED$150,MATCH($FV21,$A$11:$A$150,0),HN$1) -> 0 | HO21: =INDEX($E$11:$ED$150,MATCH($FV21,$A$11:$A$150,0),HO$1) -> 0 | HP21: =INDEX($E$11:$ED$150,MATCH($FV21,$A$11:$A$150,0),HP$1) -> 0 | HQ21: =INDEX($E$11:$ED$150,MATCH($FV21,$A$11:$A$150,0),HQ$1) -> 0 | HR21: =INDEX($E$11:$ED$150,MATCH($FV21,$A$11:$A$150,0),HR$1) -> 0 | HS21: =INDEX($E$11:$ED$150,MATCH($FV21,$A$11:$A$150,0),HS$1) -> 0 | HT21: =INDEX($E$11:$ED$150,MATCH($FV21,$A$11:$A$150,0),HT$1) -> 0 | HU21: =INDEX($E$11:$ED$150,MATCH($FV21,$A$11:$A$150,0),HU$1) -> 0 | HV21: =INDEX($E$11:$ED$150,MATCH($FV21,$A$11:$A$150,0),HV$1) -> 0 | HW21: =INDEX($E$11:$ED$150,MATCH($FV21,$A$11:$A$150,0),HW$1) -> 0 | HX21: =INDEX($E$11:$ED$150,MATCH($FV21,$A$11:$A$150,0),HX$1) -> 0 | HY21: =INDEX($E$11:$ED$150,MATCH($FV21,$A$11:$A$150,0),HY$1) -> 0 | HZ21: =INDEX($E$11:$ED$150,MATCH($FV21,$A$11:$A$150,0),HZ$1) -> 0 | IA21: =INDEX($E$11:$ED$150,MATCH($FV21,$A$11:$A$150,0),IA$1) -> 0 | IB21: =INDEX($E$11:$ED$150,MATCH($FV21,$A$11:$A$150,0),IB$1) -> 0 | IC21: =INDEX($E$11:$ED$150,MATCH($FV21,$A$11:$A$150,0),IC$1) -> 0 | ID21: =INDEX($E$11:$ED$150,MATCH($FV21,$A$11:$A$150,0),ID$1) -> 0 | IE21: =INDEX($E$11:$ED$150,MATCH($FV21,$A$11:$A$150,0),IE$1) -> 0 | IF21: =INDEX($E$11:$ED$150,MATCH($FV21,$A$11:$A$150,0),IF$1) -> 0 | IG21: =INDEX($E$11:$ED$150,MATCH($FV21,$A$11:$A$150,0),IG$1) -> 0 | IH21: =INDEX($E$11:$ED$150,MATCH($FV21,$A$11:$A$150,0),IH$1) -> 0 | II21: =INDEX($E$11:$ED$150,MATCH($FV21,$A$11:$A$150,0),II$1) -> 0 | IJ21: =INDEX($E$11:$ED$150,MATCH($FV21,$A$11:$A$150,0),IJ$1) -> 0 | IK21: =INDEX($E$11:$ED$150,MATCH($FV21,$A$11:$A$150,0),IK$1) -> 0 | IL21: =INDEX($E$11:$ED$150,MATCH($FV21,$A$11:$A$150,0),IL$1) -> 0 | IM21: =INDEX($E$11:$ED$150,MATCH($FV21,$A$11:$A$150,0),IM$1) -> 0 | IN21: =INDEX($E$11:$ED$150,MATCH($FV21,$A$11:$A$150,0),IN$1) -> 0 | IO21: =INDEX($E$11:$ED$150,MATCH($FV21,$A$11:$A$150,0),IO$1) -> 0 | IP21: =INDEX($E$11:$ED$150,MATCH($FV21,$A$11:$A$150,0),IP$1) -> 0 | IQ21: =INDEX($E$11:$ED$150,MATCH($FV21,$A$11:$A$150,0),IQ$1) -> 0 | IR21: =INDEX($E$11:$ED$150,MATCH($FV21,$A$11:$A$150,0),IR$1) -> 0 | IS21: =INDEX($E$11:$ED$150,MATCH($FV21,$A$11:$A$150,0),IS$1) -> 0 | IT21: =INDEX($E$11:$ED$150,MATCH($FV21,$A$11:$A$150,0),IT$1) -> 0 | IU21: =INDEX($E$11:$ED$150,MATCH($FV21,$A$11:$A$150,0),IU$1) -> 0 | IV21: =INDEX($E$11:$ED$150,MATCH($FV21,$A$11:$A$150,0),IV$1) -> 0 | IW21: =INDEX($E$11:$ED$150,MATCH($FV21,$A$11:$A$150,0),IW$1) -> 0 | IX21: =INDEX($E$11:$ED$150,MATCH($FV21,$A$11:$A$150,0),IX$1) -> 0 | IY21: =INDEX($E$11:$ED$150,MATCH($FV21,$A$11:$A$150,0),IY$1) -> 0 | IZ21: =INDEX($E$11:$ED$150,MATCH($FV21,$A$11:$A$150,0),IZ$1) -> 0 | JA21: =INDEX($E$11:$ED$150,MATCH($FV21,$A$11:$A$150,0),JA$1) -> 0 | JB21: =INDEX($E$11:$ED$150,MATCH($FV21,$A$11:$A$150,0),JB$1) -> 0 | JC21: =INDEX($E$11:$ED$150,MATCH($FV21,$A$11:$A$150,0),JC$1) -> 0 | JD21: =INDEX($E$11:$ED$150,MATCH($FV21,$A$11:$A$150,0),JD$1) -> 0 | JE21: =INDEX($E$11:$ED$150,MATCH($FV21,$A$11:$A$150,0),JE$1) -> 0 | JF21: =INDEX($E$11:$ED$150,MATCH($FV21,$A$11:$A$150,0),JF$1) -> 0 | JG21: =INDEX($E$11:$ED$150,MATCH($FV21,$A$11:$A$150,0),JG$1) -> 0 | JH21: =INDEX($E$11:$ED$150,MATCH($FV21,$A$11:$A$150,0),JH$1) -> 0 | JI21: =INDEX($E$11:$ED$150,MATCH($FV21,$A$11:$A$150,0),JI$1) -> 0 | JJ21: =INDEX($E$11:$ED$150,MATCH($FV21,$A$11:$A$150,0),JJ$1) -> 0 | JK21: =INDEX($E$11:$ED$150,MATCH($FV21,$A$11:$A$150,0),JK$1) -> 0 | JL21: =INDEX($E$11:$ED$150,MATCH($FV21,$A$11:$A$150,0),JL$1) -> 0 | JM21: =INDEX($E$11:$ED$150,MATCH($FV21,$A$11:$A$150,0),JM$1) -> 0 | JN21: =INDEX($E$11:$ED$150,MATCH($FV21,$A$11:$A$150,0),JN$1) -> 0 | JO21: =INDEX($E$11:$ED$150,MATCH($FV21,$A$11:$A$150,0),JO$1) -> 0 | JP21: =INDEX($E$11:$ED$150,MATCH($FV21,$A$11:$A$150,0),JP$1) -> 0 | JQ21: =INDEX($E$11:$ED$150,MATCH($FV21,$A$11:$A$150,0),JQ$1) -> 0 | JR21: =INDEX($E$11:$ED$150,MATCH($FV21,$A$11:$A$150,0),JR$1) -> 0 | JS21: =INDEX($E$11:$ED$150,MATCH($FV21,$A$11:$A$150,0),JS$1) -> 0 | JT21: =INDEX($E$11:$ED$150,MATCH($FV21,$A$11:$A$150,0),JT$1) -> 0 | JU21: =INDEX($E$11:$ED$150,MATCH($FV21,$A$11:$A$150,0),JU$1) -> 0 | JV21: =INDEX($E$11:$ED$150,MATCH($FV21,$A$11:$A$150,0),JV$1) -> 0 | JW21: =INDEX($E$11:$ED$150,MATCH($FV21,$A$11:$A$150,0),JW$1) -> 0 | JX21: =INDEX($E$11:$ED$150,MATCH($FV21,$A$11:$A$150,0),JX$1) -> 0 | JY21: =INDEX($E$11:$ED$150,MATCH($FV21,$A$11:$A$150,0),JY$1) -> 0 | JZ21: =INDEX($E$11:$ED$150,MATCH($FV21,$A$11:$A$150,0),JZ$1) -> 0 | KA21: =INDEX($E$11:$ED$150,MATCH($FV21,$A$11:$A$150,0),KA$1) -> 0 | KB21: =INDEX($E$11:$ED$150,MATCH($FV21,$A$11:$A$150,0),KB$1) -> 0 | KC21: =INDEX($E$11:$ED$150,MATCH($FV21,$A$11:$A$150,0),KC$1) -> 0 | KD21: =INDEX($E$11:$ED$150,MATCH($FV21,$A$11:$A$150,0),KD$1) -> 0 | KE21: =INDEX($E$11:$ED$150,MATCH($FV21,$A$11:$A$150,0),KE$1) -> 0 | KF21: =INDEX($E$11:$ED$150,MATCH($FV21,$A$11:$A$150,0),KF$1) -> 0 | KG21: =INDEX($E$11:$ED$150,MATCH($FV21,$A$11:$A$150,0),KG$1) -> 0 | KH21: =INDEX($E$11:$ED$150,MATCH($FV21,$A$11:$A$150,0),KH$1) -> 0 | KI21: =INDEX($E$11:$ED$150,MATCH($FV21,$A$11:$A$150,0),KI$1) -> 0 | KJ21: =INDEX($E$11:$ED$150,MATCH($FV21,$A$11:$A$150,0),KJ$1) -> 0 | KK21: =INDEX($E$11:$ED$150,MATCH($FV21,$A$11:$A$150,0),KK$1) -> 0 | KL21: =INDEX($E$11:$ED$150,MATCH($FV21,$A$11:$A$150,0),KL$1) -> 0 | KM21: =INDEX($E$11:$ED$150,MATCH($FV21,$A$11:$A$150,0),KM$1) -> 0 | KN21: =INDEX($E$11:$ED$150,MATCH($FV21,$A$11:$A$150,0),KN$1) -> 0 | KO21: =INDEX($E$11:$ED$150,MATCH($FV21,$A$11:$A$150,0),KO$1) -> 0 | KP21: =INDEX($E$11:$ED$150,MATCH($FV21,$A$11:$A$150,0),KP$1) -> 0 | KQ21: =INDEX($E$11:$ED$150,MATCH($FV21,$A$11:$A$150,0),KQ$1) -> 0 | KR21: =INDEX($E$11:$ED$150,MATCH($FV21,$A$11:$A$150,0),KR$1) -> 0 | KS21: =INDEX($E$11:$ED$150,MATCH($FV21,$A$11:$A$150,0),KS$1) -> 0 | KT21: =INDEX($E$11:$ED$150,MATCH($FV21,$A$11:$A$150,0),KT$1) -> 0 | KU21: =INDEX($E$11:$ED$150,MATCH($FV21,$A$11:$A$150,0),KU$1) -> 0 | KV21: =INDEX($E$11:$ED$150,MATCH($FV21,$A$11:$A$150,0),KV$1) -> 0
A22: Kuba ŠedivýPlaceno panáků | B22: =CONCATENATE(C21," ",C22) -> Kuba Šedivý | C22: =Tabulka!B23 -> Šedivý | D22: =Tabulka!C23 -> Placeno panáků | J22: 0 | O22: 0 | AD22: 0 | AI22: 0 | AX22: 0 | BR22: 0 | CB22: 2 | CG22: 0 | CQ22: 2 | DA22: 2 | DK22: 0 | EE22: =IF(AND(SUM(Tabulka!$AG$21)>0.99,(SUM(Tabulka!$AH$25)<$EJ$1)),-50000+(SUM(E22:ED22)),IF(OR(SUM(Tabulka!$AG$21)<2),-90000,SUM(E22:ED22))) -> 6 | EG22: =SUM(E22:ED22)+0.2 -> 6.2 | EL22: =Tabulka!B23 -> Šedivý | FV22: Max šipek v hře | FW22: =IF(MOD(MAX(FW4:FW21),3)=0,MAX(FW4:FW21),MAX(FW4:FW21)-MOD(MAX(FW4:FW21),3)+3) -> 0 | FX22: 0 | FY22: 0 | FZ22: 0 | GA22: 0 | GB22: 0 | GC22: 0 | GD22: 0 | GE22: 0 | GF22: 0 | GG22: 0 | GH22: 0 | GI22: 0 | GJ22: 0 | GK22: 0 | GL22: 0 | GM22: 0 | GN22: 0 | GO22: 0 | GP22: 0 | GQ22: 0 | GR22: 0 | GS22: 0 | GT22: 0 | GU22: 0 | GV22: 0 | GW22: 0 | GX22: 0 | GY22: 0 | GZ22: 0 | HA22: 0 | HB22: 0 | HC22: =IF(MOD(MAX(HC4:HC21),3)=0,MAX(HC4:HC21),MAX(HC4:HC21)-MOD(MAX(HC4:HC21),3)+3) -> 0 | HD22: 0 | HE22: 0 | HF22: 0 | HG22: 0 | HH22: 0 | HI22: 0 | HJ22: 0 | HK22: 0 | HL22: 0 | HM22: 0 | HN22: 0 | HO22: 0 | HP22: 0 | HQ22: 0 | HR22: 0 | HS22: 0 | HT22: 0 | HU22: 0 | HV22: 0 | HW22: 0 | HX22: 0 | HY22: 0 | HZ22: 0 | IA22: 0 | IB22: 0 | IC22: 0 | ID22: 0 | IE22: 0 | IF22: 0 | IG22: 0 | IH22: 0 | II22: =IF(MOD(MAX(II4:II21),3)=0,MAX(II4:II21),MAX(II4:II21)-MOD(MAX(II4:II21),3)+3) -> 0 | IJ22: 0 | IK22: 0 | IL22: 0 | IM22: 0 | IN22: 0 | IO22: 0 | IP22: 0 | IQ22: 0 | IR22: 0 | IS22: 0 | IT22: 0 | IU22: 0 | IV22: 0 | IW22: 0 | IX22: 0 | IY22: 0 | IZ22: 0 | JA22: 0 | JB22: 0 | JC22: 0 | JD22: 0 | JE22: 0 | JF22: 0 | JG22: 18 | JH22: 0 | JI22: 33 | JJ22: 33 | JK22: 36 | JL22: 30 | JM22: 0 | JN22: 36 | JO22: =IF(MOD(MAX(JO4:JO21),3)=0,MAX(JO4:JO21),MAX(JO4:JO21)-MOD(MAX(JO4:JO21),3)+3) -> 36 | JP22: 36 | JQ22: =IF(MOD(MAX(JQ4:JQ21),3)=0,MAX(JQ4:JQ21),MAX(JQ4:JQ21)-MOD(MAX(JQ4:JQ21),3)+3) -> 33 | JR22: 0 | JS22: 33 | JT22: 33 | JU22: 30 | JV22: 33 | JW22: 0 | JX22: 39 | JY22: 36 | JZ22: 36 | KA22: 36 | KB22: 0 | KC22: 27 | KD22: 33 | KE22: 36 | KF22: 30 | KG22: 0 | KH22: 33 | KI22: 36 | KJ22: 36 | KK22: 30 | KL22: 0 | KM22: 0 | KN22: 0 | KO22: 0 | KP22: 0 | KQ22: 0 | KR22: 0 | KS22: 0 | KT22: 0 | KU22: 0 | KV22: 0
A23: Kuba ŠedivýPřehozy | B23: =CONCATENATE(C21," ",C22) -> Kuba Šedivý | C23: =Tabulka!B24 -> Kuba Š | D23: =Tabulka!C24 -> Přehozy | J23: 0 | O23: 1 | AD23: 0 | AI23: 0 | AX23: 0 | BR23: 5 | CB23: 0 | CG23: 0 | CQ23: 1 | DA23: 0 | DK23: 1 | EE23: =IF(AND(SUM(Tabulka!$AG$21)>0.99,(SUM(Tabulka!$AH$25)<$EJ$1)),-50000+(SUM(E23:ED23)),IF(OR(SUM(Tabulka!$AG$21)<2),-90000,SUM(E23:ED23))) -> 8 | EG23: =SUM(E23:ED23) -> 8 | EL23: =Tabulka!B24 -> Kuba Š | JP23: =(501-IF(INDEX($E$4:$ED$150,MATCH($FV24,$A$4:$A$150,0),JP$1)="","",INDEX($E$4:$ED$150,MATCH($FV24,$A$4:$A$150,0),JP$1)))/IF(JP4=0,JP22,JP4)*3 -> 42.94285714
A24: Kuba ŠedivýPoč. kol | B24: =CONCATENATE(C21," ",C22) -> Kuba Šedivý | C24: =Tabulka!B25 -> 0 | D24: =Tabulka!C25 -> Poč. kol | J24: 4 | O24: 2 | AD24: 4 | AI24: 4 | AX24: 3 | BR24: 5 | CB24: 4 | CG24: 4 | CQ24: 3 | DA24: 4 | DK24: 4 | EE24: =IF(AND(SUM(Tabulka!$AG$21)>0.99,(SUM(Tabulka!$AH$25)<$EJ$1)),-50000+(SUM(E24:ED24)),IF(OR(SUM(Tabulka!$AG$21)<2),-90000,SUM(E24:ED24))) -> 41 | EG24: 41 | FS24: =B4 -> Libor Hruška | FT24: 0 | FV24: =A$9 -> Libor HruškaPočet konečných bodů | FW24: =IFERROR(IF(INDEX($E$4:$ED$150,MATCH($FV24,$A$4:$A$150,0),FW$1)="","",(501-INDEX($E$4:$ED$150,MATCH($FV24,$A$4:$A$150,0),FW$1))/IF(FW4=0,FW$22,FW4)*3),"") ->  | FX24: =IFERROR(IF(INDEX($E$4:$ED$150,MATCH($FV24,$A$4:$A$150,0),FX$1)="","",(501-INDEX($E$4:$ED$150,MATCH($FV24,$A$4:$A$150,0),FX$1))/IF(FX4=0,FX$22,FX4)*3),"") ->  | FY24: =IFERROR(IF(INDEX($E$4:$ED$150,MATCH($FV24,$A$4:$A$150,0),FY$1)="","",(501-INDEX($E$4:$ED$150,MATCH($FV24,$A$4:$A$150,0),FY$1))/IF(FY4=0,FY$22,FY4)*3),"") ->  | FZ24: =IFERROR(IF(INDEX($E$4:$ED$150,MATCH($FV24,$A$4:$A$150,0),FZ$1)="","",(501-INDEX($E$4:$ED$150,MATCH($FV24,$A$4:$A$150,0),FZ$1))/IF(FZ4=0,FZ$22,FZ4)*3),"") ->  | GA24: =IFERROR(IF(INDEX($E$4:$ED$150,MATCH($FV24,$A$4:$A$150,0),GA$1)="","",(501-INDEX($E$4:$ED$150,MATCH($FV24,$A$4:$A$150,0),GA$1))/IF(GA4=0,GA$22,GA4)*3),"") ->  | GB24: =IFERROR(IF(INDEX($E$4:$ED$150,MATCH($FV24,$A$4:$A$150,0),GB$1)="","",(501-INDEX($E$4:$ED$150,MATCH($FV24,$A$4:$A$150,0),GB$1))/IF(GB4=0,GB$22,GB4)*3),"") ->  | GC24: =IFERROR(IF(INDEX($E$4:$ED$150,MATCH($FV24,$A$4:$A$150,0),GC$1)="","",(501-INDEX($E$4:$ED$150,MATCH($FV24,$A$4:$A$150,0),GC$1))/IF(GC4=0,GC$22,GC4)*3),"") ->  | GD24: =IFERROR(IF(INDEX($E$4:$ED$150,MATCH($FV24,$A$4:$A$150,0),GD$1)="","",(501-INDEX($E$4:$ED$150,MATCH($FV24,$A$4:$A$150,0),GD$1))/IF(GD4=0,GD$22,GD4)*3),"") ->  | GE24: =IFERROR(IF(INDEX($E$4:$ED$150,MATCH($FV24,$A$4:$A$150,0),GE$1)="","",(501-INDEX($E$4:$ED$150,MATCH($FV24,$A$4:$A$150,0),GE$1))/IF(GE4=0,GE$22,GE4)*3),"") ->  | GF24: =IFERROR(IF(INDEX($E$4:$ED$150,MATCH($FV24,$A$4:$A$150,0),GF$1)="","",(501-INDEX($E$4:$ED$150,MATCH($FV24,$A$4:$A$150,0),GF$1))/IF(GF4=0,GF$22,GF4)*3),"") ->  | GG24: =IFERROR(IF(INDEX($E$4:$ED$150,MATCH($FV24,$A$4:$A$150,0),GG$1)="","",(501-INDEX($E$4:$ED$150,MATCH($FV24,$A$4:$A$150,0),GG$1))/IF(GG4=0,GG$22,GG4)*3),"") ->  | GH24: =IFERROR(IF(INDEX($E$4:$ED$150,MATCH($FV24,$A$4:$A$150,0),GH$1)="","",(501-INDEX($E$4:$ED$150,MATCH($FV24,$A$4:$A$150,0),GH$1))/IF(GH4=0,GH$22,GH4)*3),"") ->  | GI24: =IFERROR(IF(INDEX($E$4:$ED$150,MATCH($FV24,$A$4:$A$150,0),GI$1)="","",(501-INDEX($E$4:$ED$150,MATCH($FV24,$A$4:$A$150,0),GI$1))/IF(GI4=0,GI$22,GI4)*3),"") ->  | GJ24: =IFERROR(IF(INDEX($E$4:$ED$150,MATCH($FV24,$A$4:$A$150,0),GJ$1)="","",(501-INDEX($E$4:$ED$150,MATCH($FV24,$A$4:$A$150,0),GJ$1))/IF(GJ4=0,GJ$22,GJ4)*3),"") ->  | GK24: =IFERROR(IF(INDEX($E$4:$ED$150,MATCH($FV24,$A$4:$A$150,0),GK$1)="","",(501-INDEX($E$4:$ED$150,MATCH($FV24,$A$4:$A$150,0),GK$1))/IF(GK4=0,GK$22,GK4)*3),"") ->  | GL24: =IFERROR(IF(INDEX($E$4:$ED$150,MATCH($FV24,$A$4:$A$150,0),GL$1)="","",(501-INDEX($E$4:$ED$150,MATCH($FV24,$A$4:$A$150,0),GL$1))/IF(GL4=0,GL$22,GL4)*3),"") ->  | GM24: =IFERROR(IF(INDEX($E$4:$ED$150,MATCH($FV24,$A$4:$A$150,0),GM$1)="","",(501-INDEX($E$4:$ED$150,MATCH($FV24,$A$4:$A$150,0),GM$1))/IF(GM4=0,GM$22,GM4)*3),"") ->  | GN24: =IFERROR(IF(INDEX($E$4:$ED$150,MATCH($FV24,$A$4:$A$150,0),GN$1)="","",(501-INDEX($E$4:$ED$150,MATCH($FV24,$A$4:$A$150,0),GN$1))/IF(GN4=0,GN$22,GN4)*3),"") ->  | GO24: =IFERROR(IF(INDEX($E$4:$ED$150,MATCH($FV24,$A$4:$A$150,0),GO$1)="","",(501-INDEX($E$4:$ED$150,MATCH($FV24,$A$4:$A$150,0),GO$1))/IF(GO4=0,GO$22,GO4)*3),"") ->  | GP24: =IFERROR(IF(INDEX($E$4:$ED$150,MATCH($FV24,$A$4:$A$150,0),GP$1)="","",(501-INDEX($E$4:$ED$150,MATCH($FV24,$A$4:$A$150,0),GP$1))/IF(GP4=0,GP$22,GP4)*3),"") ->  | GQ24: =IFERROR(IF(INDEX($E$4:$ED$150,MATCH($FV24,$A$4:$A$150,0),GQ$1)="","",(501-INDEX($E$4:$ED$150,MATCH($FV24,$A$4:$A$150,0),GQ$1))/IF(GQ4=0,GQ$22,GQ4)*3),"") ->  | GR24: =IFERROR(IF(INDEX($E$4:$ED$150,MATCH($FV24,$A$4:$A$150,0),GR$1)="","",(501-INDEX($E$4:$ED$150,MATCH($FV24,$A$4:$A$150,0),GR$1))/IF(GR4=0,GR$22,GR4)*3),"") ->  | GS24: =IFERROR(IF(INDEX($E$4:$ED$150,MATCH($FV24,$A$4:$A$150,0),GS$1)="","",(501-INDEX($E$4:$ED$150,MATCH($FV24,$A$4:$A$150,0),GS$1))/IF(GS4=0,GS$22,GS4)*3),"") ->  | GT24: =IFERROR(IF(INDEX($E$4:$ED$150,MATCH($FV24,$A$4:$A$150,0),GT$1)="","",(501-INDEX($E$4:$ED$150,MATCH($FV24,$A$4:$A$150,0),GT$1))/IF(GT4=0,GT$22,GT4)*3),"") ->  | GU24: =IFERROR(IF(INDEX($E$4:$ED$150,MATCH($FV24,$A$4:$A$150,0),GU$1)="","",(501-INDEX($E$4:$ED$150,MATCH($FV24,$A$4:$A$150,0),GU$1))/IF(GU4=0,GU$22,GU4)*3),"") ->  | GV24: =IFERROR(IF(INDEX($E$4:$ED$150,MATCH($FV24,$A$4:$A$150,0),GV$1)="","",(501-INDEX($E$4:$ED$150,MATCH($FV24,$A$4:$A$150,0),GV$1))/IF(GV4=0,GV$22,GV4)*3),"") ->  | GW24: =IFERROR(IF(INDEX($E$4:$ED$150,MATCH($FV24,$A$4:$A$150,0),GW$1)="","",(501-INDEX($E$4:$ED$150,MATCH($FV24,$A$4:$A$150,0),GW$1))/IF(GW4=0,GW$22,GW4)*3),"") ->  | GX24: =IFERROR(IF(INDEX($E$4:$ED$150,MATCH($FV24,$A$4:$A$150,0),GX$1)="","",(501-INDEX($E$4:$ED$150,MATCH($FV24,$A$4:$A$150,0),GX$1))/IF(GX4=0,GX$22,GX4)*3),"") ->  | GY24: =IFERROR(IF(INDEX($E$4:$ED$150,MATCH($FV24,$A$4:$A$150,0),GY$1)="","",(501-INDEX($E$4:$ED$150,MATCH($FV24,$A$4:$A$150,0),GY$1))/IF(GY4=0,GY$22,GY4)*3),"") ->  | GZ24: =IFERROR(IF(INDEX($E$4:$ED$150,MATCH($FV24,$A$4:$A$150,0),GZ$1)="","",(501-INDEX($E$4:$ED$150,MATCH($FV24,$A$4:$A$150,0),GZ$1))/IF(GZ4=0,GZ$22,GZ4)*3),"") ->  | HA24: =IFERROR(IF(INDEX($E$4:$ED$150,MATCH($FV24,$A$4:$A$150,0),HA$1)="","",(501-INDEX($E$4:$ED$150,MATCH($FV24,$A$4:$A$150,0),HA$1))/IF(HA4=0,HA$22,HA4)*3),"") ->  | HB24: =IFERROR(IF(INDEX($E$4:$ED$150,MATCH($FV24,$A$4:$A$150,0),HB$1)="","",(501-INDEX($E$4:$ED$150,MATCH($FV24,$A$4:$A$150,0),HB$1))/IF(HB4=0,HB$22,HB4)*3),"") ->  | HC24: =IFERROR(IF(INDEX($E$4:$ED$150,MATCH($FV24,$A$4:$A$150,0),HC$1)="","",(501-INDEX($E$4:$ED$150,MATCH($FV24,$A$4:$A$150,0),HC$1))/IF(HC4=0,HC$22,HC4)*3),"") ->  | HD24: =IFERROR(IF(INDEX($E$4:$ED$150,MATCH($FV24,$A$4:$A$150,0),HD$1)="","",(501-INDEX($E$4:$ED$150,MATCH($FV24,$A$4:$A$150,0),HD$1))/IF(HD4=0,HD$22,HD4)*3),"") ->  | HE24: =IFERROR(IF(INDEX($E$4:$ED$150,MATCH($FV24,$A$4:$A$150,0),HE$1)="","",(501-INDEX($E$4:$ED$150,MATCH($FV24,$A$4:$A$150,0),HE$1))/IF(HE4=0,HE$22,HE4)*3),"") ->  | HF24: =IFERROR(IF(INDEX($E$4:$ED$150,MATCH($FV24,$A$4:$A$150,0),HF$1)="","",(501-INDEX($E$4:$ED$150,MATCH($FV24,$A$4:$A$150,0),HF$1))/IF(HF4=0,HF$22,HF4)*3),"") ->  | HG24: =IFERROR(IF(INDEX($E$4:$ED$150,MATCH($FV24,$A$4:$A$150,0),HG$1)="","",(501-INDEX($E$4:$ED$150,MATCH($FV24,$A$4:$A$150,0),HG$1))/IF(HG4=0,HG$22,HG4)*3),"") ->  | HH24: =IFERROR(IF(INDEX($E$4:$ED$150,MATCH($FV24,$A$4:$A$150,0),HH$1)="","",(501-INDEX($E$4:$ED$150,MATCH($FV24,$A$4:$A$150,0),HH$1))/IF(HH4=0,HH$22,HH4)*3),"") ->  | HI24: =IFERROR(IF(INDEX($E$4:$ED$150,MATCH($FV24,$A$4:$A$150,0),HI$1)="","",(501-INDEX($E$4:$ED$150,MATCH($FV24,$A$4:$A$150,0),HI$1))/IF(HI4=0,HI$22,HI4)*3),"") ->  | HJ24: =IFERROR(IF(INDEX($E$4:$ED$150,MATCH($FV24,$A$4:$A$150,0),HJ$1)="","",(501-INDEX($E$4:$ED$150,MATCH($FV24,$A$4:$A$150,0),HJ$1))/IF(HJ4=0,HJ$22,HJ4)*3),"") ->  | HK24: =IFERROR(IF(INDEX($E$4:$ED$150,MATCH($FV24,$A$4:$A$150,0),HK$1)="","",(501-INDEX($E$4:$ED$150,MATCH($FV24,$A$4:$A$150,0),HK$1))/IF(HK4=0,HK$22,HK4)*3),"") ->  | HL24: =IFERROR(IF(INDEX($E$4:$ED$150,MATCH($FV24,$A$4:$A$150,0),HL$1)="","",(501-INDEX($E$4:$ED$150,MATCH($FV24,$A$4:$A$150,0),HL$1))/IF(HL4=0,HL$22,HL4)*3),"") ->  | HM24: =IFERROR(IF(INDEX($E$4:$ED$150,MATCH($FV24,$A$4:$A$150,0),HM$1)="","",(501-INDEX($E$4:$ED$150,MATCH($FV24,$A$4:$A$150,0),HM$1))/IF(HM4=0,HM$22,HM4)*3),"") ->  | HN24: =IFERROR(IF(INDEX($E$4:$ED$150,MATCH($FV24,$A$4:$A$150,0),HN$1)="","",(501-INDEX($E$4:$ED$150,MATCH($FV24,$A$4:$A$150,0),HN$1))/IF(HN4=0,HN$22,HN4)*3),"") ->  | HO24: =IFERROR(IF(INDEX($E$4:$ED$150,MATCH($FV24,$A$4:$A$150,0),HO$1)="","",(501-INDEX($E$4:$ED$150,MATCH($FV24,$A$4:$A$150,0),HO$1))/IF(HO4=0,HO$22,HO4)*3),"") ->  | HP24: =IFERROR(IF(INDEX($E$4:$ED$150,MATCH($FV24,$A$4:$A$150,0),HP$1)="","",(501-INDEX($E$4:$ED$150,MATCH($FV24,$A$4:$A$150,0),HP$1))/IF(HP4=0,HP$22,HP4)*3),"") ->  | HQ24: =IFERROR(IF(INDEX($E$4:$ED$150,MATCH($FV24,$A$4:$A$150,0),HQ$1)="","",(501-INDEX($E$4:$ED$150,MATCH($FV24,$A$4:$A$150,0),HQ$1))/IF(HQ4=0,HQ$22,HQ4)*3),"") ->  | HR24: =IFERROR(IF(INDEX($E$4:$ED$150,MATCH($FV24,$A$4:$A$150,0),HR$1)="","",(501-INDEX($E$4:$ED$150,MATCH($FV24,$A$4:$A$150,0),HR$1))/IF(HR4=0,HR$22,HR4)*3),"") ->  | HS24: =IFERROR(IF(INDEX($E$4:$ED$150,MATCH($FV24,$A$4:$A$150,0),HS$1)="","",(501-INDEX($E$4:$ED$150,MATCH($FV24,$A$4:$A$150,0),HS$1))/IF(HS4=0,HS$22,HS4)*3),"") ->  | HT24: =IFERROR(IF(INDEX($E$4:$ED$150,MATCH($FV24,$A$4:$A$150,0),HT$1)="","",(501-INDEX($E$4:$ED$150,MATCH($FV24,$A$4:$A$150,0),HT$1))/IF(HT4=0,HT$22,HT4)*3),"") ->  | HU24: =IFERROR(IF(INDEX($E$4:$ED$150,MATCH($FV24,$A$4:$A$150,0),HU$1)="","",(501-INDEX($E$4:$ED$150,MATCH($FV24,$A$4:$A$150,0),HU$1))/IF(HU4=0,HU$22,HU4)*3),"") ->  | HV24: =IFERROR(IF(INDEX($E$4:$ED$150,MATCH($FV24,$A$4:$A$150,0),HV$1)="","",(501-INDEX($E$4:$ED$150,MATCH($FV24,$A$4:$A$150,0),HV$1))/IF(HV4=0,HV$22,HV4)*3),"") ->  | HW24: =IFERROR(IF(INDEX($E$4:$ED$150,MATCH($FV24,$A$4:$A$150,0),HW$1)="","",(501-INDEX($E$4:$ED$150,MATCH($FV24,$A$4:$A$150,0),HW$1))/IF(HW4=0,HW$22,HW4)*3),"") ->  | HX24: =IFERROR(IF(INDEX($E$4:$ED$150,MATCH($FV24,$A$4:$A$150,0),HX$1)="","",(501-INDEX($E$4:$ED$150,MATCH($FV24,$A$4:$A$150,0),HX$1))/IF(HX4=0,HX$22,HX4)*3),"") ->  | HY24: =IFERROR(IF(INDEX($E$4:$ED$150,MATCH($FV24,$A$4:$A$150,0),HY$1)="","",(501-INDEX($E$4:$ED$150,MATCH($FV24,$A$4:$A$150,0),HY$1))/IF(HY4=0,HY$22,HY4)*3),"") ->  | HZ24: =IFERROR(IF(INDEX($E$4:$ED$150,MATCH($FV24,$A$4:$A$150,0),HZ$1)="","",(501-INDEX($E$4:$ED$150,MATCH($FV24,$A$4:$A$150,0),HZ$1))/IF(HZ4=0,HZ$22,HZ4)*3),"") ->  | IA24: =IFERROR(IF(INDEX($E$4:$ED$150,MATCH($FV24,$A$4:$A$150,0),IA$1)="","",(501-INDEX($E$4:$ED$150,MATCH($FV24,$A$4:$A$150,0),IA$1))/IF(IA4=0,IA$22,IA4)*3),"") ->  | IB24: =IFERROR(IF(INDEX($E$4:$ED$150,MATCH($FV24,$A$4:$A$150,0),IB$1)="","",(501-INDEX($E$4:$ED$150,MATCH($FV24,$A$4:$A$150,0),IB$1))/IF(IB4=0,IB$22,IB4)*3),"") ->  | IC24: =IFERROR(IF(INDEX($E$4:$ED$150,MATCH($FV24,$A$4:$A$150,0),IC$1)="","",(501-INDEX($E$4:$ED$150,MATCH($FV24,$A$4:$A$150,0),IC$1))/IF(IC4=0,IC$22,IC4)*3),"") ->  | ID24: =IFERROR(IF(INDEX($E$4:$ED$150,MATCH($FV24,$A$4:$A$150,0),ID$1)="","",(501-INDEX($E$4:$ED$150,MATCH($FV24,$A$4:$A$150,0),ID$1))/IF(ID4=0,ID$22,ID4)*3),"") ->  | IE24: =IFERROR(IF(INDEX($E$4:$ED$150,MATCH($FV24,$A$4:$A$150,0),IE$1)="","",(501-INDEX($E$4:$ED$150,MATCH($FV24,$A$4:$A$150,0),IE$1))/IF(IE4=0,IE$22,IE4)*3),"") ->  | IF24: =IFERROR(IF(INDEX($E$4:$ED$150,MATCH($FV24,$A$4:$A$150,0),IF$1)="","",(501-INDEX($E$4:$ED$150,MATCH($FV24,$A$4:$A$150,0),IF$1))/IF(IF4=0,IF$22,IF4)*3),"") ->  | IG24: =IFERROR(IF(INDEX($E$4:$ED$150,MATCH($FV24,$A$4:$A$150,0),IG$1)="","",(501-INDEX($E$4:$ED$150,MATCH($FV24,$A$4:$A$150,0),IG$1))/IF(IG4=0,IG$22,IG4)*3),"") ->  | IH24: =IFERROR(IF(INDEX($E$4:$ED$150,MATCH($FV24,$A$4:$A$150,0),IH$1)="","",(501-INDEX($E$4:$ED$150,MATCH($FV24,$A$4:$A$150,0),IH$1))/IF(IH4=0,IH$22,IH4)*3),"") ->  | II24: =IFERROR(IF(INDEX($E$4:$ED$150,MATCH($FV24,$A$4:$A$150,0),II$1)="","",(501-INDEX($E$4:$ED$150,MATCH($FV24,$A$4:$A$150,0),II$1))/IF(II4=0,II$22,II4)*3),"") ->  | IJ24: =IFERROR(IF(INDEX($E$4:$ED$150,MATCH($FV24,$A$4:$A$150,0),IJ$1)="","",(501-INDEX($E$4:$ED$150,MATCH($FV24,$A$4:$A$150,0),IJ$1))/IF(IJ4=0,IJ$22,IJ4)*3),"") ->  | IK24: =IFERROR(IF(INDEX($E$4:$ED$150,MATCH($FV24,$A$4:$A$150,0),IK$1)="","",(501-INDEX($E$4:$ED$150,MATCH($FV24,$A$4:$A$150,0),IK$1))/IF(IK4=0,IK$22,IK4)*3),"") ->  | IL24: =IFERROR(IF(INDEX($E$4:$ED$150,MATCH($FV24,$A$4:$A$150,0),IL$1)="","",(501-INDEX($E$4:$ED$150,MATCH($FV24,$A$4:$A$150,0),IL$1))/IF(IL4=0,IL$22,IL4)*3),"") ->  | IM24: =IFERROR(IF(INDEX($E$4:$ED$150,MATCH($FV24,$A$4:$A$150,0),IM$1)="","",(501-INDEX($E$4:$ED$150,MATCH($FV24,$A$4:$A$150,0),IM$1))/IF(IM4=0,IM$22,IM4)*3),"") ->  | IN24: =IFERROR(IF(INDEX($E$4:$ED$150,MATCH($FV24,$A$4:$A$150,0),IN$1)="","",(501-INDEX($E$4:$ED$150,MATCH($FV24,$A$4:$A$150,0),IN$1))/IF(IN4=0,IN$22,IN4)*3),"") ->  | IO24: =IFERROR(IF(INDEX($E$4:$ED$150,MATCH($FV24,$A$4:$A$150,0),IO$1)="","",(501-INDEX($E$4:$ED$150,MATCH($FV24,$A$4:$A$150,0),IO$1))/IF(IO4=0,IO$22,IO4)*3),"") ->  | IP24: =IFERROR(IF(INDEX($E$4:$ED$150,MATCH($FV24,$A$4:$A$150,0),IP$1)="","",(501-INDEX($E$4:$ED$150,MATCH($FV24,$A$4:$A$150,0),IP$1))/IF(IP4=0,IP$22,IP4)*3),"") ->  | IQ24: =IFERROR(IF(INDEX($E$4:$ED$150,MATCH($FV24,$A$4:$A$150,0),IQ$1)="","",(501-INDEX($E$4:$ED$150,MATCH($FV24,$A$4:$A$150,0),IQ$1))/IF(IQ4=0,IQ$22,IQ4)*3),"") ->  | IR24: =IFERROR(IF(INDEX($E$4:$ED$150,MATCH($FV24,$A$4:$A$150,0),IR$1)="","",(501-INDEX($E$4:$ED$150,MATCH($FV24,$A$4:$A$150,0),IR$1))/IF(IR4=0,IR$22,IR4)*3),"") ->  | IS24: =IFERROR(IF(INDEX($E$4:$ED$150,MATCH($FV24,$A$4:$A$150,0),IS$1)="","",(501-INDEX($E$4:$ED$150,MATCH($FV24,$A$4:$A$150,0),IS$1))/IF(IS4=0,IS$22,IS4)*3),"") ->  | IT24: =IFERROR(IF(INDEX($E$4:$ED$150,MATCH($FV24,$A$4:$A$150,0),IT$1)="","",(501-INDEX($E$4:$ED$150,MATCH($FV24,$A$4:$A$150,0),IT$1))/IF(IT4=0,IT$22,IT4)*3),"") ->  | IU24: =IFERROR(IF(INDEX($E$4:$ED$150,MATCH($FV24,$A$4:$A$150,0),IU$1)="","",(501-INDEX($E$4:$ED$150,MATCH($FV24,$A$4:$A$150,0),IU$1))/IF(IU4=0,IU$22,IU4)*3),"") ->  | IV24: =IFERROR(IF(INDEX($E$4:$ED$150,MATCH($FV24,$A$4:$A$150,0),IV$1)="","",(501-INDEX($E$4:$ED$150,MATCH($FV24,$A$4:$A$150,0),IV$1))/IF(IV4=0,IV$22,IV4)*3),"") ->  | IW24: =IFERROR(IF(INDEX($E$4:$ED$150,MATCH($FV24,$A$4:$A$150,0),IW$1)="","",(501-INDEX($E$4:$ED$150,MATCH($FV24,$A$4:$A$150,0),IW$1))/IF(IW4=0,IW$22,IW4)*3),"") ->  | IX24: =IFERROR(IF(INDEX($E$4:$ED$150,MATCH($FV24,$A$4:$A$150,0),IX$1)="","",(501-INDEX($E$4:$ED$150,MATCH($FV24,$A$4:$A$150,0),IX$1))/IF(IX4=0,IX$22,IX4)*3),"") ->  | IY24: =IFERROR(IF(INDEX($E$4:$ED$150,MATCH($FV24,$A$4:$A$150,0),IY$1)="","",(501-INDEX($E$4:$ED$150,MATCH($FV24,$A$4:$A$150,0),IY$1))/IF(IY4=0,IY$22,IY4)*3),"") ->  | IZ24: =IFERROR(IF(INDEX($E$4:$ED$150,MATCH($FV24,$A$4:$A$150,0),IZ$1)="","",(501-INDEX($E$4:$ED$150,MATCH($FV24,$A$4:$A$150,0),IZ$1))/IF(IZ4=0,IZ$22,IZ4)*3),"") ->  | JA24: =IFERROR(IF(INDEX($E$4:$ED$150,MATCH($FV24,$A$4:$A$150,0),JA$1)="","",(501-INDEX($E$4:$ED$150,MATCH($FV24,$A$4:$A$150,0),JA$1))/IF(JA4=0,JA$22,JA4)*3),"") ->  | JB24: =IFERROR(IF(INDEX($E$4:$ED$150,MATCH($FV24,$A$4:$A$150,0),JB$1)="","",(501-INDEX($E$4:$ED$150,MATCH($FV24,$A$4:$A$150,0),JB$1))/IF(JB4=0,JB$22,JB4)*3),"") ->  | JC24: =IFERROR(IF(INDEX($E$4:$ED$150,MATCH($FV24,$A$4:$A$150,0),JC$1)="","",(501-INDEX($E$4:$ED$150,MATCH($FV24,$A$4:$A$150,0),JC$1))/IF(JC4=0,JC$22,JC4)*3),"") ->  | JD24: =IFERROR(IF(INDEX($E$4:$ED$150,MATCH($FV24,$A$4:$A$150,0),JD$1)="","",(501-INDEX($E$4:$ED$150,MATCH($FV24,$A$4:$A$150,0),JD$1))/IF(JD4=0,JD$22,JD4)*3),"") ->  | JE24: =IFERROR(IF(INDEX($E$4:$ED$150,MATCH($FV24,$A$4:$A$150,0),JE$1)="","",(501-INDEX($E$4:$ED$150,MATCH($FV24,$A$4:$A$150,0),JE$1))/IF(JE4=0,JE$22,JE4)*3),"") ->  | JF24: =IFERROR(IF(INDEX($E$4:$ED$150,MATCH($FV24,$A$4:$A$150,0),JF$1)="","",(501-INDEX($E$4:$ED$150,MATCH($FV24,$A$4:$A$150,0),JF$1))/IF(JF4=0,JF$22,JF4)*3),"") ->  | JG24: =IFERROR(IF(INDEX($E$4:$ED$150,MATCH($FV24,$A$4:$A$150,0),JG$1)="","",(501-INDEX($E$4:$ED$150,MATCH($FV24,$A$4:$A$150,0),JG$1))/IF(JG4=0,JG$22,JG4)*3),"") -> 37.66666667 | JH24: =IFERROR(IF(INDEX($E$4:$ED$150,MATCH($FV24,$A$4:$A$150,0),JH$1)="","",(501-INDEX($E$4:$ED$150,MATCH($FV24,$A$4:$A$150,0),JH$1))/IF(JH4=0,JH$22,JH4)*3),"") ->  | JI24: =IFERROR(IF(INDEX($E$4:$ED$150,MATCH($FV24,$A$4:$A$150,0),JI$1)="","",(501-INDEX($E$4:$ED$150,MATCH($FV24,$A$4:$A$150,0),JI$1))/IF(JI4=0,JI$22,JI4)*3),"") -> 43.27272727 | JJ24: =IFERROR(IF(INDEX($E$4:$ED$150,MATCH($FV24,$A$4:$A$150,0),JJ$1)="","",(501-INDEX($E$4:$ED$150,MATCH($FV24,$A$4:$A$150,0),JJ$1))/IF(JJ4=0,JJ$22,JJ4)*3),"") -> 34.45454545 | JK24: =IFERROR(IF(INDEX($E$4:$ED$150,MATCH($FV24,$A$4:$A$150,0),JK$1)="","",(501-INDEX($E$4:$ED$150,MATCH($FV24,$A$4:$A$150,0),JK$1))/IF(JK4=0,JK$22,JK4)*3),"") -> 37.91666667 | JL24: =IFERROR(IF(INDEX($E$4:$ED$150,MATCH($FV24,$A$4:$A$150,0),JL$1)="","",(501-INDEX($E$4:$ED$150,MATCH($FV24,$A$4:$A$150,0),JL$1))/IF(JL4=0,JL$22,JL4)*3),"") -> 38.5 | JM24: =IFERROR(IF(INDEX($E$4:$ED$150,MATCH($FV24,$A$4:$A$150,0),JM$1)="","",(501-INDEX($E$4:$ED$150,MATCH($FV24,$A$4:$A$150,0),JM$1))/IF(JM4=0,JM$22,JM4)*3),"") ->  | JN24: =IFERROR(IF(INDEX($E$4:$ED$150,MATCH($FV24,$A$4:$A$150,0),JN$1)="","",(501-INDEX($E$4:$ED$150,MATCH($FV24,$A$4:$A$150,0),JN$1))/IF(JN4=0,JN$22,JN4)*3),"") -> 30.58333333 | JO24: =IFERROR(IF(INDEX($E$4:$ED$150,MATCH($FV24,$A$4:$A$150,0),JO$1)="","",(501-INDEX($E$4:$ED$150,MATCH($FV24,$A$4:$A$150,0),JO$1))/IF(JO4=0,JO$22,JO4)*3),"") -> 37.75 | JP24: =IFERROR(IF(INDEX($E$4:$ED$150,MATCH($FV24,$A$4:$A$150,0),JP$1)="","",(501-INDEX($E$4:$ED$150,MATCH($FV24,$A$4:$A$150,0),JP$1))/IF(JP4=0,JP$22,JP4)*3),"") -> 42.94285714 | JQ24: =IFERROR(IF(INDEX($E$4:$ED$150,MATCH($FV24,$A$4:$A$150,0),JQ$1)="","",(501-INDEX($E$4:$ED$150,MATCH($FV24,$A$4:$A$150,0),JQ$1))/IF(JQ4=0,JQ$22,JQ4)*3),"") -> 32.18181818 | JR24: =IFERROR(IF(INDEX($E$4:$ED$150,MATCH($FV24,$A$4:$A$150,0),JR$1)="","",(501-INDEX($E$4:$ED$150,MATCH($FV24,$A$4:$A$150,0),JR$1))/IF(JR4=0,JR$22,JR4)*3),"") ->  | JS24: =IFERROR(IF(INDEX($E$4:$ED$150,MATCH($FV24,$A$4:$A$150,0),JS$1)="","",(501-INDEX($E$4:$ED$150,MATCH($FV24,$A$4:$A$150,0),JS$1))/IF(JS4=0,JS$22,JS4)*3),"") -> 38.27272727 | JT24: =IFERROR(IF(INDEX($E$4:$ED$150,MATCH($FV24,$A$4:$A$150,0),JT$1)="","",(501-INDEX($E$4:$ED$150,MATCH($FV24,$A$4:$A$150,0),JT$1))/IF(JT4=0,JT$22,JT4)*3),"") -> 33.45454545 | JU24: =IFERROR(IF(INDEX($E$4:$ED$150,MATCH($FV24,$A$4:$A$150,0),JU$1)="","",(501-INDEX($E$4:$ED$150,MATCH($FV24,$A$4:$A$150,0),JU$1))/IF(JU4=0,JU$22,JU4)*3),"") -> 28.3 | JV24: =IFERROR(IF(INDEX($E$4:$ED$150,MATCH($FV24,$A$4:$A$150,0),JV$1)="","",(501-INDEX($E$4:$ED$150,MATCH($FV24,$A$4:$A$150,0),JV$1))/IF(JV4=0,JV$22,JV4)*3),"") -> 40.72727273 | JW24: =IFERROR(IF(INDEX($E$4:$ED$150,MATCH($FV24,$A$4:$A$150,0),JW$1)="","",(501-INDEX($E$4:$ED$150,MATCH($FV24,$A$4:$A$150,0),JW$1))/IF(JW4=0,JW$22,JW4)*3),"") ->  | JX24: =IFERROR(IF(INDEX($E$4:$ED$150,MATCH($FV24,$A$4:$A$150,0),JX$1)="","",(501-INDEX($E$4:$ED$150,MATCH($FV24,$A$4:$A$150,0),JX$1))/IF(JX4=0,JX$22,JX4)*3),"") -> 35.07692308 | JY24: =IFERROR(IF(INDEX($E$4:$ED$150,MATCH($FV24,$A$4:$A$150,0),JY$1)="","",(501-INDEX($E$4:$ED$150,MATCH($FV24,$A$4:$A$150,0),JY$1))/IF(JY4=0,JY$22,JY4)*3),"") -> 39.41666667 | JZ24: =IFERROR(IF(INDEX($E$4:$ED$150,MATCH($FV24,$A$4:$A$150,0),JZ$1)="","",(501-INDEX($E$4:$ED$150,MATCH($FV24,$A$4:$A$150,0),JZ$1))/IF(JZ4=0,JZ$22,JZ4)*3),"") -> 44.20588235 | KA24: =IFERROR(IF(INDEX($E$4:$ED$150,MATCH($FV24,$A$4:$A$150,0),KA$1)="","",(501-INDEX($E$4:$ED$150,MATCH($FV24,$A$4:$A$150,0),KA$1))/IF(KA4=0,KA$22,KA4)*3),"") -> 33.5 | KB24: =IFERROR(IF(INDEX($E$4:$ED$150,MATCH($FV24,$A$4:$A$150,0),KB$1)="","",(501-INDEX($E$4:$ED$150,MATCH($FV24,$A$4:$A$150,0),KB$1))/IF(KB4=0,KB$22,KB4)*3),"") ->  | KC24: =IFERROR(IF(INDEX($E$4:$ED$150,MATCH($FV24,$A$4:$A$150,0),KC$1)="","",(501-INDEX($E$4:$ED$150,MATCH($FV24,$A$4:$A$150,0),KC$1))/IF(KC4=0,KC$22,KC4)*3),"") -> 43.22222222 | KD24: =IFERROR(IF(INDEX($E$4:$ED$150,MATCH($FV24,$A$4:$A$150,0),KD$1)="","",(501-INDEX($E$4:$ED$150,MATCH($FV24,$A$4:$A$150,0),KD$1))/IF(KD4=0,KD$22,KD4)*3),"") -> 33.27272727 | KE24: =IFERROR(IF(INDEX($E$4:$ED$150,MATCH($FV24,$A$4:$A$150,0),KE$1)="","",(501-INDEX($E$4:$ED$150,MATCH($FV24,$A$4:$A$150,0),KE$1))/IF(KE4=0,KE$22,KE4)*3),"") -> 37.75 | KF24: =IFERROR(IF(INDEX($E$4:$ED$150,MATCH($FV24,$A$4:$A$150,0),KF$1)="","",(501-INDEX($E$4:$ED$150,MATCH($FV24,$A$4:$A$150,0),KF$1))/IF(KF4=0,KF$22,KF4)*3),"") -> 41.1 | KG24: =IFERROR(IF(INDEX($E$4:$ED$150,MATCH($FV24,$A$4:$A$150,0),KG$1)="","",(501-INDEX($E$4:$ED$150,MATCH($FV24,$A$4:$A$150,0),KG$1))/IF(KG4=0,KG$22,KG4)*3),"") ->  | KH24: =IFERROR(IF(INDEX($E$4:$ED$150,MATCH($FV24,$A$4:$A$150,0),KH$1)="","",(501-INDEX($E$4:$ED$150,MATCH($FV24,$A$4:$A$150,0),KH$1))/IF(KH4=0,KH$22,KH4)*3),"") -> 37.54545455 | KI24: =IFERROR(IF(INDEX($E$4:$ED$150,MATCH($FV24,$A$4:$A$150,0),KI$1)="","",(501-INDEX($E$4:$ED$150,MATCH($FV24,$A$4:$A$150,0),KI$1))/IF(KI4=0,KI$22,KI4)*3),"") -> 34.66666667 | KJ24: =IFERROR(IF(INDEX($E$4:$ED$150,MATCH($FV24,$A$4:$A$150,0),KJ$1)="","",(501-INDEX($E$4:$ED$150,MATCH($FV24,$A$4:$A$150,0),KJ$1))/IF(KJ4=0,KJ$22,KJ4)*3),"") -> 38.83333333 | KK24: =IFERROR(IF(INDEX($E$4:$ED$150,MATCH($FV24,$A$4:$A$150,0),KK$1)="","",(501-INDEX($E$4:$ED$150,MATCH($FV24,$A$4:$A$150,0),KK$1))/IF(KK4=0,KK$22,KK4)*3),"") -> 37.3 | KL24: =IFERROR(IF(INDEX($E$4:$ED$150,MATCH($FV24,$A$4:$A$150,0),KL$1)="","",(501-INDEX($E$4:$ED$150,MATCH($FV24,$A$4:$A$150,0),KL$1))/IF(KL4=0,KL$22,KL4)*3),"") ->  | KM24: =IFERROR(IF(INDEX($E$4:$ED$150,MATCH($FV24,$A$4:$A$150,0),KM$1)="","",(501-INDEX($E$4:$ED$150,MATCH($FV24,$A$4:$A$150,0),KM$1))/IF(KM4=0,KM$22,KM4)*3),"") ->  | KN24: =IFERROR(IF(INDEX($E$4:$ED$150,MATCH($FV24,$A$4:$A$150,0),KN$1)="","",(501-INDEX($E$4:$ED$150,MATCH($FV24,$A$4:$A$150,0),KN$1))/IF(KN4=0,KN$22,KN4)*3),"") ->  | KO24: =IFERROR(IF(INDEX($E$4:$ED$150,MATCH($FV24,$A$4:$A$150,0),KO$1)="","",(501-INDEX($E$4:$ED$150,MATCH($FV24,$A$4:$A$150,0),KO$1))/IF(KO4=0,KO$22,KO4)*3),"") ->  | KP24: =IFERROR(IF(INDEX($E$4:$ED$150,MATCH($FV24,$A$4:$A$150,0),KP$1)="","",(501-INDEX($E$4:$ED$150,MATCH($FV24,$A$4:$A$150,0),KP$1))/IF(KP4=0,KP$22,KP4)*3),"") ->  | KQ24: =IFERROR(IF(INDEX($E$4:$ED$150,MATCH($FV24,$A$4:$A$150,0),KQ$1)="","",(501-INDEX($E$4:$ED$150,MATCH($FV24,$A$4:$A$150,0),KQ$1))/IF(KQ4=0,KQ$22,KQ4)*3),"") ->  | KR24: =IFERROR(IF(INDEX($E$4:$ED$150,MATCH($FV24,$A$4:$A$150,0),KR$1)="","",(501-INDEX($E$4:$ED$150,MATCH($FV24,$A$4:$A$150,0),KR$1))/IF(KR4=0,KR$22,KR4)*3),"") ->  | KS24: =IFERROR(IF(INDEX($E$4:$ED$150,MATCH($FV24,$A$4:$A$150,0),KS$1)="","",(501-INDEX($E$4:$ED$150,MATCH($FV24,$A$4:$A$150,0),KS$1))/IF(KS4=0,KS$22,KS4)*3),"") ->  | KT24: =IFERROR(IF(INDEX($E$4:$ED$150,MATCH($FV24,$A$4:$A$150,0),KT$1)="","",(501-INDEX($E$4:$ED$150,MATCH($FV24,$A$4:$A$150,0),KT$1))/IF(KT4=0,KT$22,KT4)*3),"") ->  | KU24: =IFERROR(IF(INDEX($E$4:$ED$150,MATCH($FV24,$A$4:$A$150,0),KU$1)="","",(501-INDEX($E$4:$ED$150,MATCH($FV24,$A$4:$A$150,0),KU$1))/IF(KU4=0,KU$22,KU4)*3),"") ->  | KV24: =IFERROR(IF(INDEX($E$4:$ED$150,MATCH($FV24,$A$4:$A$150,0),KV$1)="","",(501-INDEX($E$4:$ED$150,MATCH($FV24,$A$4:$A$150,0),KV$1))/IF(KV4=0,KV$22,KV4)*3),"") ->  | KW24: =IFERROR(SUM(FW24:KV24)/COUNT(FW24:KV24),INDEX(List4!$F$2:$F$17,MATCH(INDEX($A$4:$C$150,MATCH(FV24,$A$4:$A$150,0),2),List4!$D$2:$D$17,0),1)) -> 37.27652145 | KX24: 1 | KY24: =INDEX($A$4:$C$150,MATCH(INDEX($FV$24:$FV$41,MATCH(KZ24,$LA$24:$LA$41,0),1),$A$4:$A$150,0)-2,2) -> Milan Veselý | KZ24: =LARGE($LA$24:$LA$39,KX24) -> 45.07899049 | LA24: =IF(INDEX(Tabulka!$A$2:$AN$226,MATCH($FS24,Tabulka!$A$2:$A$226,0),38)<1,-90000+INDEX(List4!$F$2:$F$17,MATCH($FS24,List4!$D$2:$D$17,0),1),IF(AND(INDEX(Tabulka!$A$2:$AN$226,MATCH($FS24,Tabulka!$A$2:$A$226,0)+3,34)>0,INDEX(Tabulka!$A$2:$AN$226,MATCH($FS24,Tabulka!$A$2:$A$226,0)+3,34)<Přehled_body!$EJ$1),-50000+INDEX(List4!$F$2:$F$17,MATCH($FS24,List4!$D$2:$D$17,0),),IFERROR(SUM(FW24:KV24)/COUNT(FW24:KV24)+INDEX(List4!$F$2:$F$17,MATCH($FS24,List4!$D$2:$D$17,0),),-50000+INDEX(List4!$F$2:$F$17,MATCH($FS24,List4!$D$2:$D$17,0),)))) -> 37.27652146 | LB24: =INDEX($KW$24:$KW$39,MATCH(KY24,$FS$24:$FS$39,0),1) -> 45.07899048
A25: Kuba ŠedivýPočet konečných bodů | B25: =CONCATENATE(C21," ",C22) -> Kuba Šedivý | D25: =Tabulka!C26 -> Počet konečných bodů | J25: 0 | K25: 53 | L25: 57 | M25: 82 | O25: 12 | P25: 0 | AD25: 17 | AE25: 113 | AF25: 0 | AG25: 125 | AI25: 0 | AJ25: 0 | AK25: 0 | AL25: 69 | AX25: 36 | AY25: 57 | AZ25: 0 | BR25: 0 | BS25: 19 | BT25: 6 | BU25: 7 | BV25: 49 | CB25: 72 | CC25: 139 | CD25: 107 | CE25: 89 | CG25: 88 | CH25: 98 | CI25: 0 | CJ25: 5 | CR25: 32 | CS25: 5 | CT25: 171 | DA25: 145 | DB25: 43 | DC25: 0 | DD25: 25 | DK25: 0 | DL25: 1 | DM25: 46 | DN25: 0 | EE25: =IF(AND(SUM(Tabulka!$AG$21)>0.99,(SUM(Tabulka!$AH$25)<$EJ$1)),50000+(SUM(E25:ED25)),IF(OR(SUM(Tabulka!$AG$21)<2),90000,SUM(E25:ED25))) -> 1768 | EG25: 1768 | EI25: =$EJ$3-EG25 -> 3232 | FS25: =OFFSET($B$4,FT25,0) -> Pavel Pernekr | FT25: =FT24+8 -> 8 | FV25: =OFFSET($A$9,FT25,0) -> Pavel PernekrPočet konečných bodů | FW25: =IFERROR(IF(INDEX($E$4:$ED$150,MATCH($FV25,$A$4:$A$150,0),FW$1)="","",(501-INDEX($E$4:$ED$150,MATCH($FV25,$A$4:$A$150,0),FW$1))/IF(FW5=0,FW$22,FW5)*3),"") ->  | FX25: =IFERROR(IF(INDEX($E$4:$ED$150,MATCH($FV25,$A$4:$A$150,0),FX$1)="","",(501-INDEX($E$4:$ED$150,MATCH($FV25,$A$4:$A$150,0),FX$1))/IF(FX5=0,FX$22,FX5)*3),"") ->  | FY25: =IFERROR(IF(INDEX($E$4:$ED$150,MATCH($FV25,$A$4:$A$150,0),FY$1)="","",(501-INDEX($E$4:$ED$150,MATCH($FV25,$A$4:$A$150,0),FY$1))/IF(FY5=0,FY$22,FY5)*3),"") ->  | FZ25: =IFERROR(IF(INDEX($E$4:$ED$150,MATCH($FV25,$A$4:$A$150,0),FZ$1)="","",(501-INDEX($E$4:$ED$150,MATCH($FV25,$A$4:$A$150,0),FZ$1))/IF(FZ5=0,FZ$22,FZ5)*3),"") ->  | GA25: =IFERROR(IF(INDEX($E$4:$ED$150,MATCH($FV25,$A$4:$A$150,0),GA$1)="","",(501-INDEX($E$4:$ED$150,MATCH($FV25,$A$4:$A$150,0),GA$1))/IF(GA5=0,GA$22,GA5)*3),"") ->  | GB25: =IFERROR(IF(INDEX($E$4:$ED$150,MATCH($FV25,$A$4:$A$150,0),GB$1)="","",(501-INDEX($E$4:$ED$150,MATCH($FV25,$A$4:$A$150,0),GB$1))/IF(GB5=0,GB$22,GB5)*3),"") ->  | GC25: =IFERROR(IF(INDEX($E$4:$ED$150,MATCH($FV25,$A$4:$A$150,0),GC$1)="","",(501-INDEX($E$4:$ED$150,MATCH($FV25,$A$4:$A$150,0),GC$1))/IF(GC5=0,GC$22,GC5)*3),"") ->  | GD25: =IFERROR(IF(INDEX($E$4:$ED$150,MATCH($FV25,$A$4:$A$150,0),GD$1)="","",(501-INDEX($E$4:$ED$150,MATCH($FV25,$A$4:$A$150,0),GD$1))/IF(GD5=0,GD$22,GD5)*3),"") ->  | GE25: =IFERROR(IF(INDEX($E$4:$ED$150,MATCH($FV25,$A$4:$A$150,0),GE$1)="","",(501-INDEX($E$4:$ED$150,MATCH($FV25,$A$4:$A$150,0),GE$1))/IF(GE5=0,GE$22,GE5)*3),"") ->  | GF25: =IFERROR(IF(INDEX($E$4:$ED$150,MATCH($FV25,$A$4:$A$150,0),GF$1)="","",(501-INDEX($E$4:$ED$150,MATCH($FV25,$A$4:$A$150,0),GF$1))/IF(GF5=0,GF$22,GF5)*3),"") ->  | GG25: =IFERROR(IF(INDEX($E$4:$ED$150,MATCH($FV25,$A$4:$A$150,0),GG$1)="","",(501-INDEX($E$4:$ED$150,MATCH($FV25,$A$4:$A$150,0),GG$1))/IF(GG5=0,GG$22,GG5)*3),"") ->  | GH25: =IFERROR(IF(INDEX($E$4:$ED$150,MATCH($FV25,$A$4:$A$150,0),GH$1)="","",(501-INDEX($E$4:$ED$150,MATCH($FV25,$A$4:$A$150,0),GH$1))/IF(GH5=0,GH$22,GH5)*3),"") ->  | GI25: =IFERROR(IF(INDEX($E$4:$ED$150,MATCH($FV25,$A$4:$A$150,0),GI$1)="","",(501-INDEX($E$4:$ED$150,MATCH($FV25,$A$4:$A$150,0),GI$1))/IF(GI5=0,GI$22,GI5)*3),"") ->  | GJ25: =IFERROR(IF(INDEX($E$4:$ED$150,MATCH($FV25,$A$4:$A$150,0),GJ$1)="","",(501-INDEX($E$4:$ED$150,MATCH($FV25,$A$4:$A$150,0),GJ$1))/IF(GJ5=0,GJ$22,GJ5)*3),"") ->  | GK25: =IFERROR(IF(INDEX($E$4:$ED$150,MATCH($FV25,$A$4:$A$150,0),GK$1)="","",(501-INDEX($E$4:$ED$150,MATCH($FV25,$A$4:$A$150,0),GK$1))/IF(GK5=0,GK$22,GK5)*3),"") ->  | GL25: =IFERROR(IF(INDEX($E$4:$ED$150,MATCH($FV25,$A$4:$A$150,0),GL$1)="","",(501-INDEX($E$4:$ED$150,MATCH($FV25,$A$4:$A$150,0),GL$1))/IF(GL5=0,GL$22,GL5)*3),"") ->  | GM25: =IFERROR(IF(INDEX($E$4:$ED$150,MATCH($FV25,$A$4:$A$150,0),GM$1)="","",(501-INDEX($E$4:$ED$150,MATCH($FV25,$A$4:$A$150,0),GM$1))/IF(GM5=0,GM$22,GM5)*3),"") ->  | GN25: =IFERROR(IF(INDEX($E$4:$ED$150,MATCH($FV25,$A$4:$A$150,0),GN$1)="","",(501-INDEX($E$4:$ED$150,MATCH($FV25,$A$4:$A$150,0),GN$1))/IF(GN5=0,GN$22,GN5)*3),"") ->  | GO25: =IFERROR(IF(INDEX($E$4:$ED$150,MATCH($FV25,$A$4:$A$150,0),GO$1)="","",(501-INDEX($E$4:$ED$150,MATCH($FV25,$A$4:$A$150,0),GO$1))/IF(GO5=0,GO$22,GO5)*3),"") ->  | GP25: =IFERROR(IF(INDEX($E$4:$ED$150,MATCH($FV25,$A$4:$A$150,0),GP$1)="","",(501-INDEX($E$4:$ED$150,MATCH($FV25,$A$4:$A$150,0),GP$1))/IF(GP5=0,GP$22,GP5)*3),"") ->  | GQ25: =IFERROR(IF(INDEX($E$4:$ED$150,MATCH($FV25,$A$4:$A$150,0),GQ$1)="","",(501-INDEX($E$4:$ED$150,MATCH($FV25,$A$4:$A$150,0),GQ$1))/IF(GQ5=0,GQ$22,GQ5)*3),"") ->  | GR25: =IFERROR(IF(INDEX($E$4:$ED$150,MATCH($FV25,$A$4:$A$150,0),GR$1)="","",(501-INDEX($E$4:$ED$150,MATCH($FV25,$A$4:$A$150,0),GR$1))/IF(GR5=0,GR$22,GR5)*3),"") ->  | GS25: =IFERROR(IF(INDEX($E$4:$ED$150,MATCH($FV25,$A$4:$A$150,0),GS$1)="","",(501-INDEX($E$4:$ED$150,MATCH($FV25,$A$4:$A$150,0),GS$1))/IF(GS5=0,GS$22,GS5)*3),"") ->  | GT25: =IFERROR(IF(INDEX($E$4:$ED$150,MATCH($FV25,$A$4:$A$150,0),GT$1)="","",(501-INDEX($E$4:$ED$150,MATCH($FV25,$A$4:$A$150,0),GT$1))/IF(GT5=0,GT$22,GT5)*3),"") ->  | GU25: =IFERROR(IF(INDEX($E$4:$ED$150,MATCH($FV25,$A$4:$A$150,0),GU$1)="","",(501-INDEX($E$4:$ED$150,MATCH($FV25,$A$4:$A$150,0),GU$1))/IF(GU5=0,GU$22,GU5)*3),"") ->  | GV25: =IFERROR(IF(INDEX($E$4:$ED$150,MATCH($FV25,$A$4:$A$150,0),GV$1)="","",(501-INDEX($E$4:$ED$150,MATCH($FV25,$A$4:$A$150,0),GV$1))/IF(GV5=0,GV$22,GV5)*3),"") ->  | GW25: =IFERROR(IF(INDEX($E$4:$ED$150,MATCH($FV25,$A$4:$A$150,0),GW$1)="","",(501-INDEX($E$4:$ED$150,MATCH($FV25,$A$4:$A$150,0),GW$1))/IF(GW5=0,GW$22,GW5)*3),"") ->  | GX25: =IFERROR(IF(INDEX($E$4:$ED$150,MATCH($FV25,$A$4:$A$150,0),GX$1)="","",(501-INDEX($E$4:$ED$150,MATCH($FV25,$A$4:$A$150,0),GX$1))/IF(GX5=0,GX$22,GX5)*3),"") ->  | GY25: =IFERROR(IF(INDEX($E$4:$ED$150,MATCH($FV25,$A$4:$A$150,0),GY$1)="","",(501-INDEX($E$4:$ED$150,MATCH($FV25,$A$4:$A$150,0),GY$1))/IF(GY5=0,GY$22,GY5)*3),"") ->  | GZ25: =IFERROR(IF(INDEX($E$4:$ED$150,MATCH($FV25,$A$4:$A$150,0),GZ$1)="","",(501-INDEX($E$4:$ED$150,MATCH($FV25,$A$4:$A$150,0),GZ$1))/IF(GZ5=0,GZ$22,GZ5)*3),"") ->  | HA25: =IFERROR(IF(INDEX($E$4:$ED$150,MATCH($FV25,$A$4:$A$150,0),HA$1)="","",(501-INDEX($E$4:$ED$150,MATCH($FV25,$A$4:$A$150,0),HA$1))/IF(HA5=0,HA$22,HA5)*3),"") ->  | HB25: =IFERROR(IF(INDEX($E$4:$ED$150,MATCH($FV25,$A$4:$A$150,0),HB$1)="","",(501-INDEX($E$4:$ED$150,MATCH($FV25,$A$4:$A$150,0),HB$1))/IF(HB5=0,HB$22,HB5)*3),"") ->  | HC25: =IFERROR(IF(INDEX($E$4:$ED$150,MATCH($FV25,$A$4:$A$150,0),HC$1)="","",(501-INDEX($E$4:$ED$150,MATCH($FV25,$A$4:$A$150,0),HC$1))/IF(HC5=0,HC$22,HC5)*3),"") ->  | HD25: =IFERROR(IF(INDEX($E$4:$ED$150,MATCH($FV25,$A$4:$A$150,0),HD$1)="","",(501-INDEX($E$4:$ED$150,MATCH($FV25,$A$4:$A$150,0),HD$1))/IF(HD5=0,HD$22,HD5)*3),"") ->  | HE25: =IFERROR(IF(INDEX($E$4:$ED$150,MATCH($FV25,$A$4:$A$150,0),HE$1)="","",(501-INDEX($E$4:$ED$150,MATCH($FV25,$A$4:$A$150,0),HE$1))/IF(HE5=0,HE$22,HE5)*3),"") ->  | HF25: =IFERROR(IF(INDEX($E$4:$ED$150,MATCH($FV25,$A$4:$A$150,0),HF$1)="","",(501-INDEX($E$4:$ED$150,MATCH($FV25,$A$4:$A$150,0),HF$1))/IF(HF5=0,HF$22,HF5)*3),"") ->  | HG25: =IFERROR(IF(INDEX($E$4:$ED$150,MATCH($FV25,$A$4:$A$150,0),HG$1)="","",(501-INDEX($E$4:$ED$150,MATCH($FV25,$A$4:$A$150,0),HG$1))/IF(HG5=0,HG$22,HG5)*3),"") ->  | HH25: =IFERROR(IF(INDEX($E$4:$ED$150,MATCH($FV25,$A$4:$A$150,0),HH$1)="","",(501-INDEX($E$4:$ED$150,MATCH($FV25,$A$4:$A$150,0),HH$1))/IF(HH5=0,HH$22,HH5)*3),"") ->  | HI25: =IFERROR(IF(INDEX($E$4:$ED$150,MATCH($FV25,$A$4:$A$150,0),HI$1)="","",(501-INDEX($E$4:$ED$150,MATCH($FV25,$A$4:$A$150,0),HI$1))/IF(HI5=0,HI$22,HI5)*3),"") ->  | HJ25: =IFERROR(IF(INDEX($E$4:$ED$150,MATCH($FV25,$A$4:$A$150,0),HJ$1)="","",(501-INDEX($E$4:$ED$150,MATCH($FV25,$A$4:$A$150,0),HJ$1))/IF(HJ5=0,HJ$22,HJ5)*3),"") ->  | HK25: =IFERROR(IF(INDEX($E$4:$ED$150,MATCH($FV25,$A$4:$A$150,0),HK$1)="","",(501-INDEX($E$4:$ED$150,MATCH($FV25,$A$4:$A$150,0),HK$1))/IF(HK5=0,HK$22,HK5)*3),"") ->  | HL25: =IFERROR(IF(INDEX($E$4:$ED$150,MATCH($FV25,$A$4:$A$150,0),HL$1)="","",(501-INDEX($E$4:$ED$150,MATCH($FV25,$A$4:$A$150,0),HL$1))/IF(HL5=0,HL$22,HL5)*3),"") ->  | HM25: =IFERROR(IF(INDEX($E$4:$ED$150,MATCH($FV25,$A$4:$A$150,0),HM$1)="","",(501-INDEX($E$4:$ED$150,MATCH($FV25,$A$4:$A$150,0),HM$1))/IF(HM5=0,HM$22,HM5)*3),"") ->  | HN25: =IFERROR(IF(INDEX($E$4:$ED$150,MATCH($FV25,$A$4:$A$150,0),HN$1)="","",(501-INDEX($E$4:$ED$150,MATCH($FV25,$A$4:$A$150,0),HN$1))/IF(HN5=0,HN$22,HN5)*3),"") ->  | HO25: =IFERROR(IF(INDEX($E$4:$ED$150,MATCH($FV25,$A$4:$A$150,0),HO$1)="","",(501-INDEX($E$4:$ED$150,MATCH($FV25,$A$4:$A$150,0),HO$1))/IF(HO5=0,HO$22,HO5)*3),"") ->  | HP25: =IFERROR(IF(INDEX($E$4:$ED$150,MATCH($FV25,$A$4:$A$150,0),HP$1)="","",(501-INDEX($E$4:$ED$150,MATCH($FV25,$A$4:$A$150,0),HP$1))/IF(HP5=0,HP$22,HP5)*3),"") ->  | HQ25: =IFERROR(IF(INDEX($E$4:$ED$150,MATCH($FV25,$A$4:$A$150,0),HQ$1)="","",(501-INDEX($E$4:$ED$150,MATCH($FV25,$A$4:$A$150,0),HQ$1))/IF(HQ5=0,HQ$22,HQ5)*3),"") ->  | HR25: =IFERROR(IF(INDEX($E$4:$ED$150,MATCH($FV25,$A$4:$A$150,0),HR$1)="","",(501-INDEX($E$4:$ED$150,MATCH($FV25,$A$4:$A$150,0),HR$1))/IF(HR5=0,HR$22,HR5)*3),"") ->  | HS25: =IFERROR(IF(INDEX($E$4:$ED$150,MATCH($FV25,$A$4:$A$150,0),HS$1)="","",(501-INDEX($E$4:$ED$150,MATCH($FV25,$A$4:$A$150,0),HS$1))/IF(HS5=0,HS$22,HS5)*3),"") ->  | HT25: =IFERROR(IF(INDEX($E$4:$ED$150,MATCH($FV25,$A$4:$A$150,0),HT$1)="","",(501-INDEX($E$4:$ED$150,MATCH($FV25,$A$4:$A$150,0),HT$1))/IF(HT5=0,HT$22,HT5)*3),"") ->  | HU25: =IFERROR(IF(INDEX($E$4:$ED$150,MATCH($FV25,$A$4:$A$150,0),HU$1)="","",(501-INDEX($E$4:$ED$150,MATCH($FV25,$A$4:$A$150,0),HU$1))/IF(HU5=0,HU$22,HU5)*3),"") ->  | HV25: =IFERROR(IF(INDEX($E$4:$ED$150,MATCH($FV25,$A$4:$A$150,0),HV$1)="","",(501-INDEX($E$4:$ED$150,MATCH($FV25,$A$4:$A$150,0),HV$1))/IF(HV5=0,HV$22,HV5)*3),"") ->  | HW25: =IFERROR(IF(INDEX($E$4:$ED$150,MATCH($FV25,$A$4:$A$150,0),HW$1)="","",(501-INDEX($E$4:$ED$150,MATCH($FV25,$A$4:$A$150,0),HW$1))/IF(HW5=0,HW$22,HW5)*3),"") ->  | HX25: =IFERROR(IF(INDEX($E$4:$ED$150,MATCH($FV25,$A$4:$A$150,0),HX$1)="","",(501-INDEX($E$4:$ED$150,MATCH($FV25,$A$4:$A$150,0),HX$1))/IF(HX5=0,HX$22,HX5)*3),"") ->  | HY25: =IFERROR(IF(INDEX($E$4:$ED$150,MATCH($FV25,$A$4:$A$150,0),HY$1)="","",(501-INDEX($E$4:$ED$150,MATCH($FV25,$A$4:$A$150,0),HY$1))/IF(HY5=0,HY$22,HY5)*3),"") ->  | HZ25: =IFERROR(IF(INDEX($E$4:$ED$150,MATCH($FV25,$A$4:$A$150,0),HZ$1)="","",(501-INDEX($E$4:$ED$150,MATCH($FV25,$A$4:$A$150,0),HZ$1))/IF(HZ5=0,HZ$22,HZ5)*3),"") ->  | IA25: =IFERROR(IF(INDEX($E$4:$ED$150,MATCH($FV25,$A$4:$A$150,0),IA$1)="","",(501-INDEX($E$4:$ED$150,MATCH($FV25,$A$4:$A$150,0),IA$1))/IF(IA5=0,IA$22,IA5)*3),"") ->  | IB25: =IFERROR(IF(INDEX($E$4:$ED$150,MATCH($FV25,$A$4:$A$150,0),IB$1)="","",(501-INDEX($E$4:$ED$150,MATCH($FV25,$A$4:$A$150,0),IB$1))/IF(IB5=0,IB$22,IB5)*3),"") ->  | IC25: =IFERROR(IF(INDEX($E$4:$ED$150,MATCH($FV25,$A$4:$A$150,0),IC$1)="","",(501-INDEX($E$4:$ED$150,MATCH($FV25,$A$4:$A$150,0),IC$1))/IF(IC5=0,IC$22,IC5)*3),"") ->  | ID25: =IFERROR(IF(INDEX($E$4:$ED$150,MATCH($FV25,$A$4:$A$150,0),ID$1)="","",(501-INDEX($E$4:$ED$150,MATCH($FV25,$A$4:$A$150,0),ID$1))/IF(ID5=0,ID$22,ID5)*3),"") ->  | IE25: =IFERROR(IF(INDEX($E$4:$ED$150,MATCH($FV25,$A$4:$A$150,0),IE$1)="","",(501-INDEX($E$4:$ED$150,MATCH($FV25,$A$4:$A$150,0),IE$1))/IF(IE5=0,IE$22,IE5)*3),"") ->  | IF25: =IFERROR(IF(INDEX($E$4:$ED$150,MATCH($FV25,$A$4:$A$150,0),IF$1)="","",(501-INDEX($E$4:$ED$150,MATCH($FV25,$A$4:$A$150,0),IF$1))/IF(IF5=0,IF$22,IF5)*3),"") ->  | IG25: =IFERROR(IF(INDEX($E$4:$ED$150,MATCH($FV25,$A$4:$A$150,0),IG$1)="","",(501-INDEX($E$4:$ED$150,MATCH($FV25,$A$4:$A$150,0),IG$1))/IF(IG5=0,IG$22,IG5)*3),"") ->  | IH25: =IFERROR(IF(INDEX($E$4:$ED$150,MATCH($FV25,$A$4:$A$150,0),IH$1)="","",(501-INDEX($E$4:$ED$150,MATCH($FV25,$A$4:$A$150,0),IH$1))/IF(IH5=0,IH$22,IH5)*3),"") ->  | II25: =IFERROR(IF(INDEX($E$4:$ED$150,MATCH($FV25,$A$4:$A$150,0),II$1)="","",(501-INDEX($E$4:$ED$150,MATCH($FV25,$A$4:$A$150,0),II$1))/IF(II5=0,II$22,II5)*3),"") ->  | IJ25: =IFERROR(IF(INDEX($E$4:$ED$150,MATCH($FV25,$A$4:$A$150,0),IJ$1)="","",(501-INDEX($E$4:$ED$150,MATCH($FV25,$A$4:$A$150,0),IJ$1))/IF(IJ5=0,IJ$22,IJ5)*3),"") ->  | IK25: =IFERROR(IF(INDEX($E$4:$ED$150,MATCH($FV25,$A$4:$A$150,0),IK$1)="","",(501-INDEX($E$4:$ED$150,MATCH($FV25,$A$4:$A$150,0),IK$1))/IF(IK5=0,IK$22,IK5)*3),"") ->  | IL25: =IFERROR(IF(INDEX($E$4:$ED$150,MATCH($FV25,$A$4:$A$150,0),IL$1)="","",(501-INDEX($E$4:$ED$150,MATCH($FV25,$A$4:$A$150,0),IL$1))/IF(IL5=0,IL$22,IL5)*3),"") ->  | IM25: =IFERROR(IF(INDEX($E$4:$ED$150,MATCH($FV25,$A$4:$A$150,0),IM$1)="","",(501-INDEX($E$4:$ED$150,MATCH($FV25,$A$4:$A$150,0),IM$1))/IF(IM5=0,IM$22,IM5)*3),"") ->  | IN25: =IFERROR(IF(INDEX($E$4:$ED$150,MATCH($FV25,$A$4:$A$150,0),IN$1)="","",(501-INDEX($E$4:$ED$150,MATCH($FV25,$A$4:$A$150,0),IN$1))/IF(IN5=0,IN$22,IN5)*3),"") ->  | IO25: =IFERROR(IF(INDEX($E$4:$ED$150,MATCH($FV25,$A$4:$A$150,0),IO$1)="","",(501-INDEX($E$4:$ED$150,MATCH($FV25,$A$4:$A$150,0),IO$1))/IF(IO5=0,IO$22,IO5)*3),"") ->  | IP25: =IFERROR(IF(INDEX($E$4:$ED$150,MATCH($FV25,$A$4:$A$150,0),IP$1)="","",(501-INDEX($E$4:$ED$150,MATCH($FV25,$A$4:$A$150,0),IP$1))/IF(IP5=0,IP$22,IP5)*3),"") ->  | IQ25: =IFERROR(IF(INDEX($E$4:$ED$150,MATCH($FV25,$A$4:$A$150,0),IQ$1)="","",(501-INDEX($E$4:$ED$150,MATCH($FV25,$A$4:$A$150,0),IQ$1))/IF(IQ5=0,IQ$22,IQ5)*3),"") ->  | IR25: =IFERROR(IF(INDEX($E$4:$ED$150,MATCH($FV25,$A$4:$A$150,0),IR$1)="","",(501-INDEX($E$4:$ED$150,MATCH($FV25,$A$4:$A$150,0),IR$1))/IF(IR5=0,IR$22,IR5)*3),"") ->  | IS25: =IFERROR(IF(INDEX($E$4:$ED$150,MATCH($FV25,$A$4:$A$150,0),IS$1)="","",(501-INDEX($E$4:$ED$150,MATCH($FV25,$A$4:$A$150,0),IS$1))/IF(IS5=0,IS$22,IS5)*3),"") ->  | IT25: =IFERROR(IF(INDEX($E$4:$ED$150,MATCH($FV25,$A$4:$A$150,0),IT$1)="","",(501-INDEX($E$4:$ED$150,MATCH($FV25,$A$4:$A$150,0),IT$1))/IF(IT5=0,IT$22,IT5)*3),"") ->  | IU25: =IFERROR(IF(INDEX($E$4:$ED$150,MATCH($FV25,$A$4:$A$150,0),IU$1)="","",(501-INDEX($E$4:$ED$150,MATCH($FV25,$A$4:$A$150,0),IU$1))/IF(IU5=0,IU$22,IU5)*3),"") ->  | IV25: =IFERROR(IF(INDEX($E$4:$ED$150,MATCH($FV25,$A$4:$A$150,0),IV$1)="","",(501-INDEX($E$4:$ED$150,MATCH($FV25,$A$4:$A$150,0),IV$1))/IF(IV5=0,IV$22,IV5)*3),"") ->  | IW25: =IFERROR(IF(INDEX($E$4:$ED$150,MATCH($FV25,$A$4:$A$150,0),IW$1)="","",(501-INDEX($E$4:$ED$150,MATCH($FV25,$A$4:$A$150,0),IW$1))/IF(IW5=0,IW$22,IW5)*3),"") ->  | IX25: =IFERROR(IF(INDEX($E$4:$ED$150,MATCH($FV25,$A$4:$A$150,0),IX$1)="","",(501-INDEX($E$4:$ED$150,MATCH($FV25,$A$4:$A$150,0),IX$1))/IF(IX5=0,IX$22,IX5)*3),"") ->  | IY25: =IFERROR(IF(INDEX($E$4:$ED$150,MATCH($FV25,$A$4:$A$150,0),IY$1)="","",(501-INDEX($E$4:$ED$150,MATCH($FV25,$A$4:$A$150,0),IY$1))/IF(IY5=0,IY$22,IY5)*3),"") ->  | IZ25: =IFERROR(IF(INDEX($E$4:$ED$150,MATCH($FV25,$A$4:$A$150,0),IZ$1)="","",(501-INDEX($E$4:$ED$150,MATCH($FV25,$A$4:$A$150,0),IZ$1))/IF(IZ5=0,IZ$22,IZ5)*3),"") ->  | JA25: =IFERROR(IF(INDEX($E$4:$ED$150,MATCH($FV25,$A$4:$A$150,0),JA$1)="","",(501-INDEX($E$4:$ED$150,MATCH($FV25,$A$4:$A$150,0),JA$1))/IF(JA5=0,JA$22,JA5)*3),"") ->  | JB25: =IFERROR(IF(INDEX($E$4:$ED$150,MATCH($FV25,$A$4:$A$150,0),JB$1)="","",(501-INDEX($E$4:$ED$150,MATCH($FV25,$A$4:$A$150,0),JB$1))/IF(JB5=0,JB$22,JB5)*3),"") ->  | JC25: =IFERROR(IF(INDEX($E$4:$ED$150,MATCH($FV25,$A$4:$A$150,0),JC$1)="","",(501-INDEX($E$4:$ED$150,MATCH($FV25,$A$4:$A$150,0),JC$1))/IF(JC5=0,JC$22,JC5)*3),"") ->  | JD25: =IFERROR(IF(INDEX($E$4:$ED$150,MATCH($FV25,$A$4:$A$150,0),JD$1)="","",(501-INDEX($E$4:$ED$150,MATCH($FV25,$A$4:$A$150,0),JD$1))/IF(JD5=0,JD$22,JD5)*3),"") ->  | JE25: =IFERROR(IF(INDEX($E$4:$ED$150,MATCH($FV25,$A$4:$A$150,0),JE$1)="","",(501-INDEX($E$4:$ED$150,MATCH($FV25,$A$4:$A$150,0),JE$1))/IF(JE5=0,JE$22,JE5)*3),"") ->  | JF25: =IFERROR(IF(INDEX($E$4:$ED$150,MATCH($FV25,$A$4:$A$150,0),JF$1)="","",(501-INDEX($E$4:$ED$150,MATCH($FV25,$A$4:$A$150,0),JF$1))/IF(JF5=0,JF$22,JF5)*3),"") ->  | JG25: =IFERROR(IF(INDEX($E$4:$ED$150,MATCH($FV25,$A$4:$A$150,0),JG$1)="","",(501-INDEX($E$4:$ED$150,MATCH($FV25,$A$4:$A$150,0),JG$1))/IF(JG5=0,JG$22,JG5)*3),"") ->  | JH25: =IFERROR(IF(INDEX($E$4:$ED$150,MATCH($FV25,$A$4:$A$150,0),JH$1)="","",(501-INDEX($E$4:$ED$150,MATCH($FV25,$A$4:$A$150,0),JH$1))/IF(JH5=0,JH$22,JH5)*3),"") ->  | JI25: =IFERROR(IF(INDEX($E$4:$ED$150,MATCH($FV25,$A$4:$A$150,0),JI$1)="","",(501-INDEX($E$4:$ED$150,MATCH($FV25,$A$4:$A$150,0),JI$1))/IF(JI5=0,JI$22,JI5)*3),"") -> 45.09090909 | JJ25: =IFERROR(IF(INDEX($E$4:$ED$150,MATCH($FV25,$A$4:$A$150,0),JJ$1)="","",(501-INDEX($E$4:$ED$150,MATCH($FV25,$A$4:$A$150,0),JJ$1))/IF(JJ5=0,JJ$22,JJ5)*3),"") -> 41.27272727 | JK25: =IFERROR(IF(INDEX($E$4:$ED$150,MATCH($FV25,$A$4:$A$150,0),JK$1)="","",(501-INDEX($E$4:$ED$150,MATCH($FV25,$A$4:$A$150,0),JK$1))/IF(JK5=0,JK$22,JK5)*3),"") -> 36.66666667 | JL25: =IFERROR(IF(INDEX($E$4:$ED$150,MATCH($FV25,$A$4:$A$150,0),JL$1)="","",(501-INDEX($E$4:$ED$150,MATCH($FV25,$A$4:$A$150,0),JL$1))/IF(JL5=0,JL$22,JL5)*3),"") ->  | JM25: =IFERROR(IF(INDEX($E$4:$ED$150,MATCH($FV25,$A$4:$A$150,0),JM$1)="","",(501-INDEX($E$4:$ED$150,MATCH($FV25,$A$4:$A$150,0),JM$1))/IF(JM5=0,JM$22,JM5)*3),"") ->  | JN25: =IFERROR(IF(INDEX($E$4:$ED$150,MATCH($FV25,$A$4:$A$150,0),JN$1)="","",(501-INDEX($E$4:$ED$150,MATCH($FV25,$A$4:$A$150,0),JN$1))/IF(JN5=0,JN$22,JN5)*3),"") ->  | JO25: =IFERROR(IF(INDEX($E$4:$ED$150,MATCH($FV25,$A$4:$A$150,0),JO$1)="","",(501-INDEX($E$4:$ED$150,MATCH($FV25,$A$4:$A$150,0),JO$1))/IF(JO5=0,JO$22,JO5)*3),"") ->  | JP25: =IFERROR(IF(INDEX($E$4:$ED$150,MATCH($FV25,$A$4:$A$150,0),JP$1)="","",(501-INDEX($E$4:$ED$150,MATCH($FV25,$A$4:$A$150,0),JP$1))/IF(JP5=0,JP$22,JP5)*3),"") ->  | JQ25: =IFERROR(IF(INDEX($E$4:$ED$150,MATCH($FV25,$A$4:$A$150,0),JQ$1)="","",(501-INDEX($E$4:$ED$150,MATCH($FV25,$A$4:$A$150,0),JQ$1))/IF(JQ5=0,JQ$22,JQ5)*3),"") ->  | JR25: =IFERROR(IF(INDEX($E$4:$ED$150,MATCH($FV25,$A$4:$A$150,0),JR$1)="","",(501-INDEX($E$4:$ED$150,MATCH($FV25,$A$4:$A$150,0),JR$1))/IF(JR5=0,JR$22,JR5)*3),"") ->  | JS25: =IFERROR(IF(INDEX($E$4:$ED$150,MATCH($FV25,$A$4:$A$150,0),JS$1)="","",(501-INDEX($E$4:$ED$150,MATCH($FV25,$A$4:$A$150,0),JS$1))/IF(JS5=0,JS$22,JS5)*3),"") ->  | JT25: =IFERROR(IF(INDEX($E$4:$ED$150,MATCH($FV25,$A$4:$A$150,0),JT$1)="","",(501-INDEX($E$4:$ED$150,MATCH($FV25,$A$4:$A$150,0),JT$1))/IF(JT5=0,JT$22,JT5)*3),"") ->  | JU25: =IFERROR(IF(INDEX($E$4:$ED$150,MATCH($FV25,$A$4:$A$150,0),JU$1)="","",(501-INDEX($E$4:$ED$150,MATCH($FV25,$A$4:$A$150,0),JU$1))/IF(JU5=0,JU$22,JU5)*3),"") ->  | JV25: =IFERROR(IF(INDEX($E$4:$ED$150,MATCH($FV25,$A$4:$A$150,0),JV$1)="","",(501-INDEX($E$4:$ED$150,MATCH($FV25,$A$4:$A$150,0),JV$1))/IF(JV5=0,JV$22,JV5)*3),"") ->  | JW25: =IFERROR(IF(INDEX($E$4:$ED$150,MATCH($FV25,$A$4:$A$150,0),JW$1)="","",(501-INDEX($E$4:$ED$150,MATCH($FV25,$A$4:$A$150,0),JW$1))/IF(JW5=0,JW$22,JW5)*3),"") ->  | JX25: =IFERROR(IF(INDEX($E$4:$ED$150,MATCH($FV25,$A$4:$A$150,0),JX$1)="","",(501-INDEX($E$4:$ED$150,MATCH($FV25,$A$4:$A$150,0),JX$1))/IF(JX5=0,JX$22,JX5)*3),"") ->  | JY25: =IFERROR(IF(INDEX($E$4:$ED$150,MATCH($FV25,$A$4:$A$150,0),JY$1)="","",(501-INDEX($E$4:$ED$150,MATCH($FV25,$A$4:$A$150,0),JY$1))/IF(JY5=0,JY$22,JY5)*3),"") ->  | JZ25: =IFERROR(IF(INDEX($E$4:$ED$150,MATCH($FV25,$A$4:$A$150,0),JZ$1)="","",(501-INDEX($E$4:$ED$150,MATCH($FV25,$A$4:$A$150,0),JZ$1))/IF(JZ5=0,JZ$22,JZ5)*3),"") ->  | KA25: =IFERROR(IF(INDEX($E$4:$ED$150,MATCH($FV25,$A$4:$A$150,0),KA$1)="","",(501-INDEX($E$4:$ED$150,MATCH($FV25,$A$4:$A$150,0),KA$1))/IF(KA5=0,KA$22,KA5)*3),"") ->  | KB25: =IFERROR(IF(INDEX($E$4:$ED$150,MATCH($FV25,$A$4:$A$150,0),KB$1)="","",(501-INDEX($E$4:$ED$150,MATCH($FV25,$A$4:$A$150,0),KB$1))/IF(KB5=0,KB$22,KB5)*3),"") ->  | KC25: =IFERROR(IF(INDEX($E$4:$ED$150,MATCH($FV25,$A$4:$A$150,0),KC$1)="","",(501-INDEX($E$4:$ED$150,MATCH($FV25,$A$4:$A$150,0),KC$1))/IF(KC5=0,KC$22,KC5)*3),"") ->  | KD25: =IFERROR(IF(INDEX($E$4:$ED$150,MATCH($FV25,$A$4:$A$150,0),KD$1)="","",(501-INDEX($E$4:$ED$150,MATCH($FV25,$A$4:$A$150,0),KD$1))/IF(KD5=0,KD$22,KD5)*3),"") ->  | KE25: =IFERROR(IF(INDEX($E$4:$ED$150,MATCH($FV25,$A$4:$A$150,0),KE$1)="","",(501-INDEX($E$4:$ED$150,MATCH($FV25,$A$4:$A$150,0),KE$1))/IF(KE5=0,KE$22,KE5)*3),"") ->  | KF25: =IFERROR(IF(INDEX($E$4:$ED$150,MATCH($FV25,$A$4:$A$150,0),KF$1)="","",(501-INDEX($E$4:$ED$150,MATCH($FV25,$A$4:$A$150,0),KF$1))/IF(KF5=0,KF$22,KF5)*3),"") ->  | KG25: =IFERROR(IF(INDEX($E$4:$ED$150,MATCH($FV25,$A$4:$A$150,0),KG$1)="","",(501-INDEX($E$4:$ED$150,MATCH($FV25,$A$4:$A$150,0),KG$1))/IF(KG5=0,KG$22,KG5)*3),"") ->  | KH25: =IFERROR(IF(INDEX($E$4:$ED$150,MATCH($FV25,$A$4:$A$150,0),KH$1)="","",(501-INDEX($E$4:$ED$150,MATCH($FV25,$A$4:$A$150,0),KH$1))/IF(KH5=0,KH$22,KH5)*3),"") ->  | KI25: =IFERROR(IF(INDEX($E$4:$ED$150,MATCH($FV25,$A$4:$A$150,0),KI$1)="","",(501-INDEX($E$4:$ED$150,MATCH($FV25,$A$4:$A$150,0),KI$1))/IF(KI5=0,KI$22,KI5)*3),"") ->  | KJ25: =IFERROR(IF(INDEX($E$4:$ED$150,MATCH($FV25,$A$4:$A$150,0),KJ$1)="","",(501-INDEX($E$4:$ED$150,MATCH($FV25,$A$4:$A$150,0),KJ$1))/IF(KJ5=0,KJ$22,KJ5)*3),"") ->  | KK25: =IFERROR(IF(INDEX($E$4:$ED$150,MATCH($FV25,$A$4:$A$150,0),KK$1)="","",(501-INDEX($E$4:$ED$150,MATCH($FV25,$A$4:$A$150,0),KK$1))/IF(KK5=0,KK$22,KK5)*3),"") ->  | KL25: =IFERROR(IF(INDEX($E$4:$ED$150,MATCH($FV25,$A$4:$A$150,0),KL$1)="","",(501-INDEX($E$4:$ED$150,MATCH($FV25,$A$4:$A$150,0),KL$1))/IF(KL5=0,KL$22,KL5)*3),"") ->  | KM25: =IFERROR(IF(INDEX($E$4:$ED$150,MATCH($FV25,$A$4:$A$150,0),KM$1)="","",(501-INDEX($E$4:$ED$150,MATCH($FV25,$A$4:$A$150,0),KM$1))/IF(KM5=0,KM$22,KM5)*3),"") ->  | KN25: =IFERROR(IF(INDEX($E$4:$ED$150,MATCH($FV25,$A$4:$A$150,0),KN$1)="","",(501-INDEX($E$4:$ED$150,MATCH($FV25,$A$4:$A$150,0),KN$1))/IF(KN5=0,KN$22,KN5)*3),"") ->  | KO25: =IFERROR(IF(INDEX($E$4:$ED$150,MATCH($FV25,$A$4:$A$150,0),KO$1)="","",(501-INDEX($E$4:$ED$150,MATCH($FV25,$A$4:$A$150,0),KO$1))/IF(KO5=0,KO$22,KO5)*3),"") ->  | KP25: =IFERROR(IF(INDEX($E$4:$ED$150,MATCH($FV25,$A$4:$A$150,0),KP$1)="","",(501-INDEX($E$4:$ED$150,MATCH($FV25,$A$4:$A$150,0),KP$1))/IF(KP5=0,KP$22,KP5)*3),"") ->  | KQ25: =IFERROR(IF(INDEX($E$4:$ED$150,MATCH($FV25,$A$4:$A$150,0),KQ$1)="","",(501-INDEX($E$4:$ED$150,MATCH($FV25,$A$4:$A$150,0),KQ$1))/IF(KQ5=0,KQ$22,KQ5)*3),"") ->  | KR25: =IFERROR(IF(INDEX($E$4:$ED$150,MATCH($FV25,$A$4:$A$150,0),KR$1)="","",(501-INDEX($E$4:$ED$150,MATCH($FV25,$A$4:$A$150,0),KR$1))/IF(KR5=0,KR$22,KR5)*3),"") ->  | KS25: =IFERROR(IF(INDEX($E$4:$ED$150,MATCH($FV25,$A$4:$A$150,0),KS$1)="","",(501-INDEX($E$4:$ED$150,MATCH($FV25,$A$4:$A$150,0),KS$1))/IF(KS5=0,KS$22,KS5)*3),"") ->  | KT25: =IFERROR(IF(INDEX($E$4:$ED$150,MATCH($FV25,$A$4:$A$150,0),KT$1)="","",(501-INDEX($E$4:$ED$150,MATCH($FV25,$A$4:$A$150,0),KT$1))/IF(KT5=0,KT$22,KT5)*3),"") ->  | KU25: =IFERROR(IF(INDEX($E$4:$ED$150,MATCH($FV25,$A$4:$A$150,0),KU$1)="","",(501-INDEX($E$4:$ED$150,MATCH($FV25,$A$4:$A$150,0),KU$1))/IF(KU5=0,KU$22,KU5)*3),"") ->  | KV25: =IFERROR(IF(INDEX($E$4:$ED$150,MATCH($FV25,$A$4:$A$150,0),KV$1)="","",(501-INDEX($E$4:$ED$150,MATCH($FV25,$A$4:$A$150,0),KV$1))/IF(KV5=0,KV$22,KV5)*3),"") ->  | KW25: =IFERROR(SUM(FW25:KV25)/COUNT(FW25:KV25),INDEX(List4!$F$2:$F$17,MATCH(INDEX($A$4:$C$150,MATCH(FV25,$A$4:$A$150,0),2),List4!$D$2:$D$17,0),1)) -> 41.01010101 | KX25: 2 | KY25: =INDEX($A$4:$C$150,MATCH(INDEX($FV$24:$FV$41,MATCH(KZ25,$LA$24:$LA$41,0),1),$A$4:$A$150,0)-2,2) -> Kuba Šedivý | KZ25: 43.20071721 | LA25: =IF(INDEX(Tabulka!$A$2:$AN$226,MATCH($FS25,Tabulka!$A$2:$A$226,0),38)<1,-90000+INDEX(List4!$F$2:$F$17,MATCH($FS25,List4!$D$2:$D$17,0),1),IF(AND(INDEX(Tabulka!$A$2:$AN$226,MATCH($FS25,Tabulka!$A$2:$A$226,0)+3,34)>0,INDEX(Tabulka!$A$2:$AN$226,MATCH($FS25,Tabulka!$A$2:$A$226,0)+3,34)<Přehled_body!$EJ$1),-50000+INDEX(List4!$F$2:$F$17,MATCH($FS25,List4!$D$2:$D$17,0),),IFERROR(SUM(FW25:KV25)/COUNT(FW25:KV25)+INDEX(List4!$F$2:$F$17,MATCH($FS25,List4!$D$2:$D$17,0),),-50000+INDEX(List4!$F$2:$F$17,MATCH($FS25,List4!$D$2:$D$17,0),)))) -> -50000 | LB25: =INDEX($KW$24:$KW$39,MATCH(KY25,$FS$24:$FS$39,0),1) -> 43.2007172
A26: Kuba ŠedivýPrůměr konečných bodů na hru | B26: =CONCATENATE(C21," ",C22) -> Kuba Šedivý | D26: =Tabulka!C27 -> Průměr konečných bodů na hru | J26: 1.1001e-05 | K26: 26.500011 | L26: 36.66667767 | M26: 48.000011 | O26: 40.800011 | P26: 34.000011 | AD26: 31.57143957 | AE26: 41.750011 | AF26: 37.11112211 | AG26: 45.900011 | AI26: 41.72728373 | AJ26: 38.250011 | AK26: 35.30770331 | AL26: 37.71429672 | AX26: 37.600011 | AY26: 38.812511 | AZ26: 36.52942277 | BR26: 34.500011 | BS26: 33.68422153 | BT26: 32.300011 | BU26: 31.0952491 | BV26: 31.90910191 | CB26: 33.65218491 | CC26: 38.04167767 | CD26: 40.800011 | CE26: 42.65385715 | CG26: 44.33334433 | CH26: 46.250011 | CI26: 44.65518341 | CJ26: 43.33334433 | CR26: 42.96775294 | CS26: 41.781261 | CT26: 45.6969807 | DA26: 48.61765806 | DB26: 48.45715386 | DC26: 47.11112211 | DD26: 46.51352451 | DF26: =IF(DF25<>"",AVERAGE($E25:DF25)+$EI26,"") ->  | DG26: =IF(DG25<>"",AVERAGE($E25:DG25)+$EI26,"") ->  | DH26: =IF(DH25<>"",AVERAGE($E25:DH25)+$EI26,"") ->  | DI26: =IF(DI25<>"",AVERAGE($E25:DI25)+$EI26,"") ->  | DJ26: =IF(DJ25<>"",AVERAGE($E25:DJ25)+$EI26,"") ->  | DK26: =IF(DK25<>"",AVERAGE($E25:DK25)+$EI26,"") -> 45.28947379 | DL26: =IF(DL25<>"",AVERAGE($E25:DL25)+$EI26,"") -> 44.15384626 | DM26: =IF(DM25<>"",AVERAGE($E25:DM25)+$EI26,"") -> 44.20000011 | DN26: =IF(DN25<>"",AVERAGE($E25:DN25)+$EI26,"") -> 43.12195133 | DO26: =IF(DO25<>"",AVERAGE($E25:DO25)+$EI26,"") ->  | DP26: =IF(DP25<>"",AVERAGE($E25:DP25)+$EI26,"") ->  | DQ26: =IF(DQ25<>"",AVERAGE($E25:DQ25)+$EI26,"") ->  | DR26: =IF(DR25<>"",AVERAGE($E25:DR25)+$EI26,"") ->  | DS26: =IF(DS25<>"",AVERAGE($E25:DS25)+$EI26,"") ->  | DT26: =IF(DT25<>"",AVERAGE($E25:DT25)+$EI26,"") ->  | DU26: =IF(DU25<>"",AVERAGE($E25:DU25)+$EI26,"") ->  | DV26: =IF(DV25<>"",AVERAGE($E25:DV25)+$EI26,"") ->  | DW26: =IF(DW25<>"",AVERAGE($E25:DW25)+$EI26,"") ->  | DX26: =IF(DX25<>"",AVERAGE($E25:DX25)+$EI26,"") ->  | DY26: =IF(DY25<>"",AVERAGE($E25:DY25)+$EI26,"") ->  | DZ26: =IF(DZ25<>"",AVERAGE($E25:DZ25)+$EI26,"") ->  | EA26: =IF(EA25<>"",AVERAGE($E25:EA25)+$EI26,"") ->  | EB26: =IF(EB25<>"",AVERAGE($E25:EB25)+$EI26,"") ->  | EC26: =IF(EC25<>"",AVERAGE($E25:EC25)+$EI26,"") ->  | ED26: =IF(ED25<>"",AVERAGE($E25:ED25)+$EI26,"") ->  | EE26: =IF(AND(SUM(Tabulka!$AG$13)>0.99,(SUM(Tabulka!$AH$17)<$EJ$1)),50000+C20/1000,IF(OR(SUM(Tabulka!$AG$13)<2),90000,SUM(E25:ED25)/COUNT(E26:ED26)))+EG26 -> 50043.12495 | EG26: =IFERROR(SUM(E25:ED25)/COUNT(E25:ED25),) -> 43.12195122 | EH26: =CONCATENATE(C21," ",C22) -> Kuba Šedivý | EI26: =INDEX(List4!$E$2:$E$19,MATCH(CONCATENATE(C21," ",C22),List4!$A$2:$A$19,0),1) -> 1.1e-07 | EK26: =IFERROR(501/EK27*3,) -> 52.43023256 | EP26: Prům bodů na kolo při zavření | EQ26: =IF(OR(SUM(Tabulka!$AG21)<1),-90000+INDEX(List4!$F$2:$F$17,MATCH(Přehled_body!B27,List4!$D$2:$D$17,0),1),IF(OR(AND(SUM(Tabulka!$AG21)>0.99,(SUM(Tabulka!$AH$9)<$EJ$1)),Tabulka!AG21<$EJ$2),-50000+(501/EQ27*3)+INDEX(List4!$F$2:$F$17,MATCH(Přehled_body!B26,List4!$D$2:$D$17,0),1),IF(EE27<9,1,501/EQ27*3)+INDEX(List4!$F$2:$F$17,MATCH(Přehled_body!B26,List4!$D$2:$D$17,0),1))) -> 52.43023237 | FS26: Kuba Šedivý | FT26: =FT25+8 -> 16 | FV26: =OFFSET($A$9,FT26,0) -> Kuba ŠedivýPočet konečných bodů | FW26: =IFERROR(IF(INDEX($E$4:$ED$150,MATCH($FV26,$A$4:$A$150,0),FW$1)="","",(501-INDEX($E$4:$ED$150,MATCH($FV26,$A$4:$A$150,0),FW$1))/IF(FW6=0,FW$22,FW6)*3),"") ->  | FX26: =IFERROR(IF(INDEX($E$4:$ED$150,MATCH($FV26,$A$4:$A$150,0),FX$1)="","",(501-INDEX($E$4:$ED$150,MATCH($FV26,$A$4:$A$150,0),FX$1))/IF(FX6=0,FX$22,FX6)*3),"") ->  | FY26: =IFERROR(IF(INDEX($E$4:$ED$150,MATCH($FV26,$A$4:$A$150,0),FY$1)="","",(501-INDEX($E$4:$ED$150,MATCH($FV26,$A$4:$A$150,0),FY$1))/IF(FY6=0,FY$22,FY6)*3),"") ->  | FZ26: =IFERROR(IF(INDEX($E$4:$ED$150,MATCH($FV26,$A$4:$A$150,0),FZ$1)="","",(501-INDEX($E$4:$ED$150,MATCH($FV26,$A$4:$A$150,0),FZ$1))/IF(FZ6=0,FZ$22,FZ6)*3),"") ->  | GA26: =IFERROR(IF(INDEX($E$4:$ED$150,MATCH($FV26,$A$4:$A$150,0),GA$1)="","",(501-INDEX($E$4:$ED$150,MATCH($FV26,$A$4:$A$150,0),GA$1))/IF(GA6=0,GA$22,GA6)*3),"") ->  | GB26: =IFERROR(IF(INDEX($E$4:$ED$150,MATCH($FV26,$A$4:$A$150,0),GB$1)="","",(501-INDEX($E$4:$ED$150,MATCH($FV26,$A$4:$A$150,0),GB$1))/IF(GB6=0,GB$22,GB6)*3),"") ->  | GC26: =IFERROR(IF(INDEX($E$4:$ED$150,MATCH($FV26,$A$4:$A$150,0),GC$1)="","",(501-INDEX($E$4:$ED$150,MATCH($FV26,$A$4:$A$150,0),GC$1))/IF(GC6=0,GC$22,GC6)*3),"") ->  | GD26: =IFERROR(IF(INDEX($E$4:$ED$150,MATCH($FV26,$A$4:$A$150,0),GD$1)="","",(501-INDEX($E$4:$ED$150,MATCH($FV26,$A$4:$A$150,0),GD$1))/IF(GD6=0,GD$22,GD6)*3),"") ->  | GE26: =IFERROR(IF(INDEX($E$4:$ED$150,MATCH($FV26,$A$4:$A$150,0),GE$1)="","",(501-INDEX($E$4:$ED$150,MATCH($FV26,$A$4:$A$150,0),GE$1))/IF(GE6=0,GE$22,GE6)*3),"") ->  | GF26: =IFERROR(IF(INDEX($E$4:$ED$150,MATCH($FV26,$A$4:$A$150,0),GF$1)="","",(501-INDEX($E$4:$ED$150,MATCH($FV26,$A$4:$A$150,0),GF$1))/IF(GF6=0,GF$22,GF6)*3),"") ->  | GG26: =IFERROR(IF(INDEX($E$4:$ED$150,MATCH($FV26,$A$4:$A$150,0),GG$1)="","",(501-INDEX($E$4:$ED$150,MATCH($FV26,$A$4:$A$150,0),GG$1))/IF(GG6=0,GG$22,GG6)*3),"") ->  | GH26: =IFERROR(IF(INDEX($E$4:$ED$150,MATCH($FV26,$A$4:$A$150,0),GH$1)="","",(501-INDEX($E$4:$ED$150,MATCH($FV26,$A$4:$A$150,0),GH$1))/IF(GH6=0,GH$22,GH6)*3),"") ->  | GI26: =IFERROR(IF(INDEX($E$4:$ED$150,MATCH($FV26,$A$4:$A$150,0),GI$1)="","",(501-INDEX($E$4:$ED$150,MATCH($FV26,$A$4:$A$150,0),GI$1))/IF(GI6=0,GI$22,GI6)*3),"") ->  | GJ26: =IFERROR(IF(INDEX($E$4:$ED$150,MATCH($FV26,$A$4:$A$150,0),GJ$1)="","",(501-INDEX($E$4:$ED$150,MATCH($FV26,$A$4:$A$150,0),GJ$1))/IF(GJ6=0,GJ$22,GJ6)*3),"") ->  | GK26: =IFERROR(IF(INDEX($E$4:$ED$150,MATCH($FV26,$A$4:$A$150,0),GK$1)="","",(501-INDEX($E$4:$ED$150,MATCH($FV26,$A$4:$A$150,0),GK$1))/IF(GK6=0,GK$22,GK6)*3),"") ->  | GL26: =IFERROR(IF(INDEX($E$4:$ED$150,MATCH($FV26,$A$4:$A$150,0),GL$1)="","",(501-INDEX($E$4:$ED$150,MATCH($FV26,$A$4:$A$150,0),GL$1))/IF(GL6=0,GL$22,GL6)*3),"") ->  | GM26: =IFERROR(IF(INDEX($E$4:$ED$150,MATCH($FV26,$A$4:$A$150,0),GM$1)="","",(501-INDEX($E$4:$ED$150,MATCH($FV26,$A$4:$A$150,0),GM$1))/IF(GM6=0,GM$22,GM6)*3),"") ->  | GN26: =IFERROR(IF(INDEX($E$4:$ED$150,MATCH($FV26,$A$4:$A$150,0),GN$1)="","",(501-INDEX($E$4:$ED$150,MATCH($FV26,$A$4:$A$150,0),GN$1))/IF(GN6=0,GN$22,GN6)*3),"") ->  | GO26: =IFERROR(IF(INDEX($E$4:$ED$150,MATCH($FV26,$A$4:$A$150,0),GO$1)="","",(501-INDEX($E$4:$ED$150,MATCH($FV26,$A$4:$A$150,0),GO$1))/IF(GO6=0,GO$22,GO6)*3),"") ->  | GP26: =IFERROR(IF(INDEX($E$4:$ED$150,MATCH($FV26,$A$4:$A$150,0),GP$1)="","",(501-INDEX($E$4:$ED$150,MATCH($FV26,$A$4:$A$150,0),GP$1))/IF(GP6=0,GP$22,GP6)*3),"") ->  | GQ26: =IFERROR(IF(INDEX($E$4:$ED$150,MATCH($FV26,$A$4:$A$150,0),GQ$1)="","",(501-INDEX($E$4:$ED$150,MATCH($FV26,$A$4:$A$150,0),GQ$1))/IF(GQ6=0,GQ$22,GQ6)*3),"") ->  | GR26: =IFERROR(IF(INDEX($E$4:$ED$150,MATCH($FV26,$A$4:$A$150,0),GR$1)="","",(501-INDEX($E$4:$ED$150,MATCH($FV26,$A$4:$A$150,0),GR$1))/IF(GR6=0,GR$22,GR6)*3),"") ->  | GS26: =IFERROR(IF(INDEX($E$4:$ED$150,MATCH($FV26,$A$4:$A$150,0),GS$1)="","",(501-INDEX($E$4:$ED$150,MATCH($FV26,$A$4:$A$150,0),GS$1))/IF(GS6=0,GS$22,GS6)*3),"") ->  | GT26: =IFERROR(IF(INDEX($E$4:$ED$150,MATCH($FV26,$A$4:$A$150,0),GT$1)="","",(501-INDEX($E$4:$ED$150,MATCH($FV26,$A$4:$A$150,0),GT$1))/IF(GT6=0,GT$22,GT6)*3),"") ->  | GU26: =IFERROR(IF(INDEX($E$4:$ED$150,MATCH($FV26,$A$4:$A$150,0),GU$1)="","",(501-INDEX($E$4:$ED$150,MATCH($FV26,$A$4:$A$150,0),GU$1))/IF(GU6=0,GU$22,GU6)*3),"") ->  | GV26: =IFERROR(IF(INDEX($E$4:$ED$150,MATCH($FV26,$A$4:$A$150,0),GV$1)="","",(501-INDEX($E$4:$ED$150,MATCH($FV26,$A$4:$A$150,0),GV$1))/IF(GV6=0,GV$22,GV6)*3),"") ->  | GW26: =IFERROR(IF(INDEX($E$4:$ED$150,MATCH($FV26,$A$4:$A$150,0),GW$1)="","",(501-INDEX($E$4:$ED$150,MATCH($FV26,$A$4:$A$150,0),GW$1))/IF(GW6=0,GW$22,GW6)*3),"") ->  | GX26: =IFERROR(IF(INDEX($E$4:$ED$150,MATCH($FV26,$A$4:$A$150,0),GX$1)="","",(501-INDEX($E$4:$ED$150,MATCH($FV26,$A$4:$A$150,0),GX$1))/IF(GX6=0,GX$22,GX6)*3),"") ->  | GY26: =IFERROR(IF(INDEX($E$4:$ED$150,MATCH($FV26,$A$4:$A$150,0),GY$1)="","",(501-INDEX($E$4:$ED$150,MATCH($FV26,$A$4:$A$150,0),GY$1))/IF(GY6=0,GY$22,GY6)*3),"") ->  | GZ26: =IFERROR(IF(INDEX($E$4:$ED$150,MATCH($FV26,$A$4:$A$150,0),GZ$1)="","",(501-INDEX($E$4:$ED$150,MATCH($FV26,$A$4:$A$150,0),GZ$1))/IF(GZ6=0,GZ$22,GZ6)*3),"") ->  | HA26: =IFERROR(IF(INDEX($E$4:$ED$150,MATCH($FV26,$A$4:$A$150,0),HA$1)="","",(501-INDEX($E$4:$ED$150,MATCH($FV26,$A$4:$A$150,0),HA$1))/IF(HA6=0,HA$22,HA6)*3),"") ->  | HB26: =IFERROR(IF(INDEX($E$4:$ED$150,MATCH($FV26,$A$4:$A$150,0),HB$1)="","",(501-INDEX($E$4:$ED$150,MATCH($FV26,$A$4:$A$150,0),HB$1))/IF(HB6=0,HB$22,HB6)*3),"") ->  | HC26: =IFERROR(IF(INDEX($E$4:$ED$150,MATCH($FV26,$A$4:$A$150,0),HC$1)="","",(501-INDEX($E$4:$ED$150,MATCH($FV26,$A$4:$A$150,0),HC$1))/IF(HC6=0,HC$22,HC6)*3),"") ->  | HD26: =IFERROR(IF(INDEX($E$4:$ED$150,MATCH($FV26,$A$4:$A$150,0),HD$1)="","",(501-INDEX($E$4:$ED$150,MATCH($FV26,$A$4:$A$150,0),HD$1))/IF(HD6=0,HD$22,HD6)*3),"") ->  | HE26: =IFERROR(IF(INDEX($E$4:$ED$150,MATCH($FV26,$A$4:$A$150,0),HE$1)="","",(501-INDEX($E$4:$ED$150,MATCH($FV26,$A$4:$A$150,0),HE$1))/IF(HE6=0,HE$22,HE6)*3),"") ->  | HF26: =IFERROR(IF(INDEX($E$4:$ED$150,MATCH($FV26,$A$4:$A$150,0),HF$1)="","",(501-INDEX($E$4:$ED$150,MATCH($FV26,$A$4:$A$150,0),HF$1))/IF(HF6=0,HF$22,HF6)*3),"") ->  | HG26: =IFERROR(IF(INDEX($E$4:$ED$150,MATCH($FV26,$A$4:$A$150,0),HG$1)="","",(501-INDEX($E$4:$ED$150,MATCH($FV26,$A$4:$A$150,0),HG$1))/IF(HG6=0,HG$22,HG6)*3),"") ->  | HH26: =IFERROR(IF(INDEX($E$4:$ED$150,MATCH($FV26,$A$4:$A$150,0),HH$1)="","",(501-INDEX($E$4:$ED$150,MATCH($FV26,$A$4:$A$150,0),HH$1))/IF(HH6=0,HH$22,HH6)*3),"") ->  | HI26: =IFERROR(IF(INDEX($E$4:$ED$150,MATCH($FV26,$A$4:$A$150,0),HI$1)="","",(501-INDEX($E$4:$ED$150,MATCH($FV26,$A$4:$A$150,0),HI$1))/IF(HI6=0,HI$22,HI6)*3),"") ->  | HJ26: =IFERROR(IF(INDEX($E$4:$ED$150,MATCH($FV26,$A$4:$A$150,0),HJ$1)="","",(501-INDEX($E$4:$ED$150,MATCH($FV26,$A$4:$A$150,0),HJ$1))/IF(HJ6=0,HJ$22,HJ6)*3),"") ->  | HK26: =IFERROR(IF(INDEX($E$4:$ED$150,MATCH($FV26,$A$4:$A$150,0),HK$1)="","",(501-INDEX($E$4:$ED$150,MATCH($FV26,$A$4:$A$150,0),HK$1))/IF(HK6=0,HK$22,HK6)*3),"") ->  | HL26: =IFERROR(IF(INDEX($E$4:$ED$150,MATCH($FV26,$A$4:$A$150,0),HL$1)="","",(501-INDEX($E$4:$ED$150,MATCH($FV26,$A$4:$A$150,0),HL$1))/IF(HL6=0,HL$22,HL6)*3),"") ->  | HM26: =IFERROR(IF(INDEX($E$4:$ED$150,MATCH($FV26,$A$4:$A$150,0),HM$1)="","",(501-INDEX($E$4:$ED$150,MATCH($FV26,$A$4:$A$150,0),HM$1))/IF(HM6=0,HM$22,HM6)*3),"") ->  | HN26: =IFERROR(IF(INDEX($E$4:$ED$150,MATCH($FV26,$A$4:$A$150,0),HN$1)="","",(501-INDEX($E$4:$ED$150,MATCH($FV26,$A$4:$A$150,0),HN$1))/IF(HN6=0,HN$22,HN6)*3),"") ->  | HO26: =IFERROR(IF(INDEX($E$4:$ED$150,MATCH($FV26,$A$4:$A$150,0),HO$1)="","",(501-INDEX($E$4:$ED$150,MATCH($FV26,$A$4:$A$150,0),HO$1))/IF(HO6=0,HO$22,HO6)*3),"") ->  | HP26: =IFERROR(IF(INDEX($E$4:$ED$150,MATCH($FV26,$A$4:$A$150,0),HP$1)="","",(501-INDEX($E$4:$ED$150,MATCH($FV26,$A$4:$A$150,0),HP$1))/IF(HP6=0,HP$22,HP6)*3),"") ->  | HQ26: =IFERROR(IF(INDEX($E$4:$ED$150,MATCH($FV26,$A$4:$A$150,0),HQ$1)="","",(501-INDEX($E$4:$ED$150,MATCH($FV26,$A$4:$A$150,0),HQ$1))/IF(HQ6=0,HQ$22,HQ6)*3),"") ->  | HR26: =IFERROR(IF(INDEX($E$4:$ED$150,MATCH($FV26,$A$4:$A$150,0),HR$1)="","",(501-INDEX($E$4:$ED$150,MATCH($FV26,$A$4:$A$150,0),HR$1))/IF(HR6=0,HR$22,HR6)*3),"") ->  | HS26: =IFERROR(IF(INDEX($E$4:$ED$150,MATCH($FV26,$A$4:$A$150,0),HS$1)="","",(501-INDEX($E$4:$ED$150,MATCH($FV26,$A$4:$A$150,0),HS$1))/IF(HS6=0,HS$22,HS6)*3),"") ->  | HT26: =IFERROR(IF(INDEX($E$4:$ED$150,MATCH($FV26,$A$4:$A$150,0),HT$1)="","",(501-INDEX($E$4:$ED$150,MATCH($FV26,$A$4:$A$150,0),HT$1))/IF(HT6=0,HT$22,HT6)*3),"") ->  | HU26: =IFERROR(IF(INDEX($E$4:$ED$150,MATCH($FV26,$A$4:$A$150,0),HU$1)="","",(501-INDEX($E$4:$ED$150,MATCH($FV26,$A$4:$A$150,0),HU$1))/IF(HU6=0,HU$22,HU6)*3),"") ->  | HV26: =IFERROR(IF(INDEX($E$4:$ED$150,MATCH($FV26,$A$4:$A$150,0),HV$1)="","",(501-INDEX($E$4:$ED$150,MATCH($FV26,$A$4:$A$150,0),HV$1))/IF(HV6=0,HV$22,HV6)*3),"") ->  | HW26: =IFERROR(IF(INDEX($E$4:$ED$150,MATCH($FV26,$A$4:$A$150,0),HW$1)="","",(501-INDEX($E$4:$ED$150,MATCH($FV26,$A$4:$A$150,0),HW$1))/IF(HW6=0,HW$22,HW6)*3),"") ->  | HX26: =IFERROR(IF(INDEX($E$4:$ED$150,MATCH($FV26,$A$4:$A$150,0),HX$1)="","",(501-INDEX($E$4:$ED$150,MATCH($FV26,$A$4:$A$150,0),HX$1))/IF(HX6=0,HX$22,HX6)*3),"") ->  | HY26: =IFERROR(IF(INDEX($E$4:$ED$150,MATCH($FV26,$A$4:$A$150,0),HY$1)="","",(501-INDEX($E$4:$ED$150,MATCH($FV26,$A$4:$A$150,0),HY$1))/IF(HY6=0,HY$22,HY6)*3),"") ->  | HZ26: =IFERROR(IF(INDEX($E$4:$ED$150,MATCH($FV26,$A$4:$A$150,0),HZ$1)="","",(501-INDEX($E$4:$ED$150,MATCH($FV26,$A$4:$A$150,0),HZ$1))/IF(HZ6=0,HZ$22,HZ6)*3),"") ->  | IA26: =IFERROR(IF(INDEX($E$4:$ED$150,MATCH($FV26,$A$4:$A$150,0),IA$1)="","",(501-INDEX($E$4:$ED$150,MATCH($FV26,$A$4:$A$150,0),IA$1))/IF(IA6=0,IA$22,IA6)*3),"") ->  | IB26: =IFERROR(IF(INDEX($E$4:$ED$150,MATCH($FV26,$A$4:$A$150,0),IB$1)="","",(501-INDEX($E$4:$ED$150,MATCH($FV26,$A$4:$A$150,0),IB$1))/IF(IB6=0,IB$22,IB6)*3),"") ->  | IC26: =IFERROR(IF(INDEX($E$4:$ED$150,MATCH($FV26,$A$4:$A$150,0),IC$1)="","",(501-INDEX($E$4:$ED$150,MATCH($FV26,$A$4:$A$150,0),IC$1))/IF(IC6=0,IC$22,IC6)*3),"") ->  | ID26: =IFERROR(IF(INDEX($E$4:$ED$150,MATCH($FV26,$A$4:$A$150,0),ID$1)="","",(501-INDEX($E$4:$ED$150,MATCH($FV26,$A$4:$A$150,0),ID$1))/IF(ID6=0,ID$22,ID6)*3),"") ->  | IE26: =IFERROR(IF(INDEX($E$4:$ED$150,MATCH($FV26,$A$4:$A$150,0),IE$1)="","",(501-INDEX($E$4:$ED$150,MATCH($FV26,$A$4:$A$150,0),IE$1))/IF(IE6=0,IE$22,IE6)*3),"") ->  | IF26: =IFERROR(IF(INDEX($E$4:$ED$150,MATCH($FV26,$A$4:$A$150,0),IF$1)="","",(501-INDEX($E$4:$ED$150,MATCH($FV26,$A$4:$A$150,0),IF$1))/IF(IF6=0,IF$22,IF6)*3),"") ->  | IG26: =IFERROR(IF(INDEX($E$4:$ED$150,MATCH($FV26,$A$4:$A$150,0),IG$1)="","",(501-INDEX($E$4:$ED$150,MATCH($FV26,$A$4:$A$150,0),IG$1))/IF(IG6=0,IG$22,IG6)*3),"") ->  | IH26: =IFERROR(IF(INDEX($E$4:$ED$150,MATCH($FV26,$A$4:$A$150,0),IH$1)="","",(501-INDEX($E$4:$ED$150,MATCH($FV26,$A$4:$A$150,0),IH$1))/IF(IH6=0,IH$22,IH6)*3),"") ->  | II26: =IFERROR(IF(INDEX($E$4:$ED$150,MATCH($FV26,$A$4:$A$150,0),II$1)="","",(501-INDEX($E$4:$ED$150,MATCH($FV26,$A$4:$A$150,0),II$1))/IF(II6=0,II$22,II6)*3),"") ->  | IJ26: =IFERROR(IF(INDEX($E$4:$ED$150,MATCH($FV26,$A$4:$A$150,0),IJ$1)="","",(501-INDEX($E$4:$ED$150,MATCH($FV26,$A$4:$A$150,0),IJ$1))/IF(IJ6=0,IJ$22,IJ6)*3),"") ->  | IK26: =IFERROR(IF(INDEX($E$4:$ED$150,MATCH($FV26,$A$4:$A$150,0),IK$1)="","",(501-INDEX($E$4:$ED$150,MATCH($FV26,$A$4:$A$150,0),IK$1))/IF(IK6=0,IK$22,IK6)*3),"") ->  | IL26: =IFERROR(IF(INDEX($E$4:$ED$150,MATCH($FV26,$A$4:$A$150,0),IL$1)="","",(501-INDEX($E$4:$ED$150,MATCH($FV26,$A$4:$A$150,0),IL$1))/IF(IL6=0,IL$22,IL6)*3),"") ->  | IM26: =IFERROR(IF(INDEX($E$4:$ED$150,MATCH($FV26,$A$4:$A$150,0),IM$1)="","",(501-INDEX($E$4:$ED$150,MATCH($FV26,$A$4:$A$150,0),IM$1))/IF(IM6=0,IM$22,IM6)*3),"") ->  | IN26: =IFERROR(IF(INDEX($E$4:$ED$150,MATCH($FV26,$A$4:$A$150,0),IN$1)="","",(501-INDEX($E$4:$ED$150,MATCH($FV26,$A$4:$A$150,0),IN$1))/IF(IN6=0,IN$22,IN6)*3),"") ->  | IO26: =IFERROR(IF(INDEX($E$4:$ED$150,MATCH($FV26,$A$4:$A$150,0),IO$1)="","",(501-INDEX($E$4:$ED$150,MATCH($FV26,$A$4:$A$150,0),IO$1))/IF(IO6=0,IO$22,IO6)*3),"") ->  | IP26: =IFERROR(IF(INDEX($E$4:$ED$150,MATCH($FV26,$A$4:$A$150,0),IP$1)="","",(501-INDEX($E$4:$ED$150,MATCH($FV26,$A$4:$A$150,0),IP$1))/IF(IP6=0,IP$22,IP6)*3),"") ->  | IQ26: =IFERROR(IF(INDEX($E$4:$ED$150,MATCH($FV26,$A$4:$A$150,0),IQ$1)="","",(501-INDEX($E$4:$ED$150,MATCH($FV26,$A$4:$A$150,0),IQ$1))/IF(IQ6=0,IQ$22,IQ6)*3),"") ->  | IR26: =IFERROR(IF(INDEX($E$4:$ED$150,MATCH($FV26,$A$4:$A$150,0),IR$1)="","",(501-INDEX($E$4:$ED$150,MATCH($FV26,$A$4:$A$150,0),IR$1))/IF(IR6=0,IR$22,IR6)*3),"") ->  | IS26: =IFERROR(IF(INDEX($E$4:$ED$150,MATCH($FV26,$A$4:$A$150,0),IS$1)="","",(501-INDEX($E$4:$ED$150,MATCH($FV26,$A$4:$A$150,0),IS$1))/IF(IS6=0,IS$22,IS6)*3),"") ->  | IT26: =IFERROR(IF(INDEX($E$4:$ED$150,MATCH($FV26,$A$4:$A$150,0),IT$1)="","",(501-INDEX($E$4:$ED$150,MATCH($FV26,$A$4:$A$150,0),IT$1))/IF(IT6=0,IT$22,IT6)*3),"") ->  | IU26: =IFERROR(IF(INDEX($E$4:$ED$150,MATCH($FV26,$A$4:$A$150,0),IU$1)="","",(501-INDEX($E$4:$ED$150,MATCH($FV26,$A$4:$A$150,0),IU$1))/IF(IU6=0,IU$22,IU6)*3),"") ->  | IV26: =IFERROR(IF(INDEX($E$4:$ED$150,MATCH($FV26,$A$4:$A$150,0),IV$1)="","",(501-INDEX($E$4:$ED$150,MATCH($FV26,$A$4:$A$150,0),IV$1))/IF(IV6=0,IV$22,IV6)*3),"") ->  | IW26: =IFERROR(IF(INDEX($E$4:$ED$150,MATCH($FV26,$A$4:$A$150,0),IW$1)="","",(501-INDEX($E$4:$ED$150,MATCH($FV26,$A$4:$A$150,0),IW$1))/IF(IW6=0,IW$22,IW6)*3),"") ->  | IX26: =IFERROR(IF(INDEX($E$4:$ED$150,MATCH($FV26,$A$4:$A$150,0),IX$1)="","",(501-INDEX($E$4:$ED$150,MATCH($FV26,$A$4:$A$150,0),IX$1))/IF(IX6=0,IX$22,IX6)*3),"") ->  | IY26: =IFERROR(IF(INDEX($E$4:$ED$150,MATCH($FV26,$A$4:$A$150,0),IY$1)="","",(501-INDEX($E$4:$ED$150,MATCH($FV26,$A$4:$A$150,0),IY$1))/IF(IY6=0,IY$22,IY6)*3),"") ->  | IZ26: =IFERROR(IF(INDEX($E$4:$ED$150,MATCH($FV26,$A$4:$A$150,0),IZ$1)="","",(501-INDEX($E$4:$ED$150,MATCH($FV26,$A$4:$A$150,0),IZ$1))/IF(IZ6=0,IZ$22,IZ6)*3),"") ->  | JA26: =IFERROR(IF(INDEX($E$4:$ED$150,MATCH($FV26,$A$4:$A$150,0),JA$1)="","",(501-INDEX($E$4:$ED$150,MATCH($FV26,$A$4:$A$150,0),JA$1))/IF(JA6=0,JA$22,JA6)*3),"") ->  | JB26: =IFERROR(IF(INDEX($E$4:$ED$150,MATCH($FV26,$A$4:$A$150,0),JB$1)="","",(501-INDEX($E$4:$ED$150,MATCH($FV26,$A$4:$A$150,0),JB$1))/IF(JB6=0,JB$22,JB6)*3),"") ->  | JC26: =IFERROR(IF(INDEX($E$4:$ED$150,MATCH($FV26,$A$4:$A$150,0),JC$1)="","",(501-INDEX($E$4:$ED$150,MATCH($FV26,$A$4:$A$150,0),JC$1))/IF(JC6=0,JC$22,JC6)*3),"") ->  | JD26: =IFERROR(IF(INDEX($E$4:$ED$150,MATCH($FV26,$A$4:$A$150,0),JD$1)="","",(501-INDEX($E$4:$ED$150,MATCH($FV26,$A$4:$A$150,0),JD$1))/IF(JD6=0,JD$22,JD6)*3),"") ->  | JE26: =IFERROR(IF(INDEX($E$4:$ED$150,MATCH($FV26,$A$4:$A$150,0),JE$1)="","",(501-INDEX($E$4:$ED$150,MATCH($FV26,$A$4:$A$150,0),JE$1))/IF(JE6=0,JE$22,JE6)*3),"") ->  | JF26: =IFERROR(IF(INDEX($E$4:$ED$150,MATCH($FV26,$A$4:$A$150,0),JF$1)="","",(501-INDEX($E$4:$ED$150,MATCH($FV26,$A$4:$A$150,0),JF$1))/IF(JF6=0,JF$22,JF6)*3),"") ->  | JG26: =IFERROR(IF(INDEX($E$4:$ED$150,MATCH($FV26,$A$4:$A$150,0),JG$1)="","",(501-INDEX($E$4:$ED$150,MATCH($FV26,$A$4:$A$150,0),JG$1))/IF(JG6=0,JG$22,JG6)*3),"") ->  | JH26: =IFERROR(IF(INDEX($E$4:$ED$150,MATCH($FV26,$A$4:$A$150,0),JH$1)="","",(501-INDEX($E$4:$ED$150,MATCH($FV26,$A$4:$A$150,0),JH$1))/IF(JH6=0,JH$22,JH6)*3),"") ->  | JI26: =IFERROR(IF(INDEX($E$4:$ED$150,MATCH($FV26,$A$4:$A$150,0),JI$1)="","",(501-INDEX($E$4:$ED$150,MATCH($FV26,$A$4:$A$150,0),JI$1))/IF(JI6=0,JI$22,JI6)*3),"") ->  | JJ26: =IFERROR(IF(INDEX($E$4:$ED$150,MATCH($FV26,$A$4:$A$150,0),JJ$1)="","",(501-INDEX($E$4:$ED$150,MATCH($FV26,$A$4:$A$150,0),JJ$1))/IF(JJ6=0,JJ$22,JJ6)*3),"") -> 42.63636364 | JK26: =IFERROR(IF(INDEX($E$4:$ED$150,MATCH($FV26,$A$4:$A$150,0),JK$1)="","",(501-INDEX($E$4:$ED$150,MATCH($FV26,$A$4:$A$150,0),JK$1))/IF(JK6=0,JK$22,JK6)*3),"") -> 41.33333333 | JL26: =IFERROR(IF(INDEX($E$4:$ED$150,MATCH($FV26,$A$4:$A$150,0),JL$1)="","",(501-INDEX($E$4:$ED$150,MATCH($FV26,$A$4:$A$150,0),JL$1))/IF(JL6=0,JL$22,JL6)*3),"") -> 33 | JM26: =IFERROR(IF(INDEX($E$4:$ED$150,MATCH($FV26,$A$4:$A$150,0),JM$1)="","",(501-INDEX($E$4:$ED$150,MATCH($FV26,$A$4:$A$150,0),JM$1))/IF(JM6=0,JM$22,JM6)*3),"") ->  | JN26: =IFERROR(IF(INDEX($E$4:$ED$150,MATCH($FV26,$A$4:$A$150,0),JN$1)="","",(501-INDEX($E$4:$ED$150,MATCH($FV26,$A$4:$A$150,0),JN$1))/IF(JN6=0,JN$22,JN6)*3),"") ->  | JO26: =IFERROR(IF(INDEX($E$4:$ED$150,MATCH($FV26,$A$4:$A$150,0),JO$1)="","",(501-INDEX($E$4:$ED$150,MATCH($FV26,$A$4:$A$150,0),JO$1))/IF(JO6=0,JO$22,JO6)*3),"") ->  | JP26: =IFERROR(IF(INDEX($E$4:$ED$150,MATCH($FV26,$A$4:$A$150,0),JP$1)="","",(501-INDEX($E$4:$ED$150,MATCH($FV26,$A$4:$A$150,0),JP$1))/IF(JP6=0,JP$22,JP6)*3),"") ->  | JQ26: =IFERROR(IF(INDEX($E$4:$ED$150,MATCH($FV26,$A$4:$A$150,0),JQ$1)="","",(501-INDEX($E$4:$ED$150,MATCH($FV26,$A$4:$A$150,0),JQ$1))/IF(JQ6=0,JQ$22,JQ6)*3),"") ->  | JR26: =IFERROR(IF(INDEX($E$4:$ED$150,MATCH($FV26,$A$4:$A$150,0),JR$1)="","",(501-INDEX($E$4:$ED$150,MATCH($FV26,$A$4:$A$150,0),JR$1))/IF(JR6=0,JR$22,JR6)*3),"") ->  | JS26: =IFERROR(IF(INDEX($E$4:$ED$150,MATCH($FV26,$A$4:$A$150,0),JS$1)="","",(501-INDEX($E$4:$ED$150,MATCH($FV26,$A$4:$A$150,0),JS$1))/IF(JS6=0,JS$22,JS6)*3),"") -> 32.36363636 | JT26: =IFERROR(IF(INDEX($E$4:$ED$150,MATCH($FV26,$A$4:$A$150,0),JT$1)="","",(501-INDEX($E$4:$ED$150,MATCH($FV26,$A$4:$A$150,0),JT$1))/IF(JT6=0,JT$22,JT6)*3),"") -> 41.63636364 | JU26: =IFERROR(IF(INDEX($E$4:$ED$150,MATCH($FV26,$A$4:$A$150,0),JU$1)="","",(501-INDEX($E$4:$ED$150,MATCH($FV26,$A$4:$A$150,0),JU$1))/IF(JU6=0,JU$22,JU6)*3),"") -> 50.1 | JV26: =IFERROR(IF(INDEX($E$4:$ED$150,MATCH($FV26,$A$4:$A$150,0),JV$1)="","",(501-INDEX($E$4:$ED$150,MATCH($FV26,$A$4:$A$150,0),JV$1))/IF(JV6=0,JV$22,JV6)*3),"") -> 43.27272727 | JW26: =IFERROR(IF(INDEX($E$4:$ED$150,MATCH($FV26,$A$4:$A$150,0),JW$1)="","",(501-INDEX($E$4:$ED$150,MATCH($FV26,$A$4:$A$150,0),JW$1))/IF(JW6=0,JW$22,JW6)*3),"") ->  | JX26: =IFERROR(IF(INDEX($E$4:$ED$150,MATCH($FV26,$A$4:$A$150,0),JX$1)="","",(501-INDEX($E$4:$ED$150,MATCH($FV26,$A$4:$A$150,0),JX$1))/IF(JX6=0,JX$22,JX6)*3),"") ->  | JY26: =IFERROR(IF(INDEX($E$4:$ED$150,MATCH($FV26,$A$4:$A$150,0),JY$1)="","",(501-INDEX($E$4:$ED$150,MATCH($FV26,$A$4:$A$150,0),JY$1))/IF(JY6=0,JY$22,JY6)*3),"") ->  | JZ26: =IFERROR(IF(INDEX($E$4:$ED$150,MATCH($FV26,$A$4:$A$150,0),JZ$1)="","",(501-INDEX($E$4:$ED$150,MATCH($FV26,$A$4:$A$150,0),JZ$1))/IF(JZ6=0,JZ$22,JZ6)*3),"") ->  | KA26: =IFERROR(IF(INDEX($E$4:$ED$150,MATCH($FV26,$A$4:$A$150,0),KA$1)="","",(501-INDEX($E$4:$ED$150,MATCH($FV26,$A$4:$A$150,0),KA$1))/IF(KA6=0,KA$22,KA6)*3),"") ->  | KB26: =IFERROR(IF(INDEX($E$4:$ED$150,MATCH($FV26,$A$4:$A$150,0),KB$1)="","",(501-INDEX($E$4:$ED$150,MATCH($FV26,$A$4:$A$150,0),KB$1))/IF(KB6=0,KB$22,KB6)*3),"") ->  | KC26: =IFERROR(IF(INDEX($E$4:$ED$150,MATCH($FV26,$A$4:$A$150,0),KC$1)="","",(501-INDEX($E$4:$ED$150,MATCH($FV26,$A$4:$A$150,0),KC$1))/IF(KC6=0,KC$22,KC6)*3),"") -> 55.66666667 | KD26: =IFERROR(IF(INDEX($E$4:$ED$150,MATCH($FV26,$A$4:$A$150,0),KD$1)="","",(501-INDEX($E$4:$ED$150,MATCH($FV26,$A$4:$A$150,0),KD$1))/IF(KD6=0,KD$22,KD6)*3),"") -> 45.45454545 | KE26: =IFERROR(IF(INDEX($E$4:$ED$150,MATCH($FV26,$A$4:$A$150,0),KE$1)="","",(501-INDEX($E$4:$ED$150,MATCH($FV26,$A$4:$A$150,0),KE$1))/IF(KE6=0,KE$22,KE6)*3),"") -> 37.91666667 | KF26: =IFERROR(IF(INDEX($E$4:$ED$150,MATCH($FV26,$A$4:$A$150,0),KF$1)="","",(501-INDEX($E$4:$ED$150,MATCH($FV26,$A$4:$A$150,0),KF$1))/IF(KF6=0,KF$22,KF6)*3),"") -> 51.82758621 | KG26: =IFERROR(IF(INDEX($E$4:$ED$150,MATCH($FV26,$A$4:$A$150,0),KG$1)="","",(501-INDEX($E$4:$ED$150,MATCH($FV26,$A$4:$A$150,0),KG$1))/IF(KG6=0,KG$22,KG6)*3),"") ->  | KH26: =IFERROR(IF(INDEX($E$4:$ED$150,MATCH($FV26,$A$4:$A$150,0),KH$1)="","",(501-INDEX($E$4:$ED$150,MATCH($FV26,$A$4:$A$150,0),KH$1))/IF(KH6=0,KH$22,KH6)*3),"") ->  | KI26: =IFERROR(IF(INDEX($E$4:$ED$150,MATCH($FV26,$A$4:$A$150,0),KI$1)="","",(501-INDEX($E$4:$ED$150,MATCH($FV26,$A$4:$A$150,0),KI$1))/IF(KI6=0,KI$22,KI6)*3),"") ->  | KJ26: =IFERROR(IF(INDEX($E$4:$ED$150,MATCH($FV26,$A$4:$A$150,0),KJ$1)="","",(501-INDEX($E$4:$ED$150,MATCH($FV26,$A$4:$A$150,0),KJ$1))/IF(KJ6=0,KJ$22,KJ6)*3),"") ->  | KK26: =IFERROR(IF(INDEX($E$4:$ED$150,MATCH($FV26,$A$4:$A$150,0),KK$1)="","",(501-INDEX($E$4:$ED$150,MATCH($FV26,$A$4:$A$150,0),KK$1))/IF(KK6=0,KK$22,KK6)*3),"") ->  | KL26: =IFERROR(IF(INDEX($E$4:$ED$150,MATCH($FV26,$A$4:$A$150,0),KL$1)="","",(501-INDEX($E$4:$ED$150,MATCH($FV26,$A$4:$A$150,0),KL$1))/IF(KL6=0,KL$22,KL6)*3),"") ->  | KM26: =IFERROR(IF(INDEX($E$4:$ED$150,MATCH($FV26,$A$4:$A$150,0),KM$1)="","",(501-INDEX($E$4:$ED$150,MATCH($FV26,$A$4:$A$150,0),KM$1))/IF(KM6=0,KM$22,KM6)*3),"") ->  | KN26: =IFERROR(IF(INDEX($E$4:$ED$150,MATCH($FV26,$A$4:$A$150,0),KN$1)="","",(501-INDEX($E$4:$ED$150,MATCH($FV26,$A$4:$A$150,0),KN$1))/IF(KN6=0,KN$22,KN6)*3),"") ->  | KO26: =IFERROR(IF(INDEX($E$4:$ED$150,MATCH($FV26,$A$4:$A$150,0),KO$1)="","",(501-INDEX($E$4:$ED$150,MATCH($FV26,$A$4:$A$150,0),KO$1))/IF(KO6=0,KO$22,KO6)*3),"") ->  | KP26: =IFERROR(IF(INDEX($E$4:$ED$150,MATCH($FV26,$A$4:$A$150,0),KP$1)="","",(501-INDEX($E$4:$ED$150,MATCH($FV26,$A$4:$A$150,0),KP$1))/IF(KP6=0,KP$22,KP6)*3),"") ->  | KQ26: =IFERROR(IF(INDEX($E$4:$ED$150,MATCH($FV26,$A$4:$A$150,0),KQ$1)="","",(501-INDEX($E$4:$ED$150,MATCH($FV26,$A$4:$A$150,0),KQ$1))/IF(KQ6=0,KQ$22,KQ6)*3),"") ->  | KR26: =IFERROR(IF(INDEX($E$4:$ED$150,MATCH($FV26,$A$4:$A$150,0),KR$1)="","",(501-INDEX($E$4:$ED$150,MATCH($FV26,$A$4:$A$150,0),KR$1))/IF(KR6=0,KR$22,KR6)*3),"") ->  | KS26: =IFERROR(IF(INDEX($E$4:$ED$150,MATCH($FV26,$A$4:$A$150,0),KS$1)="","",(501-INDEX($E$4:$ED$150,MATCH($FV26,$A$4:$A$150,0),KS$1))/IF(KS6=0,KS$22,KS6)*3),"") ->  | KT26: =IFERROR(IF(INDEX($E$4:$ED$150,MATCH($FV26,$A$4:$A$150,0),KT$1)="","",(501-INDEX($E$4:$ED$150,MATCH($FV26,$A$4:$A$150,0),KT$1))/IF(KT6=0,KT$22,KT6)*3),"") ->  | KU26: =IFERROR(IF(INDEX($E$4:$ED$150,MATCH($FV26,$A$4:$A$150,0),KU$1)="","",(501-INDEX($E$4:$ED$150,MATCH($FV26,$A$4:$A$150,0),KU$1))/IF(KU6=0,KU$22,KU6)*3),"") ->  | KV26: =IFERROR(IF(INDEX($E$4:$ED$150,MATCH($FV26,$A$4:$A$150,0),KV$1)="","",(501-INDEX($E$4:$ED$150,MATCH($FV26,$A$4:$A$150,0),KV$1))/IF(KV6=0,KV$22,KV6)*3),"") ->  | KW26: =IFERROR(SUM(FW26:KV26)/COUNT(FW26:KV26),INDEX(List4!$F$2:$F$17,MATCH(INDEX($A$4:$C$150,MATCH(FV26,$A$4:$A$150,0),2),List4!$D$2:$D$17,0),1)) -> 43.2007172 | KX26: 3 | KY26: =INDEX($A$4:$C$150,MATCH(INDEX($FV$24:$FV$41,MATCH(KZ26,$LA$24:$LA$41,0),1),$A$4:$A$150,0)-2,2) -> Standa Roth | KZ26: 41.55831212 | LA26: =IF(INDEX(Tabulka!$A$2:$AN$226,MATCH($FS26,Tabulka!$A$2:$A$226,0),38)<1,-90000+INDEX(List4!$F$2:$F$17,MATCH($FS26,List4!$D$2:$D$17,0),1),IF(AND(INDEX(Tabulka!$A$2:$AN$226,MATCH($FS26,Tabulka!$A$2:$A$226,0)+3,34)>0,INDEX(Tabulka!$A$2:$AN$226,MATCH($FS26,Tabulka!$A$2:$A$226,0)+3,34)<Přehled_body!$EJ$1),-50000+INDEX(List4!$F$2:$F$17,MATCH($FS26,List4!$D$2:$D$17,0),),IFERROR(SUM(FW26:KV26)/COUNT(FW26:KV26)+INDEX(List4!$F$2:$F$17,MATCH($FS26,List4!$D$2:$D$17,0),),-50000+INDEX(List4!$F$2:$F$17,MATCH($FS26,List4!$D$2:$D$17,0),)))) -> 43.20071721 | LB26: 41.55831211
A27: =CONCATENATE($C$21," ",$C$22,C27) -> Kuba ŠedivýPočet šipek (průměr den) | B27: =CONCATENATE(C21," ",C22) -> Kuba Šedivý | C27: =Tabulka!C28 -> Počet šipek (průměr den) | D27: Počet šipek | DC27: 30 | DK27: 27 | DN27: 29 | EE27: =IF(AND(SUM(Tabulka!$AG$21)>0.99,(SUM(Tabulka!$AH$25)<$EJ$1)),-50000+(SUM(E27:ED27)),IF(OR(SUM(Tabulka!$AG$21)<2),-90000,SUM(E27:ED27))) -> 86 | EG27: =IF(SUM(E27:ED27)=ROUND(0,),-100,EE27) -> 86 | EH27: =2*EG26 -> 86.24390244 | EI27: =EH27=EE26 -> FALSE | EJ27: =MIN(E27:ED27) -> 27 | EK27: 28.66666667 | EO27: =IF(COUNT(E27:ED27)=0,-100,COUNT(E27:ED27)) -> 3 | EP27: =IF(OR(SUM(Tabulka!$AG21)<1),-90000+INDEX(List4!$F$2:$F$17,MATCH(Přehled_body!B27,List4!$D$2:$D$17,0),1),IF(OR(AND(SUM(Tabulka!$AG21)>0.99,(SUM(Tabulka!$AH25)<$EJ$1))),-50000+MIN(IF(E27:ED27>0,E27:ED27)+INDEX(List4!$E$2:$E$17,MATCH(Přehled_body!B27,List4!$D$2:$D$17,0),1)),IFERROR(MIN(IF(E27:ED27>0,E27:ED27)),)))+INDEX(List4!$F$2:$F$17,MATCH(Přehled_body!B27,List4!$D$2:$D$17,0),1) -> 27.00000001 | EQ27: =IF(OR(SUM(Tabulka!$AG21)<1),-90000+INDEX(List4!$E$2:$E$17,MATCH(Přehled_body!B27,List4!$D$2:$D$17,0),1),IF(OR(AND(SUM(Tabulka!$AG21)>0.99,(SUM(Tabulka!$AH$9)<$EJ$1)),Tabulka!AH25<Přehled_body!$EJ$1),-50000+(SUM(E27:ED27)),IF(EE27<9,1,EG27/EO27))+INDEX(List4!$E$2:$E$17,MATCH(Přehled_body!B27,List4!$D$2:$D$17,0),1)) -> 28.66666678 | ER27: =IF(AND(SUM(Tabulka!$AG21)>0.99,(SUM(Tabulka!$AH$9)<$EJ$1)),-50000+(SUM(E27:ED27)),IF(OR(SUM(Tabulka!$AG21)<2),-90000,SUM(E27:ED27)))+INDEX(List4!$E$2:$E$17,MATCH(Přehled_body!B27,List4!$D$2:$D$17,0),1) -> 86.00000011 | ES27: =IF(SUM(OFFSET($E27,0,ES$4,1,5))=0,"",AVERAGE(OFFSET($E27,0,ES$4,1,5))) ->  | EY27: =IF(SUM(OFFSET($E27,0,EY$4,1,5))=0,"",AVERAGE(OFFSET($E27,0,EY$4,1,5))) ->  | FM27: 30 | FO27: 28 | FS27: Míra Šedivý | FT27: 24 | FV27: Míra ŠedivýPočet konečných bodů | FW27: =IFERROR(IF(INDEX($E$4:$ED$150,MATCH($FV27,$A$4:$A$150,0),FW$1)="","",(501-INDEX($E$4:$ED$150,MATCH($FV27,$A$4:$A$150,0),FW$1))/IF(FW7=0,FW$22,FW7)*3),"") ->  | FX27: =IFERROR(IF(INDEX($E$4:$ED$150,MATCH($FV27,$A$4:$A$150,0),FX$1)="","",(501-INDEX($E$4:$ED$150,MATCH($FV27,$A$4:$A$150,0),FX$1))/IF(FX7=0,FX$22,FX7)*3),"") ->  | FY27: =IFERROR(IF(INDEX($E$4:$ED$150,MATCH($FV27,$A$4:$A$150,0),FY$1)="","",(501-INDEX($E$4:$ED$150,MATCH($FV27,$A$4:$A$150,0),FY$1))/IF(FY7=0,FY$22,FY7)*3),"") ->  | FZ27: =IFERROR(IF(INDEX($E$4:$ED$150,MATCH($FV27,$A$4:$A$150,0),FZ$1)="","",(501-INDEX($E$4:$ED$150,MATCH($FV27,$A$4:$A$150,0),FZ$1))/IF(FZ7=0,FZ$22,FZ7)*3),"") ->  | GA27: =IFERROR(IF(INDEX($E$4:$ED$150,MATCH($FV27,$A$4:$A$150,0),GA$1)="","",(501-INDEX($E$4:$ED$150,MATCH($FV27,$A$4:$A$150,0),GA$1))/IF(GA7=0,GA$22,GA7)*3),"") ->  | GB27: =IFERROR(IF(INDEX($E$4:$ED$150,MATCH($FV27,$A$4:$A$150,0),GB$1)="","",(501-INDEX($E$4:$ED$150,MATCH($FV27,$A$4:$A$150,0),GB$1))/IF(GB7=0,GB$22,GB7)*3),"") ->  | GC27: =IFERROR(IF(INDEX($E$4:$ED$150,MATCH($FV27,$A$4:$A$150,0),GC$1)="","",(501-INDEX($E$4:$ED$150,MATCH($FV27,$A$4:$A$150,0),GC$1))/IF(GC7=0,GC$22,GC7)*3),"") ->  | GD27: =IFERROR(IF(INDEX($E$4:$ED$150,MATCH($FV27,$A$4:$A$150,0),GD$1)="","",(501-INDEX($E$4:$ED$150,MATCH($FV27,$A$4:$A$150,0),GD$1))/IF(GD7=0,GD$22,GD7)*3),"") ->  | GE27: =IFERROR(IF(INDEX($E$4:$ED$150,MATCH($FV27,$A$4:$A$150,0),GE$1)="","",(501-INDEX($E$4:$ED$150,MATCH($FV27,$A$4:$A$150,0),GE$1))/IF(GE7=0,GE$22,GE7)*3),"") ->  | GF27: =IFERROR(IF(INDEX($E$4:$ED$150,MATCH($FV27,$A$4:$A$150,0),GF$1)="","",(501-INDEX($E$4:$ED$150,MATCH($FV27,$A$4:$A$150,0),GF$1))/IF(GF7=0,GF$22,GF7)*3),"") ->  | GG27: =IFERROR(IF(INDEX($E$4:$ED$150,MATCH($FV27,$A$4:$A$150,0),GG$1)="","",(501-INDEX($E$4:$ED$150,MATCH($FV27,$A$4:$A$150,0),GG$1))/IF(GG7=0,GG$22,GG7)*3),"") ->  | GH27: =IFERROR(IF(INDEX($E$4:$ED$150,MATCH($FV27,$A$4:$A$150,0),GH$1)="","",(501-INDEX($E$4:$ED$150,MATCH($FV27,$A$4:$A$150,0),GH$1))/IF(GH7=0,GH$22,GH7)*3),"") ->  | GI27: =IFERROR(IF(INDEX($E$4:$ED$150,MATCH($FV27,$A$4:$A$150,0),GI$1)="","",(501-INDEX($E$4:$ED$150,MATCH($FV27,$A$4:$A$150,0),GI$1))/IF(GI7=0,GI$22,GI7)*3),"") ->  | GJ27: =IFERROR(IF(INDEX($E$4:$ED$150,MATCH($FV27,$A$4:$A$150,0),GJ$1)="","",(501-INDEX($E$4:$ED$150,MATCH($FV27,$A$4:$A$150,0),GJ$1))/IF(GJ7=0,GJ$22,GJ7)*3),"") ->  | GK27: =IFERROR(IF(INDEX($E$4:$ED$150,MATCH($FV27,$A$4:$A$150,0),GK$1)="","",(501-INDEX($E$4:$ED$150,MATCH($FV27,$A$4:$A$150,0),GK$1))/IF(GK7=0,GK$22,GK7)*3),"") ->  | GL27: =IFERROR(IF(INDEX($E$4:$ED$150,MATCH($FV27,$A$4:$A$150,0),GL$1)="","",(501-INDEX($E$4:$ED$150,MATCH($FV27,$A$4:$A$150,0),GL$1))/IF(GL7=0,GL$22,GL7)*3),"") ->  | GM27: =IFERROR(IF(INDEX($E$4:$ED$150,MATCH($FV27,$A$4:$A$150,0),GM$1)="","",(501-INDEX($E$4:$ED$150,MATCH($FV27,$A$4:$A$150,0),GM$1))/IF(GM7=0,GM$22,GM7)*3),"") ->  | GN27: =IFERROR(IF(INDEX($E$4:$ED$150,MATCH($FV27,$A$4:$A$150,0),GN$1)="","",(501-INDEX($E$4:$ED$150,MATCH($FV27,$A$4:$A$150,0),GN$1))/IF(GN7=0,GN$22,GN7)*3),"") ->  | GO27: =IFERROR(IF(INDEX($E$4:$ED$150,MATCH($FV27,$A$4:$A$150,0),GO$1)="","",(501-INDEX($E$4:$ED$150,MATCH($FV27,$A$4:$A$150,0),GO$1))/IF(GO7=0,GO$22,GO7)*3),"") ->  | GP27: =IFERROR(IF(INDEX($E$4:$ED$150,MATCH($FV27,$A$4:$A$150,0),GP$1)="","",(501-INDEX($E$4:$ED$150,MATCH($FV27,$A$4:$A$150,0),GP$1))/IF(GP7=0,GP$22,GP7)*3),"") ->  | GQ27: =IFERROR(IF(INDEX($E$4:$ED$150,MATCH($FV27,$A$4:$A$150,0),GQ$1)="","",(501-INDEX($E$4:$ED$150,MATCH($FV27,$A$4:$A$150,0),GQ$1))/IF(GQ7=0,GQ$22,GQ7)*3),"") ->  | GR27: =IFERROR(IF(INDEX($E$4:$ED$150,MATCH($FV27,$A$4:$A$150,0),GR$1)="","",(501-INDEX($E$4:$ED$150,MATCH($FV27,$A$4:$A$150,0),GR$1))/IF(GR7=0,GR$22,GR7)*3),"") ->  | GS27: =IFERROR(IF(INDEX($E$4:$ED$150,MATCH($FV27,$A$4:$A$150,0),GS$1)="","",(501-INDEX($E$4:$ED$150,MATCH($FV27,$A$4:$A$150,0),GS$1))/IF(GS7=0,GS$22,GS7)*3),"") ->  | GT27: =IFERROR(IF(INDEX($E$4:$ED$150,MATCH($FV27,$A$4:$A$150,0),GT$1)="","",(501-INDEX($E$4:$ED$150,MATCH($FV27,$A$4:$A$150,0),GT$1))/IF(GT7=0,GT$22,GT7)*3),"") ->  | GU27: =IFERROR(IF(INDEX($E$4:$ED$150,MATCH($FV27,$A$4:$A$150,0),GU$1)="","",(501-INDEX($E$4:$ED$150,MATCH($FV27,$A$4:$A$150,0),GU$1))/IF(GU7=0,GU$22,GU7)*3),"") ->  | GV27: =IFERROR(IF(INDEX($E$4:$ED$150,MATCH($FV27,$A$4:$A$150,0),GV$1)="","",(501-INDEX($E$4:$ED$150,MATCH($FV27,$A$4:$A$150,0),GV$1))/IF(GV7=0,GV$22,GV7)*3),"") ->  | GW27: =IFERROR(IF(INDEX($E$4:$ED$150,MATCH($FV27,$A$4:$A$150,0),GW$1)="","",(501-INDEX($E$4:$ED$150,MATCH($FV27,$A$4:$A$150,0),GW$1))/IF(GW7=0,GW$22,GW7)*3),"") ->  | GX27: =IFERROR(IF(INDEX($E$4:$ED$150,MATCH($FV27,$A$4:$A$150,0),GX$1)="","",(501-INDEX($E$4:$ED$150,MATCH($FV27,$A$4:$A$150,0),GX$1))/IF(GX7=0,GX$22,GX7)*3),"") ->  | GY27: =IFERROR(IF(INDEX($E$4:$ED$150,MATCH($FV27,$A$4:$A$150,0),GY$1)="","",(501-INDEX($E$4:$ED$150,MATCH($FV27,$A$4:$A$150,0),GY$1))/IF(GY7=0,GY$22,GY7)*3),"") ->  | GZ27: =IFERROR(IF(INDEX($E$4:$ED$150,MATCH($FV27,$A$4:$A$150,0),GZ$1)="","",(501-INDEX($E$4:$ED$150,MATCH($FV27,$A$4:$A$150,0),GZ$1))/IF(GZ7=0,GZ$22,GZ7)*3),"") ->  | HA27: =IFERROR(IF(INDEX($E$4:$ED$150,MATCH($FV27,$A$4:$A$150,0),HA$1)="","",(501-INDEX($E$4:$ED$150,MATCH($FV27,$A$4:$A$150,0),HA$1))/IF(HA7=0,HA$22,HA7)*3),"") ->  | HB27: =IFERROR(IF(INDEX($E$4:$ED$150,MATCH($FV27,$A$4:$A$150,0),HB$1)="","",(501-INDEX($E$4:$ED$150,MATCH($FV27,$A$4:$A$150,0),HB$1))/IF(HB7=0,HB$22,HB7)*3),"") ->  | HC27: =IFERROR(IF(INDEX($E$4:$ED$150,MATCH($FV27,$A$4:$A$150,0),HC$1)="","",(501-INDEX($E$4:$ED$150,MATCH($FV27,$A$4:$A$150,0),HC$1))/IF(HC7=0,HC$22,HC7)*3),"") ->  | HD27: =IFERROR(IF(INDEX($E$4:$ED$150,MATCH($FV27,$A$4:$A$150,0),HD$1)="","",(501-INDEX($E$4:$ED$150,MATCH($FV27,$A$4:$A$150,0),HD$1))/IF(HD7=0,HD$22,HD7)*3),"") ->  | HE27: =IFERROR(IF(INDEX($E$4:$ED$150,MATCH($FV27,$A$4:$A$150,0),HE$1)="","",(501-INDEX($E$4:$ED$150,MATCH($FV27,$A$4:$A$150,0),HE$1))/IF(HE7=0,HE$22,HE7)*3),"") ->  | HF27: =IFERROR(IF(INDEX($E$4:$ED$150,MATCH($FV27,$A$4:$A$150,0),HF$1)="","",(501-INDEX($E$4:$ED$150,MATCH($FV27,$A$4:$A$150,0),HF$1))/IF(HF7=0,HF$22,HF7)*3),"") ->  | HG27: =IFERROR(IF(INDEX($E$4:$ED$150,MATCH($FV27,$A$4:$A$150,0),HG$1)="","",(501-INDEX($E$4:$ED$150,MATCH($FV27,$A$4:$A$150,0),HG$1))/IF(HG7=0,HG$22,HG7)*3),"") ->  | HH27: =IFERROR(IF(INDEX($E$4:$ED$150,MATCH($FV27,$A$4:$A$150,0),HH$1)="","",(501-INDEX($E$4:$ED$150,MATCH($FV27,$A$4:$A$150,0),HH$1))/IF(HH7=0,HH$22,HH7)*3),"") ->  | HI27: =IFERROR(IF(INDEX($E$4:$ED$150,MATCH($FV27,$A$4:$A$150,0),HI$1)="","",(501-INDEX($E$4:$ED$150,MATCH($FV27,$A$4:$A$150,0),HI$1))/IF(HI7=0,HI$22,HI7)*3),"") ->  | HJ27: =IFERROR(IF(INDEX($E$4:$ED$150,MATCH($FV27,$A$4:$A$150,0),HJ$1)="","",(501-INDEX($E$4:$ED$150,MATCH($FV27,$A$4:$A$150,0),HJ$1))/IF(HJ7=0,HJ$22,HJ7)*3),"") ->  | HK27: =IFERROR(IF(INDEX($E$4:$ED$150,MATCH($FV27,$A$4:$A$150,0),HK$1)="","",(501-INDEX($E$4:$ED$150,MATCH($FV27,$A$4:$A$150,0),HK$1))/IF(HK7=0,HK$22,HK7)*3),"") ->  | HL27: =IFERROR(IF(INDEX($E$4:$ED$150,MATCH($FV27,$A$4:$A$150,0),HL$1)="","",(501-INDEX($E$4:$ED$150,MATCH($FV27,$A$4:$A$150,0),HL$1))/IF(HL7=0,HL$22,HL7)*3),"") ->  | HM27: =IFERROR(IF(INDEX($E$4:$ED$150,MATCH($FV27,$A$4:$A$150,0),HM$1)="","",(501-INDEX($E$4:$ED$150,MATCH($FV27,$A$4:$A$150,0),HM$1))/IF(HM7=0,HM$22,HM7)*3),"") ->  | HN27: =IFERROR(IF(INDEX($E$4:$ED$150,MATCH($FV27,$A$4:$A$150,0),HN$1)="","",(501-INDEX($E$4:$ED$150,MATCH($FV27,$A$4:$A$150,0),HN$1))/IF(HN7=0,HN$22,HN7)*3),"") ->  | HO27: =IFERROR(IF(INDEX($E$4:$ED$150,MATCH($FV27,$A$4:$A$150,0),HO$1)="","",(501-INDEX($E$4:$ED$150,MATCH($FV27,$A$4:$A$150,0),HO$1))/IF(HO7=0,HO$22,HO7)*3),"") ->  | HP27: =IFERROR(IF(INDEX($E$4:$ED$150,MATCH($FV27,$A$4:$A$150,0),HP$1)="","",(501-INDEX($E$4:$ED$150,MATCH($FV27,$A$4:$A$150,0),HP$1))/IF(HP7=0,HP$22,HP7)*3),"") ->  | HQ27: =IFERROR(IF(INDEX($E$4:$ED$150,MATCH($FV27,$A$4:$A$150,0),HQ$1)="","",(501-INDEX($E$4:$ED$150,MATCH($FV27,$A$4:$A$150,0),HQ$1))/IF(HQ7=0,HQ$22,HQ7)*3),"") ->  | HR27: =IFERROR(IF(INDEX($E$4:$ED$150,MATCH($FV27,$A$4:$A$150,0),HR$1)="","",(501-INDEX($E$4:$ED$150,MATCH($FV27,$A$4:$A$150,0),HR$1))/IF(HR7=0,HR$22,HR7)*3),"") ->  | HS27: =IFERROR(IF(INDEX($E$4:$ED$150,MATCH($FV27,$A$4:$A$150,0),HS$1)="","",(501-INDEX($E$4:$ED$150,MATCH($FV27,$A$4:$A$150,0),HS$1))/IF(HS7=0,HS$22,HS7)*3),"") ->  | HT27: =IFERROR(IF(INDEX($E$4:$ED$150,MATCH($FV27,$A$4:$A$150,0),HT$1)="","",(501-INDEX($E$4:$ED$150,MATCH($FV27,$A$4:$A$150,0),HT$1))/IF(HT7=0,HT$22,HT7)*3),"") ->  | HU27: =IFERROR(IF(INDEX($E$4:$ED$150,MATCH($FV27,$A$4:$A$150,0),HU$1)="","",(501-INDEX($E$4:$ED$150,MATCH($FV27,$A$4:$A$150,0),HU$1))/IF(HU7=0,HU$22,HU7)*3),"") ->  | HV27: =IFERROR(IF(INDEX($E$4:$ED$150,MATCH($FV27,$A$4:$A$150,0),HV$1)="","",(501-INDEX($E$4:$ED$150,MATCH($FV27,$A$4:$A$150,0),HV$1))/IF(HV7=0,HV$22,HV7)*3),"") ->  | HW27: =IFERROR(IF(INDEX($E$4:$ED$150,MATCH($FV27,$A$4:$A$150,0),HW$1)="","",(501-INDEX($E$4:$ED$150,MATCH($FV27,$A$4:$A$150,0),HW$1))/IF(HW7=0,HW$22,HW7)*3),"") ->  | HX27: =IFERROR(IF(INDEX($E$4:$ED$150,MATCH($FV27,$A$4:$A$150,0),HX$1)="","",(501-INDEX($E$4:$ED$150,MATCH($FV27,$A$4:$A$150,0),HX$1))/IF(HX7=0,HX$22,HX7)*3),"") ->  | HY27: =IFERROR(IF(INDEX($E$4:$ED$150,MATCH($FV27,$A$4:$A$150,0),HY$1)="","",(501-INDEX($E$4:$ED$150,MATCH($FV27,$A$4:$A$150,0),HY$1))/IF(HY7=0,HY$22,HY7)*3),"") ->  | HZ27: =IFERROR(IF(INDEX($E$4:$ED$150,MATCH($FV27,$A$4:$A$150,0),HZ$1)="","",(501-INDEX($E$4:$ED$150,MATCH($FV27,$A$4:$A$150,0),HZ$1))/IF(HZ7=0,HZ$22,HZ7)*3),"") ->  | IA27: =IFERROR(IF(INDEX($E$4:$ED$150,MATCH($FV27,$A$4:$A$150,0),IA$1)="","",(501-INDEX($E$4:$ED$150,MATCH($FV27,$A$4:$A$150,0),IA$1))/IF(IA7=0,IA$22,IA7)*3),"") ->  | IB27: =IFERROR(IF(INDEX($E$4:$ED$150,MATCH($FV27,$A$4:$A$150,0),IB$1)="","",(501-INDEX($E$4:$ED$150,MATCH($FV27,$A$4:$A$150,0),IB$1))/IF(IB7=0,IB$22,IB7)*3),"") ->  | IC27: =IFERROR(IF(INDEX($E$4:$ED$150,MATCH($FV27,$A$4:$A$150,0),IC$1)="","",(501-INDEX($E$4:$ED$150,MATCH($FV27,$A$4:$A$150,0),IC$1))/IF(IC7=0,IC$22,IC7)*3),"") ->  | ID27: =IFERROR(IF(INDEX($E$4:$ED$150,MATCH($FV27,$A$4:$A$150,0),ID$1)="","",(501-INDEX($E$4:$ED$150,MATCH($FV27,$A$4:$A$150,0),ID$1))/IF(ID7=0,ID$22,ID7)*3),"") ->  | IE27: =IFERROR(IF(INDEX($E$4:$ED$150,MATCH($FV27,$A$4:$A$150,0),IE$1)="","",(501-INDEX($E$4:$ED$150,MATCH($FV27,$A$4:$A$150,0),IE$1))/IF(IE7=0,IE$22,IE7)*3),"") ->  | IF27: =IFERROR(IF(INDEX($E$4:$ED$150,MATCH($FV27,$A$4:$A$150,0),IF$1)="","",(501-INDEX($E$4:$ED$150,MATCH($FV27,$A$4:$A$150,0),IF$1))/IF(IF7=0,IF$22,IF7)*3),"") ->  | IG27: =IFERROR(IF(INDEX($E$4:$ED$150,MATCH($FV27,$A$4:$A$150,0),IG$1)="","",(501-INDEX($E$4:$ED$150,MATCH($FV27,$A$4:$A$150,0),IG$1))/IF(IG7=0,IG$22,IG7)*3),"") ->  | IH27: =IFERROR(IF(INDEX($E$4:$ED$150,MATCH($FV27,$A$4:$A$150,0),IH$1)="","",(501-INDEX($E$4:$ED$150,MATCH($FV27,$A$4:$A$150,0),IH$1))/IF(IH7=0,IH$22,IH7)*3),"") ->  | II27: =IFERROR(IF(INDEX($E$4:$ED$150,MATCH($FV27,$A$4:$A$150,0),II$1)="","",(501-INDEX($E$4:$ED$150,MATCH($FV27,$A$4:$A$150,0),II$1))/IF(II7=0,II$22,II7)*3),"") ->  | IJ27: =IFERROR(IF(INDEX($E$4:$ED$150,MATCH($FV27,$A$4:$A$150,0),IJ$1)="","",(501-INDEX($E$4:$ED$150,MATCH($FV27,$A$4:$A$150,0),IJ$1))/IF(IJ7=0,IJ$22,IJ7)*3),"") ->  | IK27: =IFERROR(IF(INDEX($E$4:$ED$150,MATCH($FV27,$A$4:$A$150,0),IK$1)="","",(501-INDEX($E$4:$ED$150,MATCH($FV27,$A$4:$A$150,0),IK$1))/IF(IK7=0,IK$22,IK7)*3),"") ->  | IL27: =IFERROR(IF(INDEX($E$4:$ED$150,MATCH($FV27,$A$4:$A$150,0),IL$1)="","",(501-INDEX($E$4:$ED$150,MATCH($FV27,$A$4:$A$150,0),IL$1))/IF(IL7=0,IL$22,IL7)*3),"") ->  | IM27: =IFERROR(IF(INDEX($E$4:$ED$150,MATCH($FV27,$A$4:$A$150,0),IM$1)="","",(501-INDEX($E$4:$ED$150,MATCH($FV27,$A$4:$A$150,0),IM$1))/IF(IM7=0,IM$22,IM7)*3),"") ->  | IN27: =IFERROR(IF(INDEX($E$4:$ED$150,MATCH($FV27,$A$4:$A$150,0),IN$1)="","",(501-INDEX($E$4:$ED$150,MATCH($FV27,$A$4:$A$150,0),IN$1))/IF(IN7=0,IN$22,IN7)*3),"") ->  | IO27: =IFERROR(IF(INDEX($E$4:$ED$150,MATCH($FV27,$A$4:$A$150,0),IO$1)="","",(501-INDEX($E$4:$ED$150,MATCH($FV27,$A$4:$A$150,0),IO$1))/IF(IO7=0,IO$22,IO7)*3),"") ->  | IP27: =IFERROR(IF(INDEX($E$4:$ED$150,MATCH($FV27,$A$4:$A$150,0),IP$1)="","",(501-INDEX($E$4:$ED$150,MATCH($FV27,$A$4:$A$150,0),IP$1))/IF(IP7=0,IP$22,IP7)*3),"") ->  | IQ27: =IFERROR(IF(INDEX($E$4:$ED$150,MATCH($FV27,$A$4:$A$150,0),IQ$1)="","",(501-INDEX($E$4:$ED$150,MATCH($FV27,$A$4:$A$150,0),IQ$1))/IF(IQ7=0,IQ$22,IQ7)*3),"") ->  | IR27: =IFERROR(IF(INDEX($E$4:$ED$150,MATCH($FV27,$A$4:$A$150,0),IR$1)="","",(501-INDEX($E$4:$ED$150,MATCH($FV27,$A$4:$A$150,0),IR$1))/IF(IR7=0,IR$22,IR7)*3),"") ->  | IS27: =IFERROR(IF(INDEX($E$4:$ED$150,MATCH($FV27,$A$4:$A$150,0),IS$1)="","",(501-INDEX($E$4:$ED$150,MATCH($FV27,$A$4:$A$150,0),IS$1))/IF(IS7=0,IS$22,IS7)*3),"") ->  | IT27: =IFERROR(IF(INDEX($E$4:$ED$150,MATCH($FV27,$A$4:$A$150,0),IT$1)="","",(501-INDEX($E$4:$ED$150,MATCH($FV27,$A$4:$A$150,0),IT$1))/IF(IT7=0,IT$22,IT7)*3),"") ->  | IU27: =IFERROR(IF(INDEX($E$4:$ED$150,MATCH($FV27,$A$4:$A$150,0),IU$1)="","",(501-INDEX($E$4:$ED$150,MATCH($FV27,$A$4:$A$150,0),IU$1))/IF(IU7=0,IU$22,IU7)*3),"") ->  | IV27: =IFERROR(IF(INDEX($E$4:$ED$150,MATCH($FV27,$A$4:$A$150,0),IV$1)="","",(501-INDEX($E$4:$ED$150,MATCH($FV27,$A$4:$A$150,0),IV$1))/IF(IV7=0,IV$22,IV7)*3),"") ->  | IW27: =IFERROR(IF(INDEX($E$4:$ED$150,MATCH($FV27,$A$4:$A$150,0),IW$1)="","",(501-INDEX($E$4:$ED$150,MATCH($FV27,$A$4:$A$150,0),IW$1))/IF(IW7=0,IW$22,IW7)*3),"") ->  | IX27: =IFERROR(IF(INDEX($E$4:$ED$150,MATCH($FV27,$A$4:$A$150,0),IX$1)="","",(501-INDEX($E$4:$ED$150,MATCH($FV27,$A$4:$A$150,0),IX$1))/IF(IX7=0,IX$22,IX7)*3),"") ->  | IY27: =IFERROR(IF(INDEX($E$4:$ED$150,MATCH($FV27,$A$4:$A$150,0),IY$1)="","",(501-INDEX($E$4:$ED$150,MATCH($FV27,$A$4:$A$150,0),IY$1))/IF(IY7=0,IY$22,IY7)*3),"") ->  | IZ27: =IFERROR(IF(INDEX($E$4:$ED$150,MATCH($FV27,$A$4:$A$150,0),IZ$1)="","",(501-INDEX($E$4:$ED$150,MATCH($FV27,$A$4:$A$150,0),IZ$1))/IF(IZ7=0,IZ$22,IZ7)*3),"") ->  | JA27: =IFERROR(IF(INDEX($E$4:$ED$150,MATCH($FV27,$A$4:$A$150,0),JA$1)="","",(501-INDEX($E$4:$ED$150,MATCH($FV27,$A$4:$A$150,0),JA$1))/IF(JA7=0,JA$22,JA7)*3),"") ->  | JB27: =IFERROR(IF(INDEX($E$4:$ED$150,MATCH($FV27,$A$4:$A$150,0),JB$1)="","",(501-INDEX($E$4:$ED$150,MATCH($FV27,$A$4:$A$150,0),JB$1))/IF(JB7=0,JB$22,JB7)*3),"") ->  | JC27: =IFERROR(IF(INDEX($E$4:$ED$150,MATCH($FV27,$A$4:$A$150,0),JC$1)="","",(501-INDEX($E$4:$ED$150,MATCH($FV27,$A$4:$A$150,0),JC$1))/IF(JC7=0,JC$22,JC7)*3),"") ->  | JD27: =IFERROR(IF(INDEX($E$4:$ED$150,MATCH($FV27,$A$4:$A$150,0),JD$1)="","",(501-INDEX($E$4:$ED$150,MATCH($FV27,$A$4:$A$150,0),JD$1))/IF(JD7=0,JD$22,JD7)*3),"") ->  | JE27: =IFERROR(IF(INDEX($E$4:$ED$150,MATCH($FV27,$A$4:$A$150,0),JE$1)="","",(501-INDEX($E$4:$ED$150,MATCH($FV27,$A$4:$A$150,0),JE$1))/IF(JE7=0,JE$22,JE7)*3),"") ->  | JF27: =IFERROR(IF(INDEX($E$4:$ED$150,MATCH($FV27,$A$4:$A$150,0),JF$1)="","",(501-INDEX($E$4:$ED$150,MATCH($FV27,$A$4:$A$150,0),JF$1))/IF(JF7=0,JF$22,JF7)*3),"") ->  | JG27: =IFERROR(IF(INDEX($E$4:$ED$150,MATCH($FV27,$A$4:$A$150,0),JG$1)="","",(501-INDEX($E$4:$ED$150,MATCH($FV27,$A$4:$A$150,0),JG$1))/IF(JG7=0,JG$22,JG7)*3),"") ->  | JH27: =IFERROR(IF(INDEX($E$4:$ED$150,MATCH($FV27,$A$4:$A$150,0),JH$1)="","",(501-INDEX($E$4:$ED$150,MATCH($FV27,$A$4:$A$150,0),JH$1))/IF(JH7=0,JH$22,JH7)*3),"") ->  | JI27: =IFERROR(IF(INDEX($E$4:$ED$150,MATCH($FV27,$A$4:$A$150,0),JI$1)="","",(501-INDEX($E$4:$ED$150,MATCH($FV27,$A$4:$A$150,0),JI$1))/IF(JI7=0,JI$22,JI7)*3),"") -> 39.81818182 | JJ27: =IFERROR(IF(INDEX($E$4:$ED$150,MATCH($FV27,$A$4:$A$150,0),JJ$1)="","",(501-INDEX($E$4:$ED$150,MATCH($FV27,$A$4:$A$150,0),JJ$1))/IF(JJ7=0,JJ$22,JJ7)*3),"") -> 43.72727273 | JK27: =IFERROR(IF(INDEX($E$4:$ED$150,MATCH($FV27,$A$4:$A$150,0),JK$1)="","",(501-INDEX($E$4:$ED$150,MATCH($FV27,$A$4:$A$150,0),JK$1))/IF(JK7=0,JK$22,JK7)*3),"") -> 35.25 | JL27: =IFERROR(IF(INDEX($E$4:$ED$150,MATCH($FV27,$A$4:$A$150,0),JL$1)="","",(501-INDEX($E$4:$ED$150,MATCH($FV27,$A$4:$A$150,0),JL$1))/IF(JL7=0,JL$22,JL7)*3),"") -> 38.3 | JM27: =IFERROR(IF(INDEX($E$4:$ED$150,MATCH($FV27,$A$4:$A$150,0),JM$1)="","",(501-INDEX($E$4:$ED$150,MATCH($FV27,$A$4:$A$150,0),JM$1))/IF(JM7=0,JM$22,JM7)*3),"") ->  | JN27: =IFERROR(IF(INDEX($E$4:$ED$150,MATCH($FV27,$A$4:$A$150,0),JN$1)="","",(501-INDEX($E$4:$ED$150,MATCH($FV27,$A$4:$A$150,0),JN$1))/IF(JN7=0,JN$22,JN7)*3),"") ->  | JO27: =IFERROR(IF(INDEX($E$4:$ED$150,MATCH($FV27,$A$4:$A$150,0),JO$1)="","",(501-INDEX($E$4:$ED$150,MATCH($FV27,$A$4:$A$150,0),JO$1))/IF(JO7=0,JO$22,JO7)*3),"") ->  | JP27: =IFERROR(IF(INDEX($E$4:$ED$150,MATCH($FV27,$A$4:$A$150,0),JP$1)="","",(501-INDEX($E$4:$ED$150,MATCH($FV27,$A$4:$A$150,0),JP$1))/IF(JP7=0,JP$22,JP7)*3),"") ->  | JQ27: =IFERROR(IF(INDEX($E$4:$ED$150,MATCH($FV27,$A$4:$A$150,0),JQ$1)="","",(501-INDEX($E$4:$ED$150,MATCH($FV27,$A$4:$A$150,0),JQ$1))/IF(JQ7=0,JQ$22,JQ7)*3),"") ->  | JR27: =IFERROR(IF(INDEX($E$4:$ED$150,MATCH($FV27,$A$4:$A$150,0),JR$1)="","",(501-INDEX($E$4:$ED$150,MATCH($FV27,$A$4:$A$150,0),JR$1))/IF(JR7=0,JR$22,JR7)*3),"") ->  | JS27: =IFERROR(IF(INDEX($E$4:$ED$150,MATCH($FV27,$A$4:$A$150,0),JS$1)="","",(501-INDEX($E$4:$ED$150,MATCH($FV27,$A$4:$A$150,0),JS$1))/IF(JS7=0,JS$22,JS7)*3),"") ->  | JT27: =IFERROR(IF(INDEX($E$4:$ED$150,MATCH($FV27,$A$4:$A$150,0),JT$1)="","",(501-INDEX($E$4:$ED$150,MATCH($FV27,$A$4:$A$150,0),JT$1))/IF(JT7=0,JT$22,JT7)*3),"") ->  | JU27: =IFERROR(IF(INDEX($E$4:$ED$150,MATCH($FV27,$A$4:$A$150,0),JU$1)="","",(501-INDEX($E$4:$ED$150,MATCH($FV27,$A$4:$A$150,0),JU$1))/IF(JU7=0,JU$22,JU7)*3),"") ->  | JV27: =IFERROR(IF(INDEX($E$4:$ED$150,MATCH($FV27,$A$4:$A$150,0),JV$1)="","",(501-INDEX($E$4:$ED$150,MATCH($FV27,$A$4:$A$150,0),JV$1))/IF(JV7=0,JV$22,JV7)*3),"") ->  | JW27: =IFERROR(IF(INDEX($E$4:$ED$150,MATCH($FV27,$A$4:$A$150,0),JW$1)="","",(501-INDEX($E$4:$ED$150,MATCH($FV27,$A$4:$A$150,0),JW$1))/IF(JW7=0,JW$22,JW7)*3),"") ->  | JX27: =IFERROR(IF(INDEX($E$4:$ED$150,MATCH($FV27,$A$4:$A$150,0),JX$1)="","",(501-INDEX($E$4:$ED$150,MATCH($FV27,$A$4:$A$150,0),JX$1))/IF(JX7=0,JX$22,JX7)*3),"") ->  | JY27: =IFERROR(IF(INDEX($E$4:$ED$150,MATCH($FV27,$A$4:$A$150,0),JY$1)="","",(501-INDEX($E$4:$ED$150,MATCH($FV27,$A$4:$A$150,0),JY$1))/IF(JY7=0,JY$22,JY7)*3),"") ->  | JZ27: =IFERROR(IF(INDEX($E$4:$ED$150,MATCH($FV27,$A$4:$A$150,0),JZ$1)="","",(501-INDEX($E$4:$ED$150,MATCH($FV27,$A$4:$A$150,0),JZ$1))/IF(JZ7=0,JZ$22,JZ7)*3),"") ->  | KA27: =IFERROR(IF(INDEX($E$4:$ED$150,MATCH($FV27,$A$4:$A$150,0),KA$1)="","",(501-INDEX($E$4:$ED$150,MATCH($FV27,$A$4:$A$150,0),KA$1))/IF(KA7=0,KA$22,KA7)*3),"") ->  | KB27: =IFERROR(IF(INDEX($E$4:$ED$150,MATCH($FV27,$A$4:$A$150,0),KB$1)="","",(501-INDEX($E$4:$ED$150,MATCH($FV27,$A$4:$A$150,0),KB$1))/IF(KB7=0,KB$22,KB7)*3),"") ->  | KC27: =IFERROR(IF(INDEX($E$4:$ED$150,MATCH($FV27,$A$4:$A$150,0),KC$1)="","",(501-INDEX($E$4:$ED$150,MATCH($FV27,$A$4:$A$150,0),KC$1))/IF(KC7=0,KC$22,KC7)*3),"") ->  | KD27: =IFERROR(IF(INDEX($E$4:$ED$150,MATCH($FV27,$A$4:$A$150,0),KD$1)="","",(501-INDEX($E$4:$ED$150,MATCH($FV27,$A$4:$A$150,0),KD$1))/IF(KD7=0,KD$22,KD7)*3),"") ->  | KE27: =IFERROR(IF(INDEX($E$4:$ED$150,MATCH($FV27,$A$4:$A$150,0),KE$1)="","",(501-INDEX($E$4:$ED$150,MATCH($FV27,$A$4:$A$150,0),KE$1))/IF(KE7=0,KE$22,KE7)*3),"") ->  | KF27: =IFERROR(IF(INDEX($E$4:$ED$150,MATCH($FV27,$A$4:$A$150,0),KF$1)="","",(501-INDEX($E$4:$ED$150,MATCH($FV27,$A$4:$A$150,0),KF$1))/IF(KF7=0,KF$22,KF7)*3),"") ->  | KG27: =IFERROR(IF(INDEX($E$4:$ED$150,MATCH($FV27,$A$4:$A$150,0),KG$1)="","",(501-INDEX($E$4:$ED$150,MATCH($FV27,$A$4:$A$150,0),KG$1))/IF(KG7=0,KG$22,KG7)*3),"") ->  | KH27: =IFERROR(IF(INDEX($E$4:$ED$150,MATCH($FV27,$A$4:$A$150,0),KH$1)="","",(501-INDEX($E$4:$ED$150,MATCH($FV27,$A$4:$A$150,0),KH$1))/IF(KH7=0,KH$22,KH7)*3),"") ->  | KI27: =IFERROR(IF(INDEX($E$4:$ED$150,MATCH($FV27,$A$4:$A$150,0),KI$1)="","",(501-INDEX($E$4:$ED$150,MATCH($FV27,$A$4:$A$150,0),KI$1))/IF(KI7=0,KI$22,KI7)*3),"") ->  | KJ27: =IFERROR(IF(INDEX($E$4:$ED$150,MATCH($FV27,$A$4:$A$150,0),KJ$1)="","",(501-INDEX($E$4:$ED$150,MATCH($FV27,$A$4:$A$150,0),KJ$1))/IF(KJ7=0,KJ$22,KJ7)*3),"") ->  | KK27: =IFERROR(IF(INDEX($E$4:$ED$150,MATCH($FV27,$A$4:$A$150,0),KK$1)="","",(501-INDEX($E$4:$ED$150,MATCH($FV27,$A$4:$A$150,0),KK$1))/IF(KK7=0,KK$22,KK7)*3),"") ->  | KL27: =IFERROR(IF(INDEX($E$4:$ED$150,MATCH($FV27,$A$4:$A$150,0),KL$1)="","",(501-INDEX($E$4:$ED$150,MATCH($FV27,$A$4:$A$150,0),KL$1))/IF(KL7=0,KL$22,KL7)*3),"") ->  | KM27: =IFERROR(IF(INDEX($E$4:$ED$150,MATCH($FV27,$A$4:$A$150,0),KM$1)="","",(501-INDEX($E$4:$ED$150,MATCH($FV27,$A$4:$A$150,0),KM$1))/IF(KM7=0,KM$22,KM7)*3),"") ->  | KN27: =IFERROR(IF(INDEX($E$4:$ED$150,MATCH($FV27,$A$4:$A$150,0),KN$1)="","",(501-INDEX($E$4:$ED$150,MATCH($FV27,$A$4:$A$150,0),KN$1))/IF(KN7=0,KN$22,KN7)*3),"") ->  | KO27: =IFERROR(IF(INDEX($E$4:$ED$150,MATCH($FV27,$A$4:$A$150,0),KO$1)="","",(501-INDEX($E$4:$ED$150,MATCH($FV27,$A$4:$A$150,0),KO$1))/IF(KO7=0,KO$22,KO7)*3),"") ->  | KP27: =IFERROR(IF(INDEX($E$4:$ED$150,MATCH($FV27,$A$4:$A$150,0),KP$1)="","",(501-INDEX($E$4:$ED$150,MATCH($FV27,$A$4:$A$150,0),KP$1))/IF(KP7=0,KP$22,KP7)*3),"") ->  | KQ27: =IFERROR(IF(INDEX($E$4:$ED$150,MATCH($FV27,$A$4:$A$150,0),KQ$1)="","",(501-INDEX($E$4:$ED$150,MATCH($FV27,$A$4:$A$150,0),KQ$1))/IF(KQ7=0,KQ$22,KQ7)*3),"") ->  | KR27: =IFERROR(IF(INDEX($E$4:$ED$150,MATCH($FV27,$A$4:$A$150,0),KR$1)="","",(501-INDEX($E$4:$ED$150,MATCH($FV27,$A$4:$A$150,0),KR$1))/IF(KR7=0,KR$22,KR7)*3),"") ->  | KS27: =IFERROR(IF(INDEX($E$4:$ED$150,MATCH($FV27,$A$4:$A$150,0),KS$1)="","",(501-INDEX($E$4:$ED$150,MATCH($FV27,$A$4:$A$150,0),KS$1))/IF(KS7=0,KS$22,KS7)*3),"") ->  | KT27: =IFERROR(IF(INDEX($E$4:$ED$150,MATCH($FV27,$A$4:$A$150,0),KT$1)="","",(501-INDEX($E$4:$ED$150,MATCH($FV27,$A$4:$A$150,0),KT$1))/IF(KT7=0,KT$22,KT7)*3),"") ->  | KU27: =IFERROR(IF(INDEX($E$4:$ED$150,MATCH($FV27,$A$4:$A$150,0),KU$1)="","",(501-INDEX($E$4:$ED$150,MATCH($FV27,$A$4:$A$150,0),KU$1))/IF(KU7=0,KU$22,KU7)*3),"") ->  | KV27: =IFERROR(IF(INDEX($E$4:$ED$150,MATCH($FV27,$A$4:$A$150,0),KV$1)="","",(501-INDEX($E$4:$ED$150,MATCH($FV27,$A$4:$A$150,0),KV$1))/IF(KV7=0,KV$22,KV7)*3),"") ->  | KW27: =IFERROR(SUM(FW27:KV27)/COUNT(FW27:KV27),INDEX(List4!$F$2:$F$17,MATCH(INDEX($A$4:$C$150,MATCH(FV27,$A$4:$A$150,0),2),List4!$D$2:$D$17,0),1)) -> 39.27386364 | KX27: 4 | KY27: =INDEX($A$4:$C$150,MATCH(INDEX($FV$24:$FV$41,MATCH(KZ27,$LA$24:$LA$41,0),1),$A$4:$A$150,0)-2,2) -> Jarda Klein | KZ27: 41.55618801 | LA27: =IF(INDEX(Tabulka!$A$2:$AN$226,MATCH($FS27,Tabulka!$A$2:$A$226,0),38)<1,-90000+INDEX(List4!$F$2:$F$17,MATCH($FS27,List4!$D$2:$D$17,0),1),IF(AND(INDEX(Tabulka!$A$2:$AN$226,MATCH($FS27,Tabulka!$A$2:$A$226,0)+3,34)>0,INDEX(Tabulka!$A$2:$AN$226,MATCH($FS27,Tabulka!$A$2:$A$226,0)+3,34)<Přehled_body!$EJ$1),-50000+INDEX(List4!$F$2:$F$17,MATCH($FS27,List4!$D$2:$D$17,0),),IFERROR(SUM(FW27:KV27)/COUNT(FW27:KV27)+INDEX(List4!$F$2:$F$17,MATCH($FS27,List4!$D$2:$D$17,0),),-50000+INDEX(List4!$F$2:$F$17,MATCH($FS27,List4!$D$2:$D$17,0),)))) -> 39.27386365 | LB27: 41.556188
